{"text_format":"1","workbook":"xlsx","n_sheets":5,"sheets":["Millwall","Comparisons","Sheet1","Sheet2","Sheet3"],"not_rendered":{"charts":1,"images":2,"macros":1,"external_links":5,"defined_names":14,"comments":0,"pivot_tables":0},"unopened":[],"bounds":{"document_bytes":16777216,"sheet_cells":100000,"rows_first":2000,"rows_last":500,"rows_between":2000,"halvings":0,"cell_chars":16384,"cell_head_chars":4096},"cells_cut":0,"cells_raw":0,"read":"whole","date_system":"1900"}

{"sheet":"Millwall","index":0,"n_rows":204,"n_cols":147,"rows_kept":204,"cut":false,"hidden":false,"merged":[[4,66,4,67],[2,77,2,79],[69,69,69,71],[69,73,69,75],[69,77,69,79],[65,64,65,98],[2,146,2,158],[2,68,2,71],[2,72,2,75],[50,85,50,87],[50,80,50,82],[50,68,50,70],[50,72,50,74],[50,76,50,78]]}
[null,null,1,"Competition","Date",null,"Us & Them","Opponents",null,null,null,"Score","HT",null,null,null,null,null,null,null,null,null,null,"Att",null,"Pts","Pos","Goal Scorers",null,null,null,null,null,null,null,null,null,null,null,null,null,null,null,null,null,null,null,null,null,null,null,null,null,null,null,null,null,null,null,null,null,null,null,null,null,null,null,null,null,null,null,null,null,null,null,null,null,null,null,null,null,null,null,null,null,null,null,null,null,null,null,null,null,null,null,null,1,451]
[null,null,null,null,null,null,null,null,null,null,null,null,null,null,null,null,null,null,null,null,null,null,null,null,null,null,null,null,null,null,null,null,null,null,null,null,null,null,null,null,null,"x"]
[null,null,null,null,null,null,null,null,null,null,null,null,"x",null,null,null,null,null,null,null,null,null,null,null,null,null,null,null,null,null,null,null,null,null,null,null,null,null,null,null,null,"x",null,null,null,null,null,null,null,null,null,null,null,null,null,null,null,null,null,null,null,null,null,null,null,null,null,null,"All",null,null,null,"League",null,null,null,null,"FA Cup",null,null,null,null,null,null,null,null,null,null,null,null,null,null,null,null,null,null,null,null,null,null,null,null,null,null,null,null,null,null,null,null,null,null,null,null,null,null,null,null,null,null,null,null,null,null,null,null,null,null,null,null,null,null,null,null,null,null,null,null,null,null,null,null,null,null,null,null,"Millwall Progress Season 1964/65"]
[null,null,"Game","Competition","Date",null,"Us & Them","Opponents",null,null,null,"Score","HT",null,null,null,null,null,null,null,null,null,null,"Att","Away","Pts","Pos","Goal Scorers",null,null,null,null,"Game","Competition","Date",null,"Opponents",null,null,null,"Score",1,2,3,4,5,6,7,8,9,10,11,null,null,12,null,null,null,null,null,null,null,null,null,null,null,null,null,null,{"$f":"BQ51","v":"Max (49)"},null,null,null,{"$f":"BU51","v":"Max (46)"},null,null,null,{"$f":"BY51","v":"Max (3)"},null,null,null,null,null,null,null,null,null,null,null,null,null,null,null,null,null,null,null,null,1,2,3,4,5,6,7,8,9,10,11,null,11,12,13,14,null,16,17,18,null,null,null,null,null,null,null,null,null,null,null,null,null,null,null,null,null,null,null,null,null,null,"Opposition","Pts","Pos"]
[1,null,1,"Division 3S","1954-08-21",null,"- -","Brighton","(H)",null,null,"W 2-0","1-0",null,null,null,null,null,null,null,null,null,null,25445,null,2,2,"McAllister (2)",null,null,1,null,{"$f":"C5","v":1},"Division 3S","1954-08-21",null,"Brighton","(H)",null,null,"W 2-0","Finlayson","Jardine","Fisher","Heydon","Hurley","Saward","Hazlett","Smith","Summers","McAllister","Ledgerton",null,null,null,null,null,null,null,null,null,null,null,null,null,null,"Player      ",null,"Apps","-","-","Goals","Apps","-","-","Goals","Apps","-","-","Goals",null,null,null,null,null,null,null,null,null,null,null,null,null,null,null,null,null,null,"Finlayson","Jardine","Anslow","Short","Hurley","Heydon","Hazlett","Smith","Pacey","Saward","Summers",null,null,null,null,null,null,null,null,null,null,null,null,null,null,null,null,null,null,null,null,null,null,null,null,null,null,null,null,null,null,null,"Brighton (H) W 2-0",2,2]
[{"$f":"IF(A5=0,1,IF(A5=2,1,2))","v":2},null,2,"Division 3S","1954-08-26",null,"5th v 7th","Leyton Orient","(A)",null,null,"L 0-1","0-1",null,null,null,null,null,null,null,null,null,null,18927,null,2,10,null,null,null,{"$f":"IF(AE5=0,1,IF(AE5=2,1,2))","v":2},null,2,"Division 3S","1954-08-26",null,"Leyton Orient","(A)",null,null,"L 0-1","Finlayson","Jardine","Fisher","Heydon","Hurley","Saward","Johnson","McDowall","Summers","McAllister","Ledgerton",null,null,null,null,null,null,null,null,null,null,null,null,null,null,null,null,null,null,null,null,null,null,null,null,null,null,null,null,null,null,null,null,null,null,null,null,null,null,null,null,null,null,null,null,null,null,null,null,null,null,null,null,null,null,null,null,null,null,null,null,null,null,null,null,null,null,null,null,null,null,null,null,null,null,null,null,null,null,null,null,null,null,null,null,null,null,null,null,"Leyton Orient (A) L 0-1",2,10]
[1,null,3,"Division 3S","1954-08-28",null,"10th v 18th","Torquay","(A)",null,null,"L 2-4","1-1",null,null,null,null,null,null,null,null,null,null,8266,null,2,18,"Shepherd, Johnson",null,null,1,null,3,"Division 3S","1954-08-28",null,"Torquay","(A)",null,null,"L 2-4","Finlayson","Jardine","Fisher","Heydon","Hurley","Saward","Johnson","Shepherd","Summers","McAllister","Ledgerton",null,null,null,null,null,null,null,null,null,null,null,null,1,null,{"$f":"CN7&\" \"&CO7","v":"Stanley Anslow"},null,{"$f":"BU7+BY7","v":41},"-","-",{"$f":"BX7+CB7","v":0},{"$f":"BR72","v":38},"-","-",0,{"$f":"BZ72","v":3},"-","-",0,null,null,{"$f":"IF(BU7=CF7,IF(BY7=CG7,\"OK\",\"Error\"),\"Error\")","v":"OK"},38,3,null,null,null,null,null,{"$f":"CM72","v":72},"Stanley","Anslow",1,7,null,"Anslow",null,"Finlayson","Jardine","Anslow","Short","Hurley","Heydon","Hazlett","Smith","Pacey","Saward","Summers",null,null,null,null,null,null,null,null,null,null,null,null,null,null,null,null,null,null,null,null,null,null,null,null,null,null,null,null,null,null,null,"Torquay (A) L 2-4",2,18]
[2,null,4,"Division 3S","1954-08-30",null,"18th v 7th","Leyton Orient","(H)",null,null,"W 1-0","0-0",null,null,null,null,null,null,null,null,null,null,16060,null,4,8,"Ledgerton",null,null,2,null,4,"Division 3S","1954-08-30",null,"Leyton Orient","(H)",null,null,"W 1-0","Finlayson","Jardine","Fisher","Heydon","Hurley","Thrippleton","Johnson","Saward","Shepherd","McAllister","Ledgerton",null,null,null,null,null,null,null,null,null,null,null,null,{"$f":"IF(BM7=0,1,IF(BM7=2,1,2))","v":2},null,"Gerry Bowler",null,{"$f":"BU8+BY8","v":7},"-","-",{"$f":"BX8+CB8","v":0},7,"-","-",0,0,"-","-",0,null,null,"OK",7,0,null,null,null,null,null,73,"Gerry","Bowler",2,8,null,"Bowler",null,null,null,null,null,null,null,null,null,null,null,null,null,null,null,null,null,null,null,null,null,null,null,null,null,null,null,null,null,null,null,null,null,null,null,null,null,null,null,null,null,null,null,"Leyton Orient (H) W 1-0",4,8]
[1,null,5,"Division 3S","1954-09-04",null,"13th v 3rd","Bristol C","(H)",null,null,"L 1-3","1-2",null,null,null,null,null,null,null,null,null,null,15571,null,4,19,"Johnson",null,null,1,null,5,"Division 3S","1954-09-04",null,"Bristol C","(H)",null,null,"L 1-3","Finlayson","Jardine","Fisher","Heydon","Hurley","Saward","Johnson","Smith","Shepherd","Ramscar","Summers",null,null,null,null,null,null,null,null,null,null,null,null,1,null,"Tony Brewer",null,3,"-","-",0,{"$f":"BR74","v":3},"-","-",{"$f":"BU74","v":0},{"$f":"BZ74","v":0},"-","-",{"$f":"CC74","v":0},null,null,"OK",3,0,null,null,null,null,null,74,"Tony","Brewer",3,9,null,"Brewer",null,"No Scorer",null,null,null,null,null,null,null,null,null,null,null,null,null,null,null,null,null,null,null,null,null,null,null,null,null,null,null,null,null,null,null,null,null,null,null,null,null,null,null,null,null,"Bristol C (H) L 1-3",4,19]
[2,null,6,"Division 3S","1954-09-09",null,"19th v 15th","Northampton","(A)",null,null,"W 1-0","0-0",null,null,null,null,null,null,null,null,null,null,18106,null,6,13,"Prior",null,null,2,null,6,"Division 3S","1954-09-09",null,"Northampton","(A)",null,null,"W 1-0","Finlayson","Jardine","Quinn","Heydon","Hurley","Saward","Johnson","Smith","Summers","Ramscar","Prior",null,null,null,null,null,null,null,null,null,null,null,null,2,null,"Malcolm Finlayson",null,46,"-","-",0,43,"-","-",0,3,"-","-",0,null,null,"OK",43,3,null,null,null,null,null,75,"Malcolm","Finlayson",4,10,null,"Finlayson",null,"Own Goal",null,null,null,null,null,null,null,null,null,null,null,null,null,null,null,null,null,null,null,null,null,null,null,null,null,null,null,null,null,null,null,null,null,null,null,null,null,null,null,null,null,"Northampton (A) W 1-0",6,13]
[1,null,7,"Division 3S","1954-09-11",null,"13th v 24th","Walsall","(A)",null,null,"D 1-1","1-0",null,null,null,null,null,null,null,null,null,null,8560,null,7,12,"Prior",null,null,1,null,7,"Division 3S","1954-09-11",null,"Walsall","(A)",null,null,"D 1-1","Finlayson","Jardine","Quinn","Heydon","Hurley","Saward","Johnson","Smith","Summers","Ramscar","Prior",null,null,null,null,null,null,null,null,null,null,null,null,1,null,"George Fisher",null,5,"-","-",0,5,"-","-",0,0,"-","-",0,null,null,"OK",5,0,null,null,null,null,null,76,"George","Fisher",5,11,null,"Fisher",null,"Anslow","Stanley",null,null,null,null,null,null,null,null,null,null,null,null,null,null,null,null,null,null,null,null,null,null,null,null,null,null,null,null,null,null,null,null,null,null,null,null,null,null,null,null,"Walsall (A) D 1-1",7,12]
[2,null,8,"Division 3S","1954-09-13",null,"12th v 17th","Northampton","(H)",null,null,"W 1-0","1-0",null,null,null,null,null,null,null,null,null,null,9521,null,9,6,"Ramscar",null,null,2,null,8,"Division 3S","1954-09-13",null,"Northampton","(H)",null,null,"W 1-0","Finlayson","Jardine","Anslow","Heydon","Hurley","Saward","Johnson","Reeves","Summers","Ramscar","Prior",null,null,null,null,null,null,null,null,null,null,null,null,2,null,"Ivan Green",null,1,"-","-",0,1,"-","-",0,0,"-","-",0,null,null,"OK",1,0,null,null,null,null,null,77,"Ivan","Green",6,12,null,"Green",null,"Bowler","Gerry",null,null,null,null,null,null,null,null,null,null,null,null,null,null,null,null,null,null,null,null,null,null,null,null,null,null,null,null,null,null,null,null,null,null,null,null,null,null,null,null,"Northampton (H) W 1-0",9,6]
[1,null,9,"Division 3S","1954-09-18",null,"9th v 17th","Shrewsbury","(H)",null,null,"W 2-0","1-0",null,null,null,null,null,null,null,null,null,null,16438,null,11,6,"Prior, Summers",null,null,1,null,9,"Division 3S","1954-09-18",null,"Shrewsbury","(H)",null,null,"W 2-0","Finlayson","Jardine","Anslow","Short","Bowler","Heydon","Johnson","Green","Summers","Ramscar","Prior",null,null,null,null,null,null,null,null,null,null,null,null,1,null,"George Hazlett",null,27,"-","-",3,24,"-","-",3,3,"-","-",0,null,null,"OK",24,3,null,null,null,null,null,78,"George","Hazlett",7,13,null,"Hazlett",null,"Brewer","Tony",null,null,null,null,null,null,null,null,null,null,null,null,null,null,null,null,null,null,null,null,null,null,null,null,null,null,null,null,null,null,null,null,null,null,null,null,null,null,null,null,"Shrewsbury (H) W 2-0",11,6]
[2,null,10,"Division 3S","1954-09-20",null,"6th v 7th","Southampton","(H)",null,null,"W 2-0","0-0",null,null,null,null,null,null,null,null,null,null,11237,null,13,4,"Prior, Jardine (pen)",null,null,2,null,10,"Division 3S","1954-09-20",null,"Southampton","(H)",null,null,"W 2-0","Finlayson","Jardine","Anslow","Short","Bowler","Heydon","Johnson","Reeves","Summers","Ramscar","Prior",null,null,null,null,null,null,null,null,null,null,null,null,2,null,"Ken Hencher",null,2,"-","-",0,2,"-","-",0,0,"-","-",0,null,null,"OK",2,0,null,null,null,null,null,79,"Ken","Hencher",8,14,null,"Hencher",null,"Finlayson","Malcolm",null,null,null,null,null,null,null,null,null,null,null,null,null,null,null,null,null,null,null,null,null,null,null,null,null,null,null,null,null,null,null,null,null,null,null,null,null,null,null,null,"Southampton (H) W 2-0",13,4]
[1,null,11,"Division 3S","1954-09-25",null,"5th v 18th","Reading","(A)",null,null,"D 0-0","0-0",null,null,null,null,null,null,null,null,null,null,9895,null,14,4,null,null,null,1,null,11,"Division 3S","1954-09-25",null,"Reading","(A)",null,null,"D 0-0","Finlayson","Jardine","Anslow","Short","Bowler","Heydon","Johnson","Reeves","Summers","Ramscar","Prior",null,null,null,null,null,null,null,null,null,null,null,null,1,null,"Jack Heydon",null,34,"-","-",0,31,"-","-",0,3,"-","-",0,null,null,"OK",31,3,null,null,null,null,null,80,"Jack","Heydon",9,15,null,"Heydon",null,"Fisher","George",null,null,null,null,null,null,null,null,null,null,null,null,null,null,null,null,null,null,null,null,null,null,null,null,null,null,null,null,null,null,null,null,null,null,null,null,null,null,null,null,"Reading (A) D 0-0",14,4]
[2,null,12,"Division 3S","1954-09-29",null,"4th v 14th","Southampton","(A)",null,null,"L 0-3","0-1",null,null,null,null,null,null,null,null,null,null,10701,null,14,6,null,null,null,2,null,12,"Division 3S","1954-09-29",null,"Southampton","(A)",null,null,"L 0-3","Finlayson","Jardine","Anslow","Short","Bowler","Heydon","Johnson","Smith","Summers","Ramscar","Prior",null,null,null,null,null,null,null,null,null,null,null,null,2,null,"Charlie Hurley",null,41,"-","-",0,38,"-","-",0,3,"-","-",0,null,null,"OK",38,3,null,null,null,null,null,81,"Charlie","Hurley",10,16,null,"Hurley",null,"Green","Ivan",null,null,null,null,null,null,null,null,null,null,null,null,null,null,null,null,null,null,null,null,null,null,null,null,null,null,null,null,null,null,null,null,null,null,null,null,null,null,null,null,"Southampton (A) L 0-3",14,6]
[1,null,13,"Division 3S","1954-10-02",null,"6th v 7th","Gillingham","(H)",null,null,"W 3-2","2-2",null,null,null,null,null,null,null,null,null,null,19775,null,16,5,"Prior, Ramscar, Jardine",null,null,1,null,13,"Division 3S","1954-10-02",null,"Gillingham","(H)",null,null,"W 3-2","Finlayson","Jardine","Anslow","Short","Bowler","Heydon","Johnson","McAllister","Summers","Ramscar","Prior",null,null,null,null,null,null,null,null,null,null,null,null,1,null,"Alex Jardine",null,49,"-","-",6,46,"-","-",5,3,"-","-",1,null,null,"OK",46,3,null,null,null,null,null,82,"Alex","Jardine",11,17,null,"Jardine",null,"Hazlett","George",null,null,null,null,null,null,null,null,null,null,null,null,null,null,null,null,null,null,null,null,null,null,null,null,null,null,null,null,null,null,null,null,null,null,null,null,null,null,null,null,"Gillingham (H) W 3-2",16,5]
[2,null,14,"Division 3S","1954-10-09",null,"5th v 9th","Bournemouth","(A)",null,null,"W 1-0","1-0",null,null,null,null,null,null,null,null,null,null,13315,null,18,5,"Pacey",null,null,2,null,14,"Division 3S","1954-10-09",null,"Bournemouth","(A)",null,null,"W 1-0","Finlayson","Jardine","Anslow","Short","Hurley","Saward","Johnson","Pacey","Summers","Ramscar","Prior",null,null,null,null,null,null,null,null,null,null,null,null,2,null,"Johnny Johnson",null,22,"-","-",3,22,"-","-",3,0,"-","-",0,null,null,"OK",22,0,null,null,null,null,null,83,"Johnny","Johnson",12,18,null,"Johnson",null,"Hencher","Ken",null,null,null,null,null,null,null,null,null,null,null,null,null,null,null,null,null,null,null,null,null,null,null,null,null,null,null,null,null,null,null,null,null,null,null,null,null,null,null,null,"Bournemouth (A) W 1-0",18,5]
[1,null,15,"Division 3S","1954-10-16",null,"5th v 6th","QPR","(H)",null,null,"L 0-1","0-1",null,null,null,null,null,null,null,null,null,null,21020,null,18,7,null,null,null,1,null,15,"Division 3S","1954-10-16",null,"QPR","(H)",null,null,"L 0-1","Finlayson","Jardine","Anslow","Short","Hurley","Saward","Johnson","Pacey","Summers","Ramscar","Prior",null,null,null,null,null,null,null,null,null,null,null,null,1,null,"Terry Ledgerton",null,6,"-","-",2,6,"-","-",2,0,"-","-",0,null,null,"OK",6,0,null,null,null,null,null,84,"Terry","Ledgerton",13,19,null,"Ledgerton",null,"Heydon","Jack",null,null,null,null,null,null,null,null,null,null,null,null,null,null,null,null,null,null,null,null,null,null,null,null,null,null,null,null,null,null,null,null,null,null,null,null,null,null,null,null,"QPR (H) L 0-1",18,7]
[2,null,16,"Division 3S","1954-10-23",null,"7th v 21st","Newport County","(A)",null,null,"L 1-2","1-0",null,null,null,null,null,null,null,null,null,null,9225,null,18,7,"Smith",null,null,2,null,16,"Division 3S","1954-10-23",null,"Newport County","(A)",null,null,"L 1-2","Finlayson","Jardine","Anslow","Short","Hurley","Heydon","Hazlett","Smith","Pacey","Ramscar","Prior",null,null,null,null,null,null,null,null,null,null,null,null,2,null,"Jim McAllister",null,6,"-","-",3,6,"-","-",3,0,"-","-",0,null,null,"OK",6,0,null,null,null,null,null,85,"Jim","McAllister",14,20,null,"McAllister",null,"Hurley","Charlie",null,null,null,null,null,null,null,null,null,null,null,null,null,null,null,null,null,null,null,null,null,null,null,null,null,null,null,null,null,null,null,null,null,null,null,null,null,null,null,null,"Newport County (A) L 1-2",18,7]
[1,null,17,"Division 3S","1954-10-30",null,"7th v 20th","C Palace","(H)",null,null,"W 5-2","3-2",null,null,null,null,null,null,null,null,null,null,19385,null,20,7,"Pacey (2), Ramscar, Hazlett, Prior",null,null,1,null,17,"Division 3S","1954-10-30",null,"C Palace","(H)",null,null,"W 5-2","Finlayson","Jardine","Anslow","Short","Hurley","Heydon","Hazlett","Smith","Pacey","Ramscar","Prior",null,null,null,null,null,null,null,null,null,null,null,null,{"$f":"IF(BM20=0,1,IF(BM20=2,1,2))","v":1},null,"Danny McDowall",null,5,"-","-",0,5,"-","-",0,0,"-","-",0,null,null,"OK",5,0,null,null,null,null,null,86,"Danny","McDowall",15,21,null,"McDowall",null,"Jardine","Alex",null,null,null,null,null,null,null,null,null,null,null,null,null,null,null,null,null,null,null,null,null,null,null,null,null,null,null,null,null,null,null,null,null,null,null,null,null,null,null,null,"C Palace (H) W 5-2",20,7]
[2,null,18,"Division 3S","1954-11-06",null,"7th v 23rd","Colchester","(A)",null,null,"W 2-0","2-0",null,null,null,null,null,null,null,null,null,null,7551,null,22,5,"Prior, Pacey",null,null,2,null,18,"Division 3S","1954-11-06",null,"Colchester","(A)",null,null,"W 2-0","Finlayson","Jardine","Anslow","Short","Hurley","Heydon","Hazlett","Smith","Pacey","Ramscar","Prior",null,null,null,null,null,null,null,null,null,null,null,null,{"$f":"IF(BM21=0,1,IF(BM21=2,1,2))","v":2},null,"Dennis Pacey",null,36,"-","-",15,33,"-","-",12,3,"-","-",3,null,null,"OK",33,3,null,null,null,null,null,87,"Dennis","Pacey",16,22,null,"Pacey",null,"Johnson","Johnny",null,null,null,null,null,null,null,null,null,null,null,null,null,null,null,null,null,null,null,null,null,null,null,null,null,null,null,null,null,null,null,null,null,null,null,null,null,null,null,null,"Colchester (A) W 2-0",22,5]
[1,null,19,"Division 3S","1954-11-13",null,"5th v 3rd","Norwich","(H)",null,null,"D 0-0","0-0",null,null,null,null,null,null,null,null,null,null,19314,null,23,6,null,null,null,1,null,19,"Division 3S","1954-11-13",null,"Norwich","(H)",null,null,"D 0-0","Finlayson","Jardine","Anslow","Short","Hurley","Heydon","Hazlett","Smith","Pacey","Ramscar","Prior",null,null,null,null,null,null,null,null,null,null,null,null,{"$f":"IF(BM22=0,1,IF(BM22=2,1,2))","v":1},null,"Ken Prior",null,33,"-","-",11,31,"-","-",10,2,"-","-",1,null,null,"OK",31,2,null,null,null,null,null,88,"Ken","Prior",17,23,null,"Prior",null,"Ledgerton","Terry",null,null,null,null,null,null,null,null,null,null,null,null,null,null,null,null,null,null,null,null,null,null,null,null,null,null,null,null,null,null,null,null,null,null,null,null,null,null,null,null,"Norwich (H) D 0-0",23,6]
[2,null,20,"FA Cup 1","1954-11-20",null,"- -","Exeter","(H)",null,null,"W 3-2","3-1",null,null,null,null,null,null,null,null,null,null,15610,null,"-","-","Pacey (2), Jardine",null,null,2,null,20,"FA Cup 1","1954-11-20",null,"Exeter","(H)",null,null,"W 3-2","Finlayson","Jardine","Anslow","Short","Hurley","Heydon","Hazlett","Smith","Pacey","Ramscar","Prior",null,null,null,null,null,null,null,null,null,null,null,null,{"$f":"IF(BM23=0,1,IF(BM23=2,1,2))","v":2},null,"Des Quinn",null,2,"-","-",0,2,"-","-",0,0,"-","-",0,null,null,"OK",2,0,null,null,null,null,null,89,"Des","Quinn",18,24,null,"Quinn",null,"McAllister","Jim",null,null,null,null,null,null,null,null,null,null,null,null,null,null,null,null,null,null,null,null,null,null,null,null,null,null,null,null,null,null,null,null,null,null,null,null,null,null,null,null,"Aldershot (H) W 3-1",25,6]
[1,null,21,"Division 3S","1954-11-27",null,"6th v 14th","Aldershot","(H)",null,null,"W 3-1","1-0",null,null,null,null,null,null,null,null,null,null,11138,null,25,6,"Pacey (2), Smith",null,null,1,null,21,"Division 3S","1954-11-27",null,"Aldershot","(H)",null,null,"W 3-1","Finlayson","Jardine","Anslow","Heydon","Hurley","Saward","Hazlett","Smith","Pacey","Ramscar","Prior",null,null,null,null,null,null,null,null,null,null,null,null,{"$f":"IF(BM24=0,1,IF(BM24=2,1,2))","v":1},null,"Fred Ramscar",null,32,"-","-",6,30,"-","-",5,2,"-","-",1,null,null,"OK",30,2,null,null,null,null,null,90,"Fred","Ramscar",19,25,null,"Ramscar",null,"McDowall","Danny",null,null,null,null,null,null,null,null,null,null,null,null,null,null,null,null,null,null,null,null,null,null,null,null,null,null,null,null,null,null,null,null,null,null,null,null,null,null,null,null,"Swindon (A) D 1-1",26,6]
[2,null,22,"Division 3S","1954-12-04",null,"6th v 18th","Swindon","(A)",null,null,"D 1-1","0-1",null,null,null,null,null,null,null,null,null,null,6715,null,26,6,"Ramscar",null,null,2,null,22,"Division 3S","1954-12-04",null,"Swindon","(A)",null,null,"D 1-1","Finlayson","Jardine","Anslow","Heydon","Hurley","Saward","Hazlett","Smith","Pacey","Ramscar","Prior",null,null,null,null,null,null,null,null,null,null,null,null,{"$f":"IF(BM25=0,1,IF(BM25=2,1,2))","v":2},null,"Frank Reeves",null,3,"-","-",0,3,"-","-",0,{"$f":"BZ91","v":0},"-","-",0,null,null,"OK",3,0,null,null,null,null,null,91,"Frank","Reeves",20,26,null,"Reeves",null,"Pacey","Dennis",null,null,null,null,null,null,null,null,null,null,null,null,null,null,null,null,null,null,null,null,null,null,null,null,null,null,null,null,null,null,null,null,null,null,null,null,null,null,null,null,"Brighton (A) W 2-1",28,4]
[1,null,23,"FA Cup 2","1954-12-11",null,"- -","Accrington Stanley","(H)",null,null,"W 3-2","0-1",null,null,null,null,null,null,null,null,null,null,17086,null,"-","-","Prior, Ramscar, Pacey",null,null,1,null,23,"FA Cup 2","1954-12-11",null,"Accrington Stanley","(H)",null,null,"W 3-2","Finlayson","Jardine","Anslow","Short","Hurley","Heydon","Hazlett","Smith","Pacey","Ramscar","Prior",null,null,null,null,null,null,null,null,null,null,null,null,{"$f":"IF(BM26=0,1,IF(BM26=2,1,2))","v":1},null,"Pat Saward",null,31,"-","-",1,30,"-","-",1,1,"-","-",0,null,null,"OK",30,1,null,null,null,null,null,92,"Pat","Saward",21,27,null,"Saward",null,"Prior","Ken",null,null,null,null,null,null,null,null,null,null,null,null,null,null,null,null,null,null,null,null,null,null,null,null,null,null,null,null,null,null,null,null,null,null,null,null,null,null,null,null,"Brentford (A) L 1-3",28,5]
[2,null,24,"Division 3S","1954-12-18",null,"6th v 9th","Brighton","(A)",null,null,"W 2-1","1-1",null,null,null,null,null,null,null,null,null,null,13055,null,28,4,"Own Goal, Pacey",null,null,2,null,24,"Division 3S","1954-12-18",null,"Brighton","(A)",null,null,"W 2-1","Finlayson","Jardine","Anslow","Short","Hurley","Heydon","Hazlett","Smith","Pacey","Ramscar","Prior",null,null,null,null,null,null,null,null,null,null,null,null,{"$f":"IF(BM27=0,1,IF(BM27=2,1,2))","v":2},null,"Johnny Shepherd",null,6,"-","-",2,6,"-","-",2,0,"-","-",0,null,null,"OK",6,0,null,null,null,null,null,93,"Johnny","Shepherd",22,28,null,"Shepherd",null,"Quinn","Des",null,null,null,null,null,null,null,null,null,null,null,null,null,null,null,null,null,null,null,null,null,null,null,null,null,null,null,null,null,null,null,null,null,null,null,null,null,null,null,null,"Brentford (H) D 2-2",29,4]
[1,null,25,"Division 3S","1954-12-25",null,"4th v 18th","Brentford","(A)",null,null,"L 1-3","0-0",null,null,null,null,null,null,null,null,null,null,13370,null,28,5,"Short",null,null,1,null,25,"Division 3S","1954-12-25",null,"Brentford","(A)",null,null,"L 1-3","Finlayson","Jardine","Anslow","Short","Hurley","Heydon","Hazlett","Smith","Pacey","Ramscar","Prior",null,null,null,null,null,null,null,null,null,null,null,null,1,null,"John Short",null,34,"-","-",3,31,"-","-",3,3,"-","-",0,null,null,"OK",31,3,null,null,null,null,null,94,"John","Short",23,29,null,"Short",null,"Ramscar","Fred",null,null,null,null,null,null,null,null,null,null,null,null,null,null,null,null,null,null,null,null,null,null,null,null,null,null,null,null,null,null,null,null,null,null,null,null,null,null,null,null,"Torquay (H) W 4-1",31,4]
[2,null,26,"Division 3S","1954-12-27",null,"5th v 15th","Brentford","(H)",null,null,"D 2-2","1-0",null,null,null,null,null,null,null,null,null,null,19997,null,29,4,"Smith, Pacey",null,null,2,null,26,"Division 3S","1954-12-27",null,"Brentford","(H)",null,null,"D 2-2","Finlayson","Jardine","Anslow","Short","Hurley","Heydon","Johnson","Smith","Pacey","Ramscar","Summers",null,null,null,null,null,null,null,null,null,null,null,null,2,null,{"$f":"CN30&\" \"&CO30","v":"Fred Smith"},null,31,"-","-",8,{"$f":"BR95","v":28},"-","-",{"$f":"BU95","v":8},{"$f":"BZ95","v":3},"-","-",{"$f":"CC95","v":0},null,null,{"$f":"IF(BU30=CF30,IF(BY30=CG30,\"OK\",\"Error\"),\"Error\")","v":"OK"},28,3,null,null,null,null,null,{"$f":"CM95","v":95},"Fred","Smith",null,null,null,"Smith",null,"Reeves","Frank",null,null,null,null,null,null,null,null,null,null,null,null,null,null,null,null,null,null,null,null,null,null,null,null,null,null,null,null,null,null,null,null,null,null,null,null,null,null,null,null,"Walsall (H) W 1-0",33,4]
[1,null,27,"Division 3S","1955-01-01",null,"4th v 17th","Torquay","(H)",null,null,"W 4-1","1-0",null,null,null,null,null,null,null,null,null,null,11116,null,31,4,"Smith, Johnson, Pacey, Summers",null,null,1,null,27,"Division 3S","1955-01-01",null,"Torquay","(H)",null,null,"W 4-1","Finlayson","Jardine","Anslow","Hencher","Hurley","Heydon","Johnson","Smith","Pacey","Ramscar","Summers",null,null,null,null,null,null,null,null,null,null,null,null,1,null,"Johnny Summers",null,32,"-","-",13,31,"-","-",13,1,"-","-",0,null,null,"OK",31,1,null,null,null,null,null,96,"Johnny","Summers",null,null,null,"Summers",null,"Saward","Pat",null,null,null,null,null,null,null,null,null,null,null,null,null,null,null,null,null,null,null,null,null,null,null,null,null,null,null,null,null,null,null,null,null,null,null,null,null,null,null,null,"Watford (H) W 1-0",35,4]
[2,null,28,"FA Cup 3","1955-01-08",null,"- -","Bolton Wanderers","(A)",null,null,"L 0-1","0-1",null,null,null,null,null,null,null,null,null,null,40501,null,"-","-",null,null,null,2,null,28,"FA Cup 3","1955-01-08",null,"Bolton Wanderers","(A)",null,null,"L 0-1","Finlayson","Jardine","Anslow","Short","Hurley","Heydon","Hazlett","Smith","Pacey","Saward","Summers",null,null,null,null,null,null,null,null,null,null,null,null,2,null,"Allen Thrippleton",null,3,"-","-",0,3,"-","-",0,0,"-","-",0,null,null,"OK",3,0,null,null,null,null,null,97,"Allen","Thrippleton",null,null,null,"Thrippleton",null,"Shepherd","Johnny",null,null,null,null,null,null,null,null,null,null,null,null,null,null,null,null,null,null,null,null,null,null,null,null,null,null,null,null,null,null,null,null,null,null,null,null,null,null,null,null,"Shrewsbury (A) L 2-3",35,4]
[1,null,29,"Division 3S","1955-01-22",null,"4th v 24th","Walsall","(H)",null,null,"W 1-0","0-0",null,null,null,null,null,null,null,null,null,null,7818,null,33,4,"Smith",null,null,1,null,29,"Division 3S","1955-01-22",null,"Walsall","(H)",null,null,"W 1-0","Brewer","Jardine","Anslow","Short","Hurley","Heydon","Hazlett","Smith","Pacey","Saward","Prior",null,null,null,null,null,null,null,null,null,null,null,null,1,null,"George Veitch",null,1,"-","-",0,1,"-","-",0,0,"-","-",0,null,null,"OK",1,0,null,null,null,null,null,98,"George","Veitch",null,null,null,"Veitch",null,"Short","John",null,null,null,null,null,null,null,null,null,null,null,null,null,null,null,null,null,null,null,null,null,null,null,null,null,null,null,null,null,null,null,null,null,null,null,null,null,null,null,null,"Reading (H) D 2-2",36,4]
[2,null,30,"Division 3S","1955-01-29",null,"4th v 13th","Watford","(H)",null,null,"W 1-0","1-0",null,null,null,null,null,null,null,null,null,null,14969,null,35,4,"McAllister",null,null,2,null,30,"Division 3S","1955-01-29",null,"Watford","(H)",null,null,"W 1-0","Brewer","Jardine","Anslow","Short","Hurley","Saward","Hazlett","Smith","Pacey","McAllister","Prior",null,null,null,null,null,null,null,null,null,null,null,null,{"$f":"IF(BM33=0,1,IF(BM33=2,1,2))","v":2},null,null,null,null,null,null,null,null,null,null,null,null,null,null,null,null,null,null,null,null,null,null,null,null,null,null,null,null,null,null,null,null,null,"Smith","Fred",null,null,null,null,null,null,null,null,null,null,null,null,null,null,null,null,null,null,null,null,null,null,null,null,null,null,null,null,null,null,null,null,null,null,null,null,null,null,null,null,"Gillingham (A) D 1-1",37,4]
[1,null,31,"Division 3S","1955-02-05",null,"4th v 17th","Shrewsbury","(A)",null,null,"L 2-3","1-2",null,null,null,null,null,null,null,null,null,null,7331,null,35,4,"Smith (2)",null,null,1,null,31,"Division 3S","1955-02-05",null,"Shrewsbury","(A)",null,null,"L 2-3","Finlayson","Jardine","Anslow","Short","Bowler","Saward","Johnson","Smith","Pacey","Ramscar","Prior",null,null,null,null,null,null,null,null,null,null,null,null,1,null,"Own Goals",null,null,null,null,{"$f":"BX35+CB35","v":2},null,null,null,{"$f":"BU103","v":2},null,null,null,{"$f":"CC103","v":0},null,null,null,null,null,null,null,null,null,null,null,null,null,null,null,null,null,null,"Summers","Johnny",null,null,null,null,null,null,null,null,null,null,null,null,null,null,null,null,null,null,null,null,null,null,null,null,null,null,null,null,null,null,null,null,null,null,null,null,null,null,null,null,"Bournemouth (H) D 1-1",38,4]
[2,null,32,"Division 3S","1955-02-12",null,"4th v 20th","Reading","(H)",null,null,"D 2-2","0-1",null,null,null,null,null,null,null,null,null,null,11389,null,36,4,"Ramscar, Smith",null,null,2,null,32,"Division 3S","1955-02-12",null,"Reading","(H)",null,null,"D 2-2","Finlayson","Jardine","Anslow","Hencher","Short","Heydon","Johnson","Smith","Pacey","Ramscar","Prior",null,null,null,null,null,null,null,null,null,null,null,null,2,null,null,null,null,null,null,null,null,null,null,null,null,null,null,null,null,null,null,null,null,null,null,null,null,null,null,null,null,null,null,null,null,null,"Thrippleton","Allen",null,null,null,null,null,null,null,null,null,null,null,null,null,null,null,null,null,null,null,null,null,null,null,null,null,null,null,null,null,null,null,null,null,null,null,null,null,null,null,null,"QPR (A) W 2-1",40,4]
[1,null,33,"Division 3S","1955-02-19",null,"4th v 5th","Gillingham","(A)",null,null,"D 1-1","1-1",null,null,null,null,null,null,null,null,null,null,11088,null,37,4,"Ledgerton",null,null,1,null,{"$f":"C37","v":33},"Division 3S","1955-02-19",null,"Gillingham","(A)",null,null,"D 1-1","Finlayson","Jardine","Anslow","Short","Hurley","Heydon","Johnson","Smith","Pacey","Ramscar","Ledgerton",null,null,null,null,null,null,null,null,null,null,null,null,null,null,{"$f":"CN42&\" \"&CO42","v":" "},null,null,null,null,null,null,null,null,null,null,null,null,null,null,null,null,null,null,null,null,null,null,null,null,null,null,null,null,null,null,null,"Veitch","George",null,null,null,null,null,null,null,null,null,null,null,null,null,null,null,null,null,null,null,null,null,null,null,null,null,null,null,null,null,null,null,null,null,null,null,null,null,null,null,null,"Bristol C (A) L 1-5",40,4]
[2,null,34,"Division 3S","1955-02-26",null,"4th v 7th","Bournemouth","(H)",null,null,"D 1-1","0-1",null,null,null,null,null,null,null,null,null,null,10107,null,38,4,"Summers",null,null,2,null,34,"Division 3S","1955-02-26",null,"Bournemouth","(H)",null,null,"D 1-1","Finlayson","Jardine","Anslow","Short","Hurley","Heydon","Hazlett","Pacey","Summers","Ramscar","Ledgerton",null,null,null,null,null,null,null,null,null,null,null,null,null,null,null,null,null,null,null,null,null,null,null,null,null,null,null,null,null,null,null,null,null,null,null,null,null,null,null,null,null,null,null,null,null,null,null,null,null,null,null,null,null,null,null,null,null,null,null,null,null,null,null,null,null,null,null,null,null,null,null,null,null,null,null,null,null,null,null,null,null,null,null,null,null,null,null,null,"Newport County (H) D 1-1",41,4]
[1,null,35,"Division 3S","1955-03-05",null,"4th v 7th","QPR","(A)",null,null,"W 2-1","0-0",null,null,null,null,null,null,null,null,null,null,11988,null,40,4,"Summers, Pacey",null,null,1,null,35,"Division 3S","1955-03-05",null,"QPR","(A)",null,null,"W 2-1","Finlayson","Jardine","Anslow","Heydon","Hurley","Saward","Johnson","Smith","Pacey","Ramscar","Summers",null,null,null,null,null,null,null,null,null,null,null,null,null,null,null,null,null,null,null,null,null,null,null,null,null,null,null,null,null,null,null,null,null,null,null,null,null,null,null,null,null,null,null,null,null,null,null,null,null,null,null,null,null,null,null,null,null,null,null,null,null,null,null,null,null,null,null,null,null,null,null,null,null,null,null,null,null,null,null,null,null,null,null,null,null,null,null,null,"C Palace (A) D 1-1",42,4]
[2,null,36,"Division 3S","1955-03-09",null,"4th v 1st","Bristol C","(A)",null,null,"L 1-5","0-2",null,null,null,null,null,null,null,null,null,null,13035,null,40,4,"Summers",null,null,2,null,36,"Division 3S","1955-03-09",null,"Bristol C","(A)",null,null,"L 1-5","Finlayson","Jardine","Anslow","Short","Hurley","Saward","Johnson","Smith","Pacey","Ramscar","Summers",null,null,null,null,null,null,null,null,null,null,null,null,null,null,null,null,null,null,null,null,null,null,null,null,null,null,null,null,null,null,null,null,null,null,null,null,null,null,null,null,null,null,null,null,null,null,null,null,null,null,null,null,null,null,null,null,null,null,null,null,null,null,null,null,null,null,null,null,null,null,null,null,null,null,null,null,null,null,null,null,null,null,null,null,null,null,null,null,"Colchester (H) W 5-2",44,4]
[1,null,37,"Division 3S","1955-03-12",null,"4th v 23rd","Newport County","(H)",null,null,"D 1-1","1-1",null,null,null,null,null,null,null,null,null,null,9086,null,41,4,"Summers",null,null,1,null,37,"Division 3S","1955-03-12",null,"Newport County","(H)",null,null,"D 1-1","Finlayson","Veitch","Jardine","Short","Hurley","Saward","Johnson","Smith","Pacey","Ramscar","Summers",null,null,null,null,null,null,null,null,null,null,null,null,null,null,null,null,{"$f":"SUM(BQ7:BQ33)/11","v":49},null,null,null,{"$f":"SUM(BU7:BU33)/11","v":46},null,null,null,{"$f":"SUM(BY7:BY33)/11","v":3},null,null,null,null,null,null,null,null,null,null,null,null,null,null,null,null,null,null,null,null,null,null,null,null,null,null,null,null,null,null,null,null,null,null,null,null,null,null,null,null,null,null,null,null,null,null,null,null,null,null,null,null,null,null,null,null,null,null,null,null,null,null,null,"Watford (A) L 3-5",44,4]
[2,null,38,"Division 3S","1955-03-19",null,"4th v 22nd","C Palace","(A)",null,null,"D 1-1","1-1",null,null,null,null,null,null,null,null,null,null,13645,null,42,4,"Short (pen)",null,null,2,null,38,"Division 3S","1955-03-19",null,"C Palace","(A)",null,null,"D 1-1","Finlayson","Jardine","Anslow","Short","Hurley","McDowall","Hazlett","Pacey","Shepherd","Saward","Summers",null,null,null,null,null,null,null,null,null,null,null,null,null,null,null,null,null,null,null,null,null,null,null,null,null,null,null,null,null,null,null,null,null,null,null,null,null,null,null,null,null,null,null,null,null,null,null,null,null,null,null,null,null,null,null,null,null,null,null,null,null,null,null,null,null,null,null,null,null,null,null,null,null,null,null,null,null,null,null,null,null,null,null,null,null,null,null,null,"Norwich (A) L 1-2",44,4]
[1,null,39,"Division 3S","1955-03-26",null,"4th v 22nd","Colchester","(H)",null,null,"W 5-2","1-0",null,null,null,null,null,null,null,null,null,null,11938,null,44,4,"Summers (2), Pacey, Hazlett, Short",null,null,1,null,39,"Division 3S","1955-03-26",null,"Colchester","(H)",null,null,"W 5-2","Finlayson","Jardine","Anslow","Short","Hurley","McDowall","Hazlett","Pacey","Shepherd","Saward","Summers",null,null,null,null,null,null,null,null,null,null,null,null,null,null,null,null,null,null,null,null,null,null,null,null,null,null,null,null,null,null,null,null,null,null,null,null,null,null,null,null,null,null,null,null,null,null,null,null,null,null,null,null,null,null,null,null,null,null,null,null,null,null,null,null,null,null,null,null,null,null,null,null,null,null,null,null,null,null,null,null,null,null,null,null,null,null,null,null,"Coventry (H) W 3-1",46,4]
[2,null,40,"Division 3S","1955-03-30",null,"4th v 6th","Watford","(A)",null,null,"L 3-5","0-1",null,null,null,null,null,null,null,null,null,null,7000,null,44,4,"Summers (2), Prior",null,null,2,null,40,"Division 3S","1955-03-30",null,"Watford","(A)",null,null,"L 3-5","Finlayson","Jardine","Anslow","Short","Bowler","McDowall","Hazlett","Pacey","Summers","Saward","Prior",null,null,null,null,null,null,null,null,null,null,null,null,null,null,null,null,null,null,null,null,null,null,null,null,null,null,null,null,null,null,null,null,null,null,null,null,null,null,null,null,null,null,null,null,null,null,null,null,null,null,null,null,null,null,null,null,null,null,null,null,null,null,null,null,null,null,null,null,null,null,null,null,null,null,null,null,null,null,null,null,null,null,null,null,null,null,null,null,"Southend (H) L 1-4",46,5]
[1,null,41,"Division 3S","1955-04-02",null,"4th v 7th","Norwich","(A)",null,null,"L 1-2","0-1",null,null,null,null,null,null,null,null,null,null,11682,null,44,4,"Summers",null,null,1,null,41,"Division 3S","1955-04-02",null,"Norwich","(A)",null,null,"L 1-2","Brewer","Jardine","Anslow","Short","Hurley","Saward","Hazlett","Pacey","Summers","Ramscar","Prior",null,null,null,null,null,null,null,null,null,null,null,null,null,null,null,null,null,null,null,null,null,null,null,null,null,null,null,null,null,null,null,null,null,null,null,null,null,null,null,null,null,null,null,null,null,null,null,null,null,null,null,null,null,null,null,null,null,null,null,null,null,null,null,null,null,null,null,null,null,null,null,null,null,null,null,null,null,null,null,null,null,null,null,null,null,null,null,null,"Coventry (A) L 1-4",46,5]
[2,null,42,"Division 3S","1955-04-08",null,"4th v 10th","Coventry","(H)",null,null,"W 3-1","2-1",null,null,null,null,null,null,null,null,null,null,16276,null,46,4,"Pacey, Summers (2)",null,null,2,null,42,"Division 3S","1955-04-08",null,"Coventry","(H)",null,null,"W 3-1","Finlayson","Jardine","Anslow","Heydon","Hurley","Thrippleton","Hazlett","Pacey","Summers","Saward","Prior",null,null,null,null,null,null,null,null,null,null,null,null,null,null,{"$f":"CN46&\" \"&CO46","v":" "},null,null,null,null,null,null,null,null,null,null,null,null,null,null,null,null,null,null,null,null,null,null,null,null,null,null,null,null,null,null,null,null,null,null,null,null,null,null,null,null,null,null,null,null,null,null,null,null,null,null,null,null,null,null,null,null,null,null,null,null,null,null,null,null,null,null,null,null,null,null,null,null,null,"Aldershot (A) L 0-3",46,5]
[1,null,43,"Division 3S","1955-04-09",null,"4th v 17th","Southend","(H)",null,null,"L 1-4","1-2",null,null,null,null,null,null,null,null,null,null,11367,null,46,5,"Saward",null,null,1,null,43,"Division 3S","1955-04-09",null,"Southend","(H)",null,null,"L 1-4","Finlayson","Jardine","Anslow","Heydon","Hurley","Thrippleton","Hazlett","Pacey","Summers","Saward","Prior",null,null,null,null,null,null,null,null,null,null,null,null,null,null," ",null,null,null,null,null,null,null,null,null,null,null,null,null,null,null,null,null,null,null,null,null,null,null,null,null,null,null,null,null,null,null,null,null,null,null,null,null,null,null,null,null,null,null,null,null,null,null,null,null,null,null,null,null,null,null,null,null,null,null,null,null,null,null,null,null,null,null,null,null,null,null,null,null,"Swindon (H) W 1-0",48,5]
[2,null,44,"Division 3S","1955-04-12",null,"5th v 9th","Coventry","(A)",null,null,"L 1-4","1-1",null,null,null,null,null,null,null,null,null,null,11928,null,46,5,"Own Goal",null,null,2,null,44,"Division 3S","1955-04-12",null,"Coventry","(A)",null,null,"L 1-4","Finlayson","Jardine","Anslow","Short","Hurley","Saward","Hazlett","Smith","Pacey","Ramscar","Prior",null,null,null,null,null,null,null,null,null,null,null,null,null,null," ",null,null,null,null,null,null,null,null,null,null,null,null,null,null,null,null,null,null,null,null,null,null,null,null,null,null,null,null,null,null,null,null,null,null,null,null,null,null,null,null,null,null,null,null,null,null,null,null,null,null,null,null,null,null,null,null,null,null,null,null,null,null,null,null,null,null,null,null,null,null,null,null,null,"Southend (A) L 0-1",48,5]
[1,null,45,"Division 3S","1955-04-16",null,"5th v 15th","Aldershot","(A)",null,null,"L 0-3","0-1",null,null,null,null,null,null,null,null,null,null,4279,null,46,5,null,null,null,1,null,45,"Division 3S","1955-04-16",null,"Aldershot","(A)",null,null,"L 0-3","Finlayson","Jardine","Anslow","Heydon","Hurley","McDowall","Hazlett","Pacey","Summers","Saward","Prior",null,null,null,null,null,null,null,null,null,null,null,null,null,null," ",null,null,null,null,null,null,null,null,null,null,null,null,null,null,null,null,null,null,null,null,null,null,null,null,null,null,null,null,null,null,null,null,null,null,null,null,null,null,null,null,null,null,null,null,null,null,null,null,null,null,null,null,null,null,null,null,null,null,null,null,null,null,null,null,null,null,null,null,null,null,null,null,null,"Exeter (A) W 4-1",50,5]
[2,null,46,"Division 3S","1955-04-23",null,"5th v 22nd","Swindon","(H)",null,null,"W 1-0","0-0",null,null,null,null,null,null,null,null,null,null,6277,null,48,5,"Shepherd",null,null,2,null,46,"Division 3S","1955-04-23",null,"Swindon","(H)",null,null,"W 1-0","Finlayson","Jardine","Anslow","Short","Hurley","Saward","Hazlett","Pacey","Shepherd","Smith","Summers",null,null,null,null,null,null,null,null,null,null,null,null,null,null," ",null,null,null,null,null,null,null,null,null,null,null,null,null,null,null,null,null,null,null,null,null,null,null,null,null,null,null,null,null,null,null,null,null,null,null,null,null,null,null,null,null,null,null,null,null,null,null,null,null,null,null,null,null,null,null,null,null,null,null,null,null,null,null,null,null,null,null,null,null,null,null,null,null,"Exeter (H) D 2-2",51,5]
[1,null,47,"Division 3S","1955-04-26",null,"5th v 17th","Southend","(A)",null,null,"L 0-1","0-0",null,null,null,null,null,null,null,null,null,null,6000,null,48,5,null,null,null,1,null,47,"Division 3S","1955-04-26",null,"Southend","(A)",null,null,"L 0-1","Finlayson","Jardine","Anslow","Short","Hurley","Saward","Hazlett","Pacey","Summers","Smith","Prior",null,null,null,null,null,null,null,null,null,null,null,null,null,null," ",null,{"$f":"\"Max (\"&BO63&\")\"","v":"Max (49)"},null,null,null,{"$f":"\"Max (\"&BO59&\")\"","v":"Max (46)"},null,null,null,{"$f":"\"Max (\"&BO60&\")\"","v":"Max (3)"},null,null,null,{"$f":"\"Max (\"&BO61&\")\"","v":"Max (0)"},null,null,null,null,{"$f":"\"Max (\"&BO133&\")\"","v":"Max ()"}]
[2,null,48,"Division 3S","1955-04-30",null,"5th v 21st","Exeter","(A)",null,null,"W 4-1","0-1",null,null,null,null,null,null,null,null,null,null,7500,null,50,5,"Prior (2), Jardine (2)",null,null,2,null,48,"Division 3S","1955-04-30",null,"Exeter","(A)",null,null,"W 4-1","Finlayson","Jardine","Anslow","Short","Hurley","Saward","Hazlett","Pacey","Summers","Smith","Prior"]
[1,null,49,"Division 3S","1955-05-02",null,"5th v 22nd","Exeter","(H)",null,null,"D 2-2","0-1",null,null,null,null,null,null,null,null,null,null,4930,null,51,5,"Hazlett, Jardine",null,null,1,null,49,"Division 3S","1955-05-02",null,"Exeter","(H)",null,null,"D 2-2","Finlayson","Jardine","Anslow","Short","Hurley","Saward","Hazlett","Pacey","Summers","Smith","Prior",null,null,null,null,null,null,null,null,null,null,null,null,{"$f":"IF(BM52=0,1,IF(BM52=2,1,2))","v":1}]
[2,null,null,null,null,null,null,null,null,null,null,null,null,null,null,null,null,null,null,null,null,null,null,null,null,null,null,null,null,null,{"$f":"IF(AE53=0,1,IF(AE53=2,1,2))","v":2},null,null,null,null,null,null,null,null,null,null,null,null,null,null,null,null,null,null,null,null,null,null,null,null,null,null,null,null,null,null,null,null,null,{"$f":"IF(BM53=0,1,IF(BM53=2,1,2))","v":2}]
[1,null,null,null,null,null,null,null,null,null,null,null,null,null,null,null,null,null,null,null,null,null,null,null,null,null,null,null,null,null,1]
[]
[]
[{"$f":"IF(#REF!=0,1,IF(#REF!=2,1,2))","v":{"$error":"#REF!"}},null,null,null,null,null,null,null,null,null,null,null,null,null,null,null,null,null,null,null,null,null,null,null,null,null,null,null,null,null,null,null,null,null,null,null,null,null,null,null,null,null,null,null,null,null,null,null,null,null,null,null,null,null,null,null,null,null,null,null,null,null,null,null,null,null,null,null,null,null,null,null,null,null,null,null,null,null,null,null,null,null,null,null,null,null,null,null,null,null,null,null,null,null,null,null,null,null,null,null,null,null,null,null,null,null,null,null,null,null,null,null,null,null,null,null,null,null,null,null,null,null,null,null,null,null,null,null,null,null,null,null,null,null,null,null,null,null,null,null,null,2,9]
[{"$error":"#REF!"},null,null,null,null,null,null,null,null,null,null,null,null,null,null,null,null,null,null,null,null,null,null,null,null,null,null,null,null,null,null,null,null,null,null,null,null,null,null,null,null,null,null,null,null,null,null,null,null,null,null,null,null,null,null,null,null,null,null,null,null,null,null,null,null,null,{"$f":"SUMIF(AH78:AH149,BQ59,BE78:BE149)","v":46},null,"Division 3*",null,null,null,null,null,null,null,null,null,null,null,null,null,null,null,null,null,null,null,null,null,null,null,null,null,null,null,null,null,null,null,null,null,null,null,null,null,null,null,null,null,null,null,null,null,null,null,null,null,null,null,null,null,null,null,null,null,null,null,null,null,null,null,null,null,null,null,null,null,null,null,null,2,13]
[{"$f":"IF(#REF!=0,1,IF(#REF!=2,1,2))","v":{"$error":"#REF!"}},null,null,null,null,null,null,null,null,null,null,null,null,null,null,null,null,null,null,null,null,null,null,null,null,null,null,null,null,null,{"$f":"IF(AE53=0,1,IF(AE53=2,1,2))","v":2},null,null,null,null,null,null,null,null,null,null,null,null,null,null,null,null,null,null,null,null,null,null,null,null,null,null,null,null,null,null,null,null,null,null,null,{"$f":"SUMIF(AH78:AH149,BQ60,BE78:BE149)","v":3},null,"FA Cup*",null,null,null,null,null,null,null,null,null,null,null,null,null,null,null,null,null,null,null,null,null,null,null,null,null,null,null,null,null,null,null,null,null,null,null,null,null,null,null,null,null,null,null,null,null,null,null,null,null,null,null,null,null,null,null,null,null,null,null,null,null,null,null,null,null,null,null,null,null,null,null,null,4,7]
[{"$f":"IF(A60=0,1,IF(A60=2,1,2))","v":{"$error":"#REF!"}},{"$f":"IF(B53=0,1,IF(B53=2,1,2))","v":1},{"$f":"IF(C53=0,1,IF(C53=2,1,2))","v":2},null,null,null,null,null,null,null,null,null,null,null,null,null,null,null,null,null,null,null,null,null,null,null,null,null,{"$f":"IF(AC60=0,1,IF(AC60=2,1,2))","v":1},null,null,null,null,null,null,null,null,null,null,null,null,null,null,null,null,null,null,null,null,null,null,null,null,null,null,null,null,null,null,null,null,null,null,null,null,null,{"$f":"SUMIF(AH78:AH150,BQ61,BE78:BE150)","v":0},null,"League Cup*",null,null,null,null,null,null,{"$f":"42*11","v":462},null,null,null,null,null,null,null,null,null,null,null,null,null,null,null,null,null,null,null,null,null,null,null,null,null,null,null,null,null,null,null,null,null,null,null,null,null,null,null,null,null,null,null,null,null,null,null,null,null,null,null,null,null,null,null,null,null,null,null,null,null,null,null,null,null,4,9]
[{"$f":"IF(#REF!=0,1,IF(#REF!=2,1,2))","v":{"$error":"#REF!"}},null,null,null,null,null,null,null,null,null,null,null,null,null,null,null,null,null,null,null,null,null,null,null,null,null,null,null,null,null,null,null,null,null,null,null,null,null,null,null,null,null,null,null,null,null,null,null,null,null,null,null,null,null,null,null,null,null,null,null,null,null,null,null,null,null,null,null,null,null,null,null,null,null,null,null,null,null,null,null,null,null,null,null,null,null,null,null,null,null,null,null,null,null,null,null,null,null,null,null,null,null,null,null,null,null,null,null,null,null,null,null,null,null,null,null,null,null,null,null,null,null,null,null,null,null,null,null,null,null,null,null,null,null,null,null,null,null,null,null,null,4,18]
[{"$error":"#REF!"},null,null,null,null,null,null,null,null,null,null,null,null,null,null,null,null,null,null,null,null,null,null,null,null,null,null,null,null,null,null,null,null,null,null,null,null,null,null,null,null,null,null,null,null,null,null,null,null,null,null,null,null,null,null,null,null,null,null,null,null,null,null,null,null,null,{"$f":"SUM(BO59:BO62)","v":49},null,null,null,null,null,null,null,null,null,null,null,null,null,null,null,null,null,null,null,null,null,null,null,null,null,null,null,null,null,null,null,null,null,null,null,null,null,null,null,null,null,null,null,null,null,null,null,null,null,null,null,null,null,null,null,null,null,null,null,null,null,null,null,null,null,null,null,null,null,null,null,null,null,null,4,18]
[{"$error":"#REF!"},null,null,null,null,null,null,null,null,null,null,null,null,null,null,null,null,null,null,null,null,null,null,null,null,null,null,null,null,null,null,null,null,null,null,null,null,null,null,null,null,null,null,null,null,null,null,null,null,null,null,null,null,null,null,null,null,null,null,null,null,null,null,null,null,null,null,null,null,null,null,null,null,null,null,{"$f":"SUM(BX7:BX29)","v":49},null,null,null,{"$f":"SUM(CB7:CB29)","v":6},null,null,null,{"$f":"SUM(CF7:CF29)","v":443},null,null,null,{"$f":"SUM(CJ7:CJ29)","v":0},null,null,null,null,null,null,null,null,null,null,null,null,null,null,null,null,null,null,null,null,null,null,null,null,null,null,null,null,null,null,null,null,null,null,null,null,null,null,null,null,null,null,null,null,null,null,null,null,null,null,null,null,null,6,17]
[null,null,null,null,null,null,null,null,null,null,null,null,null,null,null,null,null,null,null,null,null,null,null,null,null,null,null,null,null,null,null,null,null,null,null,null,null,null,null,null,null,null,null,null,null,null,null,null,null,null,null,null,null,null,null,null,null,null,null,null,null,null,null,null,null,null,null,null,null,null,null,null,null,null,null,null,null,null,null,null,null,null,null,null,null,null,null,null,null,null,null,null,null,null,null,null,null,null,null,null,null,null,null,null,null,null,null,null,null,null,null,null,null,null,null,null,null,null,null,null,null,null,null,null,null,null,null,null,null,null,null,null,null,null,null,null,null,null,null,null,null,8,13]
[null,null,null,null,null,null,null,null,null,null,null,null,null,null,null,null,null,null,null,null,null,null,null,null,null,null,null,"Av Attendance League Games Only",null,null,null,null,null,null,null,null,null,null,null,null,null,null,null,null,null,null,null,null,null,null,null,null,null,null,null,null,null,null,null,null,null,null,null,null,null,null,null,null,null,null,null,null,null,null,null,null,null,null,null,null,null,null,null,null,null,null,null,null,null,null,null,null,null,null,null,null,null,null,null,null,null,null,null,null,null,null,null,null,null,null,null,null,null,null,null,null,null,null,null,null,null,null,null,null,null,null,null,null,null,null,null,null,null,null,null,null,null,null,null,null,null,10,10]
[null,null,null,null,null,null,null,null,null,null,null,null,null,null,null,null,null,null,null,null,null,null,null,null,null,null,null,{"$f":"COUNTIFS($I$5:$I$55,$I$5,$D$5:$D$55,$D$5,$X$5:$X$55,\">0\")","v":23},null,null,null,null,null,null,null,null,null,null,null,null,null,null,null,null,null,null,null,null,null,null,null,null,null,null,null,null,null,null,null,null,null,null,null,null,null,null,null,null,null,null,null,null,null,null,null,null,null,null,null,null,null,null,null,null,null,null,null,null,null,null,null,null,null,null,null,null,null,null,null,null,null,null,null,null,null,null,null,null,null,null,null,null,null,null,null,null,null,null,null,null,null,null,null,null,null,null,null,null,null,null,null,null,null,null,null,null,null,null,null,null,null,11,8]
[null,null,null,null,null,null,null,null,null,null,null,null,null,null,null,null,null,null,null,null,null,null,null,null,null,null,null,{"$f":"SUMIFS($X$5:$X$55,$I$5:$I$55,$I$5,$D$5:$D$55,$D$5)","v":320174},null,null,null,null,null,null,null,null,null,null,null,null,null,null,null,null,null,null,null,null,null,null,null,null,null,null,null,null,null,null,null,null,null,null,null,null,null,null,null,null,null,null,null,null,null,null,null,null,null,null,null,null,null,null,null,null,null,null,null,null,null,null,null,null,null,null,null,null,null,null,null,null,null,null,null,null,null,null,null,null,null,null,null,null,null,null,null,null,null,null,null,null,null,null,null,null,null,null,null,null,null,null,null,null,null,null,null,null,null,null,null,null,null,13,6]
[null,null,null,null,null,null,null,null,null,null,null,null,null,null,null,null,null,null,null,null,null,null,null,null,null,null,null,{"$f":"AB68/AB67","v":13920.608695652174},null,null,null,null,null,null,null,null,null,null,null,null,null,null,null,null,null,null,null,null,null,null,null,null,null,null,null,null,null,null,null,null,null,null,null,null,null,null,null,null,null,null,null,null,null,null,null,null,null,null,null,null,null,null,null,null,null,null,null,null,null,null,null,null,null,null,null,null,null,null,null,null,null,null,null,null,null,null,null,null,null,null,null,null,null,null,null,null,null,null,null,null,null,null,null,null,null,null,null,null,null,null,null,null,null,null,null,null,null,null,null,null,null,15,3]
[null,null,null,null,null,null,null,null,null,null,null,null,null,null,null,null,null,null,null,null,null,null,null,null,null,null,null,null,null,null,null,null,null,null,null,null,null,null,null,null,null,null,null,null,null,null,null,null,null,null,null,null,null,null,null,null,null,null,null,null,null,null,null,null,null,null,{"$f":"SUM(BR72:BR116)","v":1518},null,null,"League",null,null,null,"League Cup",null,null,null,"FA Cup",null,null,null,null,null,null,null,null,null,null,null,null,null,null,null,null,null,null,null,null,null,null,null,null,null,null,null,null,null,null,null,null,null,null,null,null,null,null,null,null,null,null,null,null,null,null,null,null,null,null,null,null,null,null,null,null,null,null,null,null,null,null,null,17,2]
[null,null,null,null,null,null,null,null,null,null,null,null,null,null,null,null,null,null,null,null,null,null,null,null,null,null,null,null,null,null,null,null,null,null,null,null,null,null,null,null,null,null,null,null,null,null,null,null,null,null,null,null,null,null,null,null,null,null,null,null,null,null,null,null,null,null,null,null,null,"P","Sub","NPS","Gls","P","Sub","NPS","Gls","P","Sub","NPS","Gls",null,null,null,null,null,null,null,null,null,null,null,null,null,null,null,null,null,null,null,null,null,null,null,null,null,null,null,null,null,null,null,null,null,null,null,null,null,null,null,null,null,null,null,null,null,null,null,null,null,null,null,null,null,null,null,null,null,null,null,null,17,4]
[null,null,null,null,null,null,null,null,null,null,null,null,null,null,null,null,null,null,null,null,null,null,null,null,null,null,null,"Av Attendance All Home Games",null,null,null,null,null,null,null,null,null,null,null,null,null,null,null,null,null,null,null,null,null,null,null,null,null,null,null,null,null,null,null,null,null,null,1,1,{"$f":"BP72&\" (**\"","v":"Anslow (**"},null,{"$f":"BP72&\"**\"","v":"Anslow**"},"Anslow",null,{"$f":"COUNTIF(LeagueStarts,$BP72)","v":38},{"$f":"COUNTIF(LeagueSubs,$BM72)","v":0},{"$f":"COUNTIF(LeagueSubs,$BP72)","v":0},{"$f":"COUNTIF($CZ$76:$DI$125,BO72)","v":0},{"$f":"COUNTIF($AP$126:$AZ$134,$BP72)","v":0},{"$f":"COUNTIF($BC$126:$BC$134,$BM72)","v":0},{"$f":"COUNTIF($BC$128:$BI$131,$BP72)","v":0},{"$f":"COUNTIF($CZ$145:$DI$155,BO72)","v":0},{"$f":"COUNTIF($AP$136:$AZ$140,$BP72)","v":3},{"$f":"COUNTIF($BC$136:$BC$140,$BM72)","v":0},{"$f":"COUNTIF($BC$133:$BI$137,$BP72)","v":0},{"$f":"COUNTIF($CZ$134:$DI$140,BO72)","v":0},null,null,null,null,null,null,null,null,null,{"$f":"ROW(CL72)","v":72},null,"Stanley","Anslow",null,{"$f":"CO72&\" \"&CP72","v":"Stanley Anslow"},null,null,null,null,null,null,null,null,null,null,null,null,null,null,null,null,null,null,null,null,null,null,null,null,null,null,null,null,null,null,null,null,null,null,null,null,null,null,null,null,null,null,null,null,null,18,6]
[null,null,null,null,null,null,null,null,null,null,null,null,null,null,null,null,null,null,null,null,null,null,null,null,null,null,null,{"$f":"COUNTIF(I5:I53,I5)","v":25},null,null,null,null,null,null,null,null,null,null,null,null,null,null,null,null,null,null,null,null,null,null,null,null,null,null,null,null,null,null,null,null,null,null,1,2,"Bowler (**",null,"Bowler**","Bowler",null,7,0,{"$f":"COUNTIF(LeagueSubs,$BP73)","v":0},0,0,0,0,{"$f":"COUNTIF($CZ$145:$DI$155,BO73)","v":0},0,{"$f":"COUNTIF($BC$136:$BC$140,$BM73)","v":0},0,{"$f":"COUNTIF($CZ$134:$DI$140,BO73)","v":0},null,null,null,null,null,null,null,null,null,73,null,"Gerry","Bowler",null,{"$f":"CO73&\" \"&CP73","v":"Gerry Bowler"},null,null,null,null,null,null,null,null,null,null,null,null,null,null,null,null,null,null,null,null,null,null,null,null,null,null,null,null,null,null,null,null,null,null,null,null,null,null,null,null,null,null,null,null,null,20,4]
[null,null,null,null,null,null,null,null,null,null,null,null,null,null,null,null,null,null,null,null,null,null,null,null,null,null,null,{"$f":"SUMIF(I5:I53,I5,X5:X53)","v":352870},null,null,null,null,null,null,null,null,null,null,null,null,null,null,null,null,null,null,null,null,null,null,null,null,null,null,null,null,null,null,null,null,null,null,1,3,"Brewer (**",null,"Brewer**","Brewer",null,3,0,0,0,0,0,0,{"$f":"COUNTIF($CZ$145:$DI$155,BO74)","v":0},0,0,0,0,null,null,null,null,null,null,null,null,null,74,null,"Tony","Brewer",null,{"$f":"CO74&\" \"&CP74","v":"Tony Brewer"},null,null,null,null,null,null,null,"Goals League",null,null,null,null,null,null,null,null,null,null,null,null,null,null,null,null,null,null,null,null,null,null,null,null,null,null,null,null,null,null,null,null,null,null,null,null,null,20,7]
[null,null,null,null,null,null,null,null,null,null,null,null,null,null,null,null,null,null,null,null,null,null,null,null,null,null,null,{"$f":"AB74/AB73","v":14114.8},null,null,null,null,null,null,null,null,null,null,null,null,null,null,null,null,null,null,null,null,null,null,null,null,null,null,null,null,null,null,null,null,null,null,1,4,"Finlayson (**",null,"Finlayson**","Finlayson",null,43,0,0,0,0,0,0,0,3,0,0,0,null,null,null,null,null,null,null,null,null,75,null,"Malcolm","Finlayson",null,"Malcolm Finlayson",null,null,null,null,null,null,null,1,2,3,4,5,6,7,8,7,8,9,null,null,null,null,null,null,null,null,null,null,null,null,null,null,null,null,null,null,null,null,null,null,null,null,null,null,null,22,6]
[null,null,null,null,null,null,null,null,null,null,null,null,null,null,null,null,null,null,null,null,null,null,null,null,null,null,null,null,null,null,null,null,null,null,null,null,null,null,null,null,null,"x",null,null,null,null,null,null,null,null,null,null,null,null,null,null,null,null,null,null,null,null,1,5,"Fisher (**",null,"Fisher**","Fisher",null,5,0,0,0,0,0,0,0,0,0,0,0,null,null,null,null,null,null,null,null,null,76,null,"George","Fisher",null,"George Fisher",null,null,null,null,null,null,null,null,null,null,null,null,null,null,null,null,null,null,null,null,null,null,null,null,null,null,null,null,null,null,null,null,null,null,null,null,null,null,null,null,null,null,null,null,null,22,7]
[null,null,null,null,null,null,null,null,null,null,null,null,null,null,null,null,null,null,null,null,null,null,null,null,null,null,null,null,null,null,null,null,"Game","Competition","Date",null,"Opponents",null,null,null,"Score",1,2,3,4,5,6,7,8,9,10,11,null,null,12,null,null,null,null,null,null,null,1,6,"Green (**",null,"Green**","Green",null,1,0,0,0,0,0,0,0,0,0,0,0,null,null,null,null,null,null,null,null,null,77,null,"Ivan","Green",null,"Ivan Green",null,null,null,1,{"$f":"AK78","v":"Brighton"},{"$f":"AL78","v":"(H)"},{"$f":"AO78","v":"W 2-0"},"McAllister","McAllister",null,null,null,null,null,null,null,null,null,"McAllister (2)",null,null,null,null,{"$f":"IF(CZ77=\"\",\"\",CZ77)","v":"McAllister"},{"$f":"IF(DA77=\"\",\"\",DA77)","v":"McAllister"},{"$f":"IF(DB77=\"\",\"\",DB77)","v":""},{"$f":"IF(DC77=\"\",\"\",DC77)","v":""},{"$f":"IF(DD77=\"\",\"\",DD77)","v":""},{"$f":"IF(DE77=\"\",\"\",DE77)","v":""},{"$f":"IF(DP77<>\"\",\",\",\"\")","v":","},{"$f":"IF(DQ77<>\"\",\",\",\"\")","v":","},{"$f":"IF(DR77<>\"\",\",\",\"\")","v":""},{"$f":"IF(DS77<>\"\",\",\",\"\")","v":""},{"$f":"IF(DT77<>\"\",\",\",\"\")","v":""},{"$f":"CONCATENATE(DP77,DV77,DQ77,DW77,DR77,DX77,DS77,DY77,DT77,DZ77,DU77)","v":"McAllister,McAllister,"},null,null,null,null,null,null,null,null,null,null,23,7]
[null,null,null,null,null,null,null,null,null,null,null,null,null,null,null,null,null,null,null,null,null,null,null,null,null,null,null,null,null,null,1,null,1,"Division 3S","1954-08-21",null,"Brighton","(H)",null,null,"W 2-0","Finlayson","Jardine","Fisher","Heydon","Hurley","Saward","Hazlett","Smith","Summers","McAllister","Ledgerton",null,null,null,null,1,null,null,null,null,null,1,7,"Hazlett (**",null,"Hazlett**","Hazlett",null,24,0,0,3,0,0,0,0,3,0,0,0,null,null,null,null,null,null,null,null,null,78,null,"George","Hazlett",null,"George Hazlett",null,null,null,{"$f":"IF(CV77=0,1,IF(CV77=2,1,2))","v":2},{"$f":"AK79","v":"Leyton Orient"},{"$f":"AL79","v":"(A)"},{"$f":"AO79","v":"L 0-1"},"No Scorer",null,null,null,null,null,null,null,null,null,null,"No Scorer",null,null,null,null,"No Scorer","","","","","",",","","","","","No Scorer,",null,null,null,null,null,null,null,null,null,null,25,5]
[null,null,null,null,null,null,null,null,null,null,null,null,null,null,null,null,null,null,null,null,null,null,null,null,null,null,null,null,null,null,{"$f":"IF(AE78=0,1,IF(AE78=2,1,2))","v":2},null,2,"Division 3S","1954-08-26",null,"Leyton Orient","(A)",null,null,"L 0-1","Finlayson","Jardine","Fisher","Heydon","Hurley","Saward","Johnson","McDowall","Summers","McAllister","Ledgerton",null,null,null,null,1,null,null,null,null,null,1,8,"Hencher (**",null,"Hencher**","Hencher",null,2,0,0,0,0,0,0,0,0,0,0,0,null,null,null,null,null,null,null,null,null,79,null,"Ken","Hencher",null,"Ken Hencher",null,null,null,1,"Torquay","(A)","L 2-4","Shepherd","Johnson",null,null,null,null,null,null,null,null,null,"Shepherd, Johnson",null,null,null,null,"Shepherd","Johnson","","","","",",",",","","","","Shepherd,Johnson,",null,null,null,null,null,null,null,null,null,null,27,4]
[null,null,null,null,null,null,null,null,null,null,null,null,null,null,null,null,null,null,null,null,null,null,null,null,null,null,null,null,null,null,1,null,3,"Division 3S","1954-08-28",null,"Torquay","(A)",null,null,"L 2-4","Finlayson","Jardine","Fisher","Heydon","Hurley","Saward","Johnson","Shepherd","Summers","McAllister","Ledgerton",null,null,null,null,1,null,null,null,null,null,1,9,"Heydon (**",null,"Heydon**","Heydon",null,31,0,0,0,0,0,0,0,3,0,0,0,null,null,null,null,null,null,null,null,null,80,null,"Jack","Heydon",null,"Jack Heydon",null,null,null,2,"Leyton Orient","(H)","W 1-0","Ledgerton",null,null,null,null,null,null,null,null,null,null,"Ledgerton",null,null,null,null,"Ledgerton","","","","","",",","","","","","Ledgerton,",null,null,null,null,null,null,null,null,null,null,29,4]
[null,null,null,null,null,null,null,null,null,null,null,null,null,null,null,null,null,null,null,null,null,null,null,null,null,null,null,null,null,null,2,null,4,"Division 3S","1954-08-30",null,"Leyton Orient","(H)",null,null,"W 1-0","Finlayson","Jardine","Fisher","Heydon","Hurley","Thrippleton","Johnson","Saward","Shepherd","McAllister","Ledgerton",null,null,null,null,1,null,null,null,null,null,1,10,"Hurley (**",null,"Hurley**","Hurley",null,38,0,{"$f":"COUNTIF(LeagueSubs,$BP81)","v":0},0,0,0,0,0,3,0,0,0,null,null,null,null,null,null,null,null,null,81,null,"Charlie","Hurley",null,"Charlie Hurley",null,null,null,1,"Bristol C","(H)","L 1-3","Johnson",null,null,null,null,null,null,null,null,null,null,"Johnson",null,null,null,null,"Johnson","","","","","",",","","","","","Johnson,",null,null,null,null,null,null,null,null,null,null,29,5]
[null,null,null,null,null,null,null,null,null,null,null,null,null,null,null,null,null,null,null,null,null,null,null,null,null,null,null,null,null,null,1,null,5,"Division 3S","1954-09-04",null,"Bristol C","(H)",null,null,"L 1-3","Finlayson","Jardine","Fisher","Heydon","Hurley","Saward","Johnson","Smith","Shepherd","Ramscar","Summers",null,null,null,null,1,null,null,null,null,null,1,11,"Jardine (**",null,"Jardine**","Jardine",null,46,0,0,5,0,0,0,0,3,0,0,1,null,null,null,null,null,null,null,null,null,82,null,"Alex","Jardine",null,"Alex Jardine",null,null,null,2,"Northampton","(A)","W 1-0","Prior",null,null,null,null,null,null,null,null,null,null,"Prior",null,null,null,null,"Prior","","","","","",",","","","","","Prior,",null,null,null,null,null,null,null,null,null,null,30,6]
[null,null,null,null,null,null,null,null,null,null,null,null,null,null,null,null,null,null,null,null,null,null,null,null,null,null,null,null,null,null,2,null,6,"Division 3S","1954-09-09",null,"Northampton","(A)",null,null,"W 1-0","Finlayson","Jardine","Quinn","Heydon","Hurley","Saward","Johnson","Smith","Summers","Ramscar","Prior",null,null,null,null,1,null,null,null,null,null,1,12,"Johnson (**",null,"Johnson**","Johnson",null,22,0,0,3,0,0,0,0,0,0,0,0,null,null,null,null,null,null,null,null,null,83,null,"Johnny","Johnson",null,"Johnny Johnson",null,null,null,1,"Walsall","(A)","D 1-1","Prior",null,null,null,null,null,null,null,null,null,null,"Prior",null,null,null,null,"Prior","","","","","",",","","","","","Prior,",null,null,null,null,null,null,null,null,null,null,32,5]
[null,null,null,null,null,null,null,null,null,null,null,null,null,null,null,null,null,null,null,null,null,null,null,null,null,null,null,null,null,null,1,null,7,"Division 3S","1954-09-11",null,"Walsall","(A)",null,null,"D 1-1","Finlayson","Jardine","Quinn","Heydon","Hurley","Saward","Johnson","Smith","Summers","Ramscar","Prior",null,null,null,null,1,null,null,null,null,null,1,13,"Ledgerton (**",null,"Ledgerton**","Ledgerton",null,6,0,0,2,0,0,0,0,0,0,0,0,null,null,null,null,null,null,null,null,null,84,null,"Terry","Ledgerton",null,"Terry Ledgerton",null,null,null,2,"Northampton","(H)","W 1-0","Ramscar",null,null,null,null,null,null,null,null,null,null,"Ramscar",null,null,null,null,"Ramscar","","","","","",",","","","","","Ramscar,",null,null,null,null,null,null,null,null,null,null,34,3]
[null,null,null,null,null,null,null,null,null,null,null,null,null,null,null,null,null,null,null,null,null,null,null,null,null,null,null,null,null,null,2,null,8,"Division 3S","1954-09-13",null,"Northampton","(H)",null,null,"W 1-0","Finlayson","Jardine","Anslow","Heydon","Hurley","Saward","Johnson","Reeves","Summers","Ramscar","Prior",null,null,null,null,1,null,null,null,null,null,1,14,"McAllister (**",null,"McAllister**","McAllister",null,6,0,0,3,0,0,0,0,0,0,0,0,null,null,null,null,null,null,null,null,null,85,null,"Jim","McAllister",null,"Jim McAllister",null,null,null,1,"Shrewsbury","(H)","W 2-0","Prior","Summers",null,null,null,null,null,null,null,null,null,"Prior, Summers",null,null,null,null,"Prior","Summers","","","","",",",",","","","","Prior,Summers,",null,null,null,null,null,null,null,null,null,null,36,2]
[null,null,null,null,{"$f":"E93&\"-\"&G93","v":"0-1"},null,null,null,null,null,null,null,null,null,null,null,null,null,null,null,null,null,null,null,null,null,null,null,null,null,1,null,9,"Division 3S","1954-09-18",null,"Shrewsbury","(H)",null,null,"W 2-0","Finlayson","Jardine","Anslow","Short","Bowler","Heydon","Johnson","Green","Summers","Ramscar","Prior",null,null,null,null,1,null,null,null,null,null,1,15,"McDowall (**",null,"McDowall**","McDowall",null,5,0,0,0,0,0,0,0,0,0,0,0,null,null,null,null,null,null,null,null,null,86,null,"Danny","McDowall",null,"Danny McDowall",null,null,null,2,"Southampton","(H)","W 2-0","Prior","Jardine (pen)",null,null,null,null,null,null,null,null,null,"Prior, Jardine (pen)",null,null,null,null,"Prior","Jardine (pen)","","","","",",",",","","","","Prior,Jardine (pen),",null,null,null,null,null,null,null,null,null,null,36,3]
[null,null,null,null,null,null,null,null,null,null,null,null,null,null,null,null,null,null,null,null,null,null,null,null,null,null,null,null,null,null,2,null,10,"Division 3S","1954-09-20",null,"Southampton","(H)",null,null,"W 2-0","Finlayson","Jardine","Anslow","Short","Bowler","Heydon","Johnson","Reeves","Summers","Ramscar","Prior",null,null,null,null,1,null,null,null,null,null,1,16,"Pacey (**",null,"Pacey**","Pacey",null,33,0,0,12,0,0,0,0,3,0,0,3,null,null,null,null,null,null,null,null,null,87,null,"Dennis","Pacey",null,"Dennis Pacey",null,null,null,1,"Reading","(A)","D 0-0","No Scorer",null,null,null,null,null,null,null,null,null,null,"No Scorer",null,null,null,null,"No Scorer","","","","","",",","","","","","No Scorer,",null,null,null,null,null,null,null,null,null,null,38,3]
[null,null,null,null,null,null,null,null,null,null,null,null,null,null,null,null,null,null,null,null,null,null,null,null,null,null,null,null,null,null,1,null,11,"Division 3S","1954-09-25",null,"Reading","(A)",null,null,"D 0-0","Finlayson","Jardine","Anslow","Short","Bowler","Heydon","Johnson","Reeves","Summers","Ramscar","Prior",null,null,null,null,1,null,null,null,null,null,1,17,"Prior (**",null,"Prior**","Prior",null,31,0,0,10,0,0,0,0,2,0,0,1,null,null,null,null,null,null,null,null,null,88,null,"Ken","Prior",null,"Ken Prior",null,null,null,2,"Southampton","(A)","L 0-3","No Scorer",null,null,null,null,null,null,null,null,null,null,"No Scorer",null,null,null,null,"No Scorer","","","","","",",","","","","","No Scorer,",null,null,null,null,null,null,null,null,null,null,38,3]
[null,null,null,null,null,null,null,null,null,null,null,null,null,null,null,null,null,null,null,null,null,null,null,null,null,null,null,null,null,null,2,null,12,"Division 3S","1954-09-29",null,"Southampton","(A)",null,null,"L 0-3","Finlayson","Jardine","Anslow","Short","Bowler","Heydon","Johnson","Smith","Summers","Ramscar","Prior",null,null,null,null,1,null,null,null,null,null,1,18,"Quinn (**",null,"Quinn**","Quinn",null,2,0,0,0,0,0,0,0,0,0,0,0,null,null,null,null,null,null,null,null,null,89,null,"Des","Quinn",null,"Des Quinn",null,null,null,1,"Gillingham","(H)","W 3-2","Prior","Ramscar","Jardine",null,null,null,null,null,null,null,null,"Prior, Ramscar, Jardine",null,null,null,null,"Prior","Ramscar","Jardine","","","",",",",",",","","","Prior,Ramscar,Jardine,",null,null,null,null,null,null,null,null,null,null,38,4]
[null,null,null,null,null,null,null,null,null,null,null,null,null,null,null,null,null,null,null,null,null,null,null,{"$f":"SUM(X60:X82)","v":0},null,null,null,null,null,null,1,null,13,"Division 3S","1954-10-02",null,"Gillingham","(H)",null,null,"W 3-2","Finlayson","Jardine","Anslow","Short","Bowler","Heydon","Johnson","McAllister","Summers","Ramscar","Prior",null,null,null,null,1,null,null,null,null,null,1,19,{"$f":"BP90&\" (**\"","v":"Ramscar (**"},null,{"$f":"BP90&\"**\"","v":"Ramscar**"},"Ramscar",null,30,0,0,5,0,0,0,0,2,0,0,1,null,null,null,null,null,null,null,null,null,90,null,"Fred","Ramscar",null,"Fred Ramscar",null,null,null,2,"Bournemouth","(A)","W 1-0","Pacey",null,null,null,null,null,null,null,null,null,null,"Pacey",null,null,null,null,"Pacey","","","","","",",","","","","","Pacey,",null,null,null,null,null,null,null,null,null,null,38,6]
[null,null,null,null,null,null,null,null,null,null,null,null,null,null,null,null,null,null,null,null,null,null,null,{"$f":"MAX(X60:X82)","v":0},null,null,null,null,null,null,2,null,14,"Division 3S","1954-10-09",null,"Bournemouth","(A)",null,null,"W 1-0","Finlayson","Jardine","Anslow","Short","Hurley","Saward","Johnson","Pacey","Summers","Ramscar","Prior",null,null,null,null,1,null,null,null,null,null,1,20,"Reeves (**",null,"Reeves**","Reeves",null,3,0,0,{"$f":"COUNTIF($CZ$76:$DI$125,BO91)","v":0},0,0,0,{"$f":"COUNTIF($CZ$145:$DI$155,BO91)","v":0},0,0,0,0,null,null,null,null,null,null,null,null,null,91,null,"Frank","Reeves",null,"Frank Reeves",null,null,null,1,"QPR","(H)","L 0-1","No Scorer",null,null,null,null,null,null,null,null,null,null,"No Scorer",null,null,null,null,"No Scorer","","","","","",",","","","","","No Scorer,",null,null,null,null,null,null,null,null,null,null,40,5]
[null,null,null,null,"Home",null,"Away",null,null,null,null,null,null,null,null,null,null,null,null,null,null,null,null,{"$f":"MIN(X60:X82)","v":0},null,null,null,null,null,null,1,null,15,"Division 3S","1954-10-16",null,"QPR","(H)",null,null,"L 0-1","Finlayson","Jardine","Anslow","Short","Hurley","Saward","Johnson","Pacey","Summers","Ramscar","Prior",null,null,null,null,1,null,null,null,null,null,1,21,"Saward (**",null,"Saward**","Saward",null,30,0,0,{"$f":"COUNTIF($CZ$76:$DI$125,BO92)","v":1},0,0,0,{"$f":"COUNTIF($CZ$145:$DI$155,BO92)","v":0},1,0,0,0,null,null,null,null,null,null,null,null,null,92,null,"Pat","Saward",null,"Pat Saward",null,null,null,2,"Newport County","(A)","L 1-2","Smith",null,null,null,null,null,null,null,null,null,null,"Smith",null,null,null,null,"Smith","","","","","",",","","","","","Smith,",null,null,null,null,null,null,null,null,null,null,40,7]
[null,null,null,null,0,null,1,null,null,null,null,null,null,null,null,null,null,null,null,null,null,null,null,{"$f":"AVERAGE(X60:X82)","v":{"$error":"#DIV/0!"}},null,null,null,null,null,null,2,null,16,"Division 3S","1954-10-23",null,"Newport County","(A)",null,null,"L 1-2","Finlayson","Jardine","Anslow","Short","Hurley","Heydon","Hazlett","Smith","Pacey","Ramscar","Prior",null,null,null,null,1,null,null,null,null,null,1,22,"Shepherd (**",null,"Shepherd**","Shepherd",null,6,0,0,{"$f":"COUNTIF($CZ$76:$DI$125,BO93)","v":2},0,0,0,{"$f":"COUNTIF($CZ$145:$DI$155,BO93)","v":0},0,0,0,0,null,null,null,null,null,null,null,null,null,93,null,"Johnny","Shepherd",null,"Johnny Shepherd",null,null,null,1,"C Palace","(H)","W 5-2","Pacey","Pacey","Ramscar","Hazlett","Prior",null,null,null,null,null,null,"Pacey (2), Ramscar, Hazlett, Prior",null,null,null,null,"Pacey","Pacey","Ramscar","Hazlett","Prior","",",",",",",",",",",","Pacey,Pacey,Ramscar,Hazlett,Prior,",null,null,null,null,null,null,null,null,null,null,41,6]
[null,null,null,null,null,null,null,null,null,null,null,null,null,null,null,null,null,null,null,null,null,null,null,null,null,null,null,null,null,null,1,null,17,"Division 3S","1954-10-30",null,"C Palace","(H)",null,null,"W 5-2","Finlayson","Jardine","Anslow","Short","Hurley","Heydon","Hazlett","Smith","Pacey","Ramscar","Prior",null,null,null,null,1,null,null,null,null,null,1,23,"Short (**",null,"Short**","Short",null,31,0,0,{"$f":"COUNTIF($CZ$76:$DI$125,BO94)","v":3},0,0,0,{"$f":"COUNTIF($CZ$145:$DI$155,BO94)","v":0},3,0,0,0,null,null,null,null,null,null,null,null,null,94,null,"John","Short",null,"John Short",null,null,null,2,"Colchester","(A)","W 2-0","Prior","Pacey",null,null,null,null,null,null,null,null,null,"Prior, Pacey",null,null,null,null,"Prior","Pacey","","","","",",",",","","","","Prior,Pacey,",null,null,null,null,null,null,null,null,null,null,41,7]
[null,null,null,null,null,null,null,null,null,null,null,null,null,null,null,null,null,null,null,null,null,null,null,{"$f":"SUMIF(Z60:Z82,\"w\",X60:X82)","v":0},null,{"$f":"COUNTIF(Z60:Z82,\"w\")","v":0},null,null,null,null,2,null,18,"Division 3S","1954-11-06",null,"Colchester","(A)",null,null,"W 2-0","Finlayson","Jardine","Anslow","Short","Hurley","Heydon","Hazlett","Smith","Pacey","Ramscar","Prior",null,null,null,null,1,null,null,null,null,null,1,24,"Smith (**",null,"Smith**","Smith",null,28,0,0,{"$f":"COUNTIF($CZ$76:$DI$125,BO95)","v":8},0,0,0,{"$f":"COUNTIF($CZ$145:$DI$155,BO95)","v":0},3,0,0,{"$f":"COUNTIF($CZ$134:$DI$140,BO95)","v":0},null,null,null,null,null,null,null,null,null,95,null,"Fred","Smith",null,"Fred Smith",null,null,null,1,"Norwich","(H)","D 0-0","No Scorer",null,null,null,null,null,null,null,null,null,null,"No Scorer",null,null,null,null,"No Scorer","","","","","",",","","","","","No Scorer,",null,null,null,null,null,null,null,null,null,null,42,7]
[null,null,null,null,null,null,null,null,null,null,null,null,null,null,null,null,null,null,null,null,null,null,null,{"$f":"SUMIF(Z60:Z82,\"m\",X60:X82)","v":0},null,{"$f":"COUNTIF(Z60:Z82,\"m\")","v":0},null,null,null,null,1,null,19,"Division 3S","1954-11-13",null,"Norwich","(H)",null,null,"D 0-0","Finlayson","Jardine","Anslow","Short","Hurley","Heydon","Hazlett","Smith","Pacey","Ramscar","Prior",null,null,null,null,1,null,null,null,null,null,1,25,{"$f":"BP96&\" (**\"","v":"Summers (**"},null,{"$f":"BP96&\"**\"","v":"Summers**"},"Summers",null,31,0,0,{"$f":"COUNTIF($CZ$76:$DI$125,BO96)","v":13},0,0,0,{"$f":"COUNTIF($CZ$145:$DI$155,BO96)","v":0},1,0,0,0,null,null,null,null,null,null,null,null,null,96,null,"Johnny","Summers",null,"Johnny Summers",null,null,null,2,"Aldershot","(H)","W 3-1","Pacey","Pacey","Smith",null,null,null,null,null,null,null,null,"Pacey (2), Smith",null,null,null,null,"Pacey","Pacey","Smith","","","",",",",",",","","","Pacey,Pacey,Smith,",null,null,null,null,null,null,null,null,null,null,44,7]
[null,null,null,null,null,null,null,null,null,null,null,null,null,null,null,null,null,null,null,null,null,null,null,null,null,null,null,null,null,null,2,null,20,"Division 3S","1954-11-27",null,"Aldershot","(H)",null,null,"W 3-1","Finlayson","Jardine","Anslow","Heydon","Hurley","Saward","Hazlett","Smith","Pacey","Ramscar","Prior",null,null,null,null,1,null,null,null,null,null,1,26,"Thrippleton (**",null,"Thrippleton**","Thrippleton",null,3,0,0,0,0,0,0,0,0,0,0,{"$f":"COUNTIF($CZ$134:$DI$140,BO97)","v":0},null,null,null,null,null,null,null,null,null,97,null,"Allen","Thrippleton",null,"Allen Thrippleton",null,null,null,1,"Swindon","(A)","D 1-1","Ramscar",null,null,null,null,null,null,null,null,null,null,"Ramscar",null,null,null,null,"Ramscar","","","","","",",","","","","","Ramscar,",null,null,null,null,null,null,null,null,null,null,44,7]
[null,null,null,null,null,null,null,null,null,null,null,null,null,null,null,null,null,null,null,null,null,null,null,{"$f":"X95/Z95","v":{"$error":"#DIV/0!"}},null,null,null,null,null,null,1,null,21,"Division 3S","1954-12-04",null,"Swindon","(A)",null,null,"D 1-1","Finlayson","Jardine","Anslow","Heydon","Hurley","Saward","Hazlett","Smith","Pacey","Ramscar","Prior",null,null,null,null,1,null,null,null,null,null,1,27,"Veitch (**",null,"Veitch**","Veitch",null,1,0,0,0,0,0,0,0,0,0,0,0,null,null,null,null,null,null,null,null,null,98,null,"George","Veitch",null,"George Veitch",null,null,null,2,"Brighton","(A)","W 2-1","Own Goal","Pacey",null,null,null,null,null,null,null,null,null,"Own Goal, Pacey",null,null,null,null,"Own Goal","Pacey","","","","",",",",","","","","Own Goal,Pacey,",null,null,null,null,null,null,null,null,null,null,46,7]
[null,null,null,null,null,null,null,null,null,null,null,null,null,null,null,null,null,null,null,null,null,null,null,{"$f":"X96/Z96","v":{"$error":"#DIV/0!"}},null,null,null,null,null,null,2,null,22,"Division 3S","1954-12-18",null,"Brighton","(A)",null,null,"W 2-1","Finlayson","Jardine","Anslow","Short","Hurley","Heydon","Hazlett","Smith","Pacey","Ramscar","Prior",null,null,null,null,1,null,null,null,null,null,1,28,null,null,null,null,null,null,null,null,null,null,null,null,null,null,null,null,null,null,null,null,null,null,null,null,null,null,99,null,null,null,null,null,null,null,null,1,"Brentford","(A)","L 1-3","Short",null,null,null,null,null,null,null,null,null,null,"Short",null,null,null,null,"Short","","","","","",",","","","","","Short,",null,null,null,null,null,null,null,null,null,null,47,9]
[null,null,null,null,null,null,null,null,null,null,null,null,null,null,null,null,null,null,null,null,null,null,null,null,null,null,null,null,null,null,1,null,23,"Division 3S","1954-12-25",null,"Brentford","(A)",null,null,"L 1-3","Finlayson","Jardine","Anslow","Short","Hurley","Heydon","Hazlett","Smith","Pacey","Ramscar","Prior",null,null,null,null,1,null,null,null,null,null,1,29,null,null,null,null,null,null,null,null,null,null,null,null,null,null,null,null,null,null,null,null,null,null,null,null,null,null,null,null,null,null,null,null,null,null,null,2,"Brentford","(H)","D 2-2","Smith","Pacey",null,null,null,null,null,null,null,null,null,"Smith, Pacey",null,null,null,null,"Smith","Pacey","","","","",",",",","","","","Smith,Pacey,",null,null,null,null,null,null,null,null,null,null,48,10]
[null,null,null,null,null,null,null,null,null,null,null,null,null,null,null,null,null,null,null,null,null,null,null,null,null,null,null,null,null,null,2,null,24,"Division 3S","1954-12-27",null,"Brentford","(H)",null,null,"D 2-2","Finlayson","Jardine","Anslow","Short","Hurley","Heydon","Johnson","Smith","Pacey","Ramscar","Summers",null,null,null,null,1,null,null,null,null,null,1,30,null,null,null,null,null,null,null,null,null,null,null,null,null,null,null,null,null,null,null,null,null,null,null,null,null,null,null,null,null,null,null,null,null,null,null,1,"Torquay","(H)","W 4-1","Smith","Johnson","Pacey","Summers",null,null,null,null,null,null,null,"Smith, Johnson, Pacey, Summers",null,null,null,null,"Smith","Johnson","Pacey","Summers","","",",",",",",",",","","Smith,Johnson,Pacey,Summers,",null,null,null,null,null,null,null,null,null,null,49,9]
[null,null,null,null,null,null,null,null,null,null,null,null,null,null,null,null,null,null,null,null,null,null,null,null,null,null,null,null,null,null,1,null,25,"Division 3S","1955-01-01",null,"Torquay","(H)",null,null,"W 4-1","Finlayson","Jardine","Anslow","Hencher","Hurley","Heydon","Johnson","Smith","Pacey","Ramscar","Summers",null,null,null,null,1,null,null,null,null,null,1,null,null,null,null,null,null,null,null,null,null,null,null,null,null,null,null,null,null,null,null,null,null,null,null,null,null,null,null,null,null,null,null,null,null,null,null,2,"Walsall","(H)","W 1-0","Smith",null,null,null,null,null,null,null,null,null,null,"Smith",null,null,null,null,"Smith","","","","","",",","","","","","Smith,",null,null,null,null,null,null,null,null,null,null,50,8]
[null,null,null,null,null,null,null,null,null,null,null,null,null,null,null,null,null,null,null,null,null,null,null,null,null,null,null,null,null,null,2,null,26,"Division 3S","1955-01-22",null,"Walsall","(H)",null,null,"W 1-0","Brewer","Jardine","Anslow","Short","Hurley","Heydon","Hazlett","Smith","Pacey","Saward","Prior",null,null,null,null,1,null,null,null,null,null,1,null,null,null,{"$f":"BP103&\"**\"","v":"Own Goal**"},"Own Goal",null,null,null,null,{"$f":"COUNTIF($CZ$76:$DI$125,BO103)","v":2},null,null,null,{"$f":"COUNTIF($CZ$145:$DI$155,BO103)","v":0},null,null,null,{"$f":"COUNTIF($CZ$134:$DI$140,BP103)","v":0},null,null,null,null,null,null,null,null,null,null,null,null,null,null,null,null,null,null,1,"Watford","(H)","W 1-0","McAllister",null,null,null,null,null,null,null,null,null,null,"McAllister",null,null,null,null,"McAllister","","","","","",",","","","","","McAllister,",null,null,null,null,null,null,null,null,null,null,50,8]
[null,null,null,null,null,null,null,null,null,null,null,null,null,null,null,null,null,null,null,null,null,null,null,null,null,null,null,null,null,null,1,null,27,"Division 3S","1955-01-29",null,"Watford","(H)",null,null,"W 1-0","Brewer","Jardine","Anslow","Short","Hurley","Saward","Hazlett","Smith","Pacey","McAllister","Prior",null,null,null,null,1,null,null,null,null,null,1,null,null,null,null,null,null,null,null,null,null,null,null,null,null,null,null,null,null,null,null,null,null,null,null,null,null,null,null,null,null,null,null,null,null,null,null,2,"Shrewsbury","(A)","L 2-3","Smith","Smith",null,null,null,null,null,null,null,null,null,"Smith (2)",null,null,null,null,"Smith","Smith","","","","",",",",","","","","Smith,Smith,"]
[null,null,null,null,null,null,null,null,null,null,null,null,null,null,null,null,null,null,null,null,null,null,null,null,null,null,null,null,null,null,2,null,28,"Division 3S","1955-02-05",null,"Shrewsbury","(A)",null,null,"L 2-3","Finlayson","Jardine","Anslow","Short","Bowler","Saward","Johnson","Smith","Pacey","Ramscar","Prior",null,null,null,null,1,null,null,null,null,null,1,null,null,null,null,null,null,null,null,null,null,null,null,null,null,null,null,null,null,null,null,null,null,null,null,null,null,null,null,null,null,null,null,null,null,null,null,1,"Reading","(H)","D 2-2","Ramscar","Smith",null,null,null,null,null,null,null,null,null,"Ramscar, Smith",null,null,null,null,"Ramscar","Smith","","","","",",",",","","","","Ramscar,Smith,"]
[null,null,null,null,null,null,null,null,null,null,null,null,null,null,null,null,null,null,null,null,null,null,null,null,null,null,null,null,null,null,1,null,29,"Division 3S","1955-02-12",null,"Reading","(H)",null,null,"D 2-2","Finlayson","Jardine","Anslow","Hencher","Short","Heydon","Johnson","Smith","Pacey","Ramscar","Prior",null,null,null,null,1,null,null,null,null,null,1,null,null,null,null,"Check",null,{"$f":"SUM(BR72:BR101)","v":506},null,null,{"$f":"SUM(BU72:BU103)","v":72},null,null,null,{"$f":"SUM(BY72:BY103)","v":0},null,null,null,{"$f":"SUM(CC72:CC103)","v":6},null,null,null,null,null,null,null,null,null,null,null,null,null,null,null,null,null,null,2,"Gillingham","(A)","D 1-1","Ledgerton",null,null,null,null,null,null,null,null,null,null,"Ledgerton",null,null,null,null,"Ledgerton","","","","","",",","","","","","Ledgerton,"]
[null,null,null,null,null,null,null,null,null,null,null,null,null,null,null,null,null,null,null,null,null,null,null,null,null,null,null,null,null,null,2,null,30,"Division 3S","1955-02-19",null,"Gillingham","(A)",null,null,"D 1-1","Finlayson","Jardine","Anslow","Short","Hurley","Heydon","Johnson","Smith","Pacey","Ramscar","Ledgerton",null,null,null,null,1,null,null,null,null,null,1,null,null,null,null,null,null,null,null,null,null,null,null,null,null,null,null,null,null,null,null,null,null,null,null,null,null,null,null,null,null,null,null,null,null,null,null,1,"Bournemouth","(H)","D 1-1","Summers",null,null,null,null,null,null,null,null,null,null,"Summers",null,null,null,null,"Summers","","","","","",",","","","","","Summers,"]
[null,null,null,null,null,null,null,null,null,null,null,null,null,null,null,null,null,null,null,null,null,null,null,null,null,null,null,null,null,null,1,null,31,"Division 3S","1955-02-26",null,"Bournemouth","(H)",null,null,"D 1-1","Finlayson","Jardine","Anslow","Short","Hurley","Heydon","Hazlett","Pacey","Summers","Ramscar","Ledgerton",null,null,null,null,1,null,null,null,null,null,1,null,null,null,null,null,null,{"$f":"46*11","v":506},null,null,null,null,null,null,null,null,null,null,null,null,null,null,null,null,null,null,null,null,null,null,null,null,null,null,null,null,null,2,"QPR","(A)","W 2-1","Summers","Pacey",null,null,null,null,null,null,null,null,null,"Summers, Pacey",null,null,null,null,"Summers","Pacey","","","","",",",",","","","","Summers,Pacey,"]
[null,null,null,null,null,null,null,null,null,null,null,null,null,null,null,null,null,null,null,null,null,null,null,null,null,null,null,null,null,null,2,null,32,"Division 3S","1955-03-05",null,"QPR","(A)",null,null,"W 2-1","Finlayson","Jardine","Anslow","Heydon","Hurley","Saward","Johnson","Smith","Pacey","Ramscar","Summers",null,null,null,null,1,null,null,null,null,null,1,null,null,null,null,null,null,null,null,null,null,null,null,null,null,null,null,null,null,null,null,null,null,null,null,null,null,null,null,null,null,null,null,null,null,null,null,1,"Bristol C","(A)","L 1-5","Summers",null,null,null,null,null,null,null,null,null,null,"Summers",null,null,null,null,{"$f":"IF(CZ109=\"\",\"\",CZ109)","v":"Summers"},{"$f":"IF(DA109=\"\",\"\",DA109)","v":""},{"$f":"IF(DB109=\"\",\"\",DB109)","v":""},{"$f":"IF(DC109=\"\",\"\",DC109)","v":""},{"$f":"IF(DD109=\"\",\"\",DD109)","v":""},{"$f":"IF(DE109=\"\",\"\",DE109)","v":""},",","","","","","Summers,"]
[null,null,null,null,null,null,null,null,null,null,null,null,null,null,null,null,null,null,null,null,null,null,null,null,null,null,null,null,null,null,1,null,33,"Division 3S","1955-03-09",null,"Bristol C","(A)",null,null,"L 1-5","Finlayson","Jardine","Anslow","Short","Hurley","Saward","Johnson","Smith","Pacey","Ramscar","Summers",null,null,null,null,1,null,null,null,null,null,1,null,null,null,null,null,null,null,null,null,null,null,null,null,null,null,null,null,null,null,null,null,null,null,null,null,null,null,null,null,null,null,null,null,null,null,null,2,"Newport County","(H)","D 1-1","Summers",null,null,null,null,null,null,null,null,null,null,"Summers",null,null,null,null,"Summers","","","","","",",","","","","","Summers,"]
[null,null,null,null,null,null,null,null,null,null,null,null,null,null,null,null,null,null,null,null,null,null,null,null,null,null,null,null,null,null,2,null,34,"Division 3S","1955-03-12",null,"Newport County","(H)",null,null,"D 1-1","Finlayson","Veitch","Jardine","Short","Hurley","Saward","Johnson","Smith","Pacey","Ramscar","Summers",null,null,null,null,1,null,null,null,null,null,1,null,null,null,null,null,null,null,null,null,null,null,null,null,null,null,null,null,null,null,null,null,null,null,null,null,null,null,null,null,null,null,null,null,null,null,null,1,"C Palace","(A)","D 1-1","Short (pen)",null,null,null,null,null,null,null,null,null,null,"Short (pen)",null,null,null,null,"Short (pen)","","","","","",",","","","","","Short (pen),"]
[null,null,null,null,null,null,null,null,null,null,null,null,null,null,null,null,null,null,null,null,null,null,null,null,null,null,null,null,null,null,1,null,35,"Division 3S","1955-03-19",null,"C Palace","(A)",null,null,"D 1-1","Finlayson","Jardine","Anslow","Short","Hurley","McDowall","Hazlett","Pacey","Shepherd","Saward","Summers",null,null,null,null,1,null,null,null,null,null,1,null,null,null,null,null,null,null,null,null,null,null,null,null,null,null,null,null,null,null,null,null,null,null,null,null,null,null,null,null,null,null,null,null,null,null,null,2,"Colchester","(H)","W 5-2","Summers","Summers","Pacey","Hazlett","Short",null,null,null,null,null,null,"Summers (2), Pacey, Hazlett, Short",null,null,null,null,"Summers","Summers","Pacey","Hazlett","Short","",",",",",",",",",",","Summers,Summers,Pacey,Hazlett,Short,"]
[null,null,null,null,null,null,null,null,null,null,null,null,null,null,null,null,null,null,null,null,null,null,null,null,null,null,null,null,null,null,2,null,36,"Division 3S","1955-03-26",null,"Colchester","(H)",null,null,"W 5-2","Finlayson","Jardine","Anslow","Short","Hurley","McDowall","Hazlett","Pacey","Shepherd","Saward","Summers",null,null,null,null,1,null,null,null,null,null,1,null,null,null,null,null,null,null,null,null,null,null,null,null,null,null,null,null,null,null,null,null,null,null,null,null,null,null,null,null,null,null,null,null,null,null,null,1,"Watford","(A)","L 3-5","Summers","Summers","Prior",null,null,null,null,null,null,null,null,"Summers (2), Prior",null,null,null,null,"Summers","Summers","Prior","","","",{"$f":"IF(DP113<>\"\",\",\",\"\")","v":","},{"$f":"IF(DQ113<>\"\",\",\",\"\")","v":","},{"$f":"IF(DR113<>\"\",\",\",\"\")","v":","},{"$f":"IF(DS113<>\"\",\",\",\"\")","v":""},{"$f":"IF(DT113<>\"\",\",\",\"\")","v":""},{"$f":"CONCATENATE(DP113,DV113,DQ113,DW113,DR113,DX113,DS113,DY113,DT113,DZ113,DU113)","v":"Summers,Summers,Prior,"}]
[null,null,null,null,null,null,null,null,null,null,null,null,null,null,null,null,null,null,null,null,null,null,null,null,null,null,null,null,null,null,1,null,37,"Division 3S","1955-03-30",null,"Watford","(A)",null,null,"L 3-5","Finlayson","Jardine","Anslow","Short","Bowler","McDowall","Hazlett","Pacey","Summers","Saward","Prior",null,null,null,null,1,null,null,null,null,null,1,null,null,null,null,null,null,null,null,null,null,null,null,null,null,null,null,null,null,null,null,null,null,null,null,null,null,null,null,null,null,null,null,null,null,null,null,2,"Norwich","(A)","L 1-2","Summers",null,null,null,null,null,null,null,null,null,null,"Summers",null,null,null,null,"Summers","","","","","",",","","","","","Summers,"]
[null,null,null,null,null,null,null,null,null,null,null,null,null,null,null,null,null,null,null,null,null,null,null,null,null,null,null,null,null,null,2,null,38,"Division 3S","1955-04-02",null,"Norwich","(A)",null,null,"L 1-2","Brewer","Jardine","Anslow","Short","Hurley","Saward","Hazlett","Pacey","Summers","Ramscar","Prior",null,null,null,null,1,null,null,null,null,null,1,null,null,null,null,null,null,null,null,null,null,null,null,null,null,null,null,null,null,null,null,null,null,null,null,null,null,null,null,null,null,null,null,null,null,null,null,1,"Coventry","(H)","W 3-1","Pacey","Summers","Summers",null,null,null,null,null,null,null,null,"Pacey, Summers (2)",null,null,null,null,"Pacey","Summers","Summers","","","",",",",",",","","","Pacey,Summers,Summers,"]
[null,null,null,null,null,null,null,null,null,null,null,null,null,null,null,null,null,null,null,null,null,null,null,null,null,null,null,null,null,null,1,null,39,"Division 3S","1955-04-08",null,"Coventry","(H)",null,null,"W 3-1","Finlayson","Jardine","Anslow","Heydon","Hurley","Thrippleton","Hazlett","Pacey","Summers","Saward","Prior",null,null,null,null,1,null,null,null,null,null,1,null,null,null,null,null,null,null,null,null,null,null,null,null,null,null,null,null,null,null,null,null,null,null,null,null,null,null,null,null,null,null,null,null,null,null,null,2,"Southend","(H)","L 1-4","Saward",null,null,null,null,null,null,null,null,null,null,"Saward",null,null,null,null,"Saward","","","","","",",","","","","","Saward,"]
[null,null,null,null,null,null,null,null,null,null,null,null,null,null,null,null,null,null,null,null,null,null,null,null,null,null,null,null,null,null,2,null,40,"Division 3S","1955-04-09",null,"Southend","(H)",null,null,"L 1-4","Finlayson","Jardine","Anslow","Heydon","Hurley","Thrippleton","Hazlett","Pacey","Summers","Saward","Prior",null,null,null,null,1,null,null,null,null,null,1,null,null,null,null,null,null,null,null,null,null,null,null,null,null,null,null,null,null,null,null,null,null,null,null,null,null,null,null,null,null,null,null,null,null,null,null,1,"Coventry","(A)","L 1-4","Own Goal",null,null,null,null,null,null,null,null,null,null,"Own Goal",null,null,null,null,"Own Goal","","","","","",",","","","","","Own Goal,"]
[null,null,null,null,null,null,null,null,null,null,null,null,null,null,null,null,null,null,null,null,null,null,null,null,null,null,null,null,null,null,1,null,41,"Division 3S","1955-04-12",null,"Coventry","(A)",null,null,"L 1-4","Finlayson","Jardine","Anslow","Short","Hurley","Saward","Hazlett","Smith","Pacey","Ramscar","Prior",null,null,null,null,1,null,null,null,null,null,null,null,null,null,null,null,null,null,null,null,null,null,null,null,null,null,null,null,null,null,null,null,null,null,null,null,null,null,null,null,null,null,null,null,null,null,null,2,"Aldershot","(A)","L 0-3","No Scorer",null,null,null,null,null,null,null,null,null,null,"No Scorer",null,null,null,null,"No Scorer","","","","","",",","","","","","No Scorer,"]
[null,null,null,null,null,null,null,null,null,null,null,null,null,null,null,null,null,null,null,null,null,null,null,null,null,null,null,null,null,null,2,null,42,"Division 3S","1955-04-16",null,"Aldershot","(A)",null,null,"L 0-3","Finlayson","Jardine","Anslow","Heydon","Hurley","McDowall","Hazlett","Pacey","Summers","Saward","Prior",null,null,null,null,1,null,null,null,null,null,null,null,null,null,null,null,null,null,null,null,null,null,null,null,null,null,null,null,null,null,null,null,null,null,null,null,null,null,null,null,null,null,null,null,null,null,null,1,"Swindon","(H)","W 1-0","Shepherd",null,null,null,null,null,null,null,null,null,null,"Shepherd",null,null,null,null,"Shepherd","","","","","",",","","","","","Shepherd,"]
[null,null,null,null,null,null,null,null,null,null,null,null,null,null,null,null,null,null,null,null,null,null,null,null,null,null,null,null,null,null,1,null,43,"Division 3S","1955-04-23",null,"Swindon","(H)",null,null,"W 1-0","Finlayson","Jardine","Anslow","Short","Hurley","Saward","Hazlett","Pacey","Shepherd","Smith","Summers",null,null,null,null,1,null,null,null,null,null,null,null,null,null,null,null,null,null,null,null,null,null,null,null,null,null,null,null,null,null,null,null,null,null,null,null,null,null,null,null,null,null,null,null,null,null,null,2,"Southend","(A)","L 0-1","No Scorer",null,null,null,null,null,null,null,null,null,null,"No Scorer",null,null,null,null,"No Scorer","","","","","",",","","","","","No Scorer,"]
[null,null,null,null,null,null,null,null,null,null,null,null,null,null,null,null,null,null,null,null,null,null,null,null,null,null,null,null,null,null,2,null,44,"Division 3S","1955-04-26",null,"Southend","(A)",null,null,"L 0-1","Finlayson","Jardine","Anslow","Short","Hurley","Saward","Hazlett","Pacey","Summers","Smith","Prior",null,null,null,null,1,null,null,null,null,null,null,null,null,null,null,null,null,null,null,null,null,null,null,null,null,null,null,null,null,null,null,null,null,null,null,null,null,null,null,null,null,null,null,null,null,null,null,1,"Exeter","(A)","W 4-1","Prior","Prior","Jardine","Jardine",null,null,null,null,null,null,null,"Prior (2), Jardine (2)",null,null,null,null,"Prior","Prior","Jardine","Jardine","","",{"$f":"IF(DP121<>\"\",\",\",\"\")","v":","},",",",",",","",{"$f":"CONCATENATE(DP121,DV121,DQ121,DW121,DR121,DX121,DS121,DY121,DT121,DZ121,DU121)","v":"Prior,Prior,Jardine,Jardine,"}]
[null,null,null,null,null,null,null,null,null,null,null,null,null,null,null,null,null,null,null,null,null,null,null,null,null,null,null,null,null,null,1,null,45,"Division 3S","1955-04-30",null,"Exeter","(A)",null,null,"W 4-1","Finlayson","Jardine","Anslow","Short","Hurley","Saward","Hazlett","Pacey","Summers","Smith","Prior",null,null,null,null,1,null,null,null,null,null,null,null,null,null,null,null,null,null,null,null,null,null,null,null,null,null,null,null,null,null,null,null,null,null,null,null,null,null,null,null,null,null,null,null,null,null,null,2,"Exeter","(H)","D 2-2","Hazlett","Jardine",null,null,null,null,null,null,null,null,null,"Hazlett, Jardine",null,null,null,null,"Hazlett","Jardine","","","","",",",",","","","",{"$f":"CONCATENATE(DP122,DV122,DQ122,DW122,DR122,DX122,DS122,DY122,DT122,DZ122,DU122)","v":"Hazlett,Jardine,"}]
[null,null,null,null,null,null,null,null,null,null,null,null,null,null,null,null,null,null,null,null,null,null,null,null,null,null,null,null,null,null,2,null,46,"Division 3S","1955-05-02",null,"Exeter","(H)",null,null,"D 2-2","Finlayson","Jardine","Anslow","Short","Hurley","Saward","Hazlett","Pacey","Summers","Smith","Prior",null,null,null,null,1,null,null,null,null,null,null,null,null,null,null,null,null,null,null,null,null,null,null,null,null,null,null,null,null,null,null,null,null,null,null,null,null,null,null,null,null,null,null,null,null,null,null,1,null,null,null,"x",null,null,null,null,null,null,null,null,null,null,"x",null,null,null,null,"x","","","","","",",","","","","",{"$f":"CONCATENATE(DP123,DV123,DQ123,DW123,DR123,DX123,DS123,DY123,DT123,DZ123,DU123)","v":"x,"}]
[null,null,null,null,null,null,null,null,null,null,null,null,null,null,null,null,null,null,null,null,null,null,null,null,null,null,null,null,null,null,1,null,null,null,null,null,null,null,null,null,null,null,null,null,null,null,null,null,null,null,null,null,null,null,null,null,null,null,null,null,null,null,null,null,null,null,null,null,null,null,null,null,null,null,null,null,null,null,null,null,null,null,null,null,null,null,null,null,null,null,null,null,null,null,null,null,null,null,null,2,null,null,null,"x",null,null,null,null,null,null,null,null,null,null,"x",null,null,null,null,"x","","","","","",",","","","","",{"$f":"CONCATENATE(DP124,DV124,DQ124,DW124,DR124,DX124,DS124,DY124,DT124,DZ124,DU124)","v":"x,"}]
[null,null,null,null,null,null,null,null,null,null,null,null,null,null,null,null,null,null,null,null,null,null,null,null,null,null,null,null,null,null,2,null,null,null,null,null,null,null,null,null,null,null,null,null,null,null,null,null,null,null,null,null,null,null,null,null,null,null,null,null,null,null,null,null,null,null,null,null,null,null,null,null,null,null,null,null,null,null,null,null,null,null,null,null,null,null,null,null,null,null,null,null,null,null,null,null,null,null,null,1,null,null,null,"x",null,null,null,null,null,null,null,null,null,null,"x",null,null,null,null,"x","","","","","",",","","","","",{"$f":"CONCATENATE(DP125,DV125,DQ125,DW125,DR125,DX125,DS125,DY125,DT125,DZ125,DU125)","v":"x,"}]
[null,null,null,null,null,null,null,null,null,null,null,null,null,null,null,null,null,null,null,null,null,null,null,null,null,null,null,null,null,null,1,null,1,"League Cup",null,null,null,null,null,null,null,null,null,null,null,null,null,null,null,null,null,null,null,null,null,null,null,null,null,null,null,null,null,null,null,null,null,null,null,null,null,null,null,null,null,null,null,null,null,null,null,null,null,null,null,null,null,null,null,null,null,null,null,null,null,null,null,null,null,null,null,null,null,"x",null,null,null,null,null,null,null,null,null,null,"x"]
[null,null,null,null,null,null,null,null,null,null,null,null,null,null,null,null,null,null,null,null,null,null,null,null,null,null,null,null,null,null,2,null,null,null,null,null,null,null,null,null,null,null,null,null,null,null,null,null,null,null,null,null,null,null,null,null,null,null,null,null,null,null,null,null,null,null,null,null,null,null,null,null,null,null,null,null,null,null,null,null,null,null,null,null,null,null,null,null,null,null,null,null,null,null,null,null,null,null,null,null,null,null,null,"x",null,null,null,null,null,null,null,null,null,null,"x"]
[null,null,null,null,null,null,null,null,null,null,null,null,null,null,null,null,null,null,null,null,null,null,null,null,null,null,null,null,null,null,1,null,null,null,null,null,null,null,null,null,null,null,null,null,null,null,null,null,null,null,null,null,null,null,null,null,null,null,null,null,null,null,null,null,null,null,null,null,null,null,null,null,null,null,null,null,null,null,null,null,null,null,null,null,null,null,null,null,null,null,null,null,null,null,null,null,null,null,null,null,null,null,null,"x",null,null,null,null,null,null,null,null,null,null,"x"]
[null,null,null,null,null,null,null,null,null,null,null,null,null,null,null,null,null,null,null,null,null,null,null,null,null,null,null,null,null,null,2,null,null,null,null,null,null,null,null,null,null,null,null,null,null,null,null,null,null,null,null,null,null,null,null,null,null,null,null,null,null,null,null,null,null,null,null,null,null,null,null,null,null,null,null,null,null,null,null,null,null,null,null,null,null,null,null,null,null,null,null,null,null,null,null,{"$f":"CP130&\" \"&BP126","v":" "},null,null,null,null,null,null,null,"x",null,null,null,null,null,null,null,null,null,null,"x"]
[null,null,null,null,null,null,null,null,null,null,null,null,null,null,null,null,null,null,null,null,null,null,null,null,null,null,null,null,null,null,1,null,null,null,null,null,null,null,null,null,null,null,null,null,null,null,null,null,null,null,null,null,null,null,null,null,null,null,null,null,null,null,null,null,null,null,null,null,null,null,null,null,null,null,null,null,null,null,null,null,null,null,null,null,null,null,null,null,null,null,null,null,null,null,null,null,null,null,null,null,null,null,null,"x",null,null,null,null,null,null,null,null,null,null,"x"]
[null,null,null,null,null,null,null,null,null,null,null,null,null,null,null,null,null,null,null,null,null,null,null,null,null,null,null,null,null,null,2,null,null,null,null,null,null,null,null,null,null,null,null,null,null,null,null,null,null,null,null,null,null,null,null,null,null,null,null,null,null,null,null,null,null,null,null,null,null,null,null,null,null,null,null,null,null,null,null,null,null,null,null,null,null,null,null,null,null,null,null,null,null,null,null,null,null,null,null,null,null,null,null,"Goals FA Cup",null,null,null,null,null,null,null,null,null,null,"Goals FA Cup"]
[null,null,null,null,null,null,null,null,null,null,null,null,null,null,null,null,null,null,null,null,null,null,null,null,null,null,null,null,null,null,1,null,null,null,null,null,null,null,null,null,null,null,null,null,null,null,null,null,null,null,null,null,null,null,null,null,null,null,null,null,null,null,null,null,null,null,null,null,null,null,null,null,null,null,null,null,null,null,null,null,null,null,null,null,null,null,null,null,null,null,null,null,null,null,null,null,null,null,null,null,null,null,null,1,2,3,4,5,6,7,8,7,8,9,"1, 2, 3, 4, 5, 6, 7, 8, 9"]
[null,null,null,null,null,null,null,null,null,null,null,null,null,null,null,null,null,null,null,null,null,null,null,null,null,null,null,null,null,null,2,null,null,null,null,null,null,null,null,null,null,null,null,null,null,null,null,null,null,null,null,null,null,null,null,null,null,null,null,null,null,null,null,null,null,null,null,null,null,null,null,null,null,null,null,null,null,null,null,null,null,null,null,null,null,null,null,null,null,null,null,null,null,null,null,null,null,null,null,null,null,null,null,"x",null,null,null,null,null,null,null,null,null,null,"x"]
[null,null,null,null,null,null,null,null,null,null,null,null,null,null,null,null,null,null,null,null,null,null,null,null,null,null,null,null,null,null,1,null,null,null,null,null,null,null,null,null,null,null,null,null,null,null,null,null,null,null,null,null,null,null,null,null,null,null,null,null,null,null,null,null,null,null,null,null,null,null,null,null,null,null,null,null,null,null,null,null,null,null,null,null,null,null,null,null,null,null,null,null,null,null,null,null,null,null,null,{"$f":"IF(CV133=0,1,IF(CV133=2,1,2))","v":1},{"$f":"AK136","v":"Exeter"},{"$f":"AL136","v":"(H)"},{"$f":"AO136","v":"W 3-2"},"Pacey","Pacey","Jardine",null,null,null,null,null,null,null,null,"Pacey (2), Jardine",null,null,null,null,{"$f":"IF(CZ134=\"\",\"\",CZ134)","v":"Pacey"},"Pacey","Jardine","","","",{"$f":"IF(DP134<>\"\",\",\",\"\")","v":","},{"$f":"IF(DQ134<>\"\",\",\",\"\")","v":","},{"$f":"IF(DR134<>\"\",\",\",\"\")","v":","},{"$f":"IF(DS134<>\"\",\",\",\"\")","v":""},{"$f":"IF(DT134<>\"\",\",\",\"\")","v":""},{"$f":"CONCATENATE(DP134,DV134,DQ134,DW134,DR134,DX134,DS134,DY134,DT134,DZ134,DU134)","v":"Pacey,Pacey,Jardine,"}]
[null,null,null,null,null,null,null,null,null,null,null,null,null,null,null,null,null,null,null,null,null,null,null,null,null,null,null,null,null,null,2,null,null,null,null,null,null,null,null,null,null,null,null,null,null,null,null,null,null,null,null,null,null,null,null,null,null,null,null,null,null,null,null,null,null,null,null,null,null,null,null,null,null,null,null,null,null,null,null,null,null,null,null,null,null,null,null,null,null,null,null,null,null,null,null,null,null,null,null,2,{"$f":"AK137","v":"Accrington Stanley"},"(H)",{"$f":"AO137","v":"W 3-2"},"Prior","Ramscar","Pacey",null,null,null,null,null,null,null,null,"Prior, Ramscar, Pacey"]
[null,null,null,null,null,null,null,null,null,null,null,null,null,null,null,null,null,null,null,null,null,null,null,null,null,null,null,null,null,null,1,null,1,"FA Cup 1","1954-11-20",null,"Exeter","(H)",null,null,"W 3-2","Finlayson","Jardine","Anslow","Short","Hurley","Heydon","Hazlett","Smith","Pacey","Ramscar","Prior",null,null,null,null,1,null,null,null,null,null,null,null,null,null,null,null,null,null,null,null,null,null,null,null,null,null,null,null,null,null,null,null,null,null,null,null,null,null,null,null,null,null,null,null,null,null,null,1,{"$f":"AK138","v":"Bolton Wanderers"},"(A)","L 0-1","No Scorer",null,null,null,null,null,null,null,null,null,null,"No Scorer"]
[null,null,null,null,null,null,null,null,null,null,null,null,null,null,null,null,null,null,null,null,null,null,null,null,null,null,null,null,null,null,2,null,2,"FA Cup 2","1954-12-11",null,"Accrington Stanley","(H)",null,null,"W 3-2","Finlayson","Jardine","Anslow","Short","Hurley","Heydon","Hazlett","Smith","Pacey","Ramscar","Prior",null,null,null,null,1,null,null,null,null,null,null,null,null,null,null,null,null,null,null,null,null,null,null,null,null,null,null,null,null,null,null,null,null,null,null,null,null,null,null,null,null,null,null,null,null,null,null,2]
[null,null,null,null,null,null,null,null,null,null,null,null,null,null,null,null,null,null,null,null,null,null,null,null,null,null,null,null,null,null,1,null,3,"FA Cup 3","1955-01-08",null,"Bolton Wanderers","(A)",null,null,"L 0-1","Finlayson","Jardine","Anslow","Short","Hurley","Heydon","Hazlett","Smith","Pacey","Saward","Summers",null,null,null,null,1,null,null,null,null,null,null,null,null,null,null,null,null,null,null,null,null,null,null,null,null,null,null,null,null,null,null,null,null,null,null,null,null,null,null,null,null,null,null,null,null,null,null,1]
[null,null,null,null,null,null,null,null,null,null,null,null,null,null,null,null,null,null,null,null,null,null,null,null,null,null,null,null,null,null,2,null,4,null,null,null,null,null,null,null,null,null,null,null,null,null,null,null,null,null,null,null,null,null,null,null,null,null,null,null,null,null,null,null,null,null,null,null,null,null,null,null,null,null,null,null,null,null,null,null,null,null,null,null,null,null,null,null,null,null,null,null,null,null,null,null,null,null,null,2]
[null,null,null,null,null,null,null,null,null,null,null,null,null,null,null,null,null,null,null,null,null,null,null,null,null,null,null,null,null,null,1,null,5,null,null,null,null,null,null,null,null,null,null,null,null,null,null,null,null,null,null,null,null,null,null,null,null,null,null,null,null,null,null,null,null,null,null,null,null,null,null,null,null,null,null,null,null,null,null,null,null,null,null,null,null,null,null,null,null,null,null,null,null,null,null,null,null,null,null,null,null,null,null,"x",null,null,null,null,null,null,null,null,null,null,"x"]
[null,null,null,null,null,null,null,null,null,null,null,null,null,null,null,null,null,null,null,null,null,null,null,null,null,null,null,null,null,null,2,null,6,null,null,null,null,null,null,null,null,null,null,null,null,null,null,null,null,null,null,null,null,null,null,null,null,null,null,null,null,null,null,null,null,null,null,null,null,null,null,null,null,null,null,null,null,null,null,null,null,null,null,null,null,null,null,null,null,null,null,null,null,null,null,null,null,null,null,null,null,null,null,"x",null,null,null,null,null,null,null,null,null,null,"x"]
[null,null,null,null,null,null,null,null,null,null,null,null,null,null,null,null,null,null,null,null,null,null,null,null,null,null,null,null,null,null,1,null,null,null,null,null,null,null,null,null,null,null,null,null,null,null,null,null,null,null,null,null,null,null,null,null,null,null,null,null,null,null,null,null,null,null,null,null,null,null,null,null,null,null,null,null,null,null,null,null,null,null,null,null,null,null,null,null,null,null,null,null,null,null,null,null,null,null,null,null,null,null,null,"League Cup Goals",null,null,null,null,null,null,null,null,null,null,"League Cup Goals"]
[null,null,null,null,null,null,null,null,null,null,null,null,null,null,null,null,null,null,null,null,null,null,null,null,null,null,null,null,null,null,{"$f":"IF(AE142=0,1,IF(AE142=2,1,2))","v":2},null,null,null,null,null,null,null,null,null,null,null,null,null,null,null,null,null,null,null,null,null,null,null,null,null,null,null,null,null,null,null,null,null,null,null,null,null,null,null,null,null,null,null,null,null,null,null,null,null,null,null,null,null,null,null,null,null,null,null,null,null,null,null,null,null,null,null,null,null,null,null,null,1,2,3,4,5,6,7,8,7,8,9,"1, 2, 3, 4, 5, 6, 7, 8, 9"]
[null,null,null,null,null,null,null,null,null,null,null,null,null,null,null,null,null,null,null,null,null,null,null,null,null,null,null,null,null,null,1,null,null,null,null,null,null,null,null,null,null,null,null,null,null,null,null,null,null,null,null,null,null,null,null,null,null,null,null,null,null,null,null,null,null,null,null,null,null,null,null,null,null,null,null,null,null,null,null,null,null,null,null,null,null,null,null,null,null,null,null,null,null,null,null,null,null,null,null,null,null,null,null,"x",null,null,null,null,null,null,null,null,null,null,"x"]
[null,null,null,null,null,null,null,null,null,null,null,null,null,null,null,null,null,null,null,null,null,null,null,null,null,null,null,null,null,null,2,null,null,null,null,null,null,null,null,null,null,null,null,null,null,null,null,null,null,null,null,null,null,null,null,null,null,null,null,null,null,null,null,null,null,null,null,null,null,null,null,null,null,null,null,null,null,null,null,null,null,null,null,null,null,null,null,null,null,null,null,null,null,null,null,null,null,null,null,{"$f":"IF(CV144=0,1,IF(CV144=2,1,2))","v":1},null,null,null,null,null,null,null,null,null,null,null,null,null,null,null,null,null,null,null,{"$f":"IF(CZ145=\"\",\"\",CZ145)","v":""},"","","","","",{"$f":"IF(DP145<>\"\",\",\",\"\")","v":""},"","","","",{"$f":"CONCATENATE(DP145,DV145,DQ145,DW145,DR145,DX145,DS145,DY145,DT145,DZ145,DU145)","v":""}]
[null,null,null,null,null,null,null,null,null,null,null,null,null,null,null,null,null,null,null,null,null,null,null,null,null,null,null,null,null,null,1,null,null,null,null,null,null,null,null,null,null,null,null,null,null,null,null,null,null,null,null,null,null,null,null,null,null,null,null,null,null,null,null,null,null,null,null,null,null,null,null,null,null,null,null,null,null,null,null,null,null,null,null,null,null,null,null,null,null,null,null,null,null,null,null,null,null,null,null,2,null,null,null,null,null,null,null,null,null,null,null,null,null,null,null,null,null,null,null,"","","","","","","","","","","",{"$f":"CONCATENATE(DP146,DV146,DQ146,DW146,DR146,DX146,DS146,DY146,DT146,DZ146,DU146)","v":""}]
[null,null,null,null,null,null,null,null,null,null,null,null,null,null,null,null,null,null,null,null,null,null,null,null,null,null,null,null,null,null,2,null,null,null,null,null,null,null,null,null,null,null,null,null,null,null,null,null,null,null,null,null,null,null,null,null,null,null,null,null,null,null,null,null,null,null,null,null,null,null,null,null,null,null,null,null,null,null,null,null,null,null,null,null,null,null,null,null,null,null,null,null,null,null,null,null,null,null,null,1,null,null,null,null,null,null,null,null,null,null,null,null,null,null,null,null,null,null,null,"","","","","","","","","","","",{"$f":"CONCATENATE(DP147,DV147,DQ147,DW147,DR147,DX147,DS147,DY147,DT147,DZ147,DU147)","v":""}]
[null,null,null,null,null,null,null,null,null,null,null,null,null,null,null,null,null,null,null,null,null,null,null,null,null,null,null,null,null,null,1,null,null,null,null,null,null,null,null,null,null,null,null,null,null,null,null,null,null,null,null,null,null,null,null,null,null,null,null,null,null,null,null,null,null,null,null,null,null,null,null,null,null,null,null,null,null,null,null,null,null,null,null,null,null,null,null,null,null,null,null,null,null,null,null,null,null,null,null,2,null,null,null,null,null,null,null,null,null,null,null,null,null,null,null,null,null,null,null,"","","","","","","","","","","",{"$f":"CONCATENATE(DP148,DV148,DQ148,DW148,DR148,DX148,DS148,DY148,DT148,DZ148,DU148)","v":""}]
[null,null,null,null,null,null,null,null,null,null,null,null,null,null,null,null,null,null,null,null,null,null,null,null,null,null,null,null,null,null,null,null,null,null,null,null,null,null,null,null,null,null,null,null,null,null,null,null,null,null,null,null,null,null,null,null,null,null,null,null,null,null,null,null,null,null,null,null,null,null,null,null,null,null,null,null,null,null,null,null,null,null,null,null,null,null,null,null,null,null,null,null,null,null,null,null,null,null,null,1]
[null,null,null,null,null,null,null,null,null,null,null,null,null,null,null,null,null,null,null,null,null,null,null,null,null,null,null,null,null,null,null,null,null,null,null,null,null,null,null,null,null,null,null,null,null,null,null,null,null,null,null,null,null,null,null,null,null,null,null,null,null,null,null,null,null,null,null,null,null,null,null,null,null,null,null,null,null,null,null,null,null,null,null,null,null,null,null,null,null,null,null,null,null,null,null,null,null,null,null,2]
[null,null,null,null,null,null,null,null,null,null,null,null,null,null,null,null,null,null,null,null,null,null,null,null,null,null,null,null,null,null,null,null,null,null,null,null,null,null,null,null,null,null,null,null,null,null,null,null,null,null,null,null,null,null,null,null,null,null,null,null,null,null,null,null,null,null,null,null,null,null,null,null,null,null,null,null,null,null,null,null,null,null,null,null,null,null,null,null,null,null,null,null,null,null,null,null,null,null,null,1]
[null,null,null,null,null,null,null,null,null,null,null,null,null,null,null,null,null,null,null,null,null,null,null,null,null,null,null,null,null,null,null,null,null,null,null,null,null,null,null,null,null,null,null,null,null,null,null,null,null,null,null,null,null,null,null,null,null,null,null,null,null,null,null,null,null,null,null,null,null,null,null,null,null,null,null,null,null,null,null,null,null,null,null,null,null,null,null,null,null,null,null,null,null,null,null,null,null,null,null,2]
[null,null,null,null,null,null,null,null,null,null,null,null,null,null,null,null,null,null,null,null,null,null,null,null,null,null,null,null,null,null,null,null,null,null,null,null,null,null,null,null,null,null,null,null,null,null,null,null,null,null,null,null,null,null,null,null,null,null,null,null,null,null,null,null,null,null,null,null,null,null,null,null,null,null,null,null,null,null,null,null,null,null,null,null,null,null,null,null,null,null,null,null,null,null,null,null,null,null,null,1]
[null,null,null,null,null,null,null,null,null,null,null,null,null,null,null,null,null,null,null,null,null,null,null,null,null,null,null,null,null,null,null,null,null,null,null,null,null,null,null,null,null,null,null,null,null,null,null,null,null,null,null,null,null,null,null,null,null,null,null,null,null,null,null,null,null,null,null,null,null,null,null,null,null,null,null,null,null,null,null,null,null,null,null,null,null,null,null,null,null,null,null,null,null,null,null,null,null,null,null,2]
[]
[null,null,null,null,null,null,null,null,null,null,null,null,null,null,null,null,null,null,null,null,null,null,null,null,null,null,null,null,null,null,null,null,null,null,null,null,null,null,null,null,null,null,null,null,null,null,null,null,null,null,null,null,null,null,null,null,null,null,null,null,null,null,null,null,null,null,null,null,null,null,null,null,null,null,null,null,null,null,null,null,null,null,null,null,null,null,null,null,null,null,null,null,null,null,null,null,null,null,null,"1954-08-21","Brighton","(H)","W 2-0","McAllister","McAllister"]
[null,null,null,null,null,null,null,null,null,null,null,null,null,null,null,null,null,null,null,null,null,null,null,null,null,null,null,null,null,null,null,null,null,null,null,null,null,null,null,null,null,null,null,null,null,null,null,null,null,null,null,null,null,null,null,null,null,null,null,null,null,null,null,null,null,null,null,null,null,null,null,null,null,null,null,null,null,null,null,null,null,null,null,null,null,null,null,null,null,null,null,null,null,null,null,null,null,null,null,"1954-08-26","Leyton Orient","(A)","L 0-1"]
[null,null,null,null,null,null,null,null,null,null,null,null,null,null,null,null,null,null,null,null,null,null,null,null,null,null,null,null,null,null,null,null,null,null,null,null,null,null,null,null,null,null,null,null,null,null,null,null,null,null,null,null,null,null,null,null,null,null,null,null,null,null,null,null,null,null,null,null,null,null,null,null,null,null,null,null,null,null,null,null,null,null,null,null,null,null,null,null,null,null,null,null,null,null,null,null,null,null,null,"1954-08-28","Torquay","(A)","L 2-4","Shepherd","Johnson"]
[null,null,null,null,null,null,null,null,null,null,null,null,null,null,null,null,null,null,null,null,null,null,null,null,null,null,null,null,null,null,null,null,null,null,null,null,null,null,null,null,null,null,null,null,null,null,null,null,null,null,null,null,null,null,null,null,null,null,null,null,null,null,null,null,null,null,null,null,null,null,null,null,null,null,null,null,null,null,null,null,null,null,null,null,null,null,null,null,null,null,null,null,null,null,null,null,null,null,null,"1954-08-30","Leyton Orient","(H)","W 1-0","Ledgerton"]
[null,null,null,null,null,null,null,null,null,null,null,null,null,null,null,null,null,null,null,null,null,null,null,null,null,null,null,null,null,null,null,null,null,null,null,null,null,null,null,null,null,null,null,null,null,null,null,null,null,null,null,null,null,null,null,null,null,null,null,null,null,null,null,null,null,null,null,null,null,null,null,null,null,null,null,null,null,null,null,null,null,null,null,null,null,null,null,null,null,null,null,null,null,null,null,null,null,null,null,"1954-09-04","Bristol C","(H)","L 1-3","Johnson"]
[null,null,null,null,null,null,null,null,null,null,null,null,null,null,null,null,null,null,null,null,null,null,null,null,null,null,null,null,null,null,null,null,null,null,null,null,null,null,null,null,null,null,null,null,null,null,null,null,null,null,null,null,null,null,null,null,null,null,null,null,null,null,null,null,null,null,null,null,null,null,null,null,null,null,null,null,null,null,null,null,null,null,null,null,null,null,null,null,null,null,null,null,null,null,null,null,null,null,null,"1954-09-09","Northampton","(A)","W 1-0","Prior"]
[null,null,null,null,null,null,null,null,null,null,null,null,null,null,null,null,null,null,null,null,null,null,null,null,null,null,null,null,null,null,null,null,null,null,null,null,null,null,null,null,null,null,null,null,null,null,null,null,null,null,null,null,null,null,null,null,null,null,null,null,null,null,null,null,null,null,null,null,null,null,null,null,null,null,null,null,null,null,null,null,null,null,null,null,null,null,null,null,null,null,null,null,null,null,null,null,null,null,null,"1954-09-11","Walsall","(A)","D 1-1","Prior"]
[null,null,null,null,null,null,null,null,null,null,null,null,null,null,null,null,null,null,null,null,null,null,null,null,null,null,null,null,null,null,null,null,null,null,null,null,null,null,null,null,null,null,null,null,null,null,null,null,null,null,null,null,null,null,null,null,null,null,null,null,null,null,null,null,null,null,null,null,null,null,null,null,null,null,null,null,null,null,null,null,null,null,null,null,null,null,null,null,null,null,null,null,null,null,null,null,null,null,null,"1954-09-13","Northampton","(H)","W 1-0","Ramscar"]
[null,null,null,null,null,null,null,null,null,null,null,null,null,null,null,null,null,null,null,null,null,null,null,null,null,null,null,null,null,null,null,null,null,null,null,null,null,null,null,null,null,null,null,null,null,null,null,null,null,null,null,null,null,null,null,null,null,null,null,null,null,null,null,null,null,null,null,null,null,null,null,null,null,null,null,null,null,null,null,null,null,null,null,null,null,null,null,null,null,null,null,null,null,null,null,null,null,null,null,"1954-09-18","Shrewsbury","(H)","W 2-0","Prior","Summers"]
[null,null,null,null,null,null,null,null,null,null,null,null,null,null,null,null,null,null,null,null,null,null,null,null,null,null,null,null,null,null,null,null,null,null,null,null,null,null,null,null,null,null,null,null,null,null,null,null,null,null,null,null,null,null,null,null,null,null,null,null,null,null,null,null,null,null,null,null,null,null,null,null,null,null,null,null,null,null,null,null,null,null,null,null,null,null,null,null,null,null,null,null,null,null,null,null,null,null,null,"1954-09-20","Southampton","(H)","W 2-0","Prior","Jardine (pen)"]
[null,null,null,null,null,null,null,null,null,null,null,null,null,null,null,null,null,null,null,null,null,null,null,null,null,null,null,null,null,null,null,null,null,null,null,null,null,null,null,null,null,null,null,null,null,null,null,null,null,null,null,null,null,null,null,null,null,null,null,null,null,null,null,null,null,null,null,null,null,null,null,null,null,null,null,null,null,null,null,null,null,null,null,null,null,null,null,null,null,null,null,null,null,null,null,null,null,null,null,"1954-09-25","Reading","(A)","D 0-0"]
[null,null,null,null,null,null,null,null,null,null,null,null,null,null,null,null,null,null,null,null,null,null,null,null,null,null,null,null,null,null,null,null,null,null,null,null,null,null,null,null,null,null,null,null,null,null,null,null,null,null,null,null,null,null,null,null,null,null,null,null,null,null,null,null,null,null,null,null,null,null,null,null,null,null,null,null,null,null,null,null,null,null,null,null,null,null,null,null,null,null,null,null,null,null,null,null,null,null,null,"1954-09-29","Southampton","(A)","L 0-3"]
[null,null,null,null,null,null,null,null,null,null,null,null,null,null,null,null,null,null,null,null,null,null,null,null,null,null,null,null,null,null,null,null,null,null,null,null,null,null,null,null,null,null,null,null,null,null,null,null,null,null,null,null,null,null,null,null,null,null,null,null,null,null,null,null,null,null,null,null,null,null,null,null,null,null,null,null,null,null,null,null,null,null,null,null,null,null,null,null,null,null,null,null,null,null,null,null,null,null,null,"1954-10-02","Gillingham","(H)","W 3-2","Prior","Ramscar","Jardine"]
[null,null,null,null,null,null,null,null,null,null,null,null,null,null,null,null,null,null,null,null,null,null,null,null,null,null,null,null,null,null,null,null,null,null,null,null,null,null,null,null,null,null,null,null,null,null,null,null,null,null,null,null,null,null,null,null,null,null,null,null,null,null,null,null,null,null,null,null,null,null,null,null,null,null,null,null,null,null,null,null,null,null,null,null,null,null,null,null,null,null,null,null,null,null,null,null,null,null,null,"1954-10-09","Bournemouth","(A)","W 1-0","Pacey"]
[null,null,null,null,null,null,null,null,null,null,null,null,null,null,null,null,null,null,null,null,null,null,null,null,null,null,null,null,null,null,null,null,null,null,null,null,null,null,null,null,null,null,null,null,null,null,null,null,null,null,null,null,null,null,null,null,null,null,null,null,null,null,null,null,null,null,null,null,null,null,null,null,null,null,null,null,null,null,null,null,null,null,null,null,null,null,null,null,null,null,null,null,null,null,null,null,null,null,null,"1954-10-16","QPR","(H)","L 0-1"]
[null,null,null,null,null,null,null,null,null,null,null,null,null,null,null,null,null,null,null,null,null,null,null,null,null,null,null,null,null,null,null,null,null,null,null,null,null,null,null,null,null,null,null,null,null,null,null,null,null,null,null,null,null,null,null,null,null,null,null,null,null,null,null,null,null,null,null,null,null,null,null,null,null,null,null,null,null,null,null,null,null,null,null,null,null,null,null,null,null,null,null,null,null,null,null,null,null,null,null,"1954-10-23","Newport County","(A)","L 1-2","Smith"]
[null,null,null,null,null,null,null,null,null,null,null,null,null,null,null,null,null,null,null,null,null,null,null,null,null,null,null,null,null,null,null,null,null,null,null,null,null,null,null,null,null,null,null,null,null,null,null,null,null,null,null,null,null,null,null,null,null,null,null,null,null,null,null,null,null,null,null,null,null,null,null,null,null,null,null,null,null,null,null,null,null,null,null,null,null,null,null,null,null,null,null,null,null,null,null,null,null,null,null,"1954-10-30","C Palace","(H)","W 5-2","Pacey","Pacey","Ramscar","Hazlett","Prior"]
[null,null,null,null,null,null,null,null,null,null,null,null,null,null,null,null,null,null,null,null,null,null,null,null,null,null,null,null,null,null,null,null,null,null,null,null,null,null,null,null,null,null,null,null,null,null,null,null,null,null,null,null,null,null,null,null,null,null,null,null,null,null,null,null,null,null,null,null,null,null,null,null,null,null,null,null,null,null,null,null,null,null,null,null,null,null,null,null,null,null,null,null,null,null,null,null,null,null,null,"1954-11-06","Colchester","(A)","W 2-0","Prior","Pacey"]
[null,null,null,null,null,null,null,null,null,null,null,null,null,null,null,null,null,null,null,null,null,null,null,null,null,null,null,null,null,null,null,null,null,null,null,null,null,null,null,null,null,null,null,null,null,null,null,null,null,null,null,null,null,null,null,null,null,null,null,null,null,null,null,null,null,null,null,null,null,null,null,null,null,null,null,null,null,null,null,null,null,null,null,null,null,null,null,null,null,null,null,null,null,null,null,null,null,null,null,"1954-11-13","Norwich","(H)","D 0-0"]
[null,null,null,null,null,null,null,null,null,null,null,null,null,null,null,null,null,null,null,null,null,null,null,null,null,null,null,null,null,null,null,null,null,null,null,null,null,null,null,null,null,null,null,null,null,null,null,null,null,null,null,null,null,null,null,null,null,null,null,null,null,null,null,null,null,null,null,null,null,null,null,null,null,null,null,null,null,null,null,null,null,null,null,null,null,null,null,null,null,null,null,null,null,null,null,null,null,null,null,"1954-11-20","Exeter","(H)","W 3-2","Pacey","Pacey","Jardine"]
[null,null,null,null,null,null,null,null,null,null,null,null,null,null,null,null,null,null,null,null,null,null,null,null,null,null,null,null,null,null,null,null,null,null,null,null,null,null,null,null,null,null,null,null,null,null,null,null,null,null,null,null,null,null,null,null,null,null,null,null,null,null,null,null,null,null,null,null,null,null,null,null,null,null,null,null,null,null,null,null,null,null,null,null,null,null,null,null,null,null,null,null,null,null,null,null,null,null,null,"1954-11-27","Aldershot","(H)","W 3-1","Pacey","Pacey","Smith"]
[null,null,null,null,null,null,null,null,null,null,null,null,null,null,null,null,null,null,null,null,null,null,null,null,null,null,null,null,null,null,null,null,null,null,null,null,null,null,null,null,null,null,null,null,null,null,null,null,null,null,null,null,null,null,null,null,null,null,null,null,null,null,null,null,null,null,null,null,null,null,null,null,null,null,null,null,null,null,null,null,null,null,null,null,null,null,null,null,null,null,null,null,null,null,null,null,null,null,null,"1954-12-04","Swindon","(A)","D 1-1","Ramscar"]
[null,null,null,null,null,null,null,null,null,null,null,null,null,null,null,null,null,null,null,null,null,null,null,null,null,null,null,null,null,null,null,null,null,null,null,null,null,null,null,null,null,null,null,null,null,null,null,null,null,null,null,null,null,null,null,null,null,null,null,null,null,null,null,null,null,null,null,null,null,null,null,null,null,null,null,null,null,null,null,null,null,null,null,null,null,null,null,null,null,null,null,null,null,null,null,null,null,null,null,"1954-12-11","Accrington Stanley","(H)","W 3-2","Prior","Ramscar","Pacey"]
[null,null,null,null,null,null,null,null,null,null,null,null,null,null,null,null,null,null,null,null,null,null,null,null,null,null,null,null,null,null,null,null,null,null,null,null,null,null,null,null,null,null,null,null,null,null,null,null,null,null,null,null,null,null,null,null,null,null,null,null,null,null,null,null,null,null,null,null,null,null,null,null,null,null,null,null,null,null,null,null,null,null,null,null,null,null,null,null,null,null,null,null,null,null,null,null,null,null,null,"1954-12-18","Brighton","(A)","W 2-1","Own Goal","Pacey"]
[null,null,null,null,null,null,null,null,null,null,null,null,null,null,null,null,null,null,null,null,null,null,null,null,null,null,null,null,null,null,null,null,null,null,null,null,null,null,null,null,null,null,null,null,null,null,null,null,null,null,null,null,null,null,null,null,null,null,null,null,null,null,null,null,null,null,null,null,null,null,null,null,null,null,null,null,null,null,null,null,null,null,null,null,null,null,null,null,null,null,null,null,null,null,null,null,null,null,null,"1954-12-25","Brentford","(A)","L 1-3","Short"]
[null,null,null,null,null,null,null,null,null,null,null,null,null,null,null,null,null,null,null,null,null,null,null,null,null,null,null,null,null,null,null,null,null,null,null,null,null,null,null,null,null,null,null,null,null,null,null,null,null,null,null,null,null,null,null,null,null,null,null,null,null,null,null,null,null,null,null,null,null,null,null,null,null,null,null,null,null,null,null,null,null,null,null,null,null,null,null,null,null,null,null,null,null,null,null,null,null,null,null,"1954-12-27","Brentford","(H)","D 2-2","Smith","Pacey"]
[null,null,null,null,null,null,null,null,null,null,null,null,null,null,null,null,null,null,null,null,null,null,null,null,null,null,null,null,null,null,null,null,null,null,null,null,null,null,null,null,null,null,null,null,null,null,null,null,null,null,null,null,null,null,null,null,null,null,null,null,null,null,null,null,null,null,null,null,null,null,null,null,null,null,null,null,null,null,null,null,null,null,null,null,null,null,null,null,null,null,null,null,null,null,null,null,null,null,null,"1955-01-01","Torquay","(H)","W 4-1","Smith","Johnson","Pacey","Summers"]
[null,null,null,null,null,null,null,null,null,null,null,null,null,null,null,null,null,null,null,null,null,null,null,null,null,null,null,null,null,null,null,null,null,null,null,null,null,null,null,null,null,null,null,null,null,null,null,null,null,null,null,null,null,null,null,null,null,null,null,null,null,null,null,null,null,null,null,null,null,null,null,null,null,null,null,null,null,null,null,null,null,null,null,null,null,null,null,null,null,null,null,null,null,null,null,null,null,null,null,"1955-01-08","Bolton Wanderers","(A)","L 0-1"]
[null,null,null,null,null,null,null,null,null,null,null,null,null,null,null,null,null,null,null,null,null,null,null,null,null,null,null,null,null,null,null,null,null,null,null,null,null,null,null,null,null,null,null,null,null,null,null,null,null,null,null,null,null,null,null,null,null,null,null,null,null,null,null,null,null,null,null,null,null,null,null,null,null,null,null,null,null,null,null,null,null,null,null,null,null,null,null,null,null,null,null,null,null,null,null,null,null,null,null,"1955-01-22","Walsall","(H)","W 1-0","Smith"]
[null,null,null,null,null,null,null,null,null,null,null,null,null,null,null,null,null,null,null,null,null,null,null,null,null,null,null,null,null,null,null,null,null,null,null,null,null,null,null,null,null,null,null,null,null,null,null,null,null,null,null,null,null,null,null,null,null,null,null,null,null,null,null,null,null,null,null,null,null,null,null,null,null,null,null,null,null,null,null,null,null,null,null,null,null,null,null,null,null,null,null,null,null,null,null,null,null,null,null,"1955-01-29","Watford","(H)","W 1-0","McAllister"]
[null,null,null,null,null,null,null,null,null,null,null,null,null,null,null,null,null,null,null,null,null,null,null,null,null,null,null,null,null,null,null,null,null,null,null,null,null,null,null,null,null,null,null,null,null,null,null,null,null,null,null,null,null,null,null,null,null,null,null,null,null,null,null,null,null,null,null,null,null,null,null,null,null,null,null,null,null,null,null,null,null,null,null,null,null,null,null,null,null,null,null,null,null,null,null,null,null,null,null,"1955-02-05","Shrewsbury","(A)","L 2-3","Smith","Smith"]
[null,null,null,null,null,null,null,null,null,null,null,null,null,null,null,null,null,null,null,null,null,null,null,null,null,null,null,null,null,null,null,null,null,null,null,null,null,null,null,null,null,null,null,null,null,null,null,null,null,null,null,null,null,null,null,null,null,null,null,null,null,null,null,null,null,null,null,null,null,null,null,null,null,null,null,null,null,null,null,null,null,null,null,null,null,null,null,null,null,null,null,null,null,null,null,null,null,null,null,"1955-02-12","Reading","(H)","D 2-2","Ramscar","Smith"]
[null,null,null,null,null,null,null,null,null,null,null,null,null,null,null,null,null,null,null,null,null,null,null,null,null,null,null,null,null,null,null,null,null,null,null,null,null,null,null,null,null,null,null,null,null,null,null,null,null,null,null,null,null,null,null,null,null,null,null,null,null,null,null,null,null,null,null,null,null,null,null,null,null,null,null,null,null,null,null,null,null,null,null,null,null,null,null,null,null,null,null,null,null,null,null,null,null,null,null,"1955-02-19","Gillingham","(A)","D 1-1","Ledgerton"]
[null,null,null,null,null,null,null,null,null,null,null,null,null,null,null,null,null,null,null,null,null,null,null,null,null,null,null,null,null,null,null,null,null,null,null,null,null,null,null,null,null,null,null,null,null,null,null,null,null,null,null,null,null,null,null,null,null,null,null,null,null,null,null,null,null,null,null,null,null,null,null,null,null,null,null,null,null,null,null,null,null,null,null,null,null,null,null,null,null,null,null,null,null,null,null,null,null,null,null,"1955-02-26","Bournemouth","(H)","D 1-1","Summers"]
[null,null,null,null,null,null,null,null,null,null,null,null,null,null,null,null,null,null,null,null,null,null,null,null,null,null,null,null,null,null,null,null,null,null,null,null,null,null,null,null,null,null,null,null,null,null,null,null,null,null,null,null,null,null,null,null,null,null,null,null,null,null,null,null,null,null,null,null,null,null,null,null,null,null,null,null,null,null,null,null,null,null,null,null,null,null,null,null,null,null,null,null,null,null,null,null,null,null,null,"1955-03-05","QPR","(A)","W 2-1","Summers","Pacey"]
[null,null,null,null,null,null,null,null,null,null,null,null,null,null,null,null,null,null,null,null,null,null,null,null,null,null,null,null,null,null,null,null,null,null,null,null,null,null,null,null,null,null,null,null,null,null,null,null,null,null,null,null,null,null,null,null,null,null,null,null,null,null,null,null,null,null,null,null,null,null,null,null,null,null,null,null,null,null,null,null,null,null,null,null,null,null,null,null,null,null,null,null,null,null,null,null,null,null,null,"1955-03-09","Bristol C","(A)","L 1-5","Summers"]
[null,null,null,null,null,null,null,null,null,null,null,null,null,null,null,null,null,null,null,null,null,null,null,null,null,null,null,null,null,null,null,null,null,null,null,null,null,null,null,null,null,null,null,null,null,null,null,null,null,null,null,null,null,null,null,null,null,null,null,null,null,null,null,null,null,null,null,null,null,null,null,null,null,null,null,null,null,null,null,null,null,null,null,null,null,null,null,null,null,null,null,null,null,null,null,null,null,null,null,"1955-03-12","Newport County","(H)","D 1-1","Summers"]
[null,null,null,null,null,null,null,null,null,null,null,null,null,null,null,null,null,null,null,null,null,null,null,null,null,null,null,null,null,null,null,null,null,null,null,null,null,null,null,null,null,null,null,null,null,null,null,null,null,null,null,null,null,null,null,null,null,null,null,null,null,null,null,null,null,null,null,null,null,null,null,null,null,null,null,null,null,null,null,null,null,null,null,null,null,null,null,null,null,null,null,null,null,null,null,null,null,null,null,"1955-03-19","C Palace","(A)","D 1-1","Short (pen)"]
[null,null,null,null,null,null,null,null,null,null,null,null,null,null,null,null,null,null,null,null,null,null,null,null,null,null,null,null,null,null,null,null,null,null,null,null,null,null,null,null,null,null,null,null,null,null,null,null,null,null,null,null,null,null,null,null,null,null,null,null,null,null,null,null,null,null,null,null,null,null,null,null,null,null,null,null,null,null,null,null,null,null,null,null,null,null,null,null,null,null,null,null,null,null,null,null,null,null,null,"1955-03-26","Colchester","(H)","W 5-2","Summers","Summers","Pacey","Hazlett","Short"]
[null,null,null,null,null,null,null,null,null,null,null,null,null,null,null,null,null,null,null,null,null,null,null,null,null,null,null,null,null,null,null,null,null,null,null,null,null,null,null,null,null,null,null,null,null,null,null,null,null,null,null,null,null,null,null,null,null,null,null,null,null,null,null,null,null,null,null,null,null,null,null,null,null,null,null,null,null,null,null,null,null,null,null,null,null,null,null,null,null,null,null,null,null,null,null,null,null,null,null,"1955-03-30","Watford","(A)","L 3-5","Summers","Summers","Prior"]
[null,null,null,null,null,null,null,null,null,null,null,null,null,null,null,null,null,null,null,null,null,null,null,null,null,null,null,null,null,null,null,null,null,null,null,null,null,null,null,null,null,null,null,null,null,null,null,null,null,null,null,null,null,null,null,null,null,null,null,null,null,null,null,null,null,null,null,null,null,null,null,null,null,null,null,null,null,null,null,null,null,null,null,null,null,null,null,null,null,null,null,null,null,null,null,null,null,null,null,"1955-04-02","Norwich","(A)","L 1-2","Summers"]
[null,null,null,null,null,null,null,null,null,null,null,null,null,null,null,null,null,null,null,null,null,null,null,null,null,null,null,null,null,null,null,null,null,null,null,null,null,null,null,null,null,null,null,null,null,null,null,null,null,null,null,null,null,null,null,null,null,null,null,null,null,null,null,null,null,null,null,null,null,null,null,null,null,null,null,null,null,null,null,null,null,null,null,null,null,null,null,null,null,null,null,null,null,null,null,null,null,null,null,"1955-04-08","Coventry","(H)","W 3-1","Pacey","Summers","Summers"]
[null,null,null,null,null,null,null,null,null,null,null,null,null,null,null,null,null,null,null,null,null,null,null,null,null,null,null,null,null,null,null,null,null,null,null,null,null,null,null,null,null,null,null,null,null,null,null,null,null,null,null,null,null,null,null,null,null,null,null,null,null,null,null,null,null,null,null,null,null,null,null,null,null,null,null,null,null,null,null,null,null,null,null,null,null,null,null,null,null,null,null,null,null,null,null,null,null,null,null,"1955-04-09","Southend","(H)","L 1-4","Saward"]
[null,null,null,null,null,null,null,null,null,null,null,null,null,null,null,null,null,null,null,null,null,null,null,null,null,null,null,null,null,null,null,null,null,null,null,null,null,null,null,null,null,null,null,null,null,null,null,null,null,null,null,null,null,null,null,null,null,null,null,null,null,null,null,null,null,null,null,null,null,null,null,null,null,null,null,null,null,null,null,null,null,null,null,null,null,null,null,null,null,null,null,null,null,null,null,null,null,null,null,"1955-04-12","Coventry","(A)","L 1-4","Own Goal"]
[null,null,null,null,null,null,null,null,null,null,null,null,null,null,null,null,null,null,null,null,null,null,null,null,null,null,null,null,null,null,null,null,null,null,null,null,null,null,null,null,null,null,null,null,null,null,null,null,null,null,null,null,null,null,null,null,null,null,null,null,null,null,null,null,null,null,null,null,null,null,null,null,null,null,null,null,null,null,null,null,null,null,null,null,null,null,null,null,null,null,null,null,null,null,null,null,null,null,null,"1955-04-16","Aldershot","(A)","L 0-3"]
[null,null,null,null,null,null,null,null,null,null,null,null,null,null,null,null,null,null,null,null,null,null,null,null,null,null,null,null,null,null,null,null,null,null,null,null,null,null,null,null,null,null,null,null,null,null,null,null,null,null,null,null,null,null,null,null,null,null,null,null,null,null,null,null,null,null,null,null,null,null,null,null,null,null,null,null,null,null,null,null,null,null,null,null,null,null,null,null,null,null,null,null,null,null,null,null,null,null,null,"1955-04-23","Swindon","(H)","W 1-0","Shepherd"]
[null,null,null,null,null,null,null,null,null,null,null,null,null,null,null,null,null,null,null,null,null,null,null,null,null,null,null,null,null,null,null,null,null,null,null,null,null,null,null,null,null,null,null,null,null,null,null,null,null,null,null,null,null,null,null,null,null,null,null,null,null,null,null,null,null,null,null,null,null,null,null,null,null,null,null,null,null,null,null,null,null,null,null,null,null,null,null,null,null,null,null,null,null,null,null,null,null,null,null,"1955-04-26","Southend","(A)","L 0-1"]
[null,null,null,null,null,null,null,null,null,null,null,null,null,null,null,null,null,null,null,null,null,null,null,null,null,null,null,null,null,null,null,null,null,null,null,null,null,null,null,null,null,null,null,null,null,null,null,null,null,null,null,null,null,null,null,null,null,null,null,null,null,null,null,null,null,null,null,null,null,null,null,null,null,null,null,null,null,null,null,null,null,null,null,null,null,null,null,null,null,null,null,null,null,null,null,null,null,null,null,"1955-04-30","Exeter","(A)","W 4-1","Prior","Prior","Jardine","Jardine"]
[null,null,null,null,null,null,null,null,null,null,null,null,null,null,null,null,null,null,null,null,null,null,null,null,null,null,null,null,null,null,null,null,null,null,null,null,null,null,null,null,null,null,null,null,null,null,null,null,null,null,null,null,null,null,null,null,null,null,null,null,null,null,null,null,null,null,null,null,null,null,null,null,null,null,null,null,null,null,null,null,null,null,null,null,null,null,null,null,null,null,null,null,null,null,null,null,null,null,null,"1955-05-02","Exeter","(H)","D 2-2","Hazlett","Jardine"]

{"sheet":"Comparisons","index":1,"n_rows":192,"n_cols":48,"rows_kept":192,"cut":false,"hidden":false,"merged":[]}
[]
[]
["Formulas",null,null,null,null,"Date",null,"Opponents","Venue / Result",null,{"$f":"Millwall!$BP$72","v":"Anslow"},{"$f":"Millwall!$BP$73","v":"Bowler"},{"$f":"Millwall!$BP$74","v":"Brewer"},{"$f":"Millwall!$BP$75","v":"Finlayson"},{"$f":"Millwall!$BP$76","v":"Fisher"},{"$f":"Millwall!$BP$77","v":"Green"},{"$f":"Millwall!$BP$78","v":"Hazlett"},{"$f":"Millwall!$BP$79","v":"Hencher"},{"$f":"Millwall!$BP$80","v":"Heydon"},{"$f":"Millwall!$BP$81","v":"Hurley"},{"$f":"Millwall!$BP$82","v":"Jardine"},{"$f":"Millwall!$BP$83","v":"Johnson"},{"$f":"Millwall!$BP$84","v":"Ledgerton"},{"$f":"Millwall!$BP$85","v":"McAllister"},{"$f":"Millwall!$BP$86","v":"McDowall"},{"$f":"Millwall!$BP$87","v":"Pacey"},{"$f":"Millwall!$BP$88","v":"Prior"},{"$f":"Millwall!$BP$89","v":"Quinn"},{"$f":"Millwall!$BP$90","v":"Ramscar"},{"$f":"Millwall!$BP$91","v":"Reeves"},{"$f":"Millwall!$BP$92","v":"Saward"},{"$f":"Millwall!$BP$93","v":"Shepherd"},{"$f":"Millwall!$BP$94","v":"Short"},{"$f":"Millwall!$BP$95","v":"Smith"},{"$f":"Millwall!$BP$96","v":"Summers"},{"$f":"Millwall!$BP$97","v":"Thrippleton"},{"$f":"Millwall!$BP$98","v":"Veitch"},{"$f":"Millwall!$BP$99","v":0},{"$f":"Millwall!$BP$100","v":0},{"$f":"Millwall!$BP$101","v":0},{"$f":"Millwall!$BP$102","v":0},{"$f":"Millwall!$BP$103","v":"Own Goal"},{"$f":"Millwall!$BP$104","v":0},{"$f":"Millwall!$BP$105","v":0}]
[null,null,null,1,null,{"$f":"Millwall!AI78","v":"1954-08-21"},null,{"$f":"Millwall!AK78","v":"Brighton"},{"$f":"Millwall!AL78","v":"(H)"},{"$f":"Millwall!AO78","v":"W 2-0"},{"$f":"MATCH(K$3,Millwall!$AP78:$AZ78,0)","v":{"$error":"#N/A"}},{"$f":"MATCH(L$3,Millwall!$AP78:$AZ78,0)","v":{"$error":"#N/A"}},{"$f":"MATCH(M$3,Millwall!$AP78:$AZ78,0)","v":{"$error":"#N/A"}},{"$f":"MATCH(N$3,Millwall!$AP78:$AZ78,0)","v":1},{"$f":"MATCH(O$3,Millwall!$AP78:$AZ78,0)","v":3},{"$f":"MATCH(P$3,Millwall!$AP78:$AZ78,0)","v":{"$error":"#N/A"}},{"$f":"MATCH(Q$3,Millwall!$AP78:$AZ78,0)","v":7},{"$f":"MATCH(R$3,Millwall!$AP78:$AZ78,0)","v":{"$error":"#N/A"}},{"$f":"MATCH(S$3,Millwall!$AP78:$AZ78,0)","v":4},{"$f":"MATCH(T$3,Millwall!$AP78:$AZ78,0)","v":5},{"$f":"MATCH(U$3,Millwall!$AP78:$AZ78,0)","v":2},{"$f":"MATCH(V$3,Millwall!$AP78:$AZ78,0)","v":{"$error":"#N/A"}},{"$f":"MATCH(W$3,Millwall!$AP78:$AZ78,0)","v":11},{"$f":"MATCH(X$3,Millwall!$AP78:$AZ78,0)","v":10},{"$f":"MATCH(Y$3,Millwall!$AP78:$AZ78,0)","v":{"$error":"#N/A"}},{"$f":"MATCH(Z$3,Millwall!$AP78:$AZ78,0)","v":{"$error":"#N/A"}},{"$f":"MATCH(AA$3,Millwall!$AP78:$AZ78,0)","v":{"$error":"#N/A"}},{"$f":"MATCH(AB$3,Millwall!$AP78:$AZ78,0)","v":{"$error":"#N/A"}},{"$f":"MATCH(AC$3,Millwall!$AP78:$AZ78,0)","v":{"$error":"#N/A"}},{"$f":"MATCH(AD$3,Millwall!$AP78:$AZ78,0)","v":{"$error":"#N/A"}},{"$f":"MATCH(AE$3,Millwall!$AP78:$AZ78,0)","v":6},{"$f":"MATCH(AF$3,Millwall!$AP78:$AZ78,0)","v":{"$error":"#N/A"}},{"$f":"MATCH(AG$3,Millwall!$AP78:$AZ78,0)","v":{"$error":"#N/A"}},{"$f":"MATCH(AH$3,Millwall!$AP78:$AZ78,0)","v":8},{"$f":"MATCH(AI$3,Millwall!$AP78:$AZ78,0)","v":9},{"$f":"MATCH(AJ$3,Millwall!$AP78:$AZ78,0)","v":{"$error":"#N/A"}},{"$f":"MATCH(AK$3,Millwall!$AP78:$AZ78,0)","v":{"$error":"#N/A"}},{"$f":"MATCH(AL$3,Millwall!$AP78:$AZ78,0)","v":{"$error":"#N/A"}},{"$f":"MATCH(AM$3,Millwall!$AP78:$AZ78,0)","v":{"$error":"#N/A"}},{"$f":"MATCH(AN$3,Millwall!$AP78:$AZ78,0)","v":{"$error":"#N/A"}},{"$f":"MATCH(AO$3,Millwall!$AP78:$AZ78,0)","v":{"$error":"#N/A"}},{"$f":"MATCH(AP$3,Millwall!$AP78:$AZ78,0)","v":{"$error":"#N/A"}},{"$f":"MATCH(AQ$3,Millwall!$AP78:$AZ78,0)","v":{"$error":"#N/A"}},{"$f":"MATCH(AR$3,Millwall!$AP78:$AZ78,0)","v":{"$error":"#N/A"}}]
[null,null,null,2,null,{"$f":"Millwall!AI79","v":"1954-08-26"},null,{"$f":"Millwall!AK79","v":"Leyton Orient"},{"$f":"Millwall!AL79","v":"(A)"},{"$f":"Millwall!AO79","v":"L 0-1"},{"$f":"MATCH(K$3,Millwall!$AP79:$AZ79,0)","v":{"$error":"#N/A"}},{"$f":"MATCH(L$3,Millwall!$AP79:$AZ79,0)","v":{"$error":"#N/A"}},{"$f":"MATCH(M$3,Millwall!$AP79:$AZ79,0)","v":{"$error":"#N/A"}},{"$f":"MATCH(N$3,Millwall!$AP79:$AZ79,0)","v":1},{"$f":"MATCH(O$3,Millwall!$AP79:$AZ79,0)","v":3},{"$f":"MATCH(P$3,Millwall!$AP79:$AZ79,0)","v":{"$error":"#N/A"}},{"$f":"MATCH(Q$3,Millwall!$AP79:$AZ79,0)","v":{"$error":"#N/A"}},{"$f":"MATCH(R$3,Millwall!$AP79:$AZ79,0)","v":{"$error":"#N/A"}},{"$f":"MATCH(S$3,Millwall!$AP79:$AZ79,0)","v":4},{"$f":"MATCH(T$3,Millwall!$AP79:$AZ79,0)","v":5},{"$f":"MATCH(U$3,Millwall!$AP79:$AZ79,0)","v":2},{"$f":"MATCH(V$3,Millwall!$AP79:$AZ79,0)","v":7},{"$f":"MATCH(W$3,Millwall!$AP79:$AZ79,0)","v":11},{"$f":"MATCH(X$3,Millwall!$AP79:$AZ79,0)","v":10},{"$f":"MATCH(Y$3,Millwall!$AP79:$AZ79,0)","v":8},{"$f":"MATCH(Z$3,Millwall!$AP79:$AZ79,0)","v":{"$error":"#N/A"}},{"$f":"MATCH(AA$3,Millwall!$AP79:$AZ79,0)","v":{"$error":"#N/A"}},{"$f":"MATCH(AB$3,Millwall!$AP79:$AZ79,0)","v":{"$error":"#N/A"}},{"$f":"MATCH(AC$3,Millwall!$AP79:$AZ79,0)","v":{"$error":"#N/A"}},{"$f":"MATCH(AD$3,Millwall!$AP79:$AZ79,0)","v":{"$error":"#N/A"}},{"$f":"MATCH(AE$3,Millwall!$AP79:$AZ79,0)","v":6},{"$f":"MATCH(AF$3,Millwall!$AP79:$AZ79,0)","v":{"$error":"#N/A"}},{"$f":"MATCH(AG$3,Millwall!$AP79:$AZ79,0)","v":{"$error":"#N/A"}},{"$f":"MATCH(AH$3,Millwall!$AP79:$AZ79,0)","v":{"$error":"#N/A"}},{"$f":"MATCH(AI$3,Millwall!$AP79:$AZ79,0)","v":9},{"$f":"MATCH(AJ$3,Millwall!$AP79:$AZ79,0)","v":{"$error":"#N/A"}},{"$f":"MATCH(AK$3,Millwall!$AP79:$AZ79,0)","v":{"$error":"#N/A"}},{"$f":"MATCH(AL$3,Millwall!$AP79:$AZ79,0)","v":{"$error":"#N/A"}},{"$f":"MATCH(AM$3,Millwall!$AP79:$AZ79,0)","v":{"$error":"#N/A"}},{"$f":"MATCH(AN$3,Millwall!$AP79:$AZ79,0)","v":{"$error":"#N/A"}},{"$f":"MATCH(AO$3,Millwall!$AP79:$AZ79,0)","v":{"$error":"#N/A"}},{"$f":"MATCH(AP$3,Millwall!$AP79:$AZ79,0)","v":{"$error":"#N/A"}},{"$f":"MATCH(AQ$3,Millwall!$AP79:$AZ79,0)","v":{"$error":"#N/A"}},{"$f":"MATCH(AR$3,Millwall!$AP79:$AZ79,0)","v":{"$error":"#N/A"}}]
[null,null,null,3,null,{"$f":"Millwall!AI80","v":"1954-08-28"},null,{"$f":"Millwall!AK80","v":"Torquay"},{"$f":"Millwall!AL80","v":"(A)"},{"$f":"Millwall!AO80","v":"L 2-4"},{"$f":"MATCH(K$3,Millwall!$AP80:$AZ80,0)","v":{"$error":"#N/A"}},{"$f":"MATCH(L$3,Millwall!$AP80:$AZ80,0)","v":{"$error":"#N/A"}},{"$f":"MATCH(M$3,Millwall!$AP80:$AZ80,0)","v":{"$error":"#N/A"}},{"$f":"MATCH(N$3,Millwall!$AP80:$AZ80,0)","v":1},{"$f":"MATCH(O$3,Millwall!$AP80:$AZ80,0)","v":3},{"$f":"MATCH(P$3,Millwall!$AP80:$AZ80,0)","v":{"$error":"#N/A"}},{"$f":"MATCH(Q$3,Millwall!$AP80:$AZ80,0)","v":{"$error":"#N/A"}},{"$f":"MATCH(R$3,Millwall!$AP80:$AZ80,0)","v":{"$error":"#N/A"}},{"$f":"MATCH(S$3,Millwall!$AP80:$AZ80,0)","v":4},{"$f":"MATCH(T$3,Millwall!$AP80:$AZ80,0)","v":5},{"$f":"MATCH(U$3,Millwall!$AP80:$AZ80,0)","v":2},{"$f":"MATCH(V$3,Millwall!$AP80:$AZ80,0)","v":7},{"$f":"MATCH(W$3,Millwall!$AP80:$AZ80,0)","v":11},{"$f":"MATCH(X$3,Millwall!$AP80:$AZ80,0)","v":10},{"$f":"MATCH(Y$3,Millwall!$AP80:$AZ80,0)","v":{"$error":"#N/A"}},{"$f":"MATCH(Z$3,Millwall!$AP80:$AZ80,0)","v":{"$error":"#N/A"}},{"$f":"MATCH(AA$3,Millwall!$AP80:$AZ80,0)","v":{"$error":"#N/A"}},{"$f":"MATCH(AB$3,Millwall!$AP80:$AZ80,0)","v":{"$error":"#N/A"}},{"$f":"MATCH(AC$3,Millwall!$AP80:$AZ80,0)","v":{"$error":"#N/A"}},{"$f":"MATCH(AD$3,Millwall!$AP80:$AZ80,0)","v":{"$error":"#N/A"}},{"$f":"MATCH(AE$3,Millwall!$AP80:$AZ80,0)","v":6},{"$f":"MATCH(AF$3,Millwall!$AP80:$AZ80,0)","v":8},{"$f":"MATCH(AG$3,Millwall!$AP80:$AZ80,0)","v":{"$error":"#N/A"}},{"$f":"MATCH(AH$3,Millwall!$AP80:$AZ80,0)","v":{"$error":"#N/A"}},{"$f":"MATCH(AI$3,Millwall!$AP80:$AZ80,0)","v":9},{"$f":"MATCH(AJ$3,Millwall!$AP80:$AZ80,0)","v":{"$error":"#N/A"}},{"$f":"MATCH(AK$3,Millwall!$AP80:$AZ80,0)","v":{"$error":"#N/A"}},{"$f":"MATCH(AL$3,Millwall!$AP80:$AZ80,0)","v":{"$error":"#N/A"}},{"$f":"MATCH(AM$3,Millwall!$AP80:$AZ80,0)","v":{"$error":"#N/A"}},{"$f":"MATCH(AN$3,Millwall!$AP80:$AZ80,0)","v":{"$error":"#N/A"}},{"$f":"MATCH(AO$3,Millwall!$AP80:$AZ80,0)","v":{"$error":"#N/A"}},{"$f":"MATCH(AP$3,Millwall!$AP80:$AZ80,0)","v":{"$error":"#N/A"}},{"$f":"MATCH(AQ$3,Millwall!$AP80:$AZ80,0)","v":{"$error":"#N/A"}},{"$f":"MATCH(AR$3,Millwall!$AP80:$AZ80,0)","v":{"$error":"#N/A"}}]
[null,null,null,4,null,{"$f":"Millwall!AI81","v":"1954-08-30"},null,{"$f":"Millwall!AK81","v":"Leyton Orient"},{"$f":"Millwall!AL81","v":"(H)"},{"$f":"Millwall!AO81","v":"W 1-0"},{"$f":"MATCH(K$3,Millwall!$AP81:$AZ81,0)","v":{"$error":"#N/A"}},{"$f":"MATCH(L$3,Millwall!$AP81:$AZ81,0)","v":{"$error":"#N/A"}},{"$f":"MATCH(M$3,Millwall!$AP81:$AZ81,0)","v":{"$error":"#N/A"}},{"$f":"MATCH(N$3,Millwall!$AP81:$AZ81,0)","v":1},{"$f":"MATCH(O$3,Millwall!$AP81:$AZ81,0)","v":3},{"$f":"MATCH(P$3,Millwall!$AP81:$AZ81,0)","v":{"$error":"#N/A"}},{"$f":"MATCH(Q$3,Millwall!$AP81:$AZ81,0)","v":{"$error":"#N/A"}},{"$f":"MATCH(R$3,Millwall!$AP81:$AZ81,0)","v":{"$error":"#N/A"}},{"$f":"MATCH(S$3,Millwall!$AP81:$AZ81,0)","v":4},{"$f":"MATCH(T$3,Millwall!$AP81:$AZ81,0)","v":5},{"$f":"MATCH(U$3,Millwall!$AP81:$AZ81,0)","v":2},{"$f":"MATCH(V$3,Millwall!$AP81:$AZ81,0)","v":7},{"$f":"MATCH(W$3,Millwall!$AP81:$AZ81,0)","v":11},{"$f":"MATCH(X$3,Millwall!$AP81:$AZ81,0)","v":10},{"$f":"MATCH(Y$3,Millwall!$AP81:$AZ81,0)","v":{"$error":"#N/A"}},{"$f":"MATCH(Z$3,Millwall!$AP81:$AZ81,0)","v":{"$error":"#N/A"}},{"$f":"MATCH(AA$3,Millwall!$AP81:$AZ81,0)","v":{"$error":"#N/A"}},{"$f":"MATCH(AB$3,Millwall!$AP81:$AZ81,0)","v":{"$error":"#N/A"}},{"$f":"MATCH(AC$3,Millwall!$AP81:$AZ81,0)","v":{"$error":"#N/A"}},{"$f":"MATCH(AD$3,Millwall!$AP81:$AZ81,0)","v":{"$error":"#N/A"}},{"$f":"MATCH(AE$3,Millwall!$AP81:$AZ81,0)","v":8},{"$f":"MATCH(AF$3,Millwall!$AP81:$AZ81,0)","v":9},{"$f":"MATCH(AG$3,Millwall!$AP81:$AZ81,0)","v":{"$error":"#N/A"}},{"$f":"MATCH(AH$3,Millwall!$AP81:$AZ81,0)","v":{"$error":"#N/A"}},{"$f":"MATCH(AI$3,Millwall!$AP81:$AZ81,0)","v":{"$error":"#N/A"}},{"$f":"MATCH(AJ$3,Millwall!$AP81:$AZ81,0)","v":6},{"$f":"MATCH(AK$3,Millwall!$AP81:$AZ81,0)","v":{"$error":"#N/A"}},{"$f":"MATCH(AL$3,Millwall!$AP81:$AZ81,0)","v":{"$error":"#N/A"}},{"$f":"MATCH(AM$3,Millwall!$AP81:$AZ81,0)","v":{"$error":"#N/A"}},{"$f":"MATCH(AN$3,Millwall!$AP81:$AZ81,0)","v":{"$error":"#N/A"}},{"$f":"MATCH(AO$3,Millwall!$AP81:$AZ81,0)","v":{"$error":"#N/A"}},{"$f":"MATCH(AP$3,Millwall!$AP81:$AZ81,0)","v":{"$error":"#N/A"}},{"$f":"MATCH(AQ$3,Millwall!$AP81:$AZ81,0)","v":{"$error":"#N/A"}},{"$f":"MATCH(AR$3,Millwall!$AP81:$AZ81,0)","v":{"$error":"#N/A"}}]
[null,null,null,5,null,{"$f":"Millwall!AI82","v":"1954-09-04"},null,{"$f":"Millwall!AK82","v":"Bristol C"},{"$f":"Millwall!AL82","v":"(H)"},{"$f":"Millwall!AO82","v":"L 1-3"},{"$f":"MATCH(K$3,Millwall!$AP82:$AZ82,0)","v":{"$error":"#N/A"}},{"$f":"MATCH(L$3,Millwall!$AP82:$AZ82,0)","v":{"$error":"#N/A"}},{"$f":"MATCH(M$3,Millwall!$AP82:$AZ82,0)","v":{"$error":"#N/A"}},{"$f":"MATCH(N$3,Millwall!$AP82:$AZ82,0)","v":1},{"$f":"MATCH(O$3,Millwall!$AP82:$AZ82,0)","v":3},{"$f":"MATCH(P$3,Millwall!$AP82:$AZ82,0)","v":{"$error":"#N/A"}},{"$f":"MATCH(Q$3,Millwall!$AP82:$AZ82,0)","v":{"$error":"#N/A"}},{"$f":"MATCH(R$3,Millwall!$AP82:$AZ82,0)","v":{"$error":"#N/A"}},{"$f":"MATCH(S$3,Millwall!$AP82:$AZ82,0)","v":4},{"$f":"MATCH(T$3,Millwall!$AP82:$AZ82,0)","v":5},{"$f":"MATCH(U$3,Millwall!$AP82:$AZ82,0)","v":2},{"$f":"MATCH(V$3,Millwall!$AP82:$AZ82,0)","v":7},{"$f":"MATCH(W$3,Millwall!$AP82:$AZ82,0)","v":{"$error":"#N/A"}},{"$f":"MATCH(X$3,Millwall!$AP82:$AZ82,0)","v":{"$error":"#N/A"}},{"$f":"MATCH(Y$3,Millwall!$AP82:$AZ82,0)","v":{"$error":"#N/A"}},{"$f":"MATCH(Z$3,Millwall!$AP82:$AZ82,0)","v":{"$error":"#N/A"}},{"$f":"MATCH(AA$3,Millwall!$AP82:$AZ82,0)","v":{"$error":"#N/A"}},{"$f":"MATCH(AB$3,Millwall!$AP82:$AZ82,0)","v":{"$error":"#N/A"}},{"$f":"MATCH(AC$3,Millwall!$AP82:$AZ82,0)","v":10},{"$f":"MATCH(AD$3,Millwall!$AP82:$AZ82,0)","v":{"$error":"#N/A"}},{"$f":"MATCH(AE$3,Millwall!$AP82:$AZ82,0)","v":6},{"$f":"MATCH(AF$3,Millwall!$AP82:$AZ82,0)","v":9},{"$f":"MATCH(AG$3,Millwall!$AP82:$AZ82,0)","v":{"$error":"#N/A"}},{"$f":"MATCH(AH$3,Millwall!$AP82:$AZ82,0)","v":8},{"$f":"MATCH(AI$3,Millwall!$AP82:$AZ82,0)","v":11},{"$f":"MATCH(AJ$3,Millwall!$AP82:$AZ82,0)","v":{"$error":"#N/A"}},{"$f":"MATCH(AK$3,Millwall!$AP82:$AZ82,0)","v":{"$error":"#N/A"}},{"$f":"MATCH(AL$3,Millwall!$AP82:$AZ82,0)","v":{"$error":"#N/A"}},{"$f":"MATCH(AM$3,Millwall!$AP82:$AZ82,0)","v":{"$error":"#N/A"}},{"$f":"MATCH(AN$3,Millwall!$AP82:$AZ82,0)","v":{"$error":"#N/A"}},{"$f":"MATCH(AO$3,Millwall!$AP82:$AZ82,0)","v":{"$error":"#N/A"}},{"$f":"MATCH(AP$3,Millwall!$AP82:$AZ82,0)","v":{"$error":"#N/A"}},{"$f":"MATCH(AQ$3,Millwall!$AP82:$AZ82,0)","v":{"$error":"#N/A"}},{"$f":"MATCH(AR$3,Millwall!$AP82:$AZ82,0)","v":{"$error":"#N/A"}}]
[null,null,null,6,null,{"$f":"Millwall!AI83","v":"1954-09-09"},null,{"$f":"Millwall!AK83","v":"Northampton"},{"$f":"Millwall!AL83","v":"(A)"},{"$f":"Millwall!AO83","v":"W 1-0"},{"$f":"MATCH(K$3,Millwall!$AP83:$AZ83,0)","v":{"$error":"#N/A"}},{"$f":"MATCH(L$3,Millwall!$AP83:$AZ83,0)","v":{"$error":"#N/A"}},{"$f":"MATCH(M$3,Millwall!$AP83:$AZ83,0)","v":{"$error":"#N/A"}},{"$f":"MATCH(N$3,Millwall!$AP83:$AZ83,0)","v":1},{"$f":"MATCH(O$3,Millwall!$AP83:$AZ83,0)","v":{"$error":"#N/A"}},{"$f":"MATCH(P$3,Millwall!$AP83:$AZ83,0)","v":{"$error":"#N/A"}},{"$f":"MATCH(Q$3,Millwall!$AP83:$AZ83,0)","v":{"$error":"#N/A"}},{"$f":"MATCH(R$3,Millwall!$AP83:$AZ83,0)","v":{"$error":"#N/A"}},{"$f":"MATCH(S$3,Millwall!$AP83:$AZ83,0)","v":4},{"$f":"MATCH(T$3,Millwall!$AP83:$AZ83,0)","v":5},{"$f":"MATCH(U$3,Millwall!$AP83:$AZ83,0)","v":2},{"$f":"MATCH(V$3,Millwall!$AP83:$AZ83,0)","v":7},{"$f":"MATCH(W$3,Millwall!$AP83:$AZ83,0)","v":{"$error":"#N/A"}},{"$f":"MATCH(X$3,Millwall!$AP83:$AZ83,0)","v":{"$error":"#N/A"}},{"$f":"MATCH(Y$3,Millwall!$AP83:$AZ83,0)","v":{"$error":"#N/A"}},{"$f":"MATCH(Z$3,Millwall!$AP83:$AZ83,0)","v":{"$error":"#N/A"}},{"$f":"MATCH(AA$3,Millwall!$AP83:$AZ83,0)","v":11},{"$f":"MATCH(AB$3,Millwall!$AP83:$AZ83,0)","v":3},{"$f":"MATCH(AC$3,Millwall!$AP83:$AZ83,0)","v":10},{"$f":"MATCH(AD$3,Millwall!$AP83:$AZ83,0)","v":{"$error":"#N/A"}},{"$f":"MATCH(AE$3,Millwall!$AP83:$AZ83,0)","v":6},{"$f":"MATCH(AF$3,Millwall!$AP83:$AZ83,0)","v":{"$error":"#N/A"}},{"$f":"MATCH(AG$3,Millwall!$AP83:$AZ83,0)","v":{"$error":"#N/A"}},{"$f":"MATCH(AH$3,Millwall!$AP83:$AZ83,0)","v":8},{"$f":"MATCH(AI$3,Millwall!$AP83:$AZ83,0)","v":9},{"$f":"MATCH(AJ$3,Millwall!$AP83:$AZ83,0)","v":{"$error":"#N/A"}},{"$f":"MATCH(AK$3,Millwall!$AP83:$AZ83,0)","v":{"$error":"#N/A"}},{"$f":"MATCH(AL$3,Millwall!$AP83:$AZ83,0)","v":{"$error":"#N/A"}},{"$f":"MATCH(AM$3,Millwall!$AP83:$AZ83,0)","v":{"$error":"#N/A"}},{"$f":"MATCH(AN$3,Millwall!$AP83:$AZ83,0)","v":{"$error":"#N/A"}},{"$f":"MATCH(AO$3,Millwall!$AP83:$AZ83,0)","v":{"$error":"#N/A"}},{"$f":"MATCH(AP$3,Millwall!$AP83:$AZ83,0)","v":{"$error":"#N/A"}},{"$f":"MATCH(AQ$3,Millwall!$AP83:$AZ83,0)","v":{"$error":"#N/A"}},{"$f":"MATCH(AR$3,Millwall!$AP83:$AZ83,0)","v":{"$error":"#N/A"}}]
[null,null,null,7,null,{"$f":"Millwall!AI84","v":"1954-09-11"},null,{"$f":"Millwall!AK84","v":"Walsall"},{"$f":"Millwall!AL84","v":"(A)"},{"$f":"Millwall!AO84","v":"D 1-1"},{"$f":"MATCH(K$3,Millwall!$AP84:$AZ84,0)","v":{"$error":"#N/A"}},{"$f":"MATCH(L$3,Millwall!$AP84:$AZ84,0)","v":{"$error":"#N/A"}},{"$f":"MATCH(M$3,Millwall!$AP84:$AZ84,0)","v":{"$error":"#N/A"}},{"$f":"MATCH(N$3,Millwall!$AP84:$AZ84,0)","v":1},{"$f":"MATCH(O$3,Millwall!$AP84:$AZ84,0)","v":{"$error":"#N/A"}},{"$f":"MATCH(P$3,Millwall!$AP84:$AZ84,0)","v":{"$error":"#N/A"}},{"$f":"MATCH(Q$3,Millwall!$AP84:$AZ84,0)","v":{"$error":"#N/A"}},{"$f":"MATCH(R$3,Millwall!$AP84:$AZ84,0)","v":{"$error":"#N/A"}},{"$f":"MATCH(S$3,Millwall!$AP84:$AZ84,0)","v":4},{"$f":"MATCH(T$3,Millwall!$AP84:$AZ84,0)","v":5},{"$f":"MATCH(U$3,Millwall!$AP84:$AZ84,0)","v":2},{"$f":"MATCH(V$3,Millwall!$AP84:$AZ84,0)","v":7},{"$f":"MATCH(W$3,Millwall!$AP84:$AZ84,0)","v":{"$error":"#N/A"}},{"$f":"MATCH(X$3,Millwall!$AP84:$AZ84,0)","v":{"$error":"#N/A"}},{"$f":"MATCH(Y$3,Millwall!$AP84:$AZ84,0)","v":{"$error":"#N/A"}},{"$f":"MATCH(Z$3,Millwall!$AP84:$AZ84,0)","v":{"$error":"#N/A"}},{"$f":"MATCH(AA$3,Millwall!$AP84:$AZ84,0)","v":11},{"$f":"MATCH(AB$3,Millwall!$AP84:$AZ84,0)","v":3},{"$f":"MATCH(AC$3,Millwall!$AP84:$AZ84,0)","v":10},{"$f":"MATCH(AD$3,Millwall!$AP84:$AZ84,0)","v":{"$error":"#N/A"}},{"$f":"MATCH(AE$3,Millwall!$AP84:$AZ84,0)","v":6},{"$f":"MATCH(AF$3,Millwall!$AP84:$AZ84,0)","v":{"$error":"#N/A"}},{"$f":"MATCH(AG$3,Millwall!$AP84:$AZ84,0)","v":{"$error":"#N/A"}},{"$f":"MATCH(AH$3,Millwall!$AP84:$AZ84,0)","v":8},{"$f":"MATCH(AI$3,Millwall!$AP84:$AZ84,0)","v":9},{"$f":"MATCH(AJ$3,Millwall!$AP84:$AZ84,0)","v":{"$error":"#N/A"}},{"$f":"MATCH(AK$3,Millwall!$AP84:$AZ84,0)","v":{"$error":"#N/A"}},{"$f":"MATCH(AL$3,Millwall!$AP84:$AZ84,0)","v":{"$error":"#N/A"}},{"$f":"MATCH(AM$3,Millwall!$AP84:$AZ84,0)","v":{"$error":"#N/A"}},{"$f":"MATCH(AN$3,Millwall!$AP84:$AZ84,0)","v":{"$error":"#N/A"}},{"$f":"MATCH(AO$3,Millwall!$AP84:$AZ84,0)","v":{"$error":"#N/A"}},{"$f":"MATCH(AP$3,Millwall!$AP84:$AZ84,0)","v":{"$error":"#N/A"}},{"$f":"MATCH(AQ$3,Millwall!$AP84:$AZ84,0)","v":{"$error":"#N/A"}},{"$f":"MATCH(AR$3,Millwall!$AP84:$AZ84,0)","v":{"$error":"#N/A"}}]
[null,null,null,8,null,{"$f":"Millwall!AI85","v":"1954-09-13"},null,{"$f":"Millwall!AK85","v":"Northampton"},{"$f":"Millwall!AL85","v":"(H)"},{"$f":"Millwall!AO85","v":"W 1-0"},{"$f":"MATCH(K$3,Millwall!$AP85:$AZ85,0)","v":3},{"$f":"MATCH(L$3,Millwall!$AP85:$AZ85,0)","v":{"$error":"#N/A"}},{"$f":"MATCH(M$3,Millwall!$AP85:$AZ85,0)","v":{"$error":"#N/A"}},{"$f":"MATCH(N$3,Millwall!$AP85:$AZ85,0)","v":1},{"$f":"MATCH(O$3,Millwall!$AP85:$AZ85,0)","v":{"$error":"#N/A"}},{"$f":"MATCH(P$3,Millwall!$AP85:$AZ85,0)","v":{"$error":"#N/A"}},{"$f":"MATCH(Q$3,Millwall!$AP85:$AZ85,0)","v":{"$error":"#N/A"}},{"$f":"MATCH(R$3,Millwall!$AP85:$AZ85,0)","v":{"$error":"#N/A"}},{"$f":"MATCH(S$3,Millwall!$AP85:$AZ85,0)","v":4},{"$f":"MATCH(T$3,Millwall!$AP85:$AZ85,0)","v":5},{"$f":"MATCH(U$3,Millwall!$AP85:$AZ85,0)","v":2},{"$f":"MATCH(V$3,Millwall!$AP85:$AZ85,0)","v":7},{"$f":"MATCH(W$3,Millwall!$AP85:$AZ85,0)","v":{"$error":"#N/A"}},{"$f":"MATCH(X$3,Millwall!$AP85:$AZ85,0)","v":{"$error":"#N/A"}},{"$f":"MATCH(Y$3,Millwall!$AP85:$AZ85,0)","v":{"$error":"#N/A"}},{"$f":"MATCH(Z$3,Millwall!$AP85:$AZ85,0)","v":{"$error":"#N/A"}},{"$f":"MATCH(AA$3,Millwall!$AP85:$AZ85,0)","v":11},{"$f":"MATCH(AB$3,Millwall!$AP85:$AZ85,0)","v":{"$error":"#N/A"}},{"$f":"MATCH(AC$3,Millwall!$AP85:$AZ85,0)","v":10},{"$f":"MATCH(AD$3,Millwall!$AP85:$AZ85,0)","v":8},{"$f":"MATCH(AE$3,Millwall!$AP85:$AZ85,0)","v":6},{"$f":"MATCH(AF$3,Millwall!$AP85:$AZ85,0)","v":{"$error":"#N/A"}},{"$f":"MATCH(AG$3,Millwall!$AP85:$AZ85,0)","v":{"$error":"#N/A"}},{"$f":"MATCH(AH$3,Millwall!$AP85:$AZ85,0)","v":{"$error":"#N/A"}},{"$f":"MATCH(AI$3,Millwall!$AP85:$AZ85,0)","v":9},{"$f":"MATCH(AJ$3,Millwall!$AP85:$AZ85,0)","v":{"$error":"#N/A"}},{"$f":"MATCH(AK$3,Millwall!$AP85:$AZ85,0)","v":{"$error":"#N/A"}},{"$f":"MATCH(AL$3,Millwall!$AP85:$AZ85,0)","v":{"$error":"#N/A"}},{"$f":"MATCH(AM$3,Millwall!$AP85:$AZ85,0)","v":{"$error":"#N/A"}},{"$f":"MATCH(AN$3,Millwall!$AP85:$AZ85,0)","v":{"$error":"#N/A"}},{"$f":"MATCH(AO$3,Millwall!$AP85:$AZ85,0)","v":{"$error":"#N/A"}},{"$f":"MATCH(AP$3,Millwall!$AP85:$AZ85,0)","v":{"$error":"#N/A"}},{"$f":"MATCH(AQ$3,Millwall!$AP85:$AZ85,0)","v":{"$error":"#N/A"}},{"$f":"MATCH(AR$3,Millwall!$AP85:$AZ85,0)","v":{"$error":"#N/A"}}]
[null,null,null,9,null,{"$f":"Millwall!AI86","v":"1954-09-18"},null,{"$f":"Millwall!AK86","v":"Shrewsbury"},{"$f":"Millwall!AL86","v":"(H)"},{"$f":"Millwall!AO86","v":"W 2-0"},{"$f":"MATCH(K$3,Millwall!$AP86:$AZ86,0)","v":3},{"$f":"MATCH(L$3,Millwall!$AP86:$AZ86,0)","v":5},{"$f":"MATCH(M$3,Millwall!$AP86:$AZ86,0)","v":{"$error":"#N/A"}},{"$f":"MATCH(N$3,Millwall!$AP86:$AZ86,0)","v":1},{"$f":"MATCH(O$3,Millwall!$AP86:$AZ86,0)","v":{"$error":"#N/A"}},{"$f":"MATCH(P$3,Millwall!$AP86:$AZ86,0)","v":8},{"$f":"MATCH(Q$3,Millwall!$AP86:$AZ86,0)","v":{"$error":"#N/A"}},{"$f":"MATCH(R$3,Millwall!$AP86:$AZ86,0)","v":{"$error":"#N/A"}},{"$f":"MATCH(S$3,Millwall!$AP86:$AZ86,0)","v":6},{"$f":"MATCH(T$3,Millwall!$AP86:$AZ86,0)","v":{"$error":"#N/A"}},{"$f":"MATCH(U$3,Millwall!$AP86:$AZ86,0)","v":2},{"$f":"MATCH(V$3,Millwall!$AP86:$AZ86,0)","v":7},{"$f":"MATCH(W$3,Millwall!$AP86:$AZ86,0)","v":{"$error":"#N/A"}},{"$f":"MATCH(X$3,Millwall!$AP86:$AZ86,0)","v":{"$error":"#N/A"}},{"$f":"MATCH(Y$3,Millwall!$AP86:$AZ86,0)","v":{"$error":"#N/A"}},{"$f":"MATCH(Z$3,Millwall!$AP86:$AZ86,0)","v":{"$error":"#N/A"}},{"$f":"MATCH(AA$3,Millwall!$AP86:$AZ86,0)","v":11},{"$f":"MATCH(AB$3,Millwall!$AP86:$AZ86,0)","v":{"$error":"#N/A"}},{"$f":"MATCH(AC$3,Millwall!$AP86:$AZ86,0)","v":10},{"$f":"MATCH(AD$3,Millwall!$AP86:$AZ86,0)","v":{"$error":"#N/A"}},{"$f":"MATCH(AE$3,Millwall!$AP86:$AZ86,0)","v":{"$error":"#N/A"}},{"$f":"MATCH(AF$3,Millwall!$AP86:$AZ86,0)","v":{"$error":"#N/A"}},{"$f":"MATCH(AG$3,Millwall!$AP86:$AZ86,0)","v":4},{"$f":"MATCH(AH$3,Millwall!$AP86:$AZ86,0)","v":{"$error":"#N/A"}},{"$f":"MATCH(AI$3,Millwall!$AP86:$AZ86,0)","v":9},{"$f":"MATCH(AJ$3,Millwall!$AP86:$AZ86,0)","v":{"$error":"#N/A"}},{"$f":"MATCH(AK$3,Millwall!$AP86:$AZ86,0)","v":{"$error":"#N/A"}},{"$f":"MATCH(AL$3,Millwall!$AP86:$AZ86,0)","v":{"$error":"#N/A"}},{"$f":"MATCH(AM$3,Millwall!$AP86:$AZ86,0)","v":{"$error":"#N/A"}},{"$f":"MATCH(AN$3,Millwall!$AP86:$AZ86,0)","v":{"$error":"#N/A"}},{"$f":"MATCH(AO$3,Millwall!$AP86:$AZ86,0)","v":{"$error":"#N/A"}},{"$f":"MATCH(AP$3,Millwall!$AP86:$AZ86,0)","v":{"$error":"#N/A"}},{"$f":"MATCH(AQ$3,Millwall!$AP86:$AZ86,0)","v":{"$error":"#N/A"}},{"$f":"MATCH(AR$3,Millwall!$AP86:$AZ86,0)","v":{"$error":"#N/A"}}]
[null,null,null,10,null,{"$f":"Millwall!AI87","v":"1954-09-20"},null,{"$f":"Millwall!AK87","v":"Southampton"},{"$f":"Millwall!AL87","v":"(H)"},{"$f":"Millwall!AO87","v":"W 2-0"},{"$f":"MATCH(K$3,Millwall!$AP87:$AZ87,0)","v":3},{"$f":"MATCH(L$3,Millwall!$AP87:$AZ87,0)","v":5},{"$f":"MATCH(M$3,Millwall!$AP87:$AZ87,0)","v":{"$error":"#N/A"}},{"$f":"MATCH(N$3,Millwall!$AP87:$AZ87,0)","v":1},{"$f":"MATCH(O$3,Millwall!$AP87:$AZ87,0)","v":{"$error":"#N/A"}},{"$f":"MATCH(P$3,Millwall!$AP87:$AZ87,0)","v":{"$error":"#N/A"}},{"$f":"MATCH(Q$3,Millwall!$AP87:$AZ87,0)","v":{"$error":"#N/A"}},{"$f":"MATCH(R$3,Millwall!$AP87:$AZ87,0)","v":{"$error":"#N/A"}},{"$f":"MATCH(S$3,Millwall!$AP87:$AZ87,0)","v":6},{"$f":"MATCH(T$3,Millwall!$AP87:$AZ87,0)","v":{"$error":"#N/A"}},{"$f":"MATCH(U$3,Millwall!$AP87:$AZ87,0)","v":2},{"$f":"MATCH(V$3,Millwall!$AP87:$AZ87,0)","v":7},{"$f":"MATCH(W$3,Millwall!$AP87:$AZ87,0)","v":{"$error":"#N/A"}},{"$f":"MATCH(X$3,Millwall!$AP87:$AZ87,0)","v":{"$error":"#N/A"}},{"$f":"MATCH(Y$3,Millwall!$AP87:$AZ87,0)","v":{"$error":"#N/A"}},{"$f":"MATCH(Z$3,Millwall!$AP87:$AZ87,0)","v":{"$error":"#N/A"}},{"$f":"MATCH(AA$3,Millwall!$AP87:$AZ87,0)","v":11},{"$f":"MATCH(AB$3,Millwall!$AP87:$AZ87,0)","v":{"$error":"#N/A"}},{"$f":"MATCH(AC$3,Millwall!$AP87:$AZ87,0)","v":10},{"$f":"MATCH(AD$3,Millwall!$AP87:$AZ87,0)","v":8},{"$f":"MATCH(AE$3,Millwall!$AP87:$AZ87,0)","v":{"$error":"#N/A"}},{"$f":"MATCH(AF$3,Millwall!$AP87:$AZ87,0)","v":{"$error":"#N/A"}},{"$f":"MATCH(AG$3,Millwall!$AP87:$AZ87,0)","v":4},{"$f":"MATCH(AH$3,Millwall!$AP87:$AZ87,0)","v":{"$error":"#N/A"}},{"$f":"MATCH(AI$3,Millwall!$AP87:$AZ87,0)","v":9},{"$f":"MATCH(AJ$3,Millwall!$AP87:$AZ87,0)","v":{"$error":"#N/A"}},{"$f":"MATCH(AK$3,Millwall!$AP87:$AZ87,0)","v":{"$error":"#N/A"}},{"$f":"MATCH(AL$3,Millwall!$AP87:$AZ87,0)","v":{"$error":"#N/A"}},{"$f":"MATCH(AM$3,Millwall!$AP87:$AZ87,0)","v":{"$error":"#N/A"}},{"$f":"MATCH(AN$3,Millwall!$AP87:$AZ87,0)","v":{"$error":"#N/A"}},{"$f":"MATCH(AO$3,Millwall!$AP87:$AZ87,0)","v":{"$error":"#N/A"}},{"$f":"MATCH(AP$3,Millwall!$AP87:$AZ87,0)","v":{"$error":"#N/A"}},{"$f":"MATCH(AQ$3,Millwall!$AP87:$AZ87,0)","v":{"$error":"#N/A"}},{"$f":"MATCH(AR$3,Millwall!$AP87:$AZ87,0)","v":{"$error":"#N/A"}}]
[null,null,null,11,null,{"$f":"Millwall!AI88","v":"1954-09-25"},null,{"$f":"Millwall!AK88","v":"Reading"},{"$f":"Millwall!AL88","v":"(A)"},{"$f":"Millwall!AO88","v":"D 0-0"},{"$f":"MATCH(K$3,Millwall!$AP88:$AZ88,0)","v":3},{"$f":"MATCH(L$3,Millwall!$AP88:$AZ88,0)","v":5},{"$f":"MATCH(M$3,Millwall!$AP88:$AZ88,0)","v":{"$error":"#N/A"}},{"$f":"MATCH(N$3,Millwall!$AP88:$AZ88,0)","v":1},{"$f":"MATCH(O$3,Millwall!$AP88:$AZ88,0)","v":{"$error":"#N/A"}},{"$f":"MATCH(P$3,Millwall!$AP88:$AZ88,0)","v":{"$error":"#N/A"}},{"$f":"MATCH(Q$3,Millwall!$AP88:$AZ88,0)","v":{"$error":"#N/A"}},{"$f":"MATCH(R$3,Millwall!$AP88:$AZ88,0)","v":{"$error":"#N/A"}},{"$f":"MATCH(S$3,Millwall!$AP88:$AZ88,0)","v":6},{"$f":"MATCH(T$3,Millwall!$AP88:$AZ88,0)","v":{"$error":"#N/A"}},{"$f":"MATCH(U$3,Millwall!$AP88:$AZ88,0)","v":2},{"$f":"MATCH(V$3,Millwall!$AP88:$AZ88,0)","v":7},{"$f":"MATCH(W$3,Millwall!$AP88:$AZ88,0)","v":{"$error":"#N/A"}},{"$f":"MATCH(X$3,Millwall!$AP88:$AZ88,0)","v":{"$error":"#N/A"}},{"$f":"MATCH(Y$3,Millwall!$AP88:$AZ88,0)","v":{"$error":"#N/A"}},{"$f":"MATCH(Z$3,Millwall!$AP88:$AZ88,0)","v":{"$error":"#N/A"}},{"$f":"MATCH(AA$3,Millwall!$AP88:$AZ88,0)","v":11},{"$f":"MATCH(AB$3,Millwall!$AP88:$AZ88,0)","v":{"$error":"#N/A"}},{"$f":"MATCH(AC$3,Millwall!$AP88:$AZ88,0)","v":10},{"$f":"MATCH(AD$3,Millwall!$AP88:$AZ88,0)","v":8},{"$f":"MATCH(AE$3,Millwall!$AP88:$AZ88,0)","v":{"$error":"#N/A"}},{"$f":"MATCH(AF$3,Millwall!$AP88:$AZ88,0)","v":{"$error":"#N/A"}},{"$f":"MATCH(AG$3,Millwall!$AP88:$AZ88,0)","v":4},{"$f":"MATCH(AH$3,Millwall!$AP88:$AZ88,0)","v":{"$error":"#N/A"}},{"$f":"MATCH(AI$3,Millwall!$AP88:$AZ88,0)","v":9},{"$f":"MATCH(AJ$3,Millwall!$AP88:$AZ88,0)","v":{"$error":"#N/A"}},{"$f":"MATCH(AK$3,Millwall!$AP88:$AZ88,0)","v":{"$error":"#N/A"}},{"$f":"MATCH(AL$3,Millwall!$AP88:$AZ88,0)","v":{"$error":"#N/A"}},{"$f":"MATCH(AM$3,Millwall!$AP88:$AZ88,0)","v":{"$error":"#N/A"}},{"$f":"MATCH(AN$3,Millwall!$AP88:$AZ88,0)","v":{"$error":"#N/A"}},{"$f":"MATCH(AO$3,Millwall!$AP88:$AZ88,0)","v":{"$error":"#N/A"}},{"$f":"MATCH(AP$3,Millwall!$AP88:$AZ88,0)","v":{"$error":"#N/A"}},{"$f":"MATCH(AQ$3,Millwall!$AP88:$AZ88,0)","v":{"$error":"#N/A"}},{"$f":"MATCH(AR$3,Millwall!$AP88:$AZ88,0)","v":{"$error":"#N/A"}}]
[null,null,null,12,null,{"$f":"Millwall!AI89","v":"1954-09-29"},null,{"$f":"Millwall!AK89","v":"Southampton"},{"$f":"Millwall!AL89","v":"(A)"},{"$f":"Millwall!AO89","v":"L 0-3"},{"$f":"MATCH(K$3,Millwall!$AP89:$AZ89,0)","v":3},{"$f":"MATCH(L$3,Millwall!$AP89:$AZ89,0)","v":5},{"$f":"MATCH(M$3,Millwall!$AP89:$AZ89,0)","v":{"$error":"#N/A"}},{"$f":"MATCH(N$3,Millwall!$AP89:$AZ89,0)","v":1},{"$f":"MATCH(O$3,Millwall!$AP89:$AZ89,0)","v":{"$error":"#N/A"}},{"$f":"MATCH(P$3,Millwall!$AP89:$AZ89,0)","v":{"$error":"#N/A"}},{"$f":"MATCH(Q$3,Millwall!$AP89:$AZ89,0)","v":{"$error":"#N/A"}},{"$f":"MATCH(R$3,Millwall!$AP89:$AZ89,0)","v":{"$error":"#N/A"}},{"$f":"MATCH(S$3,Millwall!$AP89:$AZ89,0)","v":6},{"$f":"MATCH(T$3,Millwall!$AP89:$AZ89,0)","v":{"$error":"#N/A"}},{"$f":"MATCH(U$3,Millwall!$AP89:$AZ89,0)","v":2},{"$f":"MATCH(V$3,Millwall!$AP89:$AZ89,0)","v":7},{"$f":"MATCH(W$3,Millwall!$AP89:$AZ89,0)","v":{"$error":"#N/A"}},{"$f":"MATCH(X$3,Millwall!$AP89:$AZ89,0)","v":{"$error":"#N/A"}},{"$f":"MATCH(Y$3,Millwall!$AP89:$AZ89,0)","v":{"$error":"#N/A"}},{"$f":"MATCH(Z$3,Millwall!$AP89:$AZ89,0)","v":{"$error":"#N/A"}},{"$f":"MATCH(AA$3,Millwall!$AP89:$AZ89,0)","v":11},{"$f":"MATCH(AB$3,Millwall!$AP89:$AZ89,0)","v":{"$error":"#N/A"}},{"$f":"MATCH(AC$3,Millwall!$AP89:$AZ89,0)","v":10},{"$f":"MATCH(AD$3,Millwall!$AP89:$AZ89,0)","v":{"$error":"#N/A"}},{"$f":"MATCH(AE$3,Millwall!$AP89:$AZ89,0)","v":{"$error":"#N/A"}},{"$f":"MATCH(AF$3,Millwall!$AP89:$AZ89,0)","v":{"$error":"#N/A"}},{"$f":"MATCH(AG$3,Millwall!$AP89:$AZ89,0)","v":4},{"$f":"MATCH(AH$3,Millwall!$AP89:$AZ89,0)","v":8},{"$f":"MATCH(AI$3,Millwall!$AP89:$AZ89,0)","v":9},{"$f":"MATCH(AJ$3,Millwall!$AP89:$AZ89,0)","v":{"$error":"#N/A"}},{"$f":"MATCH(AK$3,Millwall!$AP89:$AZ89,0)","v":{"$error":"#N/A"}},{"$f":"MATCH(AL$3,Millwall!$AP89:$AZ89,0)","v":{"$error":"#N/A"}},{"$f":"MATCH(AM$3,Millwall!$AP89:$AZ89,0)","v":{"$error":"#N/A"}},{"$f":"MATCH(AN$3,Millwall!$AP89:$AZ89,0)","v":{"$error":"#N/A"}},{"$f":"MATCH(AO$3,Millwall!$AP89:$AZ89,0)","v":{"$error":"#N/A"}},{"$f":"MATCH(AP$3,Millwall!$AP89:$AZ89,0)","v":{"$error":"#N/A"}},{"$f":"MATCH(AQ$3,Millwall!$AP89:$AZ89,0)","v":{"$error":"#N/A"}},{"$f":"MATCH(AR$3,Millwall!$AP89:$AZ89,0)","v":{"$error":"#N/A"}}]
[null,null,null,13,null,{"$f":"Millwall!AI90","v":"1954-10-02"},null,{"$f":"Millwall!AK90","v":"Gillingham"},{"$f":"Millwall!AL90","v":"(H)"},{"$f":"Millwall!AO90","v":"W 3-2"},{"$f":"MATCH(K$3,Millwall!$AP90:$AZ90,0)","v":3},{"$f":"MATCH(L$3,Millwall!$AP90:$AZ90,0)","v":5},{"$f":"MATCH(M$3,Millwall!$AP90:$AZ90,0)","v":{"$error":"#N/A"}},{"$f":"MATCH(N$3,Millwall!$AP90:$AZ90,0)","v":1},{"$f":"MATCH(O$3,Millwall!$AP90:$AZ90,0)","v":{"$error":"#N/A"}},{"$f":"MATCH(P$3,Millwall!$AP90:$AZ90,0)","v":{"$error":"#N/A"}},{"$f":"MATCH(Q$3,Millwall!$AP90:$AZ90,0)","v":{"$error":"#N/A"}},{"$f":"MATCH(R$3,Millwall!$AP90:$AZ90,0)","v":{"$error":"#N/A"}},{"$f":"MATCH(S$3,Millwall!$AP90:$AZ90,0)","v":6},{"$f":"MATCH(T$3,Millwall!$AP90:$AZ90,0)","v":{"$error":"#N/A"}},{"$f":"MATCH(U$3,Millwall!$AP90:$AZ90,0)","v":2},{"$f":"MATCH(V$3,Millwall!$AP90:$AZ90,0)","v":7},{"$f":"MATCH(W$3,Millwall!$AP90:$AZ90,0)","v":{"$error":"#N/A"}},{"$f":"MATCH(X$3,Millwall!$AP90:$AZ90,0)","v":8},{"$f":"MATCH(Y$3,Millwall!$AP90:$AZ90,0)","v":{"$error":"#N/A"}},{"$f":"MATCH(Z$3,Millwall!$AP90:$AZ90,0)","v":{"$error":"#N/A"}},{"$f":"MATCH(AA$3,Millwall!$AP90:$AZ90,0)","v":11},{"$f":"MATCH(AB$3,Millwall!$AP90:$AZ90,0)","v":{"$error":"#N/A"}},{"$f":"MATCH(AC$3,Millwall!$AP90:$AZ90,0)","v":10},{"$f":"MATCH(AD$3,Millwall!$AP90:$AZ90,0)","v":{"$error":"#N/A"}},{"$f":"MATCH(AE$3,Millwall!$AP90:$AZ90,0)","v":{"$error":"#N/A"}},{"$f":"MATCH(AF$3,Millwall!$AP90:$AZ90,0)","v":{"$error":"#N/A"}},{"$f":"MATCH(AG$3,Millwall!$AP90:$AZ90,0)","v":4},{"$f":"MATCH(AH$3,Millwall!$AP90:$AZ90,0)","v":{"$error":"#N/A"}},{"$f":"MATCH(AI$3,Millwall!$AP90:$AZ90,0)","v":9},{"$f":"MATCH(AJ$3,Millwall!$AP90:$AZ90,0)","v":{"$error":"#N/A"}},{"$f":"MATCH(AK$3,Millwall!$AP90:$AZ90,0)","v":{"$error":"#N/A"}},{"$f":"MATCH(AL$3,Millwall!$AP90:$AZ90,0)","v":{"$error":"#N/A"}},{"$f":"MATCH(AM$3,Millwall!$AP90:$AZ90,0)","v":{"$error":"#N/A"}},{"$f":"MATCH(AN$3,Millwall!$AP90:$AZ90,0)","v":{"$error":"#N/A"}},{"$f":"MATCH(AO$3,Millwall!$AP90:$AZ90,0)","v":{"$error":"#N/A"}},{"$f":"MATCH(AP$3,Millwall!$AP90:$AZ90,0)","v":{"$error":"#N/A"}},{"$f":"MATCH(AQ$3,Millwall!$AP90:$AZ90,0)","v":{"$error":"#N/A"}},{"$f":"MATCH(AR$3,Millwall!$AP90:$AZ90,0)","v":{"$error":"#N/A"}}]
[null,null,null,14,null,{"$f":"Millwall!AI91","v":"1954-10-09"},null,{"$f":"Millwall!AK91","v":"Bournemouth"},{"$f":"Millwall!AL91","v":"(A)"},{"$f":"Millwall!AO91","v":"W 1-0"},{"$f":"MATCH(K$3,Millwall!$AP91:$AZ91,0)","v":3},{"$f":"MATCH(L$3,Millwall!$AP91:$AZ91,0)","v":{"$error":"#N/A"}},{"$f":"MATCH(M$3,Millwall!$AP91:$AZ91,0)","v":{"$error":"#N/A"}},{"$f":"MATCH(N$3,Millwall!$AP91:$AZ91,0)","v":1},{"$f":"MATCH(O$3,Millwall!$AP91:$AZ91,0)","v":{"$error":"#N/A"}},{"$f":"MATCH(P$3,Millwall!$AP91:$AZ91,0)","v":{"$error":"#N/A"}},{"$f":"MATCH(Q$3,Millwall!$AP91:$AZ91,0)","v":{"$error":"#N/A"}},{"$f":"MATCH(R$3,Millwall!$AP91:$AZ91,0)","v":{"$error":"#N/A"}},{"$f":"MATCH(S$3,Millwall!$AP91:$AZ91,0)","v":{"$error":"#N/A"}},{"$f":"MATCH(T$3,Millwall!$AP91:$AZ91,0)","v":5},{"$f":"MATCH(U$3,Millwall!$AP91:$AZ91,0)","v":2},{"$f":"MATCH(V$3,Millwall!$AP91:$AZ91,0)","v":7},{"$f":"MATCH(W$3,Millwall!$AP91:$AZ91,0)","v":{"$error":"#N/A"}},{"$f":"MATCH(X$3,Millwall!$AP91:$AZ91,0)","v":{"$error":"#N/A"}},{"$f":"MATCH(Y$3,Millwall!$AP91:$AZ91,0)","v":{"$error":"#N/A"}},{"$f":"MATCH(Z$3,Millwall!$AP91:$AZ91,0)","v":8},{"$f":"MATCH(AA$3,Millwall!$AP91:$AZ91,0)","v":11},{"$f":"MATCH(AB$3,Millwall!$AP91:$AZ91,0)","v":{"$error":"#N/A"}},{"$f":"MATCH(AC$3,Millwall!$AP91:$AZ91,0)","v":10},{"$f":"MATCH(AD$3,Millwall!$AP91:$AZ91,0)","v":{"$error":"#N/A"}},{"$f":"MATCH(AE$3,Millwall!$AP91:$AZ91,0)","v":6},{"$f":"MATCH(AF$3,Millwall!$AP91:$AZ91,0)","v":{"$error":"#N/A"}},{"$f":"MATCH(AG$3,Millwall!$AP91:$AZ91,0)","v":4},{"$f":"MATCH(AH$3,Millwall!$AP91:$AZ91,0)","v":{"$error":"#N/A"}},{"$f":"MATCH(AI$3,Millwall!$AP91:$AZ91,0)","v":9},{"$f":"MATCH(AJ$3,Millwall!$AP91:$AZ91,0)","v":{"$error":"#N/A"}},{"$f":"MATCH(AK$3,Millwall!$AP91:$AZ91,0)","v":{"$error":"#N/A"}},{"$f":"MATCH(AL$3,Millwall!$AP91:$AZ91,0)","v":{"$error":"#N/A"}},{"$f":"MATCH(AM$3,Millwall!$AP91:$AZ91,0)","v":{"$error":"#N/A"}},{"$f":"MATCH(AN$3,Millwall!$AP91:$AZ91,0)","v":{"$error":"#N/A"}},{"$f":"MATCH(AO$3,Millwall!$AP91:$AZ91,0)","v":{"$error":"#N/A"}},{"$f":"MATCH(AP$3,Millwall!$AP91:$AZ91,0)","v":{"$error":"#N/A"}},{"$f":"MATCH(AQ$3,Millwall!$AP91:$AZ91,0)","v":{"$error":"#N/A"}},{"$f":"MATCH(AR$3,Millwall!$AP91:$AZ91,0)","v":{"$error":"#N/A"}}]
[null,null,null,15,null,{"$f":"Millwall!AI92","v":"1954-10-16"},null,{"$f":"Millwall!AK92","v":"QPR"},{"$f":"Millwall!AL92","v":"(H)"},{"$f":"Millwall!AO92","v":"L 0-1"},{"$f":"MATCH(K$3,Millwall!$AP92:$AZ92,0)","v":3},{"$f":"MATCH(L$3,Millwall!$AP92:$AZ92,0)","v":{"$error":"#N/A"}},{"$f":"MATCH(M$3,Millwall!$AP92:$AZ92,0)","v":{"$error":"#N/A"}},{"$f":"MATCH(N$3,Millwall!$AP92:$AZ92,0)","v":1},{"$f":"MATCH(O$3,Millwall!$AP92:$AZ92,0)","v":{"$error":"#N/A"}},{"$f":"MATCH(P$3,Millwall!$AP92:$AZ92,0)","v":{"$error":"#N/A"}},{"$f":"MATCH(Q$3,Millwall!$AP92:$AZ92,0)","v":{"$error":"#N/A"}},{"$f":"MATCH(R$3,Millwall!$AP92:$AZ92,0)","v":{"$error":"#N/A"}},{"$f":"MATCH(S$3,Millwall!$AP92:$AZ92,0)","v":{"$error":"#N/A"}},{"$f":"MATCH(T$3,Millwall!$AP92:$AZ92,0)","v":5},{"$f":"MATCH(U$3,Millwall!$AP92:$AZ92,0)","v":2},{"$f":"MATCH(V$3,Millwall!$AP92:$AZ92,0)","v":7},{"$f":"MATCH(W$3,Millwall!$AP92:$AZ92,0)","v":{"$error":"#N/A"}},{"$f":"MATCH(X$3,Millwall!$AP92:$AZ92,0)","v":{"$error":"#N/A"}},{"$f":"MATCH(Y$3,Millwall!$AP92:$AZ92,0)","v":{"$error":"#N/A"}},{"$f":"MATCH(Z$3,Millwall!$AP92:$AZ92,0)","v":8},{"$f":"MATCH(AA$3,Millwall!$AP92:$AZ92,0)","v":11},{"$f":"MATCH(AB$3,Millwall!$AP92:$AZ92,0)","v":{"$error":"#N/A"}},{"$f":"MATCH(AC$3,Millwall!$AP92:$AZ92,0)","v":10},{"$f":"MATCH(AD$3,Millwall!$AP92:$AZ92,0)","v":{"$error":"#N/A"}},{"$f":"MATCH(AE$3,Millwall!$AP92:$AZ92,0)","v":6},{"$f":"MATCH(AF$3,Millwall!$AP92:$AZ92,0)","v":{"$error":"#N/A"}},{"$f":"MATCH(AG$3,Millwall!$AP92:$AZ92,0)","v":4},{"$f":"MATCH(AH$3,Millwall!$AP92:$AZ92,0)","v":{"$error":"#N/A"}},{"$f":"MATCH(AI$3,Millwall!$AP92:$AZ92,0)","v":9},{"$f":"MATCH(AJ$3,Millwall!$AP92:$AZ92,0)","v":{"$error":"#N/A"}},{"$f":"MATCH(AK$3,Millwall!$AP92:$AZ92,0)","v":{"$error":"#N/A"}},{"$f":"MATCH(AL$3,Millwall!$AP92:$AZ92,0)","v":{"$error":"#N/A"}},{"$f":"MATCH(AM$3,Millwall!$AP92:$AZ92,0)","v":{"$error":"#N/A"}},{"$f":"MATCH(AN$3,Millwall!$AP92:$AZ92,0)","v":{"$error":"#N/A"}},{"$f":"MATCH(AO$3,Millwall!$AP92:$AZ92,0)","v":{"$error":"#N/A"}},{"$f":"MATCH(AP$3,Millwall!$AP92:$AZ92,0)","v":{"$error":"#N/A"}},{"$f":"MATCH(AQ$3,Millwall!$AP92:$AZ92,0)","v":{"$error":"#N/A"}},{"$f":"MATCH(AR$3,Millwall!$AP92:$AZ92,0)","v":{"$error":"#N/A"}}]
[null,null,null,16,null,{"$f":"Millwall!AI93","v":"1954-10-23"},null,{"$f":"Millwall!AK93","v":"Newport County"},{"$f":"Millwall!AL93","v":"(A)"},{"$f":"Millwall!AO93","v":"L 1-2"},{"$f":"MATCH(K$3,Millwall!$AP93:$AZ93,0)","v":3},{"$f":"MATCH(L$3,Millwall!$AP93:$AZ93,0)","v":{"$error":"#N/A"}},{"$f":"MATCH(M$3,Millwall!$AP93:$AZ93,0)","v":{"$error":"#N/A"}},{"$f":"MATCH(N$3,Millwall!$AP93:$AZ93,0)","v":1},{"$f":"MATCH(O$3,Millwall!$AP93:$AZ93,0)","v":{"$error":"#N/A"}},{"$f":"MATCH(P$3,Millwall!$AP93:$AZ93,0)","v":{"$error":"#N/A"}},{"$f":"MATCH(Q$3,Millwall!$AP93:$AZ93,0)","v":7},{"$f":"MATCH(R$3,Millwall!$AP93:$AZ93,0)","v":{"$error":"#N/A"}},{"$f":"MATCH(S$3,Millwall!$AP93:$AZ93,0)","v":6},{"$f":"MATCH(T$3,Millwall!$AP93:$AZ93,0)","v":5},{"$f":"MATCH(U$3,Millwall!$AP93:$AZ93,0)","v":2},{"$f":"MATCH(V$3,Millwall!$AP93:$AZ93,0)","v":{"$error":"#N/A"}},{"$f":"MATCH(W$3,Millwall!$AP93:$AZ93,0)","v":{"$error":"#N/A"}},{"$f":"MATCH(X$3,Millwall!$AP93:$AZ93,0)","v":{"$error":"#N/A"}},{"$f":"MATCH(Y$3,Millwall!$AP93:$AZ93,0)","v":{"$error":"#N/A"}},{"$f":"MATCH(Z$3,Millwall!$AP93:$AZ93,0)","v":9},{"$f":"MATCH(AA$3,Millwall!$AP93:$AZ93,0)","v":11},{"$f":"MATCH(AB$3,Millwall!$AP93:$AZ93,0)","v":{"$error":"#N/A"}},{"$f":"MATCH(AC$3,Millwall!$AP93:$AZ93,0)","v":10},{"$f":"MATCH(AD$3,Millwall!$AP93:$AZ93,0)","v":{"$error":"#N/A"}},{"$f":"MATCH(AE$3,Millwall!$AP93:$AZ93,0)","v":{"$error":"#N/A"}},{"$f":"MATCH(AF$3,Millwall!$AP93:$AZ93,0)","v":{"$error":"#N/A"}},{"$f":"MATCH(AG$3,Millwall!$AP93:$AZ93,0)","v":4},{"$f":"MATCH(AH$3,Millwall!$AP93:$AZ93,0)","v":8},{"$f":"MATCH(AI$3,Millwall!$AP93:$AZ93,0)","v":{"$error":"#N/A"}},{"$f":"MATCH(AJ$3,Millwall!$AP93:$AZ93,0)","v":{"$error":"#N/A"}},{"$f":"MATCH(AK$3,Millwall!$AP93:$AZ93,0)","v":{"$error":"#N/A"}},{"$f":"MATCH(AL$3,Millwall!$AP93:$AZ93,0)","v":{"$error":"#N/A"}},{"$f":"MATCH(AM$3,Millwall!$AP93:$AZ93,0)","v":{"$error":"#N/A"}},{"$f":"MATCH(AN$3,Millwall!$AP93:$AZ93,0)","v":{"$error":"#N/A"}},{"$f":"MATCH(AO$3,Millwall!$AP93:$AZ93,0)","v":{"$error":"#N/A"}},{"$f":"MATCH(AP$3,Millwall!$AP93:$AZ93,0)","v":{"$error":"#N/A"}},{"$f":"MATCH(AQ$3,Millwall!$AP93:$AZ93,0)","v":{"$error":"#N/A"}},{"$f":"MATCH(AR$3,Millwall!$AP93:$AZ93,0)","v":{"$error":"#N/A"}}]
[null,null,null,17,null,{"$f":"Millwall!AI94","v":"1954-10-30"},null,{"$f":"Millwall!AK94","v":"C Palace"},{"$f":"Millwall!AL94","v":"(H)"},{"$f":"Millwall!AO94","v":"W 5-2"},{"$f":"MATCH(K$3,Millwall!$AP94:$AZ94,0)","v":3},{"$f":"MATCH(L$3,Millwall!$AP94:$AZ94,0)","v":{"$error":"#N/A"}},{"$f":"MATCH(M$3,Millwall!$AP94:$AZ94,0)","v":{"$error":"#N/A"}},{"$f":"MATCH(N$3,Millwall!$AP94:$AZ94,0)","v":1},{"$f":"MATCH(O$3,Millwall!$AP94:$AZ94,0)","v":{"$error":"#N/A"}},{"$f":"MATCH(P$3,Millwall!$AP94:$AZ94,0)","v":{"$error":"#N/A"}},{"$f":"MATCH(Q$3,Millwall!$AP94:$AZ94,0)","v":7},{"$f":"MATCH(R$3,Millwall!$AP94:$AZ94,0)","v":{"$error":"#N/A"}},{"$f":"MATCH(S$3,Millwall!$AP94:$AZ94,0)","v":6},{"$f":"MATCH(T$3,Millwall!$AP94:$AZ94,0)","v":5},{"$f":"MATCH(U$3,Millwall!$AP94:$AZ94,0)","v":2},{"$f":"MATCH(V$3,Millwall!$AP94:$AZ94,0)","v":{"$error":"#N/A"}},{"$f":"MATCH(W$3,Millwall!$AP94:$AZ94,0)","v":{"$error":"#N/A"}},{"$f":"MATCH(X$3,Millwall!$AP94:$AZ94,0)","v":{"$error":"#N/A"}},{"$f":"MATCH(Y$3,Millwall!$AP94:$AZ94,0)","v":{"$error":"#N/A"}},{"$f":"MATCH(Z$3,Millwall!$AP94:$AZ94,0)","v":9},{"$f":"MATCH(AA$3,Millwall!$AP94:$AZ94,0)","v":11},{"$f":"MATCH(AB$3,Millwall!$AP94:$AZ94,0)","v":{"$error":"#N/A"}},{"$f":"MATCH(AC$3,Millwall!$AP94:$AZ94,0)","v":10},{"$f":"MATCH(AD$3,Millwall!$AP94:$AZ94,0)","v":{"$error":"#N/A"}},{"$f":"MATCH(AE$3,Millwall!$AP94:$AZ94,0)","v":{"$error":"#N/A"}},{"$f":"MATCH(AF$3,Millwall!$AP94:$AZ94,0)","v":{"$error":"#N/A"}},{"$f":"MATCH(AG$3,Millwall!$AP94:$AZ94,0)","v":4},{"$f":"MATCH(AH$3,Millwall!$AP94:$AZ94,0)","v":8},{"$f":"MATCH(AI$3,Millwall!$AP94:$AZ94,0)","v":{"$error":"#N/A"}},{"$f":"MATCH(AJ$3,Millwall!$AP94:$AZ94,0)","v":{"$error":"#N/A"}},{"$f":"MATCH(AK$3,Millwall!$AP94:$AZ94,0)","v":{"$error":"#N/A"}},{"$f":"MATCH(AL$3,Millwall!$AP94:$AZ94,0)","v":{"$error":"#N/A"}},{"$f":"MATCH(AM$3,Millwall!$AP94:$AZ94,0)","v":{"$error":"#N/A"}},{"$f":"MATCH(AN$3,Millwall!$AP94:$AZ94,0)","v":{"$error":"#N/A"}},{"$f":"MATCH(AO$3,Millwall!$AP94:$AZ94,0)","v":{"$error":"#N/A"}},{"$f":"MATCH(AP$3,Millwall!$AP94:$AZ94,0)","v":{"$error":"#N/A"}},{"$f":"MATCH(AQ$3,Millwall!$AP94:$AZ94,0)","v":{"$error":"#N/A"}},{"$f":"MATCH(AR$3,Millwall!$AP94:$AZ94,0)","v":{"$error":"#N/A"}}]
[null,null,null,18,null,{"$f":"Millwall!AI95","v":"1954-11-06"},null,{"$f":"Millwall!AK95","v":"Colchester"},{"$f":"Millwall!AL95","v":"(A)"},{"$f":"Millwall!AO95","v":"W 2-0"},{"$f":"MATCH(K$3,Millwall!$AP95:$AZ95,0)","v":3},{"$f":"MATCH(L$3,Millwall!$AP95:$AZ95,0)","v":{"$error":"#N/A"}},{"$f":"MATCH(M$3,Millwall!$AP95:$AZ95,0)","v":{"$error":"#N/A"}},{"$f":"MATCH(N$3,Millwall!$AP95:$AZ95,0)","v":1},{"$f":"MATCH(O$3,Millwall!$AP95:$AZ95,0)","v":{"$error":"#N/A"}},{"$f":"MATCH(P$3,Millwall!$AP95:$AZ95,0)","v":{"$error":"#N/A"}},{"$f":"MATCH(Q$3,Millwall!$AP95:$AZ95,0)","v":7},{"$f":"MATCH(R$3,Millwall!$AP95:$AZ95,0)","v":{"$error":"#N/A"}},{"$f":"MATCH(S$3,Millwall!$AP95:$AZ95,0)","v":6},{"$f":"MATCH(T$3,Millwall!$AP95:$AZ95,0)","v":5},{"$f":"MATCH(U$3,Millwall!$AP95:$AZ95,0)","v":2},{"$f":"MATCH(V$3,Millwall!$AP95:$AZ95,0)","v":{"$error":"#N/A"}},{"$f":"MATCH(W$3,Millwall!$AP95:$AZ95,0)","v":{"$error":"#N/A"}},{"$f":"MATCH(X$3,Millwall!$AP95:$AZ95,0)","v":{"$error":"#N/A"}},{"$f":"MATCH(Y$3,Millwall!$AP95:$AZ95,0)","v":{"$error":"#N/A"}},{"$f":"MATCH(Z$3,Millwall!$AP95:$AZ95,0)","v":9},{"$f":"MATCH(AA$3,Millwall!$AP95:$AZ95,0)","v":11},{"$f":"MATCH(AB$3,Millwall!$AP95:$AZ95,0)","v":{"$error":"#N/A"}},{"$f":"MATCH(AC$3,Millwall!$AP95:$AZ95,0)","v":10},{"$f":"MATCH(AD$3,Millwall!$AP95:$AZ95,0)","v":{"$error":"#N/A"}},{"$f":"MATCH(AE$3,Millwall!$AP95:$AZ95,0)","v":{"$error":"#N/A"}},{"$f":"MATCH(AF$3,Millwall!$AP95:$AZ95,0)","v":{"$error":"#N/A"}},{"$f":"MATCH(AG$3,Millwall!$AP95:$AZ95,0)","v":4},{"$f":"MATCH(AH$3,Millwall!$AP95:$AZ95,0)","v":8},{"$f":"MATCH(AI$3,Millwall!$AP95:$AZ95,0)","v":{"$error":"#N/A"}},{"$f":"MATCH(AJ$3,Millwall!$AP95:$AZ95,0)","v":{"$error":"#N/A"}},{"$f":"MATCH(AK$3,Millwall!$AP95:$AZ95,0)","v":{"$error":"#N/A"}},{"$f":"MATCH(AL$3,Millwall!$AP95:$AZ95,0)","v":{"$error":"#N/A"}},{"$f":"MATCH(AM$3,Millwall!$AP95:$AZ95,0)","v":{"$error":"#N/A"}},{"$f":"MATCH(AN$3,Millwall!$AP95:$AZ95,0)","v":{"$error":"#N/A"}},{"$f":"MATCH(AO$3,Millwall!$AP95:$AZ95,0)","v":{"$error":"#N/A"}},{"$f":"MATCH(AP$3,Millwall!$AP95:$AZ95,0)","v":{"$error":"#N/A"}},{"$f":"MATCH(AQ$3,Millwall!$AP95:$AZ95,0)","v":{"$error":"#N/A"}},{"$f":"MATCH(AR$3,Millwall!$AP95:$AZ95,0)","v":{"$error":"#N/A"}}]
[null,null,null,19,null,{"$f":"Millwall!AI96","v":"1954-11-13"},null,{"$f":"Millwall!AK96","v":"Norwich"},{"$f":"Millwall!AL96","v":"(H)"},{"$f":"Millwall!AO96","v":"D 0-0"},{"$f":"MATCH(K$3,Millwall!$AP96:$AZ96,0)","v":3},{"$f":"MATCH(L$3,Millwall!$AP96:$AZ96,0)","v":{"$error":"#N/A"}},{"$f":"MATCH(M$3,Millwall!$AP96:$AZ96,0)","v":{"$error":"#N/A"}},{"$f":"MATCH(N$3,Millwall!$AP96:$AZ96,0)","v":1},{"$f":"MATCH(O$3,Millwall!$AP96:$AZ96,0)","v":{"$error":"#N/A"}},{"$f":"MATCH(P$3,Millwall!$AP96:$AZ96,0)","v":{"$error":"#N/A"}},{"$f":"MATCH(Q$3,Millwall!$AP96:$AZ96,0)","v":7},{"$f":"MATCH(R$3,Millwall!$AP96:$AZ96,0)","v":{"$error":"#N/A"}},{"$f":"MATCH(S$3,Millwall!$AP96:$AZ96,0)","v":6},{"$f":"MATCH(T$3,Millwall!$AP96:$AZ96,0)","v":5},{"$f":"MATCH(U$3,Millwall!$AP96:$AZ96,0)","v":2},{"$f":"MATCH(V$3,Millwall!$AP96:$AZ96,0)","v":{"$error":"#N/A"}},{"$f":"MATCH(W$3,Millwall!$AP96:$AZ96,0)","v":{"$error":"#N/A"}},{"$f":"MATCH(X$3,Millwall!$AP96:$AZ96,0)","v":{"$error":"#N/A"}},{"$f":"MATCH(Y$3,Millwall!$AP96:$AZ96,0)","v":{"$error":"#N/A"}},{"$f":"MATCH(Z$3,Millwall!$AP96:$AZ96,0)","v":9},{"$f":"MATCH(AA$3,Millwall!$AP96:$AZ96,0)","v":11},{"$f":"MATCH(AB$3,Millwall!$AP96:$AZ96,0)","v":{"$error":"#N/A"}},{"$f":"MATCH(AC$3,Millwall!$AP96:$AZ96,0)","v":10},{"$f":"MATCH(AD$3,Millwall!$AP96:$AZ96,0)","v":{"$error":"#N/A"}},{"$f":"MATCH(AE$3,Millwall!$AP96:$AZ96,0)","v":{"$error":"#N/A"}},{"$f":"MATCH(AF$3,Millwall!$AP96:$AZ96,0)","v":{"$error":"#N/A"}},{"$f":"MATCH(AG$3,Millwall!$AP96:$AZ96,0)","v":4},{"$f":"MATCH(AH$3,Millwall!$AP96:$AZ96,0)","v":8},{"$f":"MATCH(AI$3,Millwall!$AP96:$AZ96,0)","v":{"$error":"#N/A"}},{"$f":"MATCH(AJ$3,Millwall!$AP96:$AZ96,0)","v":{"$error":"#N/A"}},{"$f":"MATCH(AK$3,Millwall!$AP96:$AZ96,0)","v":{"$error":"#N/A"}},{"$f":"MATCH(AL$3,Millwall!$AP96:$AZ96,0)","v":{"$error":"#N/A"}},{"$f":"MATCH(AM$3,Millwall!$AP96:$AZ96,0)","v":{"$error":"#N/A"}},{"$f":"MATCH(AN$3,Millwall!$AP96:$AZ96,0)","v":{"$error":"#N/A"}},{"$f":"MATCH(AO$3,Millwall!$AP96:$AZ96,0)","v":{"$error":"#N/A"}},{"$f":"MATCH(AP$3,Millwall!$AP96:$AZ96,0)","v":{"$error":"#N/A"}},{"$f":"MATCH(AQ$3,Millwall!$AP96:$AZ96,0)","v":{"$error":"#N/A"}},{"$f":"MATCH(AR$3,Millwall!$AP96:$AZ96,0)","v":{"$error":"#N/A"}}]
[null,null,null,20,null,{"$f":"Millwall!AI97","v":"1954-11-27"},null,{"$f":"Millwall!AK97","v":"Aldershot"},{"$f":"Millwall!AL97","v":"(H)"},{"$f":"Millwall!AO97","v":"W 3-1"},{"$f":"MATCH(K$3,Millwall!$AP97:$AZ97,0)","v":3},{"$f":"MATCH(L$3,Millwall!$AP97:$AZ97,0)","v":{"$error":"#N/A"}},{"$f":"MATCH(M$3,Millwall!$AP97:$AZ97,0)","v":{"$error":"#N/A"}},{"$f":"MATCH(N$3,Millwall!$AP97:$AZ97,0)","v":1},{"$f":"MATCH(O$3,Millwall!$AP97:$AZ97,0)","v":{"$error":"#N/A"}},{"$f":"MATCH(P$3,Millwall!$AP97:$AZ97,0)","v":{"$error":"#N/A"}},{"$f":"MATCH(Q$3,Millwall!$AP97:$AZ97,0)","v":7},{"$f":"MATCH(R$3,Millwall!$AP97:$AZ97,0)","v":{"$error":"#N/A"}},{"$f":"MATCH(S$3,Millwall!$AP97:$AZ97,0)","v":4},{"$f":"MATCH(T$3,Millwall!$AP97:$AZ97,0)","v":5},{"$f":"MATCH(U$3,Millwall!$AP97:$AZ97,0)","v":2},{"$f":"MATCH(V$3,Millwall!$AP97:$AZ97,0)","v":{"$error":"#N/A"}},{"$f":"MATCH(W$3,Millwall!$AP97:$AZ97,0)","v":{"$error":"#N/A"}},{"$f":"MATCH(X$3,Millwall!$AP97:$AZ97,0)","v":{"$error":"#N/A"}},{"$f":"MATCH(Y$3,Millwall!$AP97:$AZ97,0)","v":{"$error":"#N/A"}},{"$f":"MATCH(Z$3,Millwall!$AP97:$AZ97,0)","v":9},{"$f":"MATCH(AA$3,Millwall!$AP97:$AZ97,0)","v":11},{"$f":"MATCH(AB$3,Millwall!$AP97:$AZ97,0)","v":{"$error":"#N/A"}},{"$f":"MATCH(AC$3,Millwall!$AP97:$AZ97,0)","v":10},{"$f":"MATCH(AD$3,Millwall!$AP97:$AZ97,0)","v":{"$error":"#N/A"}},{"$f":"MATCH(AE$3,Millwall!$AP97:$AZ97,0)","v":6},{"$f":"MATCH(AF$3,Millwall!$AP97:$AZ97,0)","v":{"$error":"#N/A"}},{"$f":"MATCH(AG$3,Millwall!$AP97:$AZ97,0)","v":{"$error":"#N/A"}},{"$f":"MATCH(AH$3,Millwall!$AP97:$AZ97,0)","v":8},{"$f":"MATCH(AI$3,Millwall!$AP97:$AZ97,0)","v":{"$error":"#N/A"}},{"$f":"MATCH(AJ$3,Millwall!$AP97:$AZ97,0)","v":{"$error":"#N/A"}},{"$f":"MATCH(AK$3,Millwall!$AP97:$AZ97,0)","v":{"$error":"#N/A"}},{"$f":"MATCH(AL$3,Millwall!$AP97:$AZ97,0)","v":{"$error":"#N/A"}},{"$f":"MATCH(AM$3,Millwall!$AP97:$AZ97,0)","v":{"$error":"#N/A"}},{"$f":"MATCH(AN$3,Millwall!$AP97:$AZ97,0)","v":{"$error":"#N/A"}},{"$f":"MATCH(AO$3,Millwall!$AP97:$AZ97,0)","v":{"$error":"#N/A"}},{"$f":"MATCH(AP$3,Millwall!$AP97:$AZ97,0)","v":{"$error":"#N/A"}},{"$f":"MATCH(AQ$3,Millwall!$AP97:$AZ97,0)","v":{"$error":"#N/A"}},{"$f":"MATCH(AR$3,Millwall!$AP97:$AZ97,0)","v":{"$error":"#N/A"}}]
[null,null,null,21,null,{"$f":"Millwall!AI98","v":"1954-12-04"},null,{"$f":"Millwall!AK98","v":"Swindon"},{"$f":"Millwall!AL98","v":"(A)"},{"$f":"Millwall!AO98","v":"D 1-1"},{"$f":"MATCH(K$3,Millwall!$AP98:$AZ98,0)","v":3},{"$f":"MATCH(L$3,Millwall!$AP98:$AZ98,0)","v":{"$error":"#N/A"}},{"$f":"MATCH(M$3,Millwall!$AP98:$AZ98,0)","v":{"$error":"#N/A"}},{"$f":"MATCH(N$3,Millwall!$AP98:$AZ98,0)","v":1},{"$f":"MATCH(O$3,Millwall!$AP98:$AZ98,0)","v":{"$error":"#N/A"}},{"$f":"MATCH(P$3,Millwall!$AP98:$AZ98,0)","v":{"$error":"#N/A"}},{"$f":"MATCH(Q$3,Millwall!$AP98:$AZ98,0)","v":7},{"$f":"MATCH(R$3,Millwall!$AP98:$AZ98,0)","v":{"$error":"#N/A"}},{"$f":"MATCH(S$3,Millwall!$AP98:$AZ98,0)","v":4},{"$f":"MATCH(T$3,Millwall!$AP98:$AZ98,0)","v":5},{"$f":"MATCH(U$3,Millwall!$AP98:$AZ98,0)","v":2},{"$f":"MATCH(V$3,Millwall!$AP98:$AZ98,0)","v":{"$error":"#N/A"}},{"$f":"MATCH(W$3,Millwall!$AP98:$AZ98,0)","v":{"$error":"#N/A"}},{"$f":"MATCH(X$3,Millwall!$AP98:$AZ98,0)","v":{"$error":"#N/A"}},{"$f":"MATCH(Y$3,Millwall!$AP98:$AZ98,0)","v":{"$error":"#N/A"}},{"$f":"MATCH(Z$3,Millwall!$AP98:$AZ98,0)","v":9},{"$f":"MATCH(AA$3,Millwall!$AP98:$AZ98,0)","v":11},{"$f":"MATCH(AB$3,Millwall!$AP98:$AZ98,0)","v":{"$error":"#N/A"}},{"$f":"MATCH(AC$3,Millwall!$AP98:$AZ98,0)","v":10},{"$f":"MATCH(AD$3,Millwall!$AP98:$AZ98,0)","v":{"$error":"#N/A"}},{"$f":"MATCH(AE$3,Millwall!$AP98:$AZ98,0)","v":6},{"$f":"MATCH(AF$3,Millwall!$AP98:$AZ98,0)","v":{"$error":"#N/A"}},{"$f":"MATCH(AG$3,Millwall!$AP98:$AZ98,0)","v":{"$error":"#N/A"}},{"$f":"MATCH(AH$3,Millwall!$AP98:$AZ98,0)","v":8},{"$f":"MATCH(AI$3,Millwall!$AP98:$AZ98,0)","v":{"$error":"#N/A"}},{"$f":"MATCH(AJ$3,Millwall!$AP98:$AZ98,0)","v":{"$error":"#N/A"}},{"$f":"MATCH(AK$3,Millwall!$AP98:$AZ98,0)","v":{"$error":"#N/A"}},{"$f":"MATCH(AL$3,Millwall!$AP98:$AZ98,0)","v":{"$error":"#N/A"}},{"$f":"MATCH(AM$3,Millwall!$AP98:$AZ98,0)","v":{"$error":"#N/A"}},{"$f":"MATCH(AN$3,Millwall!$AP98:$AZ98,0)","v":{"$error":"#N/A"}},{"$f":"MATCH(AO$3,Millwall!$AP98:$AZ98,0)","v":{"$error":"#N/A"}},{"$f":"MATCH(AP$3,Millwall!$AP98:$AZ98,0)","v":{"$error":"#N/A"}},{"$f":"MATCH(AQ$3,Millwall!$AP98:$AZ98,0)","v":{"$error":"#N/A"}},{"$f":"MATCH(AR$3,Millwall!$AP98:$AZ98,0)","v":{"$error":"#N/A"}}]
[null,null,null,22,null,{"$f":"Millwall!AI99","v":"1954-12-18"},null,{"$f":"Millwall!AK99","v":"Brighton"},{"$f":"Millwall!AL99","v":"(A)"},{"$f":"Millwall!AO99","v":"W 2-1"},{"$f":"MATCH(K$3,Millwall!$AP99:$AZ99,0)","v":3},{"$f":"MATCH(L$3,Millwall!$AP99:$AZ99,0)","v":{"$error":"#N/A"}},{"$f":"MATCH(M$3,Millwall!$AP99:$AZ99,0)","v":{"$error":"#N/A"}},{"$f":"MATCH(N$3,Millwall!$AP99:$AZ99,0)","v":1},{"$f":"MATCH(O$3,Millwall!$AP99:$AZ99,0)","v":{"$error":"#N/A"}},{"$f":"MATCH(P$3,Millwall!$AP99:$AZ99,0)","v":{"$error":"#N/A"}},{"$f":"MATCH(Q$3,Millwall!$AP99:$AZ99,0)","v":7},{"$f":"MATCH(R$3,Millwall!$AP99:$AZ99,0)","v":{"$error":"#N/A"}},{"$f":"MATCH(S$3,Millwall!$AP99:$AZ99,0)","v":6},{"$f":"MATCH(T$3,Millwall!$AP99:$AZ99,0)","v":5},{"$f":"MATCH(U$3,Millwall!$AP99:$AZ99,0)","v":2},{"$f":"MATCH(V$3,Millwall!$AP99:$AZ99,0)","v":{"$error":"#N/A"}},{"$f":"MATCH(W$3,Millwall!$AP99:$AZ99,0)","v":{"$error":"#N/A"}},{"$f":"MATCH(X$3,Millwall!$AP99:$AZ99,0)","v":{"$error":"#N/A"}},{"$f":"MATCH(Y$3,Millwall!$AP99:$AZ99,0)","v":{"$error":"#N/A"}},{"$f":"MATCH(Z$3,Millwall!$AP99:$AZ99,0)","v":9},{"$f":"MATCH(AA$3,Millwall!$AP99:$AZ99,0)","v":11},{"$f":"MATCH(AB$3,Millwall!$AP99:$AZ99,0)","v":{"$error":"#N/A"}},{"$f":"MATCH(AC$3,Millwall!$AP99:$AZ99,0)","v":10},{"$f":"MATCH(AD$3,Millwall!$AP99:$AZ99,0)","v":{"$error":"#N/A"}},{"$f":"MATCH(AE$3,Millwall!$AP99:$AZ99,0)","v":{"$error":"#N/A"}},{"$f":"MATCH(AF$3,Millwall!$AP99:$AZ99,0)","v":{"$error":"#N/A"}},{"$f":"MATCH(AG$3,Millwall!$AP99:$AZ99,0)","v":4},{"$f":"MATCH(AH$3,Millwall!$AP99:$AZ99,0)","v":8},{"$f":"MATCH(AI$3,Millwall!$AP99:$AZ99,0)","v":{"$error":"#N/A"}},{"$f":"MATCH(AJ$3,Millwall!$AP99:$AZ99,0)","v":{"$error":"#N/A"}},{"$f":"MATCH(AK$3,Millwall!$AP99:$AZ99,0)","v":{"$error":"#N/A"}},{"$f":"MATCH(AL$3,Millwall!$AP99:$AZ99,0)","v":{"$error":"#N/A"}},{"$f":"MATCH(AM$3,Millwall!$AP99:$AZ99,0)","v":{"$error":"#N/A"}},{"$f":"MATCH(AN$3,Millwall!$AP99:$AZ99,0)","v":{"$error":"#N/A"}},{"$f":"MATCH(AO$3,Millwall!$AP99:$AZ99,0)","v":{"$error":"#N/A"}},{"$f":"MATCH(AP$3,Millwall!$AP99:$AZ99,0)","v":{"$error":"#N/A"}},{"$f":"MATCH(AQ$3,Millwall!$AP99:$AZ99,0)","v":{"$error":"#N/A"}},{"$f":"MATCH(AR$3,Millwall!$AP99:$AZ99,0)","v":{"$error":"#N/A"}}]
[null,null,null,23,null,{"$f":"Millwall!AI100","v":"1954-12-25"},null,{"$f":"Millwall!AK100","v":"Brentford"},{"$f":"Millwall!AL100","v":"(A)"},{"$f":"Millwall!AO100","v":"L 1-3"},{"$f":"MATCH(K$3,Millwall!$AP100:$AZ100,0)","v":3},{"$f":"MATCH(L$3,Millwall!$AP100:$AZ100,0)","v":{"$error":"#N/A"}},{"$f":"MATCH(M$3,Millwall!$AP100:$AZ100,0)","v":{"$error":"#N/A"}},{"$f":"MATCH(N$3,Millwall!$AP100:$AZ100,0)","v":1},{"$f":"MATCH(O$3,Millwall!$AP100:$AZ100,0)","v":{"$error":"#N/A"}},{"$f":"MATCH(P$3,Millwall!$AP100:$AZ100,0)","v":{"$error":"#N/A"}},{"$f":"MATCH(Q$3,Millwall!$AP100:$AZ100,0)","v":7},{"$f":"MATCH(R$3,Millwall!$AP100:$AZ100,0)","v":{"$error":"#N/A"}},{"$f":"MATCH(S$3,Millwall!$AP100:$AZ100,0)","v":6},{"$f":"MATCH(T$3,Millwall!$AP100:$AZ100,0)","v":5},{"$f":"MATCH(U$3,Millwall!$AP100:$AZ100,0)","v":2},{"$f":"MATCH(V$3,Millwall!$AP100:$AZ100,0)","v":{"$error":"#N/A"}},{"$f":"MATCH(W$3,Millwall!$AP100:$AZ100,0)","v":{"$error":"#N/A"}},{"$f":"MATCH(X$3,Millwall!$AP100:$AZ100,0)","v":{"$error":"#N/A"}},{"$f":"MATCH(Y$3,Millwall!$AP100:$AZ100,0)","v":{"$error":"#N/A"}},{"$f":"MATCH(Z$3,Millwall!$AP100:$AZ100,0)","v":9},{"$f":"MATCH(AA$3,Millwall!$AP100:$AZ100,0)","v":11},{"$f":"MATCH(AB$3,Millwall!$AP100:$AZ100,0)","v":{"$error":"#N/A"}},{"$f":"MATCH(AC$3,Millwall!$AP100:$AZ100,0)","v":10},{"$f":"MATCH(AD$3,Millwall!$AP100:$AZ100,0)","v":{"$error":"#N/A"}},{"$f":"MATCH(AE$3,Millwall!$AP100:$AZ100,0)","v":{"$error":"#N/A"}},{"$f":"MATCH(AF$3,Millwall!$AP100:$AZ100,0)","v":{"$error":"#N/A"}},{"$f":"MATCH(AG$3,Millwall!$AP100:$AZ100,0)","v":4},{"$f":"MATCH(AH$3,Millwall!$AP100:$AZ100,0)","v":8},{"$f":"MATCH(AI$3,Millwall!$AP100:$AZ100,0)","v":{"$error":"#N/A"}},{"$f":"MATCH(AJ$3,Millwall!$AP100:$AZ100,0)","v":{"$error":"#N/A"}},{"$f":"MATCH(AK$3,Millwall!$AP100:$AZ100,0)","v":{"$error":"#N/A"}},{"$f":"MATCH(AL$3,Millwall!$AP100:$AZ100,0)","v":{"$error":"#N/A"}},{"$f":"MATCH(AM$3,Millwall!$AP100:$AZ100,0)","v":{"$error":"#N/A"}},{"$f":"MATCH(AN$3,Millwall!$AP100:$AZ100,0)","v":{"$error":"#N/A"}},{"$f":"MATCH(AO$3,Millwall!$AP100:$AZ100,0)","v":{"$error":"#N/A"}},{"$f":"MATCH(AP$3,Millwall!$AP100:$AZ100,0)","v":{"$error":"#N/A"}},{"$f":"MATCH(AQ$3,Millwall!$AP100:$AZ100,0)","v":{"$error":"#N/A"}},{"$f":"MATCH(AR$3,Millwall!$AP100:$AZ100,0)","v":{"$error":"#N/A"}}]
[null,null,null,24,null,{"$f":"Millwall!AI101","v":"1954-12-27"},null,{"$f":"Millwall!AK101","v":"Brentford"},{"$f":"Millwall!AL101","v":"(H)"},{"$f":"Millwall!AO101","v":"D 2-2"},{"$f":"MATCH(K$3,Millwall!$AP101:$AZ101,0)","v":3},{"$f":"MATCH(L$3,Millwall!$AP101:$AZ101,0)","v":{"$error":"#N/A"}},{"$f":"MATCH(M$3,Millwall!$AP101:$AZ101,0)","v":{"$error":"#N/A"}},{"$f":"MATCH(N$3,Millwall!$AP101:$AZ101,0)","v":1},{"$f":"MATCH(O$3,Millwall!$AP101:$AZ101,0)","v":{"$error":"#N/A"}},{"$f":"MATCH(P$3,Millwall!$AP101:$AZ101,0)","v":{"$error":"#N/A"}},{"$f":"MATCH(Q$3,Millwall!$AP101:$AZ101,0)","v":{"$error":"#N/A"}},{"$f":"MATCH(R$3,Millwall!$AP101:$AZ101,0)","v":{"$error":"#N/A"}},{"$f":"MATCH(S$3,Millwall!$AP101:$AZ101,0)","v":6},{"$f":"MATCH(T$3,Millwall!$AP101:$AZ101,0)","v":5},{"$f":"MATCH(U$3,Millwall!$AP101:$AZ101,0)","v":2},{"$f":"MATCH(V$3,Millwall!$AP101:$AZ101,0)","v":7},{"$f":"MATCH(W$3,Millwall!$AP101:$AZ101,0)","v":{"$error":"#N/A"}},{"$f":"MATCH(X$3,Millwall!$AP101:$AZ101,0)","v":{"$error":"#N/A"}},{"$f":"MATCH(Y$3,Millwall!$AP101:$AZ101,0)","v":{"$error":"#N/A"}},{"$f":"MATCH(Z$3,Millwall!$AP101:$AZ101,0)","v":9},{"$f":"MATCH(AA$3,Millwall!$AP101:$AZ101,0)","v":{"$error":"#N/A"}},{"$f":"MATCH(AB$3,Millwall!$AP101:$AZ101,0)","v":{"$error":"#N/A"}},{"$f":"MATCH(AC$3,Millwall!$AP101:$AZ101,0)","v":10},{"$f":"MATCH(AD$3,Millwall!$AP101:$AZ101,0)","v":{"$error":"#N/A"}},{"$f":"MATCH(AE$3,Millwall!$AP101:$AZ101,0)","v":{"$error":"#N/A"}},{"$f":"MATCH(AF$3,Millwall!$AP101:$AZ101,0)","v":{"$error":"#N/A"}},{"$f":"MATCH(AG$3,Millwall!$AP101:$AZ101,0)","v":4},{"$f":"MATCH(AH$3,Millwall!$AP101:$AZ101,0)","v":8},{"$f":"MATCH(AI$3,Millwall!$AP101:$AZ101,0)","v":11},{"$f":"MATCH(AJ$3,Millwall!$AP101:$AZ101,0)","v":{"$error":"#N/A"}},{"$f":"MATCH(AK$3,Millwall!$AP101:$AZ101,0)","v":{"$error":"#N/A"}},{"$f":"MATCH(AL$3,Millwall!$AP101:$AZ101,0)","v":{"$error":"#N/A"}},{"$f":"MATCH(AM$3,Millwall!$AP101:$AZ101,0)","v":{"$error":"#N/A"}},{"$f":"MATCH(AN$3,Millwall!$AP101:$AZ101,0)","v":{"$error":"#N/A"}},{"$f":"MATCH(AO$3,Millwall!$AP101:$AZ101,0)","v":{"$error":"#N/A"}},{"$f":"MATCH(AP$3,Millwall!$AP101:$AZ101,0)","v":{"$error":"#N/A"}},{"$f":"MATCH(AQ$3,Millwall!$AP101:$AZ101,0)","v":{"$error":"#N/A"}},{"$f":"MATCH(AR$3,Millwall!$AP101:$AZ101,0)","v":{"$error":"#N/A"}}]
[null,null,null,25,null,{"$f":"Millwall!AI102","v":"1955-01-01"},null,{"$f":"Millwall!AK102","v":"Torquay"},{"$f":"Millwall!AL102","v":"(H)"},{"$f":"Millwall!AO102","v":"W 4-1"},{"$f":"MATCH(K$3,Millwall!$AP102:$AZ102,0)","v":3},{"$f":"MATCH(L$3,Millwall!$AP102:$AZ102,0)","v":{"$error":"#N/A"}},{"$f":"MATCH(M$3,Millwall!$AP102:$AZ102,0)","v":{"$error":"#N/A"}},{"$f":"MATCH(N$3,Millwall!$AP102:$AZ102,0)","v":1},{"$f":"MATCH(O$3,Millwall!$AP102:$AZ102,0)","v":{"$error":"#N/A"}},{"$f":"MATCH(P$3,Millwall!$AP102:$AZ102,0)","v":{"$error":"#N/A"}},{"$f":"MATCH(Q$3,Millwall!$AP102:$AZ102,0)","v":{"$error":"#N/A"}},{"$f":"MATCH(R$3,Millwall!$AP102:$AZ102,0)","v":4},{"$f":"MATCH(S$3,Millwall!$AP102:$AZ102,0)","v":6},{"$f":"MATCH(T$3,Millwall!$AP102:$AZ102,0)","v":5},{"$f":"MATCH(U$3,Millwall!$AP102:$AZ102,0)","v":2},{"$f":"MATCH(V$3,Millwall!$AP102:$AZ102,0)","v":7},{"$f":"MATCH(W$3,Millwall!$AP102:$AZ102,0)","v":{"$error":"#N/A"}},{"$f":"MATCH(X$3,Millwall!$AP102:$AZ102,0)","v":{"$error":"#N/A"}},{"$f":"MATCH(Y$3,Millwall!$AP102:$AZ102,0)","v":{"$error":"#N/A"}},{"$f":"MATCH(Z$3,Millwall!$AP102:$AZ102,0)","v":9},{"$f":"MATCH(AA$3,Millwall!$AP102:$AZ102,0)","v":{"$error":"#N/A"}},{"$f":"MATCH(AB$3,Millwall!$AP102:$AZ102,0)","v":{"$error":"#N/A"}},{"$f":"MATCH(AC$3,Millwall!$AP102:$AZ102,0)","v":10},{"$f":"MATCH(AD$3,Millwall!$AP102:$AZ102,0)","v":{"$error":"#N/A"}},{"$f":"MATCH(AE$3,Millwall!$AP102:$AZ102,0)","v":{"$error":"#N/A"}},{"$f":"MATCH(AF$3,Millwall!$AP102:$AZ102,0)","v":{"$error":"#N/A"}},{"$f":"MATCH(AG$3,Millwall!$AP102:$AZ102,0)","v":{"$error":"#N/A"}},{"$f":"MATCH(AH$3,Millwall!$AP102:$AZ102,0)","v":8},{"$f":"MATCH(AI$3,Millwall!$AP102:$AZ102,0)","v":11},{"$f":"MATCH(AJ$3,Millwall!$AP102:$AZ102,0)","v":{"$error":"#N/A"}},{"$f":"MATCH(AK$3,Millwall!$AP102:$AZ102,0)","v":{"$error":"#N/A"}},{"$f":"MATCH(AL$3,Millwall!$AP102:$AZ102,0)","v":{"$error":"#N/A"}},{"$f":"MATCH(AM$3,Millwall!$AP102:$AZ102,0)","v":{"$error":"#N/A"}},{"$f":"MATCH(AN$3,Millwall!$AP102:$AZ102,0)","v":{"$error":"#N/A"}},{"$f":"MATCH(AO$3,Millwall!$AP102:$AZ102,0)","v":{"$error":"#N/A"}},{"$f":"MATCH(AP$3,Millwall!$AP102:$AZ102,0)","v":{"$error":"#N/A"}},{"$f":"MATCH(AQ$3,Millwall!$AP102:$AZ102,0)","v":{"$error":"#N/A"}},{"$f":"MATCH(AR$3,Millwall!$AP102:$AZ102,0)","v":{"$error":"#N/A"}}]
[null,null,null,26,null,{"$f":"Millwall!AI103","v":"1955-01-22"},null,{"$f":"Millwall!AK103","v":"Walsall"},{"$f":"Millwall!AL103","v":"(H)"},{"$f":"Millwall!AO103","v":"W 1-0"},{"$f":"MATCH(K$3,Millwall!$AP103:$AZ103,0)","v":3},{"$f":"MATCH(L$3,Millwall!$AP103:$AZ103,0)","v":{"$error":"#N/A"}},{"$f":"MATCH(M$3,Millwall!$AP103:$AZ103,0)","v":1},{"$f":"MATCH(N$3,Millwall!$AP103:$AZ103,0)","v":{"$error":"#N/A"}},{"$f":"MATCH(O$3,Millwall!$AP103:$AZ103,0)","v":{"$error":"#N/A"}},{"$f":"MATCH(P$3,Millwall!$AP103:$AZ103,0)","v":{"$error":"#N/A"}},{"$f":"MATCH(Q$3,Millwall!$AP103:$AZ103,0)","v":7},{"$f":"MATCH(R$3,Millwall!$AP103:$AZ103,0)","v":{"$error":"#N/A"}},{"$f":"MATCH(S$3,Millwall!$AP103:$AZ103,0)","v":6},{"$f":"MATCH(T$3,Millwall!$AP103:$AZ103,0)","v":5},{"$f":"MATCH(U$3,Millwall!$AP103:$AZ103,0)","v":2},{"$f":"MATCH(V$3,Millwall!$AP103:$AZ103,0)","v":{"$error":"#N/A"}},{"$f":"MATCH(W$3,Millwall!$AP103:$AZ103,0)","v":{"$error":"#N/A"}},{"$f":"MATCH(X$3,Millwall!$AP103:$AZ103,0)","v":{"$error":"#N/A"}},{"$f":"MATCH(Y$3,Millwall!$AP103:$AZ103,0)","v":{"$error":"#N/A"}},{"$f":"MATCH(Z$3,Millwall!$AP103:$AZ103,0)","v":9},{"$f":"MATCH(AA$3,Millwall!$AP103:$AZ103,0)","v":11},{"$f":"MATCH(AB$3,Millwall!$AP103:$AZ103,0)","v":{"$error":"#N/A"}},{"$f":"MATCH(AC$3,Millwall!$AP103:$AZ103,0)","v":{"$error":"#N/A"}},{"$f":"MATCH(AD$3,Millwall!$AP103:$AZ103,0)","v":{"$error":"#N/A"}},{"$f":"MATCH(AE$3,Millwall!$AP103:$AZ103,0)","v":10},{"$f":"MATCH(AF$3,Millwall!$AP103:$AZ103,0)","v":{"$error":"#N/A"}},{"$f":"MATCH(AG$3,Millwall!$AP103:$AZ103,0)","v":4},{"$f":"MATCH(AH$3,Millwall!$AP103:$AZ103,0)","v":8},{"$f":"MATCH(AI$3,Millwall!$AP103:$AZ103,0)","v":{"$error":"#N/A"}},{"$f":"MATCH(AJ$3,Millwall!$AP103:$AZ103,0)","v":{"$error":"#N/A"}},{"$f":"MATCH(AK$3,Millwall!$AP103:$AZ103,0)","v":{"$error":"#N/A"}},{"$f":"MATCH(AL$3,Millwall!$AP103:$AZ103,0)","v":{"$error":"#N/A"}},{"$f":"MATCH(AM$3,Millwall!$AP103:$AZ103,0)","v":{"$error":"#N/A"}},{"$f":"MATCH(AN$3,Millwall!$AP103:$AZ103,0)","v":{"$error":"#N/A"}},{"$f":"MATCH(AO$3,Millwall!$AP103:$AZ103,0)","v":{"$error":"#N/A"}},{"$f":"MATCH(AP$3,Millwall!$AP103:$AZ103,0)","v":{"$error":"#N/A"}},{"$f":"MATCH(AQ$3,Millwall!$AP103:$AZ103,0)","v":{"$error":"#N/A"}},{"$f":"MATCH(AR$3,Millwall!$AP103:$AZ103,0)","v":{"$error":"#N/A"}}]
[null,null,null,27,null,{"$f":"Millwall!AI104","v":"1955-01-29"},null,{"$f":"Millwall!AK104","v":"Watford"},{"$f":"Millwall!AL104","v":"(H)"},{"$f":"Millwall!AO104","v":"W 1-0"},{"$f":"MATCH(K$3,Millwall!$AP104:$AZ104,0)","v":3},{"$f":"MATCH(L$3,Millwall!$AP104:$AZ104,0)","v":{"$error":"#N/A"}},{"$f":"MATCH(M$3,Millwall!$AP104:$AZ104,0)","v":1},{"$f":"MATCH(N$3,Millwall!$AP104:$AZ104,0)","v":{"$error":"#N/A"}},{"$f":"MATCH(O$3,Millwall!$AP104:$AZ104,0)","v":{"$error":"#N/A"}},{"$f":"MATCH(P$3,Millwall!$AP104:$AZ104,0)","v":{"$error":"#N/A"}},{"$f":"MATCH(Q$3,Millwall!$AP104:$AZ104,0)","v":7},{"$f":"MATCH(R$3,Millwall!$AP104:$AZ104,0)","v":{"$error":"#N/A"}},{"$f":"MATCH(S$3,Millwall!$AP104:$AZ104,0)","v":{"$error":"#N/A"}},{"$f":"MATCH(T$3,Millwall!$AP104:$AZ104,0)","v":5},{"$f":"MATCH(U$3,Millwall!$AP104:$AZ104,0)","v":2},{"$f":"MATCH(V$3,Millwall!$AP104:$AZ104,0)","v":{"$error":"#N/A"}},{"$f":"MATCH(W$3,Millwall!$AP104:$AZ104,0)","v":{"$error":"#N/A"}},{"$f":"MATCH(X$3,Millwall!$AP104:$AZ104,0)","v":10},{"$f":"MATCH(Y$3,Millwall!$AP104:$AZ104,0)","v":{"$error":"#N/A"}},{"$f":"MATCH(Z$3,Millwall!$AP104:$AZ104,0)","v":9},{"$f":"MATCH(AA$3,Millwall!$AP104:$AZ104,0)","v":11},{"$f":"MATCH(AB$3,Millwall!$AP104:$AZ104,0)","v":{"$error":"#N/A"}},{"$f":"MATCH(AC$3,Millwall!$AP104:$AZ104,0)","v":{"$error":"#N/A"}},{"$f":"MATCH(AD$3,Millwall!$AP104:$AZ104,0)","v":{"$error":"#N/A"}},{"$f":"MATCH(AE$3,Millwall!$AP104:$AZ104,0)","v":6},{"$f":"MATCH(AF$3,Millwall!$AP104:$AZ104,0)","v":{"$error":"#N/A"}},{"$f":"MATCH(AG$3,Millwall!$AP104:$AZ104,0)","v":4},{"$f":"MATCH(AH$3,Millwall!$AP104:$AZ104,0)","v":8},{"$f":"MATCH(AI$3,Millwall!$AP104:$AZ104,0)","v":{"$error":"#N/A"}},{"$f":"MATCH(AJ$3,Millwall!$AP104:$AZ104,0)","v":{"$error":"#N/A"}},{"$f":"MATCH(AK$3,Millwall!$AP104:$AZ104,0)","v":{"$error":"#N/A"}},{"$f":"MATCH(AL$3,Millwall!$AP104:$AZ104,0)","v":{"$error":"#N/A"}},{"$f":"MATCH(AM$3,Millwall!$AP104:$AZ104,0)","v":{"$error":"#N/A"}},{"$f":"MATCH(AN$3,Millwall!$AP104:$AZ104,0)","v":{"$error":"#N/A"}},{"$f":"MATCH(AO$3,Millwall!$AP104:$AZ104,0)","v":{"$error":"#N/A"}},{"$f":"MATCH(AP$3,Millwall!$AP104:$AZ104,0)","v":{"$error":"#N/A"}},{"$f":"MATCH(AQ$3,Millwall!$AP104:$AZ104,0)","v":{"$error":"#N/A"}},{"$f":"MATCH(AR$3,Millwall!$AP104:$AZ104,0)","v":{"$error":"#N/A"}}]
[null,null,null,28,null,{"$f":"Millwall!AI105","v":"1955-02-05"},null,{"$f":"Millwall!AK105","v":"Shrewsbury"},{"$f":"Millwall!AL105","v":"(A)"},{"$f":"Millwall!AO105","v":"L 2-3"},{"$f":"MATCH(K$3,Millwall!$AP105:$AZ105,0)","v":3},{"$f":"MATCH(L$3,Millwall!$AP105:$AZ105,0)","v":5},{"$f":"MATCH(M$3,Millwall!$AP105:$AZ105,0)","v":{"$error":"#N/A"}},{"$f":"MATCH(N$3,Millwall!$AP105:$AZ105,0)","v":1},{"$f":"MATCH(O$3,Millwall!$AP105:$AZ105,0)","v":{"$error":"#N/A"}},{"$f":"MATCH(P$3,Millwall!$AP105:$AZ105,0)","v":{"$error":"#N/A"}},{"$f":"MATCH(Q$3,Millwall!$AP105:$AZ105,0)","v":{"$error":"#N/A"}},{"$f":"MATCH(R$3,Millwall!$AP105:$AZ105,0)","v":{"$error":"#N/A"}},{"$f":"MATCH(S$3,Millwall!$AP105:$AZ105,0)","v":{"$error":"#N/A"}},{"$f":"MATCH(T$3,Millwall!$AP105:$AZ105,0)","v":{"$error":"#N/A"}},{"$f":"MATCH(U$3,Millwall!$AP105:$AZ105,0)","v":2},{"$f":"MATCH(V$3,Millwall!$AP105:$AZ105,0)","v":7},{"$f":"MATCH(W$3,Millwall!$AP105:$AZ105,0)","v":{"$error":"#N/A"}},{"$f":"MATCH(X$3,Millwall!$AP105:$AZ105,0)","v":{"$error":"#N/A"}},{"$f":"MATCH(Y$3,Millwall!$AP105:$AZ105,0)","v":{"$error":"#N/A"}},{"$f":"MATCH(Z$3,Millwall!$AP105:$AZ105,0)","v":9},{"$f":"MATCH(AA$3,Millwall!$AP105:$AZ105,0)","v":11},{"$f":"MATCH(AB$3,Millwall!$AP105:$AZ105,0)","v":{"$error":"#N/A"}},{"$f":"MATCH(AC$3,Millwall!$AP105:$AZ105,0)","v":10},{"$f":"MATCH(AD$3,Millwall!$AP105:$AZ105,0)","v":{"$error":"#N/A"}},{"$f":"MATCH(AE$3,Millwall!$AP105:$AZ105,0)","v":6},{"$f":"MATCH(AF$3,Millwall!$AP105:$AZ105,0)","v":{"$error":"#N/A"}},{"$f":"MATCH(AG$3,Millwall!$AP105:$AZ105,0)","v":4},{"$f":"MATCH(AH$3,Millwall!$AP105:$AZ105,0)","v":8},{"$f":"MATCH(AI$3,Millwall!$AP105:$AZ105,0)","v":{"$error":"#N/A"}},{"$f":"MATCH(AJ$3,Millwall!$AP105:$AZ105,0)","v":{"$error":"#N/A"}},{"$f":"MATCH(AK$3,Millwall!$AP105:$AZ105,0)","v":{"$error":"#N/A"}},{"$f":"MATCH(AL$3,Millwall!$AP105:$AZ105,0)","v":{"$error":"#N/A"}},{"$f":"MATCH(AM$3,Millwall!$AP105:$AZ105,0)","v":{"$error":"#N/A"}},{"$f":"MATCH(AN$3,Millwall!$AP105:$AZ105,0)","v":{"$error":"#N/A"}},{"$f":"MATCH(AO$3,Millwall!$AP105:$AZ105,0)","v":{"$error":"#N/A"}},{"$f":"MATCH(AP$3,Millwall!$AP105:$AZ105,0)","v":{"$error":"#N/A"}},{"$f":"MATCH(AQ$3,Millwall!$AP105:$AZ105,0)","v":{"$error":"#N/A"}},{"$f":"MATCH(AR$3,Millwall!$AP105:$AZ105,0)","v":{"$error":"#N/A"}}]
[null,null,null,29,null,{"$f":"Millwall!AI106","v":"1955-02-12"},null,{"$f":"Millwall!AK106","v":"Reading"},{"$f":"Millwall!AL106","v":"(H)"},{"$f":"Millwall!AO106","v":"D 2-2"},{"$f":"MATCH(K$3,Millwall!$AP106:$AZ106,0)","v":3},{"$f":"MATCH(L$3,Millwall!$AP106:$AZ106,0)","v":{"$error":"#N/A"}},{"$f":"MATCH(M$3,Millwall!$AP106:$AZ106,0)","v":{"$error":"#N/A"}},{"$f":"MATCH(N$3,Millwall!$AP106:$AZ106,0)","v":1},{"$f":"MATCH(O$3,Millwall!$AP106:$AZ106,0)","v":{"$error":"#N/A"}},{"$f":"MATCH(P$3,Millwall!$AP106:$AZ106,0)","v":{"$error":"#N/A"}},{"$f":"MATCH(Q$3,Millwall!$AP106:$AZ106,0)","v":{"$error":"#N/A"}},{"$f":"MATCH(R$3,Millwall!$AP106:$AZ106,0)","v":4},{"$f":"MATCH(S$3,Millwall!$AP106:$AZ106,0)","v":6},{"$f":"MATCH(T$3,Millwall!$AP106:$AZ106,0)","v":{"$error":"#N/A"}},{"$f":"MATCH(U$3,Millwall!$AP106:$AZ106,0)","v":2},{"$f":"MATCH(V$3,Millwall!$AP106:$AZ106,0)","v":7},{"$f":"MATCH(W$3,Millwall!$AP106:$AZ106,0)","v":{"$error":"#N/A"}},{"$f":"MATCH(X$3,Millwall!$AP106:$AZ106,0)","v":{"$error":"#N/A"}},{"$f":"MATCH(Y$3,Millwall!$AP106:$AZ106,0)","v":{"$error":"#N/A"}},{"$f":"MATCH(Z$3,Millwall!$AP106:$AZ106,0)","v":9},{"$f":"MATCH(AA$3,Millwall!$AP106:$AZ106,0)","v":11},{"$f":"MATCH(AB$3,Millwall!$AP106:$AZ106,0)","v":{"$error":"#N/A"}},{"$f":"MATCH(AC$3,Millwall!$AP106:$AZ106,0)","v":10},{"$f":"MATCH(AD$3,Millwall!$AP106:$AZ106,0)","v":{"$error":"#N/A"}},{"$f":"MATCH(AE$3,Millwall!$AP106:$AZ106,0)","v":{"$error":"#N/A"}},{"$f":"MATCH(AF$3,Millwall!$AP106:$AZ106,0)","v":{"$error":"#N/A"}},{"$f":"MATCH(AG$3,Millwall!$AP106:$AZ106,0)","v":5},{"$f":"MATCH(AH$3,Millwall!$AP106:$AZ106,0)","v":8},{"$f":"MATCH(AI$3,Millwall!$AP106:$AZ106,0)","v":{"$error":"#N/A"}},{"$f":"MATCH(AJ$3,Millwall!$AP106:$AZ106,0)","v":{"$error":"#N/A"}},{"$f":"MATCH(AK$3,Millwall!$AP106:$AZ106,0)","v":{"$error":"#N/A"}},{"$f":"MATCH(AL$3,Millwall!$AP106:$AZ106,0)","v":{"$error":"#N/A"}},{"$f":"MATCH(AM$3,Millwall!$AP106:$AZ106,0)","v":{"$error":"#N/A"}},{"$f":"MATCH(AN$3,Millwall!$AP106:$AZ106,0)","v":{"$error":"#N/A"}},{"$f":"MATCH(AO$3,Millwall!$AP106:$AZ106,0)","v":{"$error":"#N/A"}},{"$f":"MATCH(AP$3,Millwall!$AP106:$AZ106,0)","v":{"$error":"#N/A"}},{"$f":"MATCH(AQ$3,Millwall!$AP106:$AZ106,0)","v":{"$error":"#N/A"}},{"$f":"MATCH(AR$3,Millwall!$AP106:$AZ106,0)","v":{"$error":"#N/A"}}]
[null,null,null,30,null,{"$f":"Millwall!AI107","v":"1955-02-19"},null,{"$f":"Millwall!AK107","v":"Gillingham"},{"$f":"Millwall!AL107","v":"(A)"},{"$f":"Millwall!AO107","v":"D 1-1"},{"$f":"MATCH(K$3,Millwall!$AP107:$AZ107,0)","v":3},{"$f":"MATCH(L$3,Millwall!$AP107:$AZ107,0)","v":{"$error":"#N/A"}},{"$f":"MATCH(M$3,Millwall!$AP107:$AZ107,0)","v":{"$error":"#N/A"}},{"$f":"MATCH(N$3,Millwall!$AP107:$AZ107,0)","v":1},{"$f":"MATCH(O$3,Millwall!$AP107:$AZ107,0)","v":{"$error":"#N/A"}},{"$f":"MATCH(P$3,Millwall!$AP107:$AZ107,0)","v":{"$error":"#N/A"}},{"$f":"MATCH(Q$3,Millwall!$AP107:$AZ107,0)","v":{"$error":"#N/A"}},{"$f":"MATCH(R$3,Millwall!$AP107:$AZ107,0)","v":{"$error":"#N/A"}},{"$f":"MATCH(S$3,Millwall!$AP107:$AZ107,0)","v":6},{"$f":"MATCH(T$3,Millwall!$AP107:$AZ107,0)","v":5},{"$f":"MATCH(U$3,Millwall!$AP107:$AZ107,0)","v":2},{"$f":"MATCH(V$3,Millwall!$AP107:$AZ107,0)","v":7},{"$f":"MATCH(W$3,Millwall!$AP107:$AZ107,0)","v":11},{"$f":"MATCH(X$3,Millwall!$AP107:$AZ107,0)","v":{"$error":"#N/A"}},{"$f":"MATCH(Y$3,Millwall!$AP107:$AZ107,0)","v":{"$error":"#N/A"}},{"$f":"MATCH(Z$3,Millwall!$AP107:$AZ107,0)","v":9},{"$f":"MATCH(AA$3,Millwall!$AP107:$AZ107,0)","v":{"$error":"#N/A"}},{"$f":"MATCH(AB$3,Millwall!$AP107:$AZ107,0)","v":{"$error":"#N/A"}},{"$f":"MATCH(AC$3,Millwall!$AP107:$AZ107,0)","v":10},{"$f":"MATCH(AD$3,Millwall!$AP107:$AZ107,0)","v":{"$error":"#N/A"}},{"$f":"MATCH(AE$3,Millwall!$AP107:$AZ107,0)","v":{"$error":"#N/A"}},{"$f":"MATCH(AF$3,Millwall!$AP107:$AZ107,0)","v":{"$error":"#N/A"}},{"$f":"MATCH(AG$3,Millwall!$AP107:$AZ107,0)","v":4},{"$f":"MATCH(AH$3,Millwall!$AP107:$AZ107,0)","v":8},{"$f":"MATCH(AI$3,Millwall!$AP107:$AZ107,0)","v":{"$error":"#N/A"}},{"$f":"MATCH(AJ$3,Millwall!$AP107:$AZ107,0)","v":{"$error":"#N/A"}},{"$f":"MATCH(AK$3,Millwall!$AP107:$AZ107,0)","v":{"$error":"#N/A"}},{"$f":"MATCH(AL$3,Millwall!$AP107:$AZ107,0)","v":{"$error":"#N/A"}},{"$f":"MATCH(AM$3,Millwall!$AP107:$AZ107,0)","v":{"$error":"#N/A"}},{"$f":"MATCH(AN$3,Millwall!$AP107:$AZ107,0)","v":{"$error":"#N/A"}},{"$f":"MATCH(AO$3,Millwall!$AP107:$AZ107,0)","v":{"$error":"#N/A"}},{"$f":"MATCH(AP$3,Millwall!$AP107:$AZ107,0)","v":{"$error":"#N/A"}},{"$f":"MATCH(AQ$3,Millwall!$AP107:$AZ107,0)","v":{"$error":"#N/A"}},{"$f":"MATCH(AR$3,Millwall!$AP107:$AZ107,0)","v":{"$error":"#N/A"}}]
[null,null,null,31,null,{"$f":"Millwall!AI108","v":"1955-02-26"},null,{"$f":"Millwall!AK108","v":"Bournemouth"},{"$f":"Millwall!AL108","v":"(H)"},{"$f":"Millwall!AO108","v":"D 1-1"},{"$f":"MATCH(K$3,Millwall!$AP108:$AZ108,0)","v":3},{"$f":"MATCH(L$3,Millwall!$AP108:$AZ108,0)","v":{"$error":"#N/A"}},{"$f":"MATCH(M$3,Millwall!$AP108:$AZ108,0)","v":{"$error":"#N/A"}},{"$f":"MATCH(N$3,Millwall!$AP108:$AZ108,0)","v":1},{"$f":"MATCH(O$3,Millwall!$AP108:$AZ108,0)","v":{"$error":"#N/A"}},{"$f":"MATCH(P$3,Millwall!$AP108:$AZ108,0)","v":{"$error":"#N/A"}},{"$f":"MATCH(Q$3,Millwall!$AP108:$AZ108,0)","v":7},{"$f":"MATCH(R$3,Millwall!$AP108:$AZ108,0)","v":{"$error":"#N/A"}},{"$f":"MATCH(S$3,Millwall!$AP108:$AZ108,0)","v":6},{"$f":"MATCH(T$3,Millwall!$AP108:$AZ108,0)","v":5},{"$f":"MATCH(U$3,Millwall!$AP108:$AZ108,0)","v":2},{"$f":"MATCH(V$3,Millwall!$AP108:$AZ108,0)","v":{"$error":"#N/A"}},{"$f":"MATCH(W$3,Millwall!$AP108:$AZ108,0)","v":11},{"$f":"MATCH(X$3,Millwall!$AP108:$AZ108,0)","v":{"$error":"#N/A"}},{"$f":"MATCH(Y$3,Millwall!$AP108:$AZ108,0)","v":{"$error":"#N/A"}},{"$f":"MATCH(Z$3,Millwall!$AP108:$AZ108,0)","v":8},{"$f":"MATCH(AA$3,Millwall!$AP108:$AZ108,0)","v":{"$error":"#N/A"}},{"$f":"MATCH(AB$3,Millwall!$AP108:$AZ108,0)","v":{"$error":"#N/A"}},{"$f":"MATCH(AC$3,Millwall!$AP108:$AZ108,0)","v":10},{"$f":"MATCH(AD$3,Millwall!$AP108:$AZ108,0)","v":{"$error":"#N/A"}},{"$f":"MATCH(AE$3,Millwall!$AP108:$AZ108,0)","v":{"$error":"#N/A"}},{"$f":"MATCH(AF$3,Millwall!$AP108:$AZ108,0)","v":{"$error":"#N/A"}},{"$f":"MATCH(AG$3,Millwall!$AP108:$AZ108,0)","v":4},{"$f":"MATCH(AH$3,Millwall!$AP108:$AZ108,0)","v":{"$error":"#N/A"}},{"$f":"MATCH(AI$3,Millwall!$AP108:$AZ108,0)","v":9},{"$f":"MATCH(AJ$3,Millwall!$AP108:$AZ108,0)","v":{"$error":"#N/A"}},{"$f":"MATCH(AK$3,Millwall!$AP108:$AZ108,0)","v":{"$error":"#N/A"}},{"$f":"MATCH(AL$3,Millwall!$AP108:$AZ108,0)","v":{"$error":"#N/A"}},{"$f":"MATCH(AM$3,Millwall!$AP108:$AZ108,0)","v":{"$error":"#N/A"}},{"$f":"MATCH(AN$3,Millwall!$AP108:$AZ108,0)","v":{"$error":"#N/A"}},{"$f":"MATCH(AO$3,Millwall!$AP108:$AZ108,0)","v":{"$error":"#N/A"}},{"$f":"MATCH(AP$3,Millwall!$AP108:$AZ108,0)","v":{"$error":"#N/A"}},{"$f":"MATCH(AQ$3,Millwall!$AP108:$AZ108,0)","v":{"$error":"#N/A"}},{"$f":"MATCH(AR$3,Millwall!$AP108:$AZ108,0)","v":{"$error":"#N/A"}}]
[null,null,null,32,null,{"$f":"Millwall!AI109","v":"1955-03-05"},null,{"$f":"Millwall!AK109","v":"QPR"},{"$f":"Millwall!AL109","v":"(A)"},{"$f":"Millwall!AO109","v":"W 2-1"},{"$f":"MATCH(K$3,Millwall!$AP109:$AZ109,0)","v":3},{"$f":"MATCH(L$3,Millwall!$AP109:$AZ109,0)","v":{"$error":"#N/A"}},{"$f":"MATCH(M$3,Millwall!$AP109:$AZ109,0)","v":{"$error":"#N/A"}},{"$f":"MATCH(N$3,Millwall!$AP109:$AZ109,0)","v":1},{"$f":"MATCH(O$3,Millwall!$AP109:$AZ109,0)","v":{"$error":"#N/A"}},{"$f":"MATCH(P$3,Millwall!$AP109:$AZ109,0)","v":{"$error":"#N/A"}},{"$f":"MATCH(Q$3,Millwall!$AP109:$AZ109,0)","v":{"$error":"#N/A"}},{"$f":"MATCH(R$3,Millwall!$AP109:$AZ109,0)","v":{"$error":"#N/A"}},{"$f":"MATCH(S$3,Millwall!$AP109:$AZ109,0)","v":4},{"$f":"MATCH(T$3,Millwall!$AP109:$AZ109,0)","v":5},{"$f":"MATCH(U$3,Millwall!$AP109:$AZ109,0)","v":2},{"$f":"MATCH(V$3,Millwall!$AP109:$AZ109,0)","v":7},{"$f":"MATCH(W$3,Millwall!$AP109:$AZ109,0)","v":{"$error":"#N/A"}},{"$f":"MATCH(X$3,Millwall!$AP109:$AZ109,0)","v":{"$error":"#N/A"}},{"$f":"MATCH(Y$3,Millwall!$AP109:$AZ109,0)","v":{"$error":"#N/A"}},{"$f":"MATCH(Z$3,Millwall!$AP109:$AZ109,0)","v":9},{"$f":"MATCH(AA$3,Millwall!$AP109:$AZ109,0)","v":{"$error":"#N/A"}},{"$f":"MATCH(AB$3,Millwall!$AP109:$AZ109,0)","v":{"$error":"#N/A"}},{"$f":"MATCH(AC$3,Millwall!$AP109:$AZ109,0)","v":10},{"$f":"MATCH(AD$3,Millwall!$AP109:$AZ109,0)","v":{"$error":"#N/A"}},{"$f":"MATCH(AE$3,Millwall!$AP109:$AZ109,0)","v":6},{"$f":"MATCH(AF$3,Millwall!$AP109:$AZ109,0)","v":{"$error":"#N/A"}},{"$f":"MATCH(AG$3,Millwall!$AP109:$AZ109,0)","v":{"$error":"#N/A"}},{"$f":"MATCH(AH$3,Millwall!$AP109:$AZ109,0)","v":8},{"$f":"MATCH(AI$3,Millwall!$AP109:$AZ109,0)","v":11},{"$f":"MATCH(AJ$3,Millwall!$AP109:$AZ109,0)","v":{"$error":"#N/A"}},{"$f":"MATCH(AK$3,Millwall!$AP109:$AZ109,0)","v":{"$error":"#N/A"}},{"$f":"MATCH(AL$3,Millwall!$AP109:$AZ109,0)","v":{"$error":"#N/A"}},{"$f":"MATCH(AM$3,Millwall!$AP109:$AZ109,0)","v":{"$error":"#N/A"}},{"$f":"MATCH(AN$3,Millwall!$AP109:$AZ109,0)","v":{"$error":"#N/A"}},{"$f":"MATCH(AO$3,Millwall!$AP109:$AZ109,0)","v":{"$error":"#N/A"}},{"$f":"MATCH(AP$3,Millwall!$AP109:$AZ109,0)","v":{"$error":"#N/A"}},{"$f":"MATCH(AQ$3,Millwall!$AP109:$AZ109,0)","v":{"$error":"#N/A"}},{"$f":"MATCH(AR$3,Millwall!$AP109:$AZ109,0)","v":{"$error":"#N/A"}}]
[null,null,null,33,null,{"$f":"Millwall!AI110","v":"1955-03-09"},null,{"$f":"Millwall!AK110","v":"Bristol C"},{"$f":"Millwall!AL110","v":"(A)"},{"$f":"Millwall!AO110","v":"L 1-5"},{"$f":"MATCH(K$3,Millwall!$AP110:$AZ110,0)","v":3},{"$f":"MATCH(L$3,Millwall!$AP110:$AZ110,0)","v":{"$error":"#N/A"}},{"$f":"MATCH(M$3,Millwall!$AP110:$AZ110,0)","v":{"$error":"#N/A"}},{"$f":"MATCH(N$3,Millwall!$AP110:$AZ110,0)","v":1},{"$f":"MATCH(O$3,Millwall!$AP110:$AZ110,0)","v":{"$error":"#N/A"}},{"$f":"MATCH(P$3,Millwall!$AP110:$AZ110,0)","v":{"$error":"#N/A"}},{"$f":"MATCH(Q$3,Millwall!$AP110:$AZ110,0)","v":{"$error":"#N/A"}},{"$f":"MATCH(R$3,Millwall!$AP110:$AZ110,0)","v":{"$error":"#N/A"}},{"$f":"MATCH(S$3,Millwall!$AP110:$AZ110,0)","v":{"$error":"#N/A"}},{"$f":"MATCH(T$3,Millwall!$AP110:$AZ110,0)","v":5},{"$f":"MATCH(U$3,Millwall!$AP110:$AZ110,0)","v":2},{"$f":"MATCH(V$3,Millwall!$AP110:$AZ110,0)","v":7},{"$f":"MATCH(W$3,Millwall!$AP110:$AZ110,0)","v":{"$error":"#N/A"}},{"$f":"MATCH(X$3,Millwall!$AP110:$AZ110,0)","v":{"$error":"#N/A"}},{"$f":"MATCH(Y$3,Millwall!$AP110:$AZ110,0)","v":{"$error":"#N/A"}},{"$f":"MATCH(Z$3,Millwall!$AP110:$AZ110,0)","v":9},{"$f":"MATCH(AA$3,Millwall!$AP110:$AZ110,0)","v":{"$error":"#N/A"}},{"$f":"MATCH(AB$3,Millwall!$AP110:$AZ110,0)","v":{"$error":"#N/A"}},{"$f":"MATCH(AC$3,Millwall!$AP110:$AZ110,0)","v":10},{"$f":"MATCH(AD$3,Millwall!$AP110:$AZ110,0)","v":{"$error":"#N/A"}},{"$f":"MATCH(AE$3,Millwall!$AP110:$AZ110,0)","v":6},{"$f":"MATCH(AF$3,Millwall!$AP110:$AZ110,0)","v":{"$error":"#N/A"}},{"$f":"MATCH(AG$3,Millwall!$AP110:$AZ110,0)","v":4},{"$f":"MATCH(AH$3,Millwall!$AP110:$AZ110,0)","v":8},{"$f":"MATCH(AI$3,Millwall!$AP110:$AZ110,0)","v":11},{"$f":"MATCH(AJ$3,Millwall!$AP110:$AZ110,0)","v":{"$error":"#N/A"}},{"$f":"MATCH(AK$3,Millwall!$AP110:$AZ110,0)","v":{"$error":"#N/A"}},{"$f":"MATCH(AL$3,Millwall!$AP110:$AZ110,0)","v":{"$error":"#N/A"}},{"$f":"MATCH(AM$3,Millwall!$AP110:$AZ110,0)","v":{"$error":"#N/A"}},{"$f":"MATCH(AN$3,Millwall!$AP110:$AZ110,0)","v":{"$error":"#N/A"}},{"$f":"MATCH(AO$3,Millwall!$AP110:$AZ110,0)","v":{"$error":"#N/A"}},{"$f":"MATCH(AP$3,Millwall!$AP110:$AZ110,0)","v":{"$error":"#N/A"}},{"$f":"MATCH(AQ$3,Millwall!$AP110:$AZ110,0)","v":{"$error":"#N/A"}},{"$f":"MATCH(AR$3,Millwall!$AP110:$AZ110,0)","v":{"$error":"#N/A"}}]
[null,null,null,34,null,{"$f":"Millwall!AI111","v":"1955-03-12"},null,{"$f":"Millwall!AK111","v":"Newport County"},{"$f":"Millwall!AL111","v":"(H)"},{"$f":"Millwall!AO111","v":"D 1-1"},{"$f":"MATCH(K$3,Millwall!$AP111:$AZ111,0)","v":{"$error":"#N/A"}},{"$f":"MATCH(L$3,Millwall!$AP111:$AZ111,0)","v":{"$error":"#N/A"}},{"$f":"MATCH(M$3,Millwall!$AP111:$AZ111,0)","v":{"$error":"#N/A"}},{"$f":"MATCH(N$3,Millwall!$AP111:$AZ111,0)","v":1},{"$f":"MATCH(O$3,Millwall!$AP111:$AZ111,0)","v":{"$error":"#N/A"}},{"$f":"MATCH(P$3,Millwall!$AP111:$AZ111,0)","v":{"$error":"#N/A"}},{"$f":"MATCH(Q$3,Millwall!$AP111:$AZ111,0)","v":{"$error":"#N/A"}},{"$f":"MATCH(R$3,Millwall!$AP111:$AZ111,0)","v":{"$error":"#N/A"}},{"$f":"MATCH(S$3,Millwall!$AP111:$AZ111,0)","v":{"$error":"#N/A"}},{"$f":"MATCH(T$3,Millwall!$AP111:$AZ111,0)","v":5},{"$f":"MATCH(U$3,Millwall!$AP111:$AZ111,0)","v":3},{"$f":"MATCH(V$3,Millwall!$AP111:$AZ111,0)","v":7},{"$f":"MATCH(W$3,Millwall!$AP111:$AZ111,0)","v":{"$error":"#N/A"}},{"$f":"MATCH(X$3,Millwall!$AP111:$AZ111,0)","v":{"$error":"#N/A"}},{"$f":"MATCH(Y$3,Millwall!$AP111:$AZ111,0)","v":{"$error":"#N/A"}},{"$f":"MATCH(Z$3,Millwall!$AP111:$AZ111,0)","v":9},{"$f":"MATCH(AA$3,Millwall!$AP111:$AZ111,0)","v":{"$error":"#N/A"}},{"$f":"MATCH(AB$3,Millwall!$AP111:$AZ111,0)","v":{"$error":"#N/A"}},{"$f":"MATCH(AC$3,Millwall!$AP111:$AZ111,0)","v":10},{"$f":"MATCH(AD$3,Millwall!$AP111:$AZ111,0)","v":{"$error":"#N/A"}},{"$f":"MATCH(AE$3,Millwall!$AP111:$AZ111,0)","v":6},{"$f":"MATCH(AF$3,Millwall!$AP111:$AZ111,0)","v":{"$error":"#N/A"}},{"$f":"MATCH(AG$3,Millwall!$AP111:$AZ111,0)","v":4},{"$f":"MATCH(AH$3,Millwall!$AP111:$AZ111,0)","v":8},{"$f":"MATCH(AI$3,Millwall!$AP111:$AZ111,0)","v":11},{"$f":"MATCH(AJ$3,Millwall!$AP111:$AZ111,0)","v":{"$error":"#N/A"}},{"$f":"MATCH(AK$3,Millwall!$AP111:$AZ111,0)","v":2},{"$f":"MATCH(AL$3,Millwall!$AP111:$AZ111,0)","v":{"$error":"#N/A"}},{"$f":"MATCH(AM$3,Millwall!$AP111:$AZ111,0)","v":{"$error":"#N/A"}},{"$f":"MATCH(AN$3,Millwall!$AP111:$AZ111,0)","v":{"$error":"#N/A"}},{"$f":"MATCH(AO$3,Millwall!$AP111:$AZ111,0)","v":{"$error":"#N/A"}},{"$f":"MATCH(AP$3,Millwall!$AP111:$AZ111,0)","v":{"$error":"#N/A"}},{"$f":"MATCH(AQ$3,Millwall!$AP111:$AZ111,0)","v":{"$error":"#N/A"}},{"$f":"MATCH(AR$3,Millwall!$AP111:$AZ111,0)","v":{"$error":"#N/A"}}]
[null,null,null,35,null,{"$f":"Millwall!AI112","v":"1955-03-19"},null,{"$f":"Millwall!AK112","v":"C Palace"},{"$f":"Millwall!AL112","v":"(A)"},{"$f":"Millwall!AO112","v":"D 1-1"},{"$f":"MATCH(K$3,Millwall!$AP112:$AZ112,0)","v":3},{"$f":"MATCH(L$3,Millwall!$AP112:$AZ112,0)","v":{"$error":"#N/A"}},{"$f":"MATCH(M$3,Millwall!$AP112:$AZ112,0)","v":{"$error":"#N/A"}},{"$f":"MATCH(N$3,Millwall!$AP112:$AZ112,0)","v":1},{"$f":"MATCH(O$3,Millwall!$AP112:$AZ112,0)","v":{"$error":"#N/A"}},{"$f":"MATCH(P$3,Millwall!$AP112:$AZ112,0)","v":{"$error":"#N/A"}},{"$f":"MATCH(Q$3,Millwall!$AP112:$AZ112,0)","v":7},{"$f":"MATCH(R$3,Millwall!$AP112:$AZ112,0)","v":{"$error":"#N/A"}},{"$f":"MATCH(S$3,Millwall!$AP112:$AZ112,0)","v":{"$error":"#N/A"}},{"$f":"MATCH(T$3,Millwall!$AP112:$AZ112,0)","v":5},{"$f":"MATCH(U$3,Millwall!$AP112:$AZ112,0)","v":2},{"$f":"MATCH(V$3,Millwall!$AP112:$AZ112,0)","v":{"$error":"#N/A"}},{"$f":"MATCH(W$3,Millwall!$AP112:$AZ112,0)","v":{"$error":"#N/A"}},{"$f":"MATCH(X$3,Millwall!$AP112:$AZ112,0)","v":{"$error":"#N/A"}},{"$f":"MATCH(Y$3,Millwall!$AP112:$AZ112,0)","v":6},{"$f":"MATCH(Z$3,Millwall!$AP112:$AZ112,0)","v":8},{"$f":"MATCH(AA$3,Millwall!$AP112:$AZ112,0)","v":{"$error":"#N/A"}},{"$f":"MATCH(AB$3,Millwall!$AP112:$AZ112,0)","v":{"$error":"#N/A"}},{"$f":"MATCH(AC$3,Millwall!$AP112:$AZ112,0)","v":{"$error":"#N/A"}},{"$f":"MATCH(AD$3,Millwall!$AP112:$AZ112,0)","v":{"$error":"#N/A"}},{"$f":"MATCH(AE$3,Millwall!$AP112:$AZ112,0)","v":10},{"$f":"MATCH(AF$3,Millwall!$AP112:$AZ112,0)","v":9},{"$f":"MATCH(AG$3,Millwall!$AP112:$AZ112,0)","v":4},{"$f":"MATCH(AH$3,Millwall!$AP112:$AZ112,0)","v":{"$error":"#N/A"}},{"$f":"MATCH(AI$3,Millwall!$AP112:$AZ112,0)","v":11},{"$f":"MATCH(AJ$3,Millwall!$AP112:$AZ112,0)","v":{"$error":"#N/A"}},{"$f":"MATCH(AK$3,Millwall!$AP112:$AZ112,0)","v":{"$error":"#N/A"}},{"$f":"MATCH(AL$3,Millwall!$AP112:$AZ112,0)","v":{"$error":"#N/A"}},{"$f":"MATCH(AM$3,Millwall!$AP112:$AZ112,0)","v":{"$error":"#N/A"}},{"$f":"MATCH(AN$3,Millwall!$AP112:$AZ112,0)","v":{"$error":"#N/A"}},{"$f":"MATCH(AO$3,Millwall!$AP112:$AZ112,0)","v":{"$error":"#N/A"}},{"$f":"MATCH(AP$3,Millwall!$AP112:$AZ112,0)","v":{"$error":"#N/A"}},{"$f":"MATCH(AQ$3,Millwall!$AP112:$AZ112,0)","v":{"$error":"#N/A"}},{"$f":"MATCH(AR$3,Millwall!$AP112:$AZ112,0)","v":{"$error":"#N/A"}}]
[null,null,null,36,null,{"$f":"Millwall!AI113","v":"1955-03-26"},null,{"$f":"Millwall!AK113","v":"Colchester"},{"$f":"Millwall!AL113","v":"(H)"},{"$f":"Millwall!AO113","v":"W 5-2"},{"$f":"MATCH(K$3,Millwall!$AP113:$AZ113,0)","v":3},{"$f":"MATCH(L$3,Millwall!$AP113:$AZ113,0)","v":{"$error":"#N/A"}},{"$f":"MATCH(M$3,Millwall!$AP113:$AZ113,0)","v":{"$error":"#N/A"}},{"$f":"MATCH(N$3,Millwall!$AP113:$AZ113,0)","v":1},{"$f":"MATCH(O$3,Millwall!$AP113:$AZ113,0)","v":{"$error":"#N/A"}},{"$f":"MATCH(P$3,Millwall!$AP113:$AZ113,0)","v":{"$error":"#N/A"}},{"$f":"MATCH(Q$3,Millwall!$AP113:$AZ113,0)","v":7},{"$f":"MATCH(R$3,Millwall!$AP113:$AZ113,0)","v":{"$error":"#N/A"}},{"$f":"MATCH(S$3,Millwall!$AP113:$AZ113,0)","v":{"$error":"#N/A"}},{"$f":"MATCH(T$3,Millwall!$AP113:$AZ113,0)","v":5},{"$f":"MATCH(U$3,Millwall!$AP113:$AZ113,0)","v":2},{"$f":"MATCH(V$3,Millwall!$AP113:$AZ113,0)","v":{"$error":"#N/A"}},{"$f":"MATCH(W$3,Millwall!$AP113:$AZ113,0)","v":{"$error":"#N/A"}},{"$f":"MATCH(X$3,Millwall!$AP113:$AZ113,0)","v":{"$error":"#N/A"}},{"$f":"MATCH(Y$3,Millwall!$AP113:$AZ113,0)","v":6},{"$f":"MATCH(Z$3,Millwall!$AP113:$AZ113,0)","v":8},{"$f":"MATCH(AA$3,Millwall!$AP113:$AZ113,0)","v":{"$error":"#N/A"}},{"$f":"MATCH(AB$3,Millwall!$AP113:$AZ113,0)","v":{"$error":"#N/A"}},{"$f":"MATCH(AC$3,Millwall!$AP113:$AZ113,0)","v":{"$error":"#N/A"}},{"$f":"MATCH(AD$3,Millwall!$AP113:$AZ113,0)","v":{"$error":"#N/A"}},{"$f":"MATCH(AE$3,Millwall!$AP113:$AZ113,0)","v":10},{"$f":"MATCH(AF$3,Millwall!$AP113:$AZ113,0)","v":9},{"$f":"MATCH(AG$3,Millwall!$AP113:$AZ113,0)","v":4},{"$f":"MATCH(AH$3,Millwall!$AP113:$AZ113,0)","v":{"$error":"#N/A"}},{"$f":"MATCH(AI$3,Millwall!$AP113:$AZ113,0)","v":11},{"$f":"MATCH(AJ$3,Millwall!$AP113:$AZ113,0)","v":{"$error":"#N/A"}},{"$f":"MATCH(AK$3,Millwall!$AP113:$AZ113,0)","v":{"$error":"#N/A"}},{"$f":"MATCH(AL$3,Millwall!$AP113:$AZ113,0)","v":{"$error":"#N/A"}},{"$f":"MATCH(AM$3,Millwall!$AP113:$AZ113,0)","v":{"$error":"#N/A"}},{"$f":"MATCH(AN$3,Millwall!$AP113:$AZ113,0)","v":{"$error":"#N/A"}},{"$f":"MATCH(AO$3,Millwall!$AP113:$AZ113,0)","v":{"$error":"#N/A"}},{"$f":"MATCH(AP$3,Millwall!$AP113:$AZ113,0)","v":{"$error":"#N/A"}},{"$f":"MATCH(AQ$3,Millwall!$AP113:$AZ113,0)","v":{"$error":"#N/A"}},{"$f":"MATCH(AR$3,Millwall!$AP113:$AZ113,0)","v":{"$error":"#N/A"}}]
[null,null,null,37,null,{"$f":"Millwall!AI114","v":"1955-03-30"},null,{"$f":"Millwall!AK114","v":"Watford"},{"$f":"Millwall!AL114","v":"(A)"},{"$f":"Millwall!AO114","v":"L 3-5"},{"$f":"MATCH(K$3,Millwall!$AP114:$AZ114,0)","v":3},{"$f":"MATCH(L$3,Millwall!$AP114:$AZ114,0)","v":5},{"$f":"MATCH(M$3,Millwall!$AP114:$AZ114,0)","v":{"$error":"#N/A"}},{"$f":"MATCH(N$3,Millwall!$AP114:$AZ114,0)","v":1},{"$f":"MATCH(O$3,Millwall!$AP114:$AZ114,0)","v":{"$error":"#N/A"}},{"$f":"MATCH(P$3,Millwall!$AP114:$AZ114,0)","v":{"$error":"#N/A"}},{"$f":"MATCH(Q$3,Millwall!$AP114:$AZ114,0)","v":7},{"$f":"MATCH(R$3,Millwall!$AP114:$AZ114,0)","v":{"$error":"#N/A"}},{"$f":"MATCH(S$3,Millwall!$AP114:$AZ114,0)","v":{"$error":"#N/A"}},{"$f":"MATCH(T$3,Millwall!$AP114:$AZ114,0)","v":{"$error":"#N/A"}},{"$f":"MATCH(U$3,Millwall!$AP114:$AZ114,0)","v":2},{"$f":"MATCH(V$3,Millwall!$AP114:$AZ114,0)","v":{"$error":"#N/A"}},{"$f":"MATCH(W$3,Millwall!$AP114:$AZ114,0)","v":{"$error":"#N/A"}},{"$f":"MATCH(X$3,Millwall!$AP114:$AZ114,0)","v":{"$error":"#N/A"}},{"$f":"MATCH(Y$3,Millwall!$AP114:$AZ114,0)","v":6},{"$f":"MATCH(Z$3,Millwall!$AP114:$AZ114,0)","v":8},{"$f":"MATCH(AA$3,Millwall!$AP114:$AZ114,0)","v":11},{"$f":"MATCH(AB$3,Millwall!$AP114:$AZ114,0)","v":{"$error":"#N/A"}},{"$f":"MATCH(AC$3,Millwall!$AP114:$AZ114,0)","v":{"$error":"#N/A"}},{"$f":"MATCH(AD$3,Millwall!$AP114:$AZ114,0)","v":{"$error":"#N/A"}},{"$f":"MATCH(AE$3,Millwall!$AP114:$AZ114,0)","v":10},{"$f":"MATCH(AF$3,Millwall!$AP114:$AZ114,0)","v":{"$error":"#N/A"}},{"$f":"MATCH(AG$3,Millwall!$AP114:$AZ114,0)","v":4},{"$f":"MATCH(AH$3,Millwall!$AP114:$AZ114,0)","v":{"$error":"#N/A"}},{"$f":"MATCH(AI$3,Millwall!$AP114:$AZ114,0)","v":9},{"$f":"MATCH(AJ$3,Millwall!$AP114:$AZ114,0)","v":{"$error":"#N/A"}},{"$f":"MATCH(AK$3,Millwall!$AP114:$AZ114,0)","v":{"$error":"#N/A"}},{"$f":"MATCH(AL$3,Millwall!$AP114:$AZ114,0)","v":{"$error":"#N/A"}},{"$f":"MATCH(AM$3,Millwall!$AP114:$AZ114,0)","v":{"$error":"#N/A"}},{"$f":"MATCH(AN$3,Millwall!$AP114:$AZ114,0)","v":{"$error":"#N/A"}},{"$f":"MATCH(AO$3,Millwall!$AP114:$AZ114,0)","v":{"$error":"#N/A"}},{"$f":"MATCH(AP$3,Millwall!$AP114:$AZ114,0)","v":{"$error":"#N/A"}},{"$f":"MATCH(AQ$3,Millwall!$AP114:$AZ114,0)","v":{"$error":"#N/A"}},{"$f":"MATCH(AR$3,Millwall!$AP114:$AZ114,0)","v":{"$error":"#N/A"}}]
[null,null,null,38,null,{"$f":"Millwall!AI115","v":"1955-04-02"},null,{"$f":"Millwall!AK115","v":"Norwich"},{"$f":"Millwall!AL115","v":"(A)"},{"$f":"Millwall!AO115","v":"L 1-2"},{"$f":"MATCH(K$3,Millwall!$AP115:$AZ115,0)","v":3},{"$f":"MATCH(L$3,Millwall!$AP115:$AZ115,0)","v":{"$error":"#N/A"}},{"$f":"MATCH(M$3,Millwall!$AP115:$AZ115,0)","v":1},{"$f":"MATCH(N$3,Millwall!$AP115:$AZ115,0)","v":{"$error":"#N/A"}},{"$f":"MATCH(O$3,Millwall!$AP115:$AZ115,0)","v":{"$error":"#N/A"}},{"$f":"MATCH(P$3,Millwall!$AP115:$AZ115,0)","v":{"$error":"#N/A"}},{"$f":"MATCH(Q$3,Millwall!$AP115:$AZ115,0)","v":7},{"$f":"MATCH(R$3,Millwall!$AP115:$AZ115,0)","v":{"$error":"#N/A"}},{"$f":"MATCH(S$3,Millwall!$AP115:$AZ115,0)","v":{"$error":"#N/A"}},{"$f":"MATCH(T$3,Millwall!$AP115:$AZ115,0)","v":5},{"$f":"MATCH(U$3,Millwall!$AP115:$AZ115,0)","v":2},{"$f":"MATCH(V$3,Millwall!$AP115:$AZ115,0)","v":{"$error":"#N/A"}},{"$f":"MATCH(W$3,Millwall!$AP115:$AZ115,0)","v":{"$error":"#N/A"}},{"$f":"MATCH(X$3,Millwall!$AP115:$AZ115,0)","v":{"$error":"#N/A"}},{"$f":"MATCH(Y$3,Millwall!$AP115:$AZ115,0)","v":{"$error":"#N/A"}},{"$f":"MATCH(Z$3,Millwall!$AP115:$AZ115,0)","v":8},{"$f":"MATCH(AA$3,Millwall!$AP115:$AZ115,0)","v":11},{"$f":"MATCH(AB$3,Millwall!$AP115:$AZ115,0)","v":{"$error":"#N/A"}},{"$f":"MATCH(AC$3,Millwall!$AP115:$AZ115,0)","v":10},{"$f":"MATCH(AD$3,Millwall!$AP115:$AZ115,0)","v":{"$error":"#N/A"}},{"$f":"MATCH(AE$3,Millwall!$AP115:$AZ115,0)","v":6},{"$f":"MATCH(AF$3,Millwall!$AP115:$AZ115,0)","v":{"$error":"#N/A"}},{"$f":"MATCH(AG$3,Millwall!$AP115:$AZ115,0)","v":4},{"$f":"MATCH(AH$3,Millwall!$AP115:$AZ115,0)","v":{"$error":"#N/A"}},{"$f":"MATCH(AI$3,Millwall!$AP115:$AZ115,0)","v":9},{"$f":"MATCH(AJ$3,Millwall!$AP115:$AZ115,0)","v":{"$error":"#N/A"}},{"$f":"MATCH(AK$3,Millwall!$AP115:$AZ115,0)","v":{"$error":"#N/A"}},{"$f":"MATCH(AL$3,Millwall!$AP115:$AZ115,0)","v":{"$error":"#N/A"}},{"$f":"MATCH(AM$3,Millwall!$AP115:$AZ115,0)","v":{"$error":"#N/A"}},{"$f":"MATCH(AN$3,Millwall!$AP115:$AZ115,0)","v":{"$error":"#N/A"}},{"$f":"MATCH(AO$3,Millwall!$AP115:$AZ115,0)","v":{"$error":"#N/A"}},{"$f":"MATCH(AP$3,Millwall!$AP115:$AZ115,0)","v":{"$error":"#N/A"}},{"$f":"MATCH(AQ$3,Millwall!$AP115:$AZ115,0)","v":{"$error":"#N/A"}},{"$f":"MATCH(AR$3,Millwall!$AP115:$AZ115,0)","v":{"$error":"#N/A"}}]
[null,null,null,39,null,{"$f":"Millwall!AI116","v":"1955-04-08"},null,{"$f":"Millwall!AK116","v":"Coventry"},{"$f":"Millwall!AL116","v":"(H)"},{"$f":"Millwall!AO116","v":"W 3-1"},{"$f":"MATCH(K$3,Millwall!$AP116:$AZ116,0)","v":3},{"$f":"MATCH(L$3,Millwall!$AP116:$AZ116,0)","v":{"$error":"#N/A"}},{"$f":"MATCH(M$3,Millwall!$AP116:$AZ116,0)","v":{"$error":"#N/A"}},{"$f":"MATCH(N$3,Millwall!$AP116:$AZ116,0)","v":1},{"$f":"MATCH(O$3,Millwall!$AP116:$AZ116,0)","v":{"$error":"#N/A"}},{"$f":"MATCH(P$3,Millwall!$AP116:$AZ116,0)","v":{"$error":"#N/A"}},{"$f":"MATCH(Q$3,Millwall!$AP116:$AZ116,0)","v":7},{"$f":"MATCH(R$3,Millwall!$AP116:$AZ116,0)","v":{"$error":"#N/A"}},{"$f":"MATCH(S$3,Millwall!$AP116:$AZ116,0)","v":4},{"$f":"MATCH(T$3,Millwall!$AP116:$AZ116,0)","v":5},{"$f":"MATCH(U$3,Millwall!$AP116:$AZ116,0)","v":2},{"$f":"MATCH(V$3,Millwall!$AP116:$AZ116,0)","v":{"$error":"#N/A"}},{"$f":"MATCH(W$3,Millwall!$AP116:$AZ116,0)","v":{"$error":"#N/A"}},{"$f":"MATCH(X$3,Millwall!$AP116:$AZ116,0)","v":{"$error":"#N/A"}},{"$f":"MATCH(Y$3,Millwall!$AP116:$AZ116,0)","v":{"$error":"#N/A"}},{"$f":"MATCH(Z$3,Millwall!$AP116:$AZ116,0)","v":8},{"$f":"MATCH(AA$3,Millwall!$AP116:$AZ116,0)","v":11},{"$f":"MATCH(AB$3,Millwall!$AP116:$AZ116,0)","v":{"$error":"#N/A"}},{"$f":"MATCH(AC$3,Millwall!$AP116:$AZ116,0)","v":{"$error":"#N/A"}},{"$f":"MATCH(AD$3,Millwall!$AP116:$AZ116,0)","v":{"$error":"#N/A"}},{"$f":"MATCH(AE$3,Millwall!$AP116:$AZ116,0)","v":10},{"$f":"MATCH(AF$3,Millwall!$AP116:$AZ116,0)","v":{"$error":"#N/A"}},{"$f":"MATCH(AG$3,Millwall!$AP116:$AZ116,0)","v":{"$error":"#N/A"}},{"$f":"MATCH(AH$3,Millwall!$AP116:$AZ116,0)","v":{"$error":"#N/A"}},{"$f":"MATCH(AI$3,Millwall!$AP116:$AZ116,0)","v":9},{"$f":"MATCH(AJ$3,Millwall!$AP116:$AZ116,0)","v":6},{"$f":"MATCH(AK$3,Millwall!$AP116:$AZ116,0)","v":{"$error":"#N/A"}},{"$f":"MATCH(AL$3,Millwall!$AP116:$AZ116,0)","v":{"$error":"#N/A"}},{"$f":"MATCH(AM$3,Millwall!$AP116:$AZ116,0)","v":{"$error":"#N/A"}},{"$f":"MATCH(AN$3,Millwall!$AP116:$AZ116,0)","v":{"$error":"#N/A"}},{"$f":"MATCH(AO$3,Millwall!$AP116:$AZ116,0)","v":{"$error":"#N/A"}},{"$f":"MATCH(AP$3,Millwall!$AP116:$AZ116,0)","v":{"$error":"#N/A"}},{"$f":"MATCH(AQ$3,Millwall!$AP116:$AZ116,0)","v":{"$error":"#N/A"}},{"$f":"MATCH(AR$3,Millwall!$AP116:$AZ116,0)","v":{"$error":"#N/A"}}]
[null,null,null,40,null,{"$f":"Millwall!AI117","v":"1955-04-09"},null,{"$f":"Millwall!AK117","v":"Southend"},{"$f":"Millwall!AL117","v":"(H)"},{"$f":"Millwall!AO117","v":"L 1-4"},{"$f":"MATCH(K$3,Millwall!$AP117:$AZ117,0)","v":3},{"$f":"MATCH(L$3,Millwall!$AP117:$AZ117,0)","v":{"$error":"#N/A"}},{"$f":"MATCH(M$3,Millwall!$AP117:$AZ117,0)","v":{"$error":"#N/A"}},{"$f":"MATCH(N$3,Millwall!$AP117:$AZ117,0)","v":1},{"$f":"MATCH(O$3,Millwall!$AP117:$AZ117,0)","v":{"$error":"#N/A"}},{"$f":"MATCH(P$3,Millwall!$AP117:$AZ117,0)","v":{"$error":"#N/A"}},{"$f":"MATCH(Q$3,Millwall!$AP117:$AZ117,0)","v":7},{"$f":"MATCH(R$3,Millwall!$AP117:$AZ117,0)","v":{"$error":"#N/A"}},{"$f":"MATCH(S$3,Millwall!$AP117:$AZ117,0)","v":4},{"$f":"MATCH(T$3,Millwall!$AP117:$AZ117,0)","v":5},{"$f":"MATCH(U$3,Millwall!$AP117:$AZ117,0)","v":2},{"$f":"MATCH(V$3,Millwall!$AP117:$AZ117,0)","v":{"$error":"#N/A"}},{"$f":"MATCH(W$3,Millwall!$AP117:$AZ117,0)","v":{"$error":"#N/A"}},{"$f":"MATCH(X$3,Millwall!$AP117:$AZ117,0)","v":{"$error":"#N/A"}},{"$f":"MATCH(Y$3,Millwall!$AP117:$AZ117,0)","v":{"$error":"#N/A"}},{"$f":"MATCH(Z$3,Millwall!$AP117:$AZ117,0)","v":8},{"$f":"MATCH(AA$3,Millwall!$AP117:$AZ117,0)","v":11},{"$f":"MATCH(AB$3,Millwall!$AP117:$AZ117,0)","v":{"$error":"#N/A"}},{"$f":"MATCH(AC$3,Millwall!$AP117:$AZ117,0)","v":{"$error":"#N/A"}},{"$f":"MATCH(AD$3,Millwall!$AP117:$AZ117,0)","v":{"$error":"#N/A"}},{"$f":"MATCH(AE$3,Millwall!$AP117:$AZ117,0)","v":10},{"$f":"MATCH(AF$3,Millwall!$AP117:$AZ117,0)","v":{"$error":"#N/A"}},{"$f":"MATCH(AG$3,Millwall!$AP117:$AZ117,0)","v":{"$error":"#N/A"}},{"$f":"MATCH(AH$3,Millwall!$AP117:$AZ117,0)","v":{"$error":"#N/A"}},{"$f":"MATCH(AI$3,Millwall!$AP117:$AZ117,0)","v":9},{"$f":"MATCH(AJ$3,Millwall!$AP117:$AZ117,0)","v":6},{"$f":"MATCH(AK$3,Millwall!$AP117:$AZ117,0)","v":{"$error":"#N/A"}},{"$f":"MATCH(AL$3,Millwall!$AP117:$AZ117,0)","v":{"$error":"#N/A"}},{"$f":"MATCH(AM$3,Millwall!$AP117:$AZ117,0)","v":{"$error":"#N/A"}},{"$f":"MATCH(AN$3,Millwall!$AP117:$AZ117,0)","v":{"$error":"#N/A"}},{"$f":"MATCH(AO$3,Millwall!$AP117:$AZ117,0)","v":{"$error":"#N/A"}},{"$f":"MATCH(AP$3,Millwall!$AP117:$AZ117,0)","v":{"$error":"#N/A"}},{"$f":"MATCH(AQ$3,Millwall!$AP117:$AZ117,0)","v":{"$error":"#N/A"}},{"$f":"MATCH(AR$3,Millwall!$AP117:$AZ117,0)","v":{"$error":"#N/A"}}]
[null,null,null,41,null,{"$f":"Millwall!AI118","v":"1955-04-12"},null,{"$f":"Millwall!AK118","v":"Coventry"},{"$f":"Millwall!AL118","v":"(A)"},{"$f":"Millwall!AO118","v":"L 1-4"},{"$f":"MATCH(K$3,Millwall!$AP118:$AZ118,0)","v":3},{"$f":"MATCH(L$3,Millwall!$AP118:$AZ118,0)","v":{"$error":"#N/A"}},{"$f":"MATCH(M$3,Millwall!$AP118:$AZ118,0)","v":{"$error":"#N/A"}},{"$f":"MATCH(N$3,Millwall!$AP118:$AZ118,0)","v":1},{"$f":"MATCH(O$3,Millwall!$AP118:$AZ118,0)","v":{"$error":"#N/A"}},{"$f":"MATCH(P$3,Millwall!$AP118:$AZ118,0)","v":{"$error":"#N/A"}},{"$f":"MATCH(Q$3,Millwall!$AP118:$AZ118,0)","v":7},{"$f":"MATCH(R$3,Millwall!$AP118:$AZ118,0)","v":{"$error":"#N/A"}},{"$f":"MATCH(S$3,Millwall!$AP118:$AZ118,0)","v":{"$error":"#N/A"}},{"$f":"MATCH(T$3,Millwall!$AP118:$AZ118,0)","v":5},{"$f":"MATCH(U$3,Millwall!$AP118:$AZ118,0)","v":2},{"$f":"MATCH(V$3,Millwall!$AP118:$AZ118,0)","v":{"$error":"#N/A"}},{"$f":"MATCH(W$3,Millwall!$AP118:$AZ118,0)","v":{"$error":"#N/A"}},{"$f":"MATCH(X$3,Millwall!$AP118:$AZ118,0)","v":{"$error":"#N/A"}},{"$f":"MATCH(Y$3,Millwall!$AP118:$AZ118,0)","v":{"$error":"#N/A"}},{"$f":"MATCH(Z$3,Millwall!$AP118:$AZ118,0)","v":9},{"$f":"MATCH(AA$3,Millwall!$AP118:$AZ118,0)","v":11},{"$f":"MATCH(AB$3,Millwall!$AP118:$AZ118,0)","v":{"$error":"#N/A"}},{"$f":"MATCH(AC$3,Millwall!$AP118:$AZ118,0)","v":10},{"$f":"MATCH(AD$3,Millwall!$AP118:$AZ118,0)","v":{"$error":"#N/A"}},{"$f":"MATCH(AE$3,Millwall!$AP118:$AZ118,0)","v":6},{"$f":"MATCH(AF$3,Millwall!$AP118:$AZ118,0)","v":{"$error":"#N/A"}},{"$f":"MATCH(AG$3,Millwall!$AP118:$AZ118,0)","v":4},{"$f":"MATCH(AH$3,Millwall!$AP118:$AZ118,0)","v":8},{"$f":"MATCH(AI$3,Millwall!$AP118:$AZ118,0)","v":{"$error":"#N/A"}},{"$f":"MATCH(AJ$3,Millwall!$AP118:$AZ118,0)","v":{"$error":"#N/A"}},{"$f":"MATCH(AK$3,Millwall!$AP118:$AZ118,0)","v":{"$error":"#N/A"}},{"$f":"MATCH(AL$3,Millwall!$AP118:$AZ118,0)","v":{"$error":"#N/A"}},{"$f":"MATCH(AM$3,Millwall!$AP118:$AZ118,0)","v":{"$error":"#N/A"}},{"$f":"MATCH(AN$3,Millwall!$AP118:$AZ118,0)","v":{"$error":"#N/A"}},{"$f":"MATCH(AO$3,Millwall!$AP118:$AZ118,0)","v":{"$error":"#N/A"}},{"$f":"MATCH(AP$3,Millwall!$AP118:$AZ118,0)","v":{"$error":"#N/A"}},{"$f":"MATCH(AQ$3,Millwall!$AP118:$AZ118,0)","v":{"$error":"#N/A"}},{"$f":"MATCH(AR$3,Millwall!$AP118:$AZ118,0)","v":{"$error":"#N/A"}}]
[null,null,null,42,null,{"$f":"Millwall!AI119","v":"1955-04-16"},null,{"$f":"Millwall!AK119","v":"Aldershot"},{"$f":"Millwall!AL119","v":"(A)"},{"$f":"Millwall!AO119","v":"L 0-3"},{"$f":"MATCH(K$3,Millwall!$AP119:$AZ119,0)","v":3},{"$f":"MATCH(L$3,Millwall!$AP119:$AZ119,0)","v":{"$error":"#N/A"}},{"$f":"MATCH(M$3,Millwall!$AP119:$AZ119,0)","v":{"$error":"#N/A"}},{"$f":"MATCH(N$3,Millwall!$AP119:$AZ119,0)","v":1},{"$f":"MATCH(O$3,Millwall!$AP119:$AZ119,0)","v":{"$error":"#N/A"}},{"$f":"MATCH(P$3,Millwall!$AP119:$AZ119,0)","v":{"$error":"#N/A"}},{"$f":"MATCH(Q$3,Millwall!$AP119:$AZ119,0)","v":7},{"$f":"MATCH(R$3,Millwall!$AP119:$AZ119,0)","v":{"$error":"#N/A"}},{"$f":"MATCH(S$3,Millwall!$AP119:$AZ119,0)","v":4},{"$f":"MATCH(T$3,Millwall!$AP119:$AZ119,0)","v":5},{"$f":"MATCH(U$3,Millwall!$AP119:$AZ119,0)","v":2},{"$f":"MATCH(V$3,Millwall!$AP119:$AZ119,0)","v":{"$error":"#N/A"}},{"$f":"MATCH(W$3,Millwall!$AP119:$AZ119,0)","v":{"$error":"#N/A"}},{"$f":"MATCH(X$3,Millwall!$AP119:$AZ119,0)","v":{"$error":"#N/A"}},{"$f":"MATCH(Y$3,Millwall!$AP119:$AZ119,0)","v":6},{"$f":"MATCH(Z$3,Millwall!$AP119:$AZ119,0)","v":8},{"$f":"MATCH(AA$3,Millwall!$AP119:$AZ119,0)","v":11},{"$f":"MATCH(AB$3,Millwall!$AP119:$AZ119,0)","v":{"$error":"#N/A"}},{"$f":"MATCH(AC$3,Millwall!$AP119:$AZ119,0)","v":{"$error":"#N/A"}},{"$f":"MATCH(AD$3,Millwall!$AP119:$AZ119,0)","v":{"$error":"#N/A"}},{"$f":"MATCH(AE$3,Millwall!$AP119:$AZ119,0)","v":10},{"$f":"MATCH(AF$3,Millwall!$AP119:$AZ119,0)","v":{"$error":"#N/A"}},{"$f":"MATCH(AG$3,Millwall!$AP119:$AZ119,0)","v":{"$error":"#N/A"}},{"$f":"MATCH(AH$3,Millwall!$AP119:$AZ119,0)","v":{"$error":"#N/A"}},{"$f":"MATCH(AI$3,Millwall!$AP119:$AZ119,0)","v":9},{"$f":"MATCH(AJ$3,Millwall!$AP119:$AZ119,0)","v":{"$error":"#N/A"}},{"$f":"MATCH(AK$3,Millwall!$AP119:$AZ119,0)","v":{"$error":"#N/A"}},{"$f":"MATCH(AL$3,Millwall!$AP119:$AZ119,0)","v":{"$error":"#N/A"}},{"$f":"MATCH(AM$3,Millwall!$AP119:$AZ119,0)","v":{"$error":"#N/A"}},{"$f":"MATCH(AN$3,Millwall!$AP119:$AZ119,0)","v":{"$error":"#N/A"}},{"$f":"MATCH(AO$3,Millwall!$AP119:$AZ119,0)","v":{"$error":"#N/A"}},{"$f":"MATCH(AP$3,Millwall!$AP119:$AZ119,0)","v":{"$error":"#N/A"}},{"$f":"MATCH(AQ$3,Millwall!$AP119:$AZ119,0)","v":{"$error":"#N/A"}},{"$f":"MATCH(AR$3,Millwall!$AP119:$AZ119,0)","v":{"$error":"#N/A"}}]
[null,null,null,43,null,{"$f":"Millwall!AI120","v":"1955-04-23"},null,{"$f":"Millwall!AK120","v":"Swindon"},{"$f":"Millwall!AL120","v":"(H)"},{"$f":"Millwall!AO120","v":"W 1-0"},{"$f":"MATCH(K$3,Millwall!$AP120:$AZ120,0)","v":3},{"$f":"MATCH(L$3,Millwall!$AP120:$AZ120,0)","v":{"$error":"#N/A"}},{"$f":"MATCH(M$3,Millwall!$AP120:$AZ120,0)","v":{"$error":"#N/A"}},{"$f":"MATCH(N$3,Millwall!$AP120:$AZ120,0)","v":1},{"$f":"MATCH(O$3,Millwall!$AP120:$AZ120,0)","v":{"$error":"#N/A"}},{"$f":"MATCH(P$3,Millwall!$AP120:$AZ120,0)","v":{"$error":"#N/A"}},{"$f":"MATCH(Q$3,Millwall!$AP120:$AZ120,0)","v":7},{"$f":"MATCH(R$3,Millwall!$AP120:$AZ120,0)","v":{"$error":"#N/A"}},{"$f":"MATCH(S$3,Millwall!$AP120:$AZ120,0)","v":{"$error":"#N/A"}},{"$f":"MATCH(T$3,Millwall!$AP120:$AZ120,0)","v":5},{"$f":"MATCH(U$3,Millwall!$AP120:$AZ120,0)","v":2},{"$f":"MATCH(V$3,Millwall!$AP120:$AZ120,0)","v":{"$error":"#N/A"}},{"$f":"MATCH(W$3,Millwall!$AP120:$AZ120,0)","v":{"$error":"#N/A"}},{"$f":"MATCH(X$3,Millwall!$AP120:$AZ120,0)","v":{"$error":"#N/A"}},{"$f":"MATCH(Y$3,Millwall!$AP120:$AZ120,0)","v":{"$error":"#N/A"}},{"$f":"MATCH(Z$3,Millwall!$AP120:$AZ120,0)","v":8},{"$f":"MATCH(AA$3,Millwall!$AP120:$AZ120,0)","v":{"$error":"#N/A"}},{"$f":"MATCH(AB$3,Millwall!$AP120:$AZ120,0)","v":{"$error":"#N/A"}},{"$f":"MATCH(AC$3,Millwall!$AP120:$AZ120,0)","v":{"$error":"#N/A"}},{"$f":"MATCH(AD$3,Millwall!$AP120:$AZ120,0)","v":{"$error":"#N/A"}},{"$f":"MATCH(AE$3,Millwall!$AP120:$AZ120,0)","v":6},{"$f":"MATCH(AF$3,Millwall!$AP120:$AZ120,0)","v":9},{"$f":"MATCH(AG$3,Millwall!$AP120:$AZ120,0)","v":4},{"$f":"MATCH(AH$3,Millwall!$AP120:$AZ120,0)","v":10},{"$f":"MATCH(AI$3,Millwall!$AP120:$AZ120,0)","v":11},{"$f":"MATCH(AJ$3,Millwall!$AP120:$AZ120,0)","v":{"$error":"#N/A"}},{"$f":"MATCH(AK$3,Millwall!$AP120:$AZ120,0)","v":{"$error":"#N/A"}},{"$f":"MATCH(AL$3,Millwall!$AP120:$AZ120,0)","v":{"$error":"#N/A"}},{"$f":"MATCH(AM$3,Millwall!$AP120:$AZ120,0)","v":{"$error":"#N/A"}},{"$f":"MATCH(AN$3,Millwall!$AP120:$AZ120,0)","v":{"$error":"#N/A"}},{"$f":"MATCH(AO$3,Millwall!$AP120:$AZ120,0)","v":{"$error":"#N/A"}},{"$f":"MATCH(AP$3,Millwall!$AP120:$AZ120,0)","v":{"$error":"#N/A"}},{"$f":"MATCH(AQ$3,Millwall!$AP120:$AZ120,0)","v":{"$error":"#N/A"}},{"$f":"MATCH(AR$3,Millwall!$AP120:$AZ120,0)","v":{"$error":"#N/A"}}]
[null,null,null,44,null,{"$f":"Millwall!AI121","v":"1955-04-26"},null,{"$f":"Millwall!AK121","v":"Southend"},{"$f":"Millwall!AL121","v":"(A)"},{"$f":"Millwall!AO121","v":"L 0-1"},{"$f":"MATCH(K$3,Millwall!$AP121:$AZ121,0)","v":3},{"$f":"MATCH(L$3,Millwall!$AP121:$AZ121,0)","v":{"$error":"#N/A"}},{"$f":"MATCH(M$3,Millwall!$AP121:$AZ121,0)","v":{"$error":"#N/A"}},{"$f":"MATCH(N$3,Millwall!$AP121:$AZ121,0)","v":1},{"$f":"MATCH(O$3,Millwall!$AP121:$AZ121,0)","v":{"$error":"#N/A"}},{"$f":"MATCH(P$3,Millwall!$AP121:$AZ121,0)","v":{"$error":"#N/A"}},{"$f":"MATCH(Q$3,Millwall!$AP121:$AZ121,0)","v":7},{"$f":"MATCH(R$3,Millwall!$AP121:$AZ121,0)","v":{"$error":"#N/A"}},{"$f":"MATCH(S$3,Millwall!$AP121:$AZ121,0)","v":{"$error":"#N/A"}},{"$f":"MATCH(T$3,Millwall!$AP121:$AZ121,0)","v":5},{"$f":"MATCH(U$3,Millwall!$AP121:$AZ121,0)","v":2},{"$f":"MATCH(V$3,Millwall!$AP121:$AZ121,0)","v":{"$error":"#N/A"}},{"$f":"MATCH(W$3,Millwall!$AP121:$AZ121,0)","v":{"$error":"#N/A"}},{"$f":"MATCH(X$3,Millwall!$AP121:$AZ121,0)","v":{"$error":"#N/A"}},{"$f":"MATCH(Y$3,Millwall!$AP121:$AZ121,0)","v":{"$error":"#N/A"}},{"$f":"MATCH(Z$3,Millwall!$AP121:$AZ121,0)","v":8},{"$f":"MATCH(AA$3,Millwall!$AP121:$AZ121,0)","v":11},{"$f":"MATCH(AB$3,Millwall!$AP121:$AZ121,0)","v":{"$error":"#N/A"}},{"$f":"MATCH(AC$3,Millwall!$AP121:$AZ121,0)","v":{"$error":"#N/A"}},{"$f":"MATCH(AD$3,Millwall!$AP121:$AZ121,0)","v":{"$error":"#N/A"}},{"$f":"MATCH(AE$3,Millwall!$AP121:$AZ121,0)","v":6},{"$f":"MATCH(AF$3,Millwall!$AP121:$AZ121,0)","v":{"$error":"#N/A"}},{"$f":"MATCH(AG$3,Millwall!$AP121:$AZ121,0)","v":4},{"$f":"MATCH(AH$3,Millwall!$AP121:$AZ121,0)","v":10},{"$f":"MATCH(AI$3,Millwall!$AP121:$AZ121,0)","v":9},{"$f":"MATCH(AJ$3,Millwall!$AP121:$AZ121,0)","v":{"$error":"#N/A"}},{"$f":"MATCH(AK$3,Millwall!$AP121:$AZ121,0)","v":{"$error":"#N/A"}},{"$f":"MATCH(AL$3,Millwall!$AP121:$AZ121,0)","v":{"$error":"#N/A"}},{"$f":"MATCH(AM$3,Millwall!$AP121:$AZ121,0)","v":{"$error":"#N/A"}},{"$f":"MATCH(AN$3,Millwall!$AP121:$AZ121,0)","v":{"$error":"#N/A"}},{"$f":"MATCH(AO$3,Millwall!$AP121:$AZ121,0)","v":{"$error":"#N/A"}},{"$f":"MATCH(AP$3,Millwall!$AP121:$AZ121,0)","v":{"$error":"#N/A"}},{"$f":"MATCH(AQ$3,Millwall!$AP121:$AZ121,0)","v":{"$error":"#N/A"}},{"$f":"MATCH(AR$3,Millwall!$AP121:$AZ121,0)","v":{"$error":"#N/A"}}]
[null,null,null,45,null,{"$f":"Millwall!AI122","v":"1955-04-30"},null,{"$f":"Millwall!AK122","v":"Exeter"},{"$f":"Millwall!AL122","v":"(A)"},{"$f":"Millwall!AO122","v":"W 4-1"},{"$f":"MATCH(K$3,Millwall!$AP122:$AZ122,0)","v":3},{"$f":"MATCH(L$3,Millwall!$AP122:$AZ122,0)","v":{"$error":"#N/A"}},{"$f":"MATCH(M$3,Millwall!$AP122:$AZ122,0)","v":{"$error":"#N/A"}},{"$f":"MATCH(N$3,Millwall!$AP122:$AZ122,0)","v":1},{"$f":"MATCH(O$3,Millwall!$AP122:$AZ122,0)","v":{"$error":"#N/A"}},{"$f":"MATCH(P$3,Millwall!$AP122:$AZ122,0)","v":{"$error":"#N/A"}},{"$f":"MATCH(Q$3,Millwall!$AP122:$AZ122,0)","v":7},{"$f":"MATCH(R$3,Millwall!$AP122:$AZ122,0)","v":{"$error":"#N/A"}},{"$f":"MATCH(S$3,Millwall!$AP122:$AZ122,0)","v":{"$error":"#N/A"}},{"$f":"MATCH(T$3,Millwall!$AP122:$AZ122,0)","v":5},{"$f":"MATCH(U$3,Millwall!$AP122:$AZ122,0)","v":2},{"$f":"MATCH(V$3,Millwall!$AP122:$AZ122,0)","v":{"$error":"#N/A"}},{"$f":"MATCH(W$3,Millwall!$AP122:$AZ122,0)","v":{"$error":"#N/A"}},{"$f":"MATCH(X$3,Millwall!$AP122:$AZ122,0)","v":{"$error":"#N/A"}},{"$f":"MATCH(Y$3,Millwall!$AP122:$AZ122,0)","v":{"$error":"#N/A"}},{"$f":"MATCH(Z$3,Millwall!$AP122:$AZ122,0)","v":8},{"$f":"MATCH(AA$3,Millwall!$AP122:$AZ122,0)","v":11},{"$f":"MATCH(AB$3,Millwall!$AP122:$AZ122,0)","v":{"$error":"#N/A"}},{"$f":"MATCH(AC$3,Millwall!$AP122:$AZ122,0)","v":{"$error":"#N/A"}},{"$f":"MATCH(AD$3,Millwall!$AP122:$AZ122,0)","v":{"$error":"#N/A"}},{"$f":"MATCH(AE$3,Millwall!$AP122:$AZ122,0)","v":6},{"$f":"MATCH(AF$3,Millwall!$AP122:$AZ122,0)","v":{"$error":"#N/A"}},{"$f":"MATCH(AG$3,Millwall!$AP122:$AZ122,0)","v":4},{"$f":"MATCH(AH$3,Millwall!$AP122:$AZ122,0)","v":10},{"$f":"MATCH(AI$3,Millwall!$AP122:$AZ122,0)","v":9},{"$f":"MATCH(AJ$3,Millwall!$AP122:$AZ122,0)","v":{"$error":"#N/A"}},{"$f":"MATCH(AK$3,Millwall!$AP122:$AZ122,0)","v":{"$error":"#N/A"}},{"$f":"MATCH(AL$3,Millwall!$AP122:$AZ122,0)","v":{"$error":"#N/A"}},{"$f":"MATCH(AM$3,Millwall!$AP122:$AZ122,0)","v":{"$error":"#N/A"}},{"$f":"MATCH(AN$3,Millwall!$AP122:$AZ122,0)","v":{"$error":"#N/A"}},{"$f":"MATCH(AO$3,Millwall!$AP122:$AZ122,0)","v":{"$error":"#N/A"}},{"$f":"MATCH(AP$3,Millwall!$AP122:$AZ122,0)","v":{"$error":"#N/A"}},{"$f":"MATCH(AQ$3,Millwall!$AP122:$AZ122,0)","v":{"$error":"#N/A"}},{"$f":"MATCH(AR$3,Millwall!$AP122:$AZ122,0)","v":{"$error":"#N/A"}}]
[null,null,null,46,null,{"$f":"Millwall!AI123","v":"1955-05-02"},null,{"$f":"Millwall!AK123","v":"Exeter"},{"$f":"Millwall!AL123","v":"(H)"},{"$f":"Millwall!AO123","v":"D 2-2"},{"$f":"MATCH(K$3,Millwall!$AP123:$AZ123,0)","v":3},{"$f":"MATCH(L$3,Millwall!$AP123:$AZ123,0)","v":{"$error":"#N/A"}},{"$f":"MATCH(M$3,Millwall!$AP123:$AZ123,0)","v":{"$error":"#N/A"}},{"$f":"MATCH(N$3,Millwall!$AP123:$AZ123,0)","v":1},{"$f":"MATCH(O$3,Millwall!$AP123:$AZ123,0)","v":{"$error":"#N/A"}},{"$f":"MATCH(P$3,Millwall!$AP123:$AZ123,0)","v":{"$error":"#N/A"}},{"$f":"MATCH(Q$3,Millwall!$AP123:$AZ123,0)","v":7},{"$f":"MATCH(R$3,Millwall!$AP123:$AZ123,0)","v":{"$error":"#N/A"}},{"$f":"MATCH(S$3,Millwall!$AP123:$AZ123,0)","v":{"$error":"#N/A"}},{"$f":"MATCH(T$3,Millwall!$AP123:$AZ123,0)","v":5},{"$f":"MATCH(U$3,Millwall!$AP123:$AZ123,0)","v":2},{"$f":"MATCH(V$3,Millwall!$AP123:$AZ123,0)","v":{"$error":"#N/A"}},{"$f":"MATCH(W$3,Millwall!$AP123:$AZ123,0)","v":{"$error":"#N/A"}},{"$f":"MATCH(X$3,Millwall!$AP123:$AZ123,0)","v":{"$error":"#N/A"}},{"$f":"MATCH(Y$3,Millwall!$AP123:$AZ123,0)","v":{"$error":"#N/A"}},{"$f":"MATCH(Z$3,Millwall!$AP123:$AZ123,0)","v":8},{"$f":"MATCH(AA$3,Millwall!$AP123:$AZ123,0)","v":11},{"$f":"MATCH(AB$3,Millwall!$AP123:$AZ123,0)","v":{"$error":"#N/A"}},{"$f":"MATCH(AC$3,Millwall!$AP123:$AZ123,0)","v":{"$error":"#N/A"}},{"$f":"MATCH(AD$3,Millwall!$AP123:$AZ123,0)","v":{"$error":"#N/A"}},{"$f":"MATCH(AE$3,Millwall!$AP123:$AZ123,0)","v":6},{"$f":"MATCH(AF$3,Millwall!$AP123:$AZ123,0)","v":{"$error":"#N/A"}},{"$f":"MATCH(AG$3,Millwall!$AP123:$AZ123,0)","v":4},{"$f":"MATCH(AH$3,Millwall!$AP123:$AZ123,0)","v":10},{"$f":"MATCH(AI$3,Millwall!$AP123:$AZ123,0)","v":9},{"$f":"MATCH(AJ$3,Millwall!$AP123:$AZ123,0)","v":{"$error":"#N/A"}},{"$f":"MATCH(AK$3,Millwall!$AP123:$AZ123,0)","v":{"$error":"#N/A"}},{"$f":"MATCH(AL$3,Millwall!$AP123:$AZ123,0)","v":{"$error":"#N/A"}},{"$f":"MATCH(AM$3,Millwall!$AP123:$AZ123,0)","v":{"$error":"#N/A"}},{"$f":"MATCH(AN$3,Millwall!$AP123:$AZ123,0)","v":{"$error":"#N/A"}},{"$f":"MATCH(AO$3,Millwall!$AP123:$AZ123,0)","v":{"$error":"#N/A"}},{"$f":"MATCH(AP$3,Millwall!$AP123:$AZ123,0)","v":{"$error":"#N/A"}},{"$f":"MATCH(AQ$3,Millwall!$AP123:$AZ123,0)","v":{"$error":"#N/A"}},{"$f":"MATCH(AR$3,Millwall!$AP123:$AZ123,0)","v":{"$error":"#N/A"}}]
[]
[null,null,null,null,null,null,null,null,null,"Total League Apperances",{"$f":"COUNT(K4:K49)","v":38},7,3,43,5,1,24,2,31,38,46,22,6,6,5,33,31,2,30,3,30,6,31,28,31,3,{"$f":"COUNT(AK4:AK49)","v":1},0,0,0,0,0,0,0]
[null,null,null,null,null,null,null,null,null,"Goals",{"$f":"Millwall!$BX$7","v":0},{"$f":"Millwall!$BX$8","v":0},{"$f":"Millwall!$BX$9","v":0},{"$f":"Millwall!$BX$10","v":0},{"$f":"Millwall!$BX$11","v":0},{"$f":"Millwall!$BX$12","v":0},{"$f":"Millwall!$BX$13","v":3},{"$f":"Millwall!$BX$14","v":0},{"$f":"Millwall!$BX$15","v":0},{"$f":"Millwall!$BX$16","v":0},{"$f":"Millwall!$BX$17","v":5},{"$f":"Millwall!$BX$18","v":3},{"$f":"Millwall!$BX$19","v":2},{"$f":"Millwall!$BX$20","v":3},{"$f":"Millwall!$BX$21","v":0},{"$f":"Millwall!$BX$22","v":12},{"$f":"Millwall!$BX$23","v":10},{"$f":"Millwall!$BX$24","v":0},{"$f":"Millwall!$BX$25","v":5},{"$f":"Millwall!$BX$26","v":0},{"$f":"Millwall!$BX$27","v":1},{"$f":"Millwall!$BX$28","v":2},{"$f":"Millwall!$BX$29","v":3},{"$f":"Millwall!$BX$30","v":8},{"$f":"Millwall!$BX$31","v":13},{"$f":"Millwall!$BX$32","v":0},{"$f":"Millwall!$BX$33","v":0}]
[null,null,null,null,null,null,null,"FA Cup"]
[null,null,null,1,null,{"$f":"Millwall!AI136","v":"1954-11-20"},null,{"$f":"Millwall!AK136","v":"Exeter"},{"$f":"Millwall!AL136","v":"(H)"},{"$f":"Millwall!AO136","v":"W 3-2"},{"$f":"MATCH(K$3,Millwall!$AP136:$AZ136,0)","v":3},{"$f":"MATCH(L$3,Millwall!$AP136:$AZ136,0)","v":{"$error":"#N/A"}},{"$f":"MATCH(M$3,Millwall!$AP136:$AZ136,0)","v":{"$error":"#N/A"}},{"$f":"MATCH(N$3,Millwall!$AP136:$AZ136,0)","v":1},{"$f":"MATCH(O$3,Millwall!$AP136:$AZ136,0)","v":{"$error":"#N/A"}},{"$f":"MATCH(P$3,Millwall!$AP136:$AZ136,0)","v":{"$error":"#N/A"}},{"$f":"MATCH(Q$3,Millwall!$AP136:$AZ136,0)","v":7},{"$f":"MATCH(R$3,Millwall!$AP136:$AZ136,0)","v":{"$error":"#N/A"}},{"$f":"MATCH(S$3,Millwall!$AP136:$AZ136,0)","v":6},{"$f":"MATCH(T$3,Millwall!$AP136:$AZ136,0)","v":5},{"$f":"MATCH(U$3,Millwall!$AP136:$AZ136,0)","v":2},{"$f":"MATCH(V$3,Millwall!$AP136:$AZ136,0)","v":{"$error":"#N/A"}},{"$f":"MATCH(W$3,Millwall!$AP136:$AZ136,0)","v":{"$error":"#N/A"}},{"$f":"MATCH(X$3,Millwall!$AP136:$AZ136,0)","v":{"$error":"#N/A"}},{"$f":"MATCH(Y$3,Millwall!$AP136:$AZ136,0)","v":{"$error":"#N/A"}},{"$f":"MATCH(Z$3,Millwall!$AP136:$AZ136,0)","v":9},{"$f":"MATCH(AA$3,Millwall!$AP136:$AZ136,0)","v":11},{"$f":"MATCH(AB$3,Millwall!$AP136:$AZ136,0)","v":{"$error":"#N/A"}},{"$f":"MATCH(AC$3,Millwall!$AP136:$AZ136,0)","v":10},{"$f":"MATCH(AD$3,Millwall!$AP136:$AZ136,0)","v":{"$error":"#N/A"}},{"$f":"MATCH(AE$3,Millwall!$AP136:$AZ136,0)","v":{"$error":"#N/A"}},{"$f":"MATCH(AF$3,Millwall!$AP136:$AZ136,0)","v":{"$error":"#N/A"}},{"$f":"MATCH(AG$3,Millwall!$AP136:$AZ136,0)","v":4},{"$f":"MATCH(AH$3,Millwall!$AP136:$AZ136,0)","v":8},{"$f":"MATCH(AI$3,Millwall!$AP136:$AZ136,0)","v":{"$error":"#N/A"}},{"$f":"MATCH(AJ$3,Millwall!$AP136:$AZ136,0)","v":{"$error":"#N/A"}},{"$f":"MATCH(AK$3,Millwall!$AP136:$AZ136,0)","v":{"$error":"#N/A"}},{"$f":"MATCH(AL$3,Millwall!$AP136:$AZ136,0)","v":{"$error":"#N/A"}},{"$f":"MATCH(AM$3,Millwall!$AP136:$AZ136,0)","v":{"$error":"#N/A"}},{"$f":"MATCH(AN$3,Millwall!$AP136:$AZ136,0)","v":{"$error":"#N/A"}},{"$f":"MATCH(AO$3,Millwall!$AP136:$AZ136,0)","v":{"$error":"#N/A"}},{"$f":"MATCH(AP$3,Millwall!$AP136:$AZ136,0)","v":{"$error":"#N/A"}},{"$f":"MATCH(AQ$3,Millwall!$AP136:$AZ136,0)","v":{"$error":"#N/A"}},{"$f":"MATCH(AR$3,Millwall!$AP136:$AZ136,0)","v":{"$error":"#N/A"}}]
[null,null,null,2,null,{"$f":"Millwall!AI137","v":"1954-12-11"},null,{"$f":"Millwall!AK137","v":"Accrington Stanley"},{"$f":"Millwall!AL137","v":"(H)"},{"$f":"Millwall!AO137","v":"W 3-2"},{"$f":"MATCH(K$3,Millwall!$AP137:$AZ137,0)","v":3},{"$f":"MATCH(L$3,Millwall!$AP137:$AZ137,0)","v":{"$error":"#N/A"}},{"$f":"MATCH(M$3,Millwall!$AP137:$AZ137,0)","v":{"$error":"#N/A"}},{"$f":"MATCH(N$3,Millwall!$AP137:$AZ137,0)","v":1},{"$f":"MATCH(O$3,Millwall!$AP137:$AZ137,0)","v":{"$error":"#N/A"}},{"$f":"MATCH(P$3,Millwall!$AP137:$AZ137,0)","v":{"$error":"#N/A"}},{"$f":"MATCH(Q$3,Millwall!$AP137:$AZ137,0)","v":7},{"$f":"MATCH(R$3,Millwall!$AP137:$AZ137,0)","v":{"$error":"#N/A"}},{"$f":"MATCH(S$3,Millwall!$AP137:$AZ137,0)","v":6},{"$f":"MATCH(T$3,Millwall!$AP137:$AZ137,0)","v":5},{"$f":"MATCH(U$3,Millwall!$AP137:$AZ137,0)","v":2},{"$f":"MATCH(V$3,Millwall!$AP137:$AZ137,0)","v":{"$error":"#N/A"}},{"$f":"MATCH(W$3,Millwall!$AP137:$AZ137,0)","v":{"$error":"#N/A"}},{"$f":"MATCH(X$3,Millwall!$AP137:$AZ137,0)","v":{"$error":"#N/A"}},{"$f":"MATCH(Y$3,Millwall!$AP137:$AZ137,0)","v":{"$error":"#N/A"}},{"$f":"MATCH(Z$3,Millwall!$AP137:$AZ137,0)","v":9},{"$f":"MATCH(AA$3,Millwall!$AP137:$AZ137,0)","v":11},{"$f":"MATCH(AB$3,Millwall!$AP137:$AZ137,0)","v":{"$error":"#N/A"}},{"$f":"MATCH(AC$3,Millwall!$AP137:$AZ137,0)","v":10},{"$f":"MATCH(AD$3,Millwall!$AP137:$AZ137,0)","v":{"$error":"#N/A"}},{"$f":"MATCH(AE$3,Millwall!$AP137:$AZ137,0)","v":{"$error":"#N/A"}},{"$f":"MATCH(AF$3,Millwall!$AP137:$AZ137,0)","v":{"$error":"#N/A"}},{"$f":"MATCH(AG$3,Millwall!$AP137:$AZ137,0)","v":4},{"$f":"MATCH(AH$3,Millwall!$AP137:$AZ137,0)","v":8},{"$f":"MATCH(AI$3,Millwall!$AP137:$AZ137,0)","v":{"$error":"#N/A"}},{"$f":"MATCH(AJ$3,Millwall!$AP137:$AZ137,0)","v":{"$error":"#N/A"}},{"$f":"MATCH(AK$3,Millwall!$AP137:$AZ137,0)","v":{"$error":"#N/A"}},{"$f":"MATCH(AL$3,Millwall!$AP137:$AZ137,0)","v":{"$error":"#N/A"}},{"$f":"MATCH(AM$3,Millwall!$AP137:$AZ137,0)","v":{"$error":"#N/A"}},{"$f":"MATCH(AN$3,Millwall!$AP137:$AZ137,0)","v":{"$error":"#N/A"}},{"$f":"MATCH(AO$3,Millwall!$AP137:$AZ137,0)","v":{"$error":"#N/A"}},{"$f":"MATCH(AP$3,Millwall!$AP137:$AZ137,0)","v":{"$error":"#N/A"}},{"$f":"MATCH(AQ$3,Millwall!$AP137:$AZ137,0)","v":{"$error":"#N/A"}},{"$f":"MATCH(AR$3,Millwall!$AP137:$AZ137,0)","v":{"$error":"#N/A"}}]
[null,null,null,3,null,{"$f":"Millwall!AI138","v":"1955-01-08"},null,{"$f":"Millwall!AK138","v":"Bolton Wanderers"},{"$f":"Millwall!AL138","v":"(A)"},{"$f":"Millwall!AO138","v":"L 0-1"},{"$f":"MATCH(K$3,Millwall!$AP138:$AZ138,0)","v":3},{"$f":"MATCH(L$3,Millwall!$AP138:$AZ138,0)","v":{"$error":"#N/A"}},{"$f":"MATCH(M$3,Millwall!$AP138:$AZ138,0)","v":{"$error":"#N/A"}},{"$f":"MATCH(N$3,Millwall!$AP138:$AZ138,0)","v":1},{"$f":"MATCH(O$3,Millwall!$AP138:$AZ138,0)","v":{"$error":"#N/A"}},{"$f":"MATCH(P$3,Millwall!$AP138:$AZ138,0)","v":{"$error":"#N/A"}},{"$f":"MATCH(Q$3,Millwall!$AP138:$AZ138,0)","v":7},{"$f":"MATCH(R$3,Millwall!$AP138:$AZ138,0)","v":{"$error":"#N/A"}},{"$f":"MATCH(S$3,Millwall!$AP138:$AZ138,0)","v":6},{"$f":"MATCH(T$3,Millwall!$AP138:$AZ138,0)","v":5},{"$f":"MATCH(U$3,Millwall!$AP138:$AZ138,0)","v":2},{"$f":"MATCH(V$3,Millwall!$AP138:$AZ138,0)","v":{"$error":"#N/A"}},{"$f":"MATCH(W$3,Millwall!$AP138:$AZ138,0)","v":{"$error":"#N/A"}},{"$f":"MATCH(X$3,Millwall!$AP138:$AZ138,0)","v":{"$error":"#N/A"}},{"$f":"MATCH(Y$3,Millwall!$AP138:$AZ138,0)","v":{"$error":"#N/A"}},{"$f":"MATCH(Z$3,Millwall!$AP138:$AZ138,0)","v":9},{"$f":"MATCH(AA$3,Millwall!$AP138:$AZ138,0)","v":{"$error":"#N/A"}},{"$f":"MATCH(AB$3,Millwall!$AP138:$AZ138,0)","v":{"$error":"#N/A"}},{"$f":"MATCH(AC$3,Millwall!$AP138:$AZ138,0)","v":{"$error":"#N/A"}},{"$f":"MATCH(AD$3,Millwall!$AP138:$AZ138,0)","v":{"$error":"#N/A"}},{"$f":"MATCH(AE$3,Millwall!$AP138:$AZ138,0)","v":10},{"$f":"MATCH(AF$3,Millwall!$AP138:$AZ138,0)","v":{"$error":"#N/A"}},{"$f":"MATCH(AG$3,Millwall!$AP138:$AZ138,0)","v":4},{"$f":"MATCH(AH$3,Millwall!$AP138:$AZ138,0)","v":8},{"$f":"MATCH(AI$3,Millwall!$AP138:$AZ138,0)","v":11},{"$f":"MATCH(AJ$3,Millwall!$AP138:$AZ138,0)","v":{"$error":"#N/A"}},{"$f":"MATCH(AK$3,Millwall!$AP138:$AZ138,0)","v":{"$error":"#N/A"}},{"$f":"MATCH(AL$3,Millwall!$AP138:$AZ138,0)","v":{"$error":"#N/A"}},{"$f":"MATCH(AM$3,Millwall!$AP138:$AZ138,0)","v":{"$error":"#N/A"}},{"$f":"MATCH(AN$3,Millwall!$AP138:$AZ138,0)","v":{"$error":"#N/A"}},{"$f":"MATCH(AO$3,Millwall!$AP138:$AZ138,0)","v":{"$error":"#N/A"}},{"$f":"MATCH(AP$3,Millwall!$AP138:$AZ138,0)","v":{"$error":"#N/A"}},{"$f":"MATCH(AQ$3,Millwall!$AP138:$AZ138,0)","v":{"$error":"#N/A"}},{"$f":"MATCH(AR$3,Millwall!$AP138:$AZ138,0)","v":{"$error":"#N/A"}}]
[null,null,null,"2R",null,{"$f":"Millwall!AI139","v":"00:00:00"},null,{"$f":"Millwall!AK139","v":"00:00:00"},{"$f":"Millwall!AL139","v":"00:00:00"},{"$f":"Millwall!AO139","v":0},{"$f":"MATCH(K$3,Millwall!$AP139:$AZ139,0)","v":{"$error":"#N/A"}},{"$f":"MATCH(L$3,Millwall!$AP139:$AZ139,0)","v":{"$error":"#N/A"}},{"$f":"MATCH(M$3,Millwall!$AP139:$AZ139,0)","v":{"$error":"#N/A"}},{"$f":"MATCH(N$3,Millwall!$AP139:$AZ139,0)","v":{"$error":"#N/A"}},{"$f":"MATCH(O$3,Millwall!$AP139:$AZ139,0)","v":{"$error":"#N/A"}},{"$f":"MATCH(P$3,Millwall!$AP139:$AZ139,0)","v":{"$error":"#N/A"}},{"$f":"MATCH(Q$3,Millwall!$AP139:$AZ139,0)","v":{"$error":"#N/A"}},{"$f":"MATCH(R$3,Millwall!$AP139:$AZ139,0)","v":{"$error":"#N/A"}},{"$f":"MATCH(S$3,Millwall!$AP139:$AZ139,0)","v":{"$error":"#N/A"}},{"$f":"MATCH(T$3,Millwall!$AP139:$AZ139,0)","v":{"$error":"#N/A"}},{"$f":"MATCH(U$3,Millwall!$AP139:$AZ139,0)","v":{"$error":"#N/A"}},{"$f":"MATCH(V$3,Millwall!$AP139:$AZ139,0)","v":{"$error":"#N/A"}},{"$f":"MATCH(W$3,Millwall!$AP139:$AZ139,0)","v":{"$error":"#N/A"}},{"$f":"MATCH(X$3,Millwall!$AP139:$AZ139,0)","v":{"$error":"#N/A"}},{"$f":"MATCH(Y$3,Millwall!$AP139:$AZ139,0)","v":{"$error":"#N/A"}},{"$f":"MATCH(Z$3,Millwall!$AP139:$AZ139,0)","v":{"$error":"#N/A"}},{"$f":"MATCH(AA$3,Millwall!$AP139:$AZ139,0)","v":{"$error":"#N/A"}},{"$f":"MATCH(AB$3,Millwall!$AP139:$AZ139,0)","v":{"$error":"#N/A"}},{"$f":"MATCH(AC$3,Millwall!$AP139:$AZ139,0)","v":{"$error":"#N/A"}},{"$f":"MATCH(AD$3,Millwall!$AP139:$AZ139,0)","v":{"$error":"#N/A"}},{"$f":"MATCH(AE$3,Millwall!$AP139:$AZ139,0)","v":{"$error":"#N/A"}},{"$f":"MATCH(AF$3,Millwall!$AP139:$AZ139,0)","v":{"$error":"#N/A"}},{"$f":"MATCH(AG$3,Millwall!$AP139:$AZ139,0)","v":{"$error":"#N/A"}},{"$f":"MATCH(AH$3,Millwall!$AP139:$AZ139,0)","v":{"$error":"#N/A"}},{"$f":"MATCH(AI$3,Millwall!$AP139:$AZ139,0)","v":{"$error":"#N/A"}},{"$f":"MATCH(AJ$3,Millwall!$AP139:$AZ139,0)","v":{"$error":"#N/A"}},{"$f":"MATCH(AK$3,Millwall!$AP139:$AZ139,0)","v":{"$error":"#N/A"}},{"$f":"MATCH(AL$3,Millwall!$AP139:$AZ139,0)","v":{"$error":"#N/A"}},{"$f":"MATCH(AM$3,Millwall!$AP139:$AZ139,0)","v":{"$error":"#N/A"}},{"$f":"MATCH(AN$3,Millwall!$AP139:$AZ139,0)","v":{"$error":"#N/A"}},{"$f":"MATCH(AO$3,Millwall!$AP139:$AZ139,0)","v":{"$error":"#N/A"}},{"$f":"MATCH(AP$3,Millwall!$AP139:$AZ139,0)","v":{"$error":"#N/A"}},{"$f":"MATCH(AQ$3,Millwall!$AP139:$AZ139,0)","v":{"$error":"#N/A"}},{"$f":"MATCH(AR$3,Millwall!$AP139:$AZ139,0)","v":{"$error":"#N/A"}}]
[null,null,null,3,null,{"$f":"Millwall!AI140","v":"00:00:00"},null,{"$f":"Millwall!AK140","v":"00:00:00"},{"$f":"Millwall!AL140","v":"00:00:00"},{"$f":"Millwall!AO140","v":0},{"$f":"MATCH(K$3,Millwall!$AP140:$AZ140,0)","v":{"$error":"#N/A"}},{"$f":"MATCH(L$3,Millwall!$AP140:$AZ140,0)","v":{"$error":"#N/A"}},{"$f":"MATCH(M$3,Millwall!$AP140:$AZ140,0)","v":{"$error":"#N/A"}},{"$f":"MATCH(N$3,Millwall!$AP140:$AZ140,0)","v":{"$error":"#N/A"}},{"$f":"MATCH(O$3,Millwall!$AP140:$AZ140,0)","v":{"$error":"#N/A"}},{"$f":"MATCH(P$3,Millwall!$AP140:$AZ140,0)","v":{"$error":"#N/A"}},{"$f":"MATCH(Q$3,Millwall!$AP140:$AZ140,0)","v":{"$error":"#N/A"}},{"$f":"MATCH(R$3,Millwall!$AP140:$AZ140,0)","v":{"$error":"#N/A"}},{"$f":"MATCH(S$3,Millwall!$AP140:$AZ140,0)","v":{"$error":"#N/A"}},{"$f":"MATCH(T$3,Millwall!$AP140:$AZ140,0)","v":{"$error":"#N/A"}},{"$f":"MATCH(U$3,Millwall!$AP140:$AZ140,0)","v":{"$error":"#N/A"}},{"$f":"MATCH(V$3,Millwall!$AP140:$AZ140,0)","v":{"$error":"#N/A"}},{"$f":"MATCH(W$3,Millwall!$AP140:$AZ140,0)","v":{"$error":"#N/A"}},{"$f":"MATCH(X$3,Millwall!$AP140:$AZ140,0)","v":{"$error":"#N/A"}},{"$f":"MATCH(Y$3,Millwall!$AP140:$AZ140,0)","v":{"$error":"#N/A"}},{"$f":"MATCH(Z$3,Millwall!$AP140:$AZ140,0)","v":{"$error":"#N/A"}},{"$f":"MATCH(AA$3,Millwall!$AP140:$AZ140,0)","v":{"$error":"#N/A"}},{"$f":"MATCH(AB$3,Millwall!$AP140:$AZ140,0)","v":{"$error":"#N/A"}},{"$f":"MATCH(AC$3,Millwall!$AP140:$AZ140,0)","v":{"$error":"#N/A"}},{"$f":"MATCH(AD$3,Millwall!$AP140:$AZ140,0)","v":{"$error":"#N/A"}},{"$f":"MATCH(AE$3,Millwall!$AP140:$AZ140,0)","v":{"$error":"#N/A"}},{"$f":"MATCH(AF$3,Millwall!$AP140:$AZ140,0)","v":{"$error":"#N/A"}},{"$f":"MATCH(AG$3,Millwall!$AP140:$AZ140,0)","v":{"$error":"#N/A"}},{"$f":"MATCH(AH$3,Millwall!$AP140:$AZ140,0)","v":{"$error":"#N/A"}},{"$f":"MATCH(AI$3,Millwall!$AP140:$AZ140,0)","v":{"$error":"#N/A"}},{"$f":"MATCH(AJ$3,Millwall!$AP140:$AZ140,0)","v":{"$error":"#N/A"}},{"$f":"MATCH(AK$3,Millwall!$AP140:$AZ140,0)","v":{"$error":"#N/A"}},{"$f":"MATCH(AL$3,Millwall!$AP140:$AZ140,0)","v":{"$error":"#N/A"}},{"$f":"MATCH(AM$3,Millwall!$AP140:$AZ140,0)","v":{"$error":"#N/A"}},{"$f":"MATCH(AN$3,Millwall!$AP140:$AZ140,0)","v":{"$error":"#N/A"}},{"$f":"MATCH(AO$3,Millwall!$AP140:$AZ140,0)","v":{"$error":"#N/A"}},{"$f":"MATCH(AP$3,Millwall!$AP140:$AZ140,0)","v":{"$error":"#N/A"}},{"$f":"MATCH(AQ$3,Millwall!$AP140:$AZ140,0)","v":{"$error":"#N/A"}},{"$f":"MATCH(AR$3,Millwall!$AP140:$AZ140,0)","v":{"$error":"#N/A"}}]
[null,null,null,6,null,{"$f":"Millwall!AI141","v":"00:00:00"},null,{"$f":"Millwall!AK141","v":"00:00:00"},{"$f":"Millwall!AL141","v":"00:00:00"},{"$f":"Millwall!AO141","v":0},{"$f":"MATCH(K$3,Millwall!$AP141:$AZ141,0)","v":{"$error":"#N/A"}},{"$f":"MATCH(L$3,Millwall!$AP141:$AZ141,0)","v":{"$error":"#N/A"}},{"$f":"MATCH(M$3,Millwall!$AP141:$AZ141,0)","v":{"$error":"#N/A"}},{"$f":"MATCH(N$3,Millwall!$AP141:$AZ141,0)","v":{"$error":"#N/A"}},{"$f":"MATCH(O$3,Millwall!$AP141:$AZ141,0)","v":{"$error":"#N/A"}},{"$f":"MATCH(P$3,Millwall!$AP141:$AZ141,0)","v":{"$error":"#N/A"}},{"$f":"MATCH(Q$3,Millwall!$AP141:$AZ141,0)","v":{"$error":"#N/A"}},{"$f":"MATCH(R$3,Millwall!$AP141:$AZ141,0)","v":{"$error":"#N/A"}},{"$f":"MATCH(S$3,Millwall!$AP141:$AZ141,0)","v":{"$error":"#N/A"}},{"$f":"MATCH(T$3,Millwall!$AP141:$AZ141,0)","v":{"$error":"#N/A"}},{"$f":"MATCH(U$3,Millwall!$AP141:$AZ141,0)","v":{"$error":"#N/A"}},{"$f":"MATCH(V$3,Millwall!$AP141:$AZ141,0)","v":{"$error":"#N/A"}},{"$f":"MATCH(W$3,Millwall!$AP141:$AZ141,0)","v":{"$error":"#N/A"}},{"$f":"MATCH(X$3,Millwall!$AP141:$AZ141,0)","v":{"$error":"#N/A"}},{"$f":"MATCH(Y$3,Millwall!$AP141:$AZ141,0)","v":{"$error":"#N/A"}},{"$f":"MATCH(Z$3,Millwall!$AP141:$AZ141,0)","v":{"$error":"#N/A"}},{"$f":"MATCH(AA$3,Millwall!$AP141:$AZ141,0)","v":{"$error":"#N/A"}},{"$f":"MATCH(AB$3,Millwall!$AP141:$AZ141,0)","v":{"$error":"#N/A"}},{"$f":"MATCH(AC$3,Millwall!$AP141:$AZ141,0)","v":{"$error":"#N/A"}},{"$f":"MATCH(AD$3,Millwall!$AP141:$AZ141,0)","v":{"$error":"#N/A"}},{"$f":"MATCH(AE$3,Millwall!$AP141:$AZ141,0)","v":{"$error":"#N/A"}},{"$f":"MATCH(AF$3,Millwall!$AP141:$AZ141,0)","v":{"$error":"#N/A"}},{"$f":"MATCH(AG$3,Millwall!$AP141:$AZ141,0)","v":{"$error":"#N/A"}},{"$f":"MATCH(AH$3,Millwall!$AP141:$AZ141,0)","v":{"$error":"#N/A"}},{"$f":"MATCH(AI$3,Millwall!$AP141:$AZ141,0)","v":{"$error":"#N/A"}},{"$f":"MATCH(AJ$3,Millwall!$AP141:$AZ141,0)","v":{"$error":"#N/A"}},{"$f":"MATCH(AK$3,Millwall!$AP141:$AZ141,0)","v":{"$error":"#N/A"}},{"$f":"MATCH(AL$3,Millwall!$AP141:$AZ141,0)","v":{"$error":"#N/A"}},{"$f":"MATCH(AM$3,Millwall!$AP141:$AZ141,0)","v":{"$error":"#N/A"}},{"$f":"MATCH(AN$3,Millwall!$AP141:$AZ141,0)","v":{"$error":"#N/A"}},{"$f":"MATCH(AO$3,Millwall!$AP141:$AZ141,0)","v":{"$error":"#N/A"}},{"$f":"MATCH(AP$3,Millwall!$AP141:$AZ141,0)","v":{"$error":"#N/A"}},{"$f":"MATCH(AQ$3,Millwall!$AP141:$AZ141,0)","v":{"$error":"#N/A"}},{"$f":"MATCH(AR$3,Millwall!$AP141:$AZ141,0)","v":{"$error":"#N/A"}}]
[null,null,null,"SF",null,{"$f":"Millwall!AI142","v":"00:00:00"},null,{"$f":"Millwall!AK142","v":"00:00:00"},{"$f":"Millwall!AL142","v":"00:00:00"},{"$f":"Millwall!AO142","v":0},{"$f":"MATCH(K$3,Millwall!$AP142:$AZ142,0)","v":{"$error":"#N/A"}},{"$f":"MATCH(L$3,Millwall!$AP142:$AZ142,0)","v":{"$error":"#N/A"}},{"$f":"MATCH(M$3,Millwall!$AP142:$AZ142,0)","v":{"$error":"#N/A"}},{"$f":"MATCH(N$3,Millwall!$AP142:$AZ142,0)","v":{"$error":"#N/A"}},{"$f":"MATCH(O$3,Millwall!$AP142:$AZ142,0)","v":{"$error":"#N/A"}},{"$f":"MATCH(P$3,Millwall!$AP142:$AZ142,0)","v":{"$error":"#N/A"}},{"$f":"MATCH(Q$3,Millwall!$AP142:$AZ142,0)","v":{"$error":"#N/A"}},{"$f":"MATCH(R$3,Millwall!$AP142:$AZ142,0)","v":{"$error":"#N/A"}},{"$f":"MATCH(S$3,Millwall!$AP142:$AZ142,0)","v":{"$error":"#N/A"}},{"$f":"MATCH(T$3,Millwall!$AP142:$AZ142,0)","v":{"$error":"#N/A"}},{"$f":"MATCH(U$3,Millwall!$AP142:$AZ142,0)","v":{"$error":"#N/A"}},{"$f":"MATCH(V$3,Millwall!$AP142:$AZ142,0)","v":{"$error":"#N/A"}},{"$f":"MATCH(W$3,Millwall!$AP142:$AZ142,0)","v":{"$error":"#N/A"}},{"$f":"MATCH(X$3,Millwall!$AP142:$AZ142,0)","v":{"$error":"#N/A"}},{"$f":"MATCH(Y$3,Millwall!$AP142:$AZ142,0)","v":{"$error":"#N/A"}},{"$f":"MATCH(Z$3,Millwall!$AP142:$AZ142,0)","v":{"$error":"#N/A"}},{"$f":"MATCH(AA$3,Millwall!$AP142:$AZ142,0)","v":{"$error":"#N/A"}},{"$f":"MATCH(AB$3,Millwall!$AP142:$AZ142,0)","v":{"$error":"#N/A"}},{"$f":"MATCH(AC$3,Millwall!$AP142:$AZ142,0)","v":{"$error":"#N/A"}},{"$f":"MATCH(AD$3,Millwall!$AP142:$AZ142,0)","v":{"$error":"#N/A"}},{"$f":"MATCH(AE$3,Millwall!$AP142:$AZ142,0)","v":{"$error":"#N/A"}},{"$f":"MATCH(AF$3,Millwall!$AP142:$AZ142,0)","v":{"$error":"#N/A"}},{"$f":"MATCH(AG$3,Millwall!$AP142:$AZ142,0)","v":{"$error":"#N/A"}},{"$f":"MATCH(AH$3,Millwall!$AP142:$AZ142,0)","v":{"$error":"#N/A"}},{"$f":"MATCH(AI$3,Millwall!$AP142:$AZ142,0)","v":{"$error":"#N/A"}},{"$f":"MATCH(AJ$3,Millwall!$AP142:$AZ142,0)","v":{"$error":"#N/A"}},{"$f":"MATCH(AK$3,Millwall!$AP142:$AZ142,0)","v":{"$error":"#N/A"}},{"$f":"MATCH(AL$3,Millwall!$AP142:$AZ142,0)","v":{"$error":"#N/A"}},{"$f":"MATCH(AM$3,Millwall!$AP142:$AZ142,0)","v":{"$error":"#N/A"}},{"$f":"MATCH(AN$3,Millwall!$AP142:$AZ142,0)","v":{"$error":"#N/A"}},{"$f":"MATCH(AO$3,Millwall!$AP142:$AZ142,0)","v":{"$error":"#N/A"}},{"$f":"MATCH(AP$3,Millwall!$AP142:$AZ142,0)","v":{"$error":"#N/A"}},{"$f":"MATCH(AQ$3,Millwall!$AP142:$AZ142,0)","v":{"$error":"#N/A"}},{"$f":"MATCH(AR$3,Millwall!$AP142:$AZ142,0)","v":{"$error":"#N/A"}}]
[]
[null,null,null,null,null,null,null,null,null,"Total FA Cup Apperances",{"$f":"COUNT(K54:K60)","v":3},0,0,3,0,0,3,0,3,3,3,0,0,0,0,3,2,0,2,0,1,0,3,3,1,0,{"$f":"COUNT(AK54:AK60)","v":0},0,0,0,0,0,0,0]
[null,null,null,null,null,null,null,null,null,"Goals",{"$f":"Millwall!$CB$7","v":0},{"$f":"Millwall!$CB$8","v":0},{"$f":"Millwall!$CB$9","v":0},{"$f":"Millwall!$CB$10","v":0},{"$f":"Millwall!$CB$11","v":0},{"$f":"Millwall!$CB$12","v":0},{"$f":"Millwall!$CB$13","v":0},{"$f":"Millwall!$CB$14","v":0},{"$f":"Millwall!$CB$15","v":0},{"$f":"Millwall!$CB$16","v":0},{"$f":"Millwall!$CB$17","v":1},{"$f":"Millwall!$CB$18","v":0},{"$f":"Millwall!$CB$19","v":0},{"$f":"Millwall!$CB$20","v":0},{"$f":"Millwall!$CB$21","v":0},{"$f":"Millwall!$CB$22","v":3},{"$f":"Millwall!$CB$23","v":1},{"$f":"Millwall!$CB$24","v":0},{"$f":"Millwall!$CB$25","v":1},{"$f":"Millwall!$CB$26","v":0},{"$f":"Millwall!$CB$27","v":0},{"$f":"Millwall!$CB$28","v":0},{"$f":"Millwall!$CB$29","v":0},{"$f":"Millwall!$CB$30","v":0},{"$f":"Millwall!$CB$31","v":0},{"$f":"Millwall!$CB$32","v":0},{"$f":"Millwall!$CB$33","v":0}]
[]
[]
[null,null,null,null,null,null,null,"Checks",null,null,null,null,null,null,null,null,null,null,1]
[]
["Manual Input",null,null,null,null,null,null,"Opponents","Venue/Result",null,{"$f":"K3","v":"Anslow"},"Bowler","Brewer","Finlayson","Fisher","Green","Hazlett","Hencher","Heydon","Hurley","Jardine","Johnson","Ledgerton","McAllister","McDowall","Pacey","Prior","Quinn","Ramscar","Reeves","Saward","Shepherd","Short","Smith","Summers","Thrippleton","Veitch",0,0,0,0,"Own Goal",0,0]
[null,null,null,1,null,{"$f":"F4","v":"1954-08-21"},null,{"$f":"H4","v":"Brighton"},"(H)","W 2-0",null,null,null,1,3,null,7,null,4,5,2,null,11,10,null,null,null,null,null,null,6,null,null,8,9]
[null,null,null,2,null,"1954-08-26",null,"Leyton Orient","(A)","L 0-1",null,null,null,1,3,null,null,null,4,5,2,7,11,10,8,null,null,null,null,null,6,null,null,null,9]
[null,null,null,3,null,"1954-08-28",null,"Torquay","(A)","L 2-4",null,null,null,1,3,null,null,null,4,5,2,7,11,10,null,null,null,null,null,null,6,8,null,null,9]
[null,null,null,4,null,"1954-08-30",null,"Leyton Orient","(H)","W 1-0",null,null,null,1,3,null,null,null,4,5,2,7,11,10,null,null,null,null,null,null,8,9,null,null,null,6]
[null,null,null,5,null,"1954-09-04",null,"Bristol C","(H)","L 1-3",null,null,null,1,3,null,null,null,4,5,2,7,null,null,null,null,null,null,10,null,6,9,null,8,11]
[null,null,null,6,null,"1954-09-09",null,"Northampton","(A)","W 1-0",null,null,null,1,null,null,null,null,4,5,2,7,null,null,null,null,11,3,10,null,6,null,null,8,9]
[null,null,null,7,null,"1954-09-11",null,"Walsall","(A)","D 1-1",null,null,null,1,null,null,null,null,4,5,2,7,null,null,null,null,11,3,10,null,6,null,null,8,9]
[null,null,null,8,null,"1954-09-13",null,"Northampton","(H)","W 1-0",3,null,null,1,null,null,null,null,4,5,2,7,null,null,null,null,11,null,10,8,6,null,null,null,9]
[null,null,null,9,null,"1954-09-18",null,"Shrewsbury","(H)","W 2-0",3,5,null,1,null,8,null,null,6,null,2,7,null,null,null,null,11,null,10,null,null,null,4,null,9]
[null,null,null,10,null,"1954-09-20",null,"Southampton","(H)","W 2-0",3,5,null,1,null,null,null,null,6,null,2,7,null,null,null,null,11,null,10,8,null,null,4,null,9]
[null,null,null,11,null,"1954-09-25",null,"Reading","(A)","D 0-0",3,5,null,1,null,null,null,null,6,null,2,7,null,null,null,null,11,null,10,8,null,null,4,null,9]
[null,null,null,12,null,"1954-09-29",null,"Southampton","(A)","L 0-3",3,5,null,1,null,null,null,null,6,null,2,7,null,null,null,null,11,null,10,null,null,null,4,8,9]
[null,null,null,13,null,"1954-10-02",null,"Gillingham","(H)","W 3-2",3,5,null,1,null,null,null,null,6,null,2,7,null,8,null,null,11,null,10,null,null,null,4,null,9]
[null,null,null,14,null,"1954-10-09",null,"Bournemouth","(A)","W 1-0",3,null,null,1,null,null,null,null,null,5,2,7,null,null,null,8,11,null,10,null,6,null,4,null,9]
[null,null,null,15,null,"1954-10-16",null,"QPR","(H)","L 0-1",3,null,null,1,null,null,null,null,null,5,2,7,null,null,null,8,11,null,10,null,6,null,4,null,9]
[null,null,null,16,null,"1954-10-23",null,"Newport County","(A)","L 1-2",3,null,null,1,null,null,7,null,6,5,2,null,null,null,null,9,11,null,10,null,null,null,4,8]
[null,null,null,17,null,"1954-10-30",null,"C Palace","(H)","W 5-2",3,null,null,1,null,null,7,null,6,5,2,null,null,null,null,9,11,null,10,null,null,null,4,8]
[null,null,null,18,null,"1954-11-06",null,"Colchester","(A)","W 2-0",3,null,null,1,null,null,7,null,6,5,2,null,null,null,null,9,11,null,10,null,null,null,4,8]
[null,null,null,19,null,"1954-11-13",null,"Norwich","(H)","D 0-0",3,null,null,1,null,null,7,null,6,5,2,null,null,null,null,9,11,null,10,null,null,null,4,8]
[null,null,null,20,null,"1954-11-27",null,"Aldershot","(H)","W 3-1",3,null,null,1,null,null,7,null,4,5,2,null,null,null,null,9,11,null,10,null,6,null,null,8]
[null,null,null,21,null,"1954-12-04",null,{"$f":"H24","v":"Swindon"},"(A)","D 1-1",3,null,null,1,null,null,7,null,4,5,2,null,null,null,null,9,11,null,10,null,6,null,null,8]
[null,null,null,22,null,"1954-12-18",null,"Brighton","(A)","W 2-1",3,null,null,1,null,null,7,null,6,5,2,null,null,null,null,9,11,null,10,null,null,null,4,8]
[null,null,null,23,null,"1954-12-25",null,"Brentford","(A)","L 1-3",3,null,null,1,null,null,7,null,6,5,2,null,null,null,null,9,11,null,10,null,null,null,4,8]
[null,null,null,24,null,"1954-12-27",null,"Brentford","(H)","D 2-2",3,null,null,1,null,null,null,null,6,5,2,7,null,null,null,9,null,null,10,null,null,null,4,8,11]
[null,null,null,25,null,"1955-01-01",null,"Torquay","(H)","W 4-1",3,null,null,1,null,null,null,4,6,5,2,7,null,null,null,9,null,null,10,null,null,null,null,8,11]
[null,null,null,26,null,"1955-01-22",null,"Walsall","(H)","W 1-0",3,null,1,null,null,null,7,null,6,5,2,null,null,null,null,9,11,null,null,null,10,null,4,8]
[null,null,null,27,null,"1955-01-29",null,"Watford","(H)","W 1-0",3,null,1,null,null,null,7,null,null,5,2,null,null,10,null,9,11,null,null,null,6,null,4,8]
[null,null,null,28,null,"1955-02-05",null,"Shrewsbury","(A)","L 2-3",3,5,null,1,null,null,null,null,null,null,2,7,null,null,null,9,11,null,10,null,6,null,4,8]
[null,null,null,29,null,"1955-02-12",null,"Reading","(H)","D 2-2",3,null,null,1,null,null,null,4,6,null,2,7,null,null,null,9,11,null,10,null,null,null,5,8]
[null,null,null,30,null,"1955-02-19",null,"Gillingham","(A)","D 1-1",3,null,null,1,null,null,null,null,6,5,2,7,11,null,null,9,null,null,10,null,null,null,4,8]
[null,null,null,31,null,"1955-02-26",null,"Bournemouth","(H)","D 1-1",3,null,null,1,null,null,7,null,6,5,2,null,11,null,null,8,null,null,10,null,null,null,4,null,9]
[null,null,null,32,null,"1955-03-05",null,"QPR","(A)","W 2-1",3,null,null,1,null,null,null,null,4,5,2,7,null,null,null,9,null,null,10,null,6,null,null,8,11]
[null,null,null,33,null,"1955-03-09",null,"Bristol C","(A)","L 1-5",3,null,null,1,null,null,null,null,null,5,2,7,null,null,null,9,null,null,10,null,6,null,4,8,11]
[null,null,null,34,null,"1955-03-12",null,"Newport County","(H)","D 1-1",null,null,null,1,null,null,null,null,null,5,3,7,null,null,null,9,null,null,10,null,6,null,4,8,11,null,2]
[null,null,null,35,null,"1955-03-19",null,"C Palace","(A)","D 1-1",3,null,null,1,null,null,7,null,null,5,2,null,null,null,6,8,null,null,null,null,10,9,4,null,11]
[null,null,null,36,null,"1955-03-26",null,"Colchester","(H)","W 5-2",3,null,null,1,null,null,7,null,null,5,2,null,null,null,6,8,null,null,null,null,10,9,4,null,11]
[null,null,null,37,null,"1955-03-30",null,"Watford","(A)","L 3-5",3,5,null,1,null,null,7,null,null,null,2,null,null,null,6,8,11,null,null,null,10,null,4,null,9]
[null,null,null,38,null,"1955-04-02",null,"Norwich","(A)","L 1-2",3,null,1,null,null,null,7,null,null,5,2,null,null,null,null,8,11,null,10,null,6,null,4,null,9]
[null,null,null,39,null,"1955-04-08",null,"Coventry","(H)","W 3-1",3,null,null,1,null,null,7,null,4,5,2,null,null,null,null,8,11,null,null,null,10,null,null,null,9,6]
[null,null,null,40,null,"1955-04-09",null,"Southend","(H)","L 1-4",3,null,null,1,null,null,7,null,4,5,2,null,null,null,null,8,11,null,null,null,10,null,null,null,9,6]
[null,null,null,41,null,"1955-04-12",null,{"$f":"H44","v":"Coventry"},"(A)","L 1-4",3,null,null,1,null,null,7,null,null,5,2,null,null,null,null,9,11,null,10,null,6,null,4,8]
[null,null,null,42,null,"1955-04-16",null,"Aldershot","(A)","L 0-3",3,null,null,1,null,null,7,null,4,5,2,null,null,null,6,8,11,null,null,null,10,null,null,null,9]
[null,null,null,43,null,"1955-04-23",null,"Swindon","(H)","W 1-0",3,null,null,1,null,null,7,null,null,5,2,null,null,null,null,8,null,null,null,null,6,9,4,10,11]
[null,null,null,44,null,"1955-04-26",null,"Southend","(A)","L 0-1",3,null,null,1,null,null,7,null,null,5,2,null,null,null,null,8,11,null,null,null,6,null,4,10,9]
[null,null,null,45,null,"1955-04-30",null,"Exeter","(A)","W 4-1",3,null,null,1,null,null,7,null,null,5,2,null,null,null,null,8,11,null,null,null,6,null,4,10,9]
[null,null,null,46,null,"1955-05-02",null,"Exeter","(H)","D 2-2",3,null,null,1,null,null,7,null,null,5,2,null,null,null,null,8,11,null,null,null,6,null,4,10,9]
[null,null,null,null,null,null,null,null,null,null,null,null,null,null,null,null,null,null,null,null,null,null,null,null,null,null,null,null,null,null,null,null,null,null,null,null,null,null,null,null,null,null,null,null,null,null,null,"Note: error in total columns"]
[null,null,null,null,null,null,null,null,null,"Total League Apperances",{"$f":"COUNT(K69:K114)","v":38},7,3,3,43,5,1,24,2,31,38,46,22,6,6,5,33,31,2,30,30,6,31,28,31,3,1,null,null,null,null,null,null,null,null,null,null,"Overall total sb 506 apps"]
[null,null,null,null,null,null,null,null,null,"Goals",0,0,0,0,0,0,3,0,0,0,5,3,2,3,0,12,10,0,5,0,1,2,3,8,13,0,0,null,null,null,null,null,null,null,null,null,null,"not 502!"]
[]
[null,null,null,1,null,{"$f":"F54","v":"1954-11-20"},null,{"$f":"H54","v":"Exeter"},"(H)","W 3-2",3,null,null,1,null,null,7,null,6,5,2,null,null,null,null,9,11,null,10,null,null,null,4,8]
[null,null,null,2,null,"1954-12-11",null,"Accrington Stanley","(H)","W 3-2",3,null,null,1,null,null,7,null,6,5,2,null,null,null,null,9,11,null,10,null,null,null,4,8]
[null,null,null,3,null,"1955-01-08",null,"Bolton Wanderers","(A)","L 0-1",3,null,null,1,null,null,7,null,6,5,2,null,null,null,null,9,null,null,null,null,10,null,4,8,11]
[null,null,null,"2R",null,"00:00:00",null,"00:00:00","00:00:00",0]
[null,null,null,3,null,"00:00:00",null,"00:00:00","00:00:00",0]
[null,null,null,6,null,"00:00:00",null,"00:00:00","00:00:00",0]
[null,null,null,7,null,"00:00:00",null,"00:00:00","00:00:00",0]
[]
[null,null,null,null,null,null,null,null,null,"Total FA Cup Apperances",{"$f":"COUNT(K119:K125)","v":3},0,0,3,0,0,3,0,3,3,3,0,0,0,0,3,2,0,2,0,1,0,3,3,1,0,0]
[null,null,null,null,null,null,null,null,null,"Goals",0,0,0,0,0,0,0,0,0,0,1,0,0,0,0,3,1,0,1,0,0,0,0,0,0,0,0]
[]
[]
[]
["Manual Input",null,null,null,null,null,null,"Opponents","Venue/Result",null,{"$f":"K3","v":"Anslow"},"Bowler","Brewer","Finlayson","Fisher","Green","Hazlett","Hencher","Heydon","Hurley","Jardine","Johnson","Ledgerton","McAllister","McDowall","Pacey","Prior","Quinn","Ramscar","Reeves","Saward","Shepherd","Short","Smith","Summers","Thrippleton","Veitch",0,0,0,0,"Own Goal",0,0]
[null,null,null,1,null,{"$f":"F4","v":"1954-08-21"},null,{"$f":"H4","v":"Brighton"},"(H)","W 2-0",null,null,null,1,3,null,7,null,4,5,2,null,11,10,null,null,null,null,null,null,6,null,null,8,9]
[null,null,null,2,null,"1954-08-26",null,"Leyton Orient","(A)","L 0-1",null,null,null,1,3,null,null,null,4,5,2,7,11,10,8,null,null,null,null,null,6,null,null,null,9]
[null,null,null,3,null,"1954-08-28",null,"Torquay","(A)","L 2-4",null,null,null,1,3,null,null,null,4,5,2,7,11,10,null,null,null,null,null,null,6,8,null,null,9]
[null,null,null,4,null,"1954-08-30",null,"Leyton Orient","(H)","W 1-0",null,null,null,1,3,null,null,null,4,5,2,7,11,10,null,null,null,null,null,null,8,9,null,null,null,6]
[null,null,null,5,null,"1954-09-04",null,"Bristol C","(H)","L 1-3",null,null,null,1,3,null,null,null,4,5,2,7,null,null,null,null,null,null,10,null,6,9,null,8,11]
[null,null,null,6,null,"1954-09-09",null,"Northampton","(A)","W 1-0",null,null,null,1,null,null,null,null,4,5,2,7,null,null,null,null,11,3,10,null,6,null,null,8,9]
[null,null,null,7,null,"1954-09-11",null,"Walsall","(A)","D 1-1",null,null,null,1,null,null,null,null,4,5,2,7,null,null,null,null,11,3,10,null,6,null,null,8,9]
[null,null,null,8,null,"1954-09-13",null,"Northampton","(H)","W 1-0",3,null,null,1,null,null,null,null,4,5,2,7,null,null,null,null,11,null,10,8,6,null,null,null,9]
[null,null,null,9,null,"1954-09-18",null,"Shrewsbury","(H)","W 2-0",3,5,null,1,null,8,null,null,6,null,2,7,null,null,null,null,11,null,10,null,null,null,4,null,9]
[null,null,null,10,null,"1954-09-20",null,"Southampton","(H)","W 2-0",3,5,null,1,null,null,null,null,6,null,2,7,null,null,null,null,11,null,10,8,null,null,4,null,9]
[null,null,null,11,null,"1954-09-25",null,"Reading","(A)","D 0-0",3,5,null,1,null,null,null,null,6,null,2,7,null,null,null,null,11,null,10,8,null,null,4,null,9]
[null,null,null,12,null,"1954-09-29",null,"Southampton","(A)","L 0-3",3,5,null,1,null,null,null,null,6,null,2,7,null,null,null,null,11,null,10,null,null,null,4,8,9]
[null,null,null,13,null,"1954-10-02",null,"Gillingham","(H)","W 3-2",3,5,null,1,null,null,null,null,6,null,2,7,null,8,null,null,11,null,10,null,null,null,4,null,9]
[null,null,null,14,null,"1954-10-09",null,"Bournemouth","(A)","W 1-0",3,null,null,1,null,null,null,null,null,5,2,7,null,null,null,8,11,null,10,null,6,null,4,null,9]
[null,null,null,15,null,"1954-10-16",null,"QPR","(H)","L 0-1",3,null,null,1,null,null,null,null,null,5,2,7,null,null,null,8,11,null,10,null,6,null,4,null,9]
[null,null,null,16,null,"1954-10-23",null,"Newport County","(A)","L 1-2",3,null,null,1,null,null,7,null,6,5,2,null,null,null,null,9,11,null,10,null,null,null,4,8]
[null,null,null,17,null,"1954-10-30",null,"C Palace","(H)","W 5-2",3,null,null,1,null,null,7,null,6,5,2,null,null,null,null,9,11,null,10,null,null,null,4,8]
[null,null,null,18,null,"1954-11-06",null,"Colchester","(A)","W 2-0",3,null,null,1,null,null,7,null,6,5,2,null,null,null,null,9,11,null,10,null,null,null,4,8]
[null,null,null,19,null,"1954-11-13",null,"Norwich","(H)","D 0-0",3,null,null,1,null,null,7,null,6,5,2,null,null,null,null,9,11,null,10,null,null,null,4,8]
[null,null,null,20,null,"1954-11-27",null,"Aldershot","(H)","W 3-1",3,null,null,1,null,null,7,null,4,5,2,null,null,null,null,9,11,null,10,null,6,null,null,8]
[null,null,null,21,null,"1954-12-04",null,{"$f":"H24","v":"Swindon"},"(A)","D 1-1",3,null,null,1,null,null,7,null,4,5,2,null,null,null,null,9,11,null,10,null,6,null,null,8]
[null,null,null,22,null,"1954-12-18",null,"Brighton","(A)","W 2-1",3,null,null,1,null,null,7,null,6,5,2,null,null,null,null,9,11,null,10,null,null,null,4,8]
[null,null,null,23,null,"1954-12-25",null,"Brentford","(A)","L 1-3",3,null,null,1,null,null,7,null,6,5,2,null,null,null,null,9,11,null,10,null,null,null,4,8]
[null,null,null,24,null,"1954-12-27",null,"Brentford","(H)","D 2-2",3,null,null,1,null,null,null,null,6,5,2,7,null,null,null,9,null,null,10,null,null,null,4,8,11]
[null,null,null,25,null,"1955-01-01",null,"Torquay","(H)","W 4-1",3,null,null,1,null,null,null,4,6,5,2,7,null,null,null,9,null,null,10,null,null,null,null,8,11]
[null,null,null,26,null,"1955-01-22",null,"Walsall","(H)","W 1-0",3,null,1,null,null,null,7,null,6,5,2,null,null,null,null,9,11,null,null,null,10,null,4,8]
[null,null,null,27,null,"1955-01-29",null,"Watford","(H)","W 1-0",3,null,1,null,null,null,7,null,null,5,2,null,null,10,null,9,11,null,null,null,6,null,4,8]
[null,null,null,28,null,"1955-02-05",null,"Shrewsbury","(A)","L 2-3",3,5,null,1,null,null,null,null,null,null,2,7,null,null,null,9,11,null,10,null,6,null,4,8]
[null,null,null,29,null,"1955-02-12",null,"Reading","(H)","D 2-2",3,null,null,1,null,null,null,4,6,null,2,7,null,null,null,9,11,null,10,null,null,null,5,8]
[null,null,null,30,null,"1955-02-19",null,"Gillingham","(A)","D 1-1",3,null,null,1,null,null,null,null,6,5,2,7,11,null,null,9,null,null,10,null,null,null,4,8]
[null,null,null,31,null,"1955-02-26",null,"Bournemouth","(H)","D 1-1",3,null,null,1,null,null,7,null,6,5,2,null,11,null,null,8,null,null,10,null,null,null,4,null,9]
[null,null,null,32,null,"1955-03-05",null,"QPR","(A)","W 2-1",3,null,null,1,null,null,null,null,4,5,2,7,null,null,null,9,null,null,10,null,6,null,null,8,11]
[null,null,null,33,null,"1955-03-09",null,"Bristol C","(A)","L 1-5",3,null,null,1,null,null,null,null,null,5,2,7,null,null,null,9,null,null,10,null,6,null,4,8,11]
[null,null,null,34,null,"1955-03-12",null,"Newport County","(H)","D 1-1",null,null,null,1,null,null,null,null,null,5,3,7,null,null,null,9,null,null,10,null,6,null,4,8,11,null,2]
[null,null,null,35,null,"1955-03-19",null,"C Palace","(A)","D 1-1",3,null,null,1,null,null,7,null,null,5,2,null,null,null,6,8,null,null,null,null,10,9,4,null,11]
[null,null,null,36,null,"1955-03-26",null,"Colchester","(H)","W 5-2",3,null,null,1,null,null,7,null,null,5,2,null,null,null,6,8,null,null,null,null,10,9,4,null,11]
[null,null,null,37,null,"1955-03-30",null,"Watford","(A)","L 3-5",3,5,null,1,null,null,7,null,null,null,2,null,null,null,6,8,11,null,null,null,10,null,4,null,9]
[null,null,null,38,null,"1955-04-02",null,"Norwich","(A)","L 1-2",3,null,1,null,null,null,7,null,null,5,2,null,null,null,null,8,11,null,10,null,6,null,4,null,9]
[null,null,null,39,null,"1955-04-08",null,"Coventry","(H)","W 3-1",3,null,null,1,null,null,7,null,4,5,2,null,null,null,null,8,11,null,null,null,10,null,null,null,9,6]
[null,null,null,40,null,"1955-04-09",null,"Southend","(H)","L 1-4",3,null,null,1,null,null,7,null,4,5,2,null,null,null,null,8,11,null,null,null,10,null,null,null,9,6]
[null,null,null,41,null,"1955-04-12",null,{"$f":"H44","v":"Coventry"},"(A)","L 1-4",3,null,null,1,null,null,7,null,null,5,2,null,null,null,null,9,11,null,10,null,6,null,4,8]
[null,null,null,42,null,"1955-04-16",null,"Aldershot","(A)","L 0-3",3,null,null,1,null,null,7,null,4,5,2,null,null,null,6,8,11,null,null,null,10,null,null,null,9]
[null,null,null,43,null,"1955-04-23",null,"Swindon","(H)","W 1-0",3,null,null,1,null,null,7,null,null,5,2,null,null,null,null,8,null,null,null,null,6,9,4,10,11]
[null,null,null,44,null,"1955-04-26",null,"Southend","(A)","L 0-1",3,null,null,1,null,null,7,null,null,5,2,null,null,null,null,8,11,null,null,null,6,null,4,10,9]
[null,null,null,45,null,"1955-04-30",null,"Exeter","(A)","W 4-1",3,null,null,1,null,null,7,null,null,5,2,null,null,null,null,8,11,null,null,null,6,null,4,10,9]
[null,null,null,46,null,"1955-05-02",null,"Exeter","(H)","D 2-2",3,null,null,1,null,null,7,null,null,5,2,null,null,null,null,8,11,null,null,null,6,null,4,10,9]
[]
[null,null,null,null,null,null,null,null,null,"Total League Apperances",{"$f":"COUNT(K133:K178)","v":38},{"$f":"COUNT(L133:L178)","v":7},{"$f":"COUNT(M133:M178)","v":3},{"$f":"COUNT(N133:N178)","v":43},5,1,24,2,31,38,46,22,6,6,5,33,31,2,30,3,30,6,31,28,31,3,1]
[null,null,null,null,null,null,null,null,null,"Goals",0,0,0,0,0,0,3,0,0,0,5,3,2,3,0,12,10,0,5,0,1,2,3,8,13,0,0]
[]
[null,null,null,1,null,{"$f":"F54","v":"1954-11-20"},null,{"$f":"H54","v":"Exeter"},"(H)","W 3-2",3,null,null,1,null,null,7,null,6,5,2,null,null,null,null,9,11,null,10,null,null,null,4,8]
[null,null,null,2,null,"1954-12-11",null,"Accrington Stanley","(H)","W 3-2",3,null,null,1,null,null,7,null,6,5,2,null,null,null,null,9,11,null,10,null,null,null,4,8]
[null,null,null,3,null,"1955-01-08",null,"Bolton Wanderers","(A)","L 0-1",3,null,null,1,null,null,7,null,6,5,2,null,null,null,null,9,null,null,null,null,10,null,4,8,11]
[null,null,null,"2R",null,"00:00:00",null,"00:00:00","00:00:00",0]
[null,null,null,3,null,"00:00:00",null,"00:00:00","00:00:00",0]
[null,null,null,6,null,"00:00:00",null,"00:00:00","00:00:00",0]
[null,null,null,"SF",null,"00:00:00",null,"00:00:00","00:00:00",0]
[]
[null,null,null,null,null,null,null,null,null,"Total FA Cup Apperances",{"$f":"COUNT(K183:K189)","v":3},0,0,3,0,0,3,0,3,3,3,0,0,0,0,3,2,0,2,0,1,0,3,3,1,0,0]
[null,null,null,null,null,null,null,null,null,"Goals",0,0,0,0,0,0,0,0,0,0,1,0,0,0,0,3,1,0,1,0,0,0,0,0,0,0,0]

{"sheet":"Sheet1","index":2,"n_rows":195,"n_cols":63,"rows_kept":195,"cut":false,"hidden":false,"merged":[[155,1,157,1],[155,52,157,52],[200,13,200,14],[201,13,201,14],[125,1,127,1],[125,52,127,52],[135,1,137,1],[135,52,137,52],[145,1,147,1],[145,52,147,52],[95,1,97,1],[95,52,97,52],[105,1,107,1],[105,52,107,52],[115,1,117,1],[115,52,117,52],[65,1,67,1],[65,52,67,52],[75,1,77,1],[75,52,77,52],[85,1,87,1],[85,52,87,52],[35,1,37,1],[35,52,37,52],[45,1,47,1],[45,52,47,52],[55,1,57,1],[55,52,57,52],[5,1,7,1],[5,52,7,52],[15,1,17,1],[15,52,17,52],[25,1,27,1],[25,52,27,52]]}
[]
[null,null,null,null,null,null,null,null,null,null,null,null,null,null,null,null,null,null,null,null,null,null,null,null,null,null,null,null,null,null,null,null,null,null,null,null,null,null,null,null,null,null,null,null,null,null,null,null,null,null,null,null,null,null,null,null,null,null,null,null,null,null,{"$f":"158-70","v":88}]
[]
[]
[]
[null,75,null,null,null,null,null,null,null,null,null,null,null,null,null,null,null,null,null,null,null,null,null,null,null,null,null,null,null,null,null,null,null,null,null,null,null,null,null,null,null,null,null,null,null,null,null,null,null,null,null,null,75]
[]
[]
[]
[]
[]
[]
[]
[]
[]
[null,70,null,null,null,null,null,null,null,null,null,null,null,null,null,null,null,null,null,null,null,null,null,null,null,null,null,null,null,null,null,null,null,null,null,null,null,null,null,null,null,null,null,null,null,null,null,null,null,null,null,null,70]
[]
[]
[]
[]
[]
[]
[]
[]
[]
[null,65,null,null,null,null,null,null,null,null,null,null,null,null,null,null,null,null,null,null,null,null,null,null,null,null,null,null,null,null,null,null,null,null,null,null,null,null,null,null,null,null,null,null,null,null,null,null,null,null,null,null,65]
[]
[]
[]
[]
[]
[]
[]
[]
[]
[null,60,null,null,null,null,null,null,null,null,null,null,null,null,null,null,null,null,null,null,null,null,null,null,null,null,null,null,null,null,null,null,null,null,null,null,null,null,null,null,null,null,null,null,null,null,null,null,null,null,null,null,60]
[]
[]
[]
[]
[]
[]
[]
[]
[]
[null,55,null,null,null,null,null,null,null,null,null,null,null,null,null,null,null,null,null,null,null,null,null,null,null,null,null,null,null,null,null,null,null,null,null,null,null,null,null,null,null,null,null,null,null,null,null,null,null,null,null,null,55]
[]
[]
[]
[]
[]
[]
[]
[]
[]
[null,50,null,null,null,null,null,null,null,null,null,null,null,null,null,null,null,null,null,null,null,null,null,null,null,null,null,null,null,null,null,null,null,null,null,null,null,null,null,null,null,null,null,null,null,null,null,null,null,null,null,null,50]
[]
[]
[]
[]
[]
[]
[]
[]
[]
[null,45,null,null,null,null,null,null,null,null,null,null,null,null,null,null,null,null,null,null,null,null,null,null,null,null,null,null,null,null,null,null,null,null,null,null,null,null,null,null,null,null,null,null,null,null,null,null,null,null,null,null,45]
[]
[]
[]
[]
[]
[]
[]
[]
[]
[null,40,null,null,null,null,null,null,null,null,null,null,null,null,null,null,null,null,null,null,null,null,null,null,null,null,null,null,null,null,null,null,null,null,null,null,null,null,null,null,null,null,null,null,null,null,null,null,null,null,null,null,40]
[]
[]
[]
[]
[]
[]
[]
[]
[]
[null,35,null,null,null,null,null,null,null,null,null,null,null,null,null,null,null,null,null,null,null,null,null,null,null,null,null,null,null,null,null,null,null,null,null,null,null,null,null,null,null,null,null,null,null,null,null,null,null,null,null,null,35]
[]
[]
[]
[]
[]
[]
[]
[]
[]
[null,30,null,null,null,null,null,null,null,null,null,null,null,null,null,null,null,null,null,null,null,null,null,null,null,null,null,null,null,null,null,null,null,null,null,null,null,null,null,null,null,null,null,null,null,null,null,null,null,null,null,null,30]
[]
[]
[]
[]
[]
[]
[]
[]
[]
[null,25,null,null,null,null,null,null,null,null,null,null,null,null,null,null,null,null,null,null,null,null,null,null,null,null,null,null,null,null,null,null,null,null,null,null,null,null,null,null,null,null,null,null,null,null,null,null,null,null,null,null,25]
[]
[]
[]
[]
[]
[]
[]
[]
[]
[null,20,null,null,null,null,null,null,null,null,null,null,null,null,null,null,null,null,null,null,null,null,null,null,null,null,null,null,null,null,null,null,null,null,null,null,null,null,null,null,null,null,null,null,null,null,null,null,null,null,null,null,20]
[]
[]
[]
[]
[]
[]
[]
[]
[]
[null,15,null,null,null,null,null,null,null,null,null,null,null,null,null,null,null,null,null,null,null,null,null,null,null,null,null,null,null,null,null,null,null,null,null,null,null,null,null,null,null,null,null,null,null,null,null,null,null,null,null,null,15]
[]
[]
[]
[]
[]
[]
[]
[]
[]
[null,10,null,null,null,null,null,null,null,null,null,null,null,null,null,null,null,null,null,null,null,null,null,null,null,null,null,null,null,null,null,null,null,null,null,null,null,null,null,null,null,null,null,null,null,null,null,null,null,null,null,null,10]
[]
[]
[]
[]
[]
[]
[]
[]
[]
[null,5,null,null,null,null,null,null,null,null,null,null,null,null,null,null,null,null,null,null,null,null,null,null,null,null,null,null,null,null,null,null,null,null,null,null,null,null,null,null,null,null,null,null,null,null,null,null,null,null,null,null,5]
[]
[]
[]
[]
[]
[]
[]
[]
[]
[null,0,null,null,null,null,null,null,null,null,null,null,null,null,null,null,null,null,null,null,null,null,null,null,null,null,null,null,null,null,null,null,null,null,null,null,null,null,null,null,null,null,null,null,null,null,null,null,null,null,null,null,0]
[]
[]
[]
[null,null,null,"Brighton (H) W 2-0","Leyton Orient (A) L 0-1","Torquay (A) L 2-4","Leyton Orient (H) W 1-0","Bristol C (H) L 1-3","Northampton (A) W 1-0","Walsall (A) D 1-1","Northampton (H) W 1-0","Shrewsbury (H) W 2-0","Southampton (H) W 2-0","Reading (A) D 0-0","Southampton (A) L 0-3","Gillingham (H) W 3-2","Bournemouth (A) W 1-0","QPR (H) L 0-1","Newport County (A) L 1-2","C Palace (H) W 5-2","Colchester (A) W 2-0","Norwich (H) D 0-0","Aldershot (H) W 3-1","Swindon (A) D 1-1","Brighton (A) W 2-1","Brentford (A) L 1-3","Brentford (H) D 2-2","Torquay (H) W 4-1","Walsall (H) W 1-0","Watford (H) W 1-0","Shrewsbury (A) L 2-3","Reading (H) D 2-2","Gillingham (A) D 1-1","Bournemouth (H) D 1-1","QPR (A) W 2-1","Bristol C (A) L 1-5","Newport County (H) D 1-1","C Palace (A) D 1-1","Colchester (H) W 5-2","Watford (A) L 3-5","Norwich (A) L 1-2","Coventry (H) W 3-1","Southend (H) L 1-4","Coventry (A) L 1-4","Aldershot (A) L 0-3","Swindon (H) W 1-0","Southend (A) L 0-1","Exeter (A) W 4-1","Exeter (H) D 2-2","Final Table"]
[]
[]
[]
[]
[]
[]
[null,null,null,{"$f":"D187-D174","v":0},0,0,0,0,0,0,0,0,0,0,0,0,0,0,0,0,0,0,0,0,0,0,0,0,0,0,0,0,0,0,0,0,0,0,0,0,0,0,0,0,0,0,0,0,0,0]
[null,null,null,4,5,6,7,8,9,10,11,12,13,14,15,16,17,18,19,20,21,22,23,24,25,26,27,28,29,30,31,32,33,34,35,36,37,38,39,40,41,42,43,44,45,46,47,48,49,50]
[null,null,null,{"$f":"D176-D189","v":0},{"$f":"E176-E189","v":0},0,1,1,1,1,2,1,1,1,0,1,1,2,0,0,1,2,2,2,2,2,2,1,0,0,2,1,1,0,1,1,2,0,0,0,0,0,0,0,2,2,1,3,1,3]
[]
[]
[null,"Top Y",null,{"$f":"Sheet2!$I$6","v":2},{"$f":"Sheet2!$I$7","v":4},{"$f":"Sheet2!$I$8","v":6},{"$f":"Sheet2!$I$9","v":6},{"$f":"Sheet2!$I$10","v":9},{"$f":"Sheet2!$I$11","v":11},{"$f":"Sheet2!$I$12","v":13},{"$f":"Sheet2!$I$13","v":13},{"$f":"Sheet2!$I$14","v":15},{"$f":"Sheet2!$I$15","v":15},{"$f":"Sheet2!$I$16","v":19},{"$f":"Sheet2!$I$17","v":19},{"$f":"Sheet2!$I$18","v":23},{"$f":"Sheet2!$I$19","v":23},{"$f":"Sheet2!$I$20","v":25},{"$f":"Sheet2!$I$21","v":26},{"$f":"Sheet2!$I$22","v":28},{"$f":"Sheet2!$I$23","v":28},{"$f":"Sheet2!$I$24","v":30},{"$f":"Sheet2!$I$25","v":31},{"$f":"Sheet2!$I$26","v":32},{"$f":"Sheet2!$I$27","v":34},{"$f":"Sheet2!$I$28","v":36},{"$f":"Sheet2!$I$29","v":38},{"$f":"Sheet2!$I$30","v":38},{"$f":"Sheet2!$I$31","v":40},{"$f":"Sheet2!$I$32","v":42},{"$f":"Sheet2!$I$33","v":44},{"$f":"Sheet2!$I$34","v":45},{"$f":"Sheet2!$I$35","v":46},{"$f":"Sheet2!$I$36","v":47},{"$f":"Sheet2!$I$37","v":49},{"$f":"Sheet2!$I$38","v":51},{"$f":"Sheet2!$I$39","v":53},{"$f":"Sheet2!$I$40","v":55},{"$f":"Sheet2!$I$41","v":57},{"$f":"Sheet2!$I$42","v":57},{"$f":"Sheet2!$I$43","v":59},{"$f":"Sheet2!$I$44","v":59},{"$f":"Sheet2!$I$45","v":60},{"$f":"Sheet2!$I$46","v":62},{"$f":"Sheet2!$I$47","v":63},{"$f":"Sheet2!$I$48","v":66},{"$f":"Sheet2!$I$49","v":66},{"$f":"Sheet2!$I$50","v":70},{"$f":"Sheet2!$I$51","v":70},{"$f":"Sheet2!$I$52","v":70}]
[]
[null,"2nd a",null,{"$f":"Sheet2!$K$6","v":2},{"$f":"Sheet2!$K$7","v":4},{"$f":"Sheet2!$K$8","v":5},{"$f":"Sheet2!$K$9","v":5},{"$f":"Sheet2!$K$10","v":7},{"$f":"Sheet2!$K$11","v":9},{"$f":"Sheet2!$K$12","v":11},{"$f":"Sheet2!$K$13","v":11},{"$f":"Sheet2!$K$14","v":14},{"$f":"Sheet2!$K$15","v":14},{"$f":"Sheet2!$K$16","v":16},{"$f":"Sheet2!$K$17","v":16},{"$f":"Sheet2!$K$18","v":18},{"$f":"Sheet2!$K$19","v":20},{"$f":"Sheet2!$K$20","v":22},{"$f":"Sheet2!$K$21","v":23},{"$f":"Sheet2!$K$22","v":24},{"$f":"Sheet2!$K$23","v":26},{"$f":"Sheet2!$K$24","v":28},{"$f":"Sheet2!$K$25","v":30},{"$f":"Sheet2!$K$26","v":32},{"$f":"Sheet2!$K$27","v":34},{"$f":"Sheet2!$K$28","v":34},{"$f":"Sheet2!$K$29","v":35},{"$f":"Sheet2!$K$30","v":37},{"$f":"Sheet2!$K$31","v":38},{"$f":"Sheet2!$K$32","v":40},{"$f":"Sheet2!$K$33","v":42},{"$f":"Sheet2!$K$34","v":43},{"$f":"Sheet2!$K$35","v":45},{"$f":"Sheet2!$K$36","v":46},{"$f":"Sheet2!$K$37","v":48},{"$f":"Sheet2!$K$38","v":48},{"$f":"Sheet2!$K$39","v":50},{"$f":"Sheet2!$K$40","v":51},{"$f":"Sheet2!$K$41","v":53},{"$f":"Sheet2!$K$42","v":53},{"$f":"Sheet2!$K$43","v":54},{"$f":"Sheet2!$K$44","v":54},{"$f":"Sheet2!$K$45","v":54},{"$f":"Sheet2!$K$46","v":55},{"$f":"Sheet2!$K$47","v":56},{"$f":"Sheet2!$K$48","v":57},{"$f":"Sheet2!$K$49","v":57},{"$f":"Sheet2!$K$50","v":59},{"$f":"Sheet2!$K$51","v":59},{"$f":"Sheet2!$K$52","v":61}]
[]
[null,"22nd b",null,{"$f":"Sheet2!$M$6","v":0},{"$f":"Sheet2!$M$7","v":1},{"$f":"Sheet2!$M$8","v":1},{"$f":"Sheet2!$M$9","v":2},{"$f":"Sheet2!$M$10","v":3},{"$f":"Sheet2!$M$11","v":4},{"$f":"Sheet2!$M$12","v":4},{"$f":"Sheet2!$M$13","v":5},{"$f":"Sheet2!$M$14","v":6},{"$f":"Sheet2!$M$15","v":6},{"$f":"Sheet2!$M$16","v":8},{"$f":"Sheet2!$M$17","v":8},{"$f":"Sheet2!$M$18","v":9},{"$f":"Sheet2!$M$19","v":10},{"$f":"Sheet2!$M$20","v":11},{"$f":"Sheet2!$M$21","v":11},{"$f":"Sheet2!$M$22","v":12},{"$f":"Sheet2!$M$23","v":13},{"$f":"Sheet2!$M$24","v":14},{"$f":"Sheet2!$M$25","v":14},{"$f":"Sheet2!$M$26","v":14},{"$f":"Sheet2!$M$27","v":15},{"$f":"Sheet2!$M$28","v":17},{"$f":"Sheet2!$M$29","v":18},{"$f":"Sheet2!$M$30","v":18},{"$f":"Sheet2!$M$31","v":19},{"$f":"Sheet2!$M$32","v":19},{"$f":"Sheet2!$M$33","v":21},{"$f":"Sheet2!$M$34","v":22},{"$f":"Sheet2!$M$35","v":23},{"$f":"Sheet2!$M$36","v":23},{"$f":"Sheet2!$M$37","v":24},{"$f":"Sheet2!$M$38","v":24},{"$f":"Sheet2!$M$39","v":26},{"$f":"Sheet2!$M$40","v":27},{"$f":"Sheet2!$M$41","v":27},{"$f":"Sheet2!$M$42","v":27},{"$f":"Sheet2!$M$43","v":28},{"$f":"Sheet2!$M$44","v":30},{"$f":"Sheet2!$M$45","v":30},{"$f":"Sheet2!$M$46","v":30},{"$f":"Sheet2!$M$47","v":32},{"$f":"Sheet2!$M$48","v":32},{"$f":"Sheet2!$M$49","v":32},{"$f":"Sheet2!$M$50","v":35},{"$f":"Sheet2!$M$51","v":35},{"$f":"Sheet2!$M$52","v":37}]
[]
[null,"24th c",null,{"$f":"Sheet2!$O$6","v":0},{"$f":"Sheet2!$O$7","v":0},{"$f":"Sheet2!$O$8","v":1},{"$f":"Sheet2!$O$9","v":1},{"$f":"Sheet2!$O$10","v":1},{"$f":"Sheet2!$O$11","v":1},{"$f":"Sheet2!$O$12","v":2},{"$f":"Sheet2!$O$13","v":2},{"$f":"Sheet2!$O$14","v":2},{"$f":"Sheet2!$O$15","v":2},{"$f":"Sheet2!$O$16","v":3},{"$f":"Sheet2!$O$17","v":3},{"$f":"Sheet2!$O$18","v":5},{"$f":"Sheet2!$O$19","v":5},{"$f":"Sheet2!$O$20","v":5},{"$f":"Sheet2!$O$21","v":5},{"$f":"Sheet2!$O$22","v":7},{"$f":"Sheet2!$O$23","v":7},{"$f":"Sheet2!$O$24","v":9},{"$f":"Sheet2!$O$25","v":10},{"$f":"Sheet2!$O$26","v":11},{"$f":"Sheet2!$O$27","v":13},{"$f":"Sheet2!$O$28","v":14},{"$f":"Sheet2!$O$29","v":15},{"$f":"Sheet2!$O$30","v":16},{"$f":"Sheet2!$O$31","v":16},{"$f":"Sheet2!$O$32","v":16},{"$f":"Sheet2!$O$33","v":17},{"$f":"Sheet2!$O$34","v":17},{"$f":"Sheet2!$O$35","v":18},{"$f":"Sheet2!$O$36","v":18},{"$f":"Sheet2!$O$37","v":19},{"$f":"Sheet2!$O$38","v":19},{"$f":"Sheet2!$O$39","v":19},{"$f":"Sheet2!$O$40","v":20},{"$f":"Sheet2!$O$41","v":20},{"$f":"Sheet2!$O$42","v":20},{"$f":"Sheet2!$O$43","v":22},{"$f":"Sheet2!$O$44","v":24},{"$f":"Sheet2!$O$45","v":26},{"$f":"Sheet2!$O$46","v":28},{"$f":"Sheet2!$O$47","v":28},{"$f":"Sheet2!$O$48","v":30},{"$f":"Sheet2!$O$49","v":30},{"$f":"Sheet2!$O$50","v":31},{"$f":"Sheet2!$O$51","v":31},{"$f":"Sheet2!$O$52","v":31}]
[]
[null,"d"]
[]
[null,"Millwall e",null,{"$f":"Sheet2!$G$6","v":2},{"$f":"Sheet2!$G$7","v":2},{"$f":"Sheet2!$G$8","v":2},{"$f":"Sheet2!$G$9","v":4},{"$f":"Sheet2!$G$10","v":4},{"$f":"Sheet2!$G$11","v":6},{"$f":"Sheet2!$G$12","v":7},{"$f":"Sheet2!$G$13","v":9},{"$f":"Sheet2!$G$14","v":11},{"$f":"Sheet2!$G$15","v":13},{"$f":"Sheet2!$G$16","v":14},{"$f":"Sheet2!$G$17","v":14},{"$f":"Sheet2!$G$18","v":16},{"$f":"Sheet2!$G$19","v":18},{"$f":"Sheet2!$G$20","v":18},{"$f":"Sheet2!$G$21","v":18},{"$f":"Sheet2!$G$22","v":20},{"$f":"Sheet2!$G$23","v":22},{"$f":"Sheet2!$G$24","v":23},{"$f":"Sheet2!$G$25","v":25},{"$f":"Sheet2!$G$26","v":26},{"$f":"Sheet2!$G$27","v":28},{"$f":"Sheet2!$G$28","v":28},{"$f":"Sheet2!$G$29","v":29},{"$f":"Sheet2!$G$30","v":31},{"$f":"Sheet2!$G$31","v":33},{"$f":"Sheet2!$G$32","v":35},{"$f":"Sheet2!$G$33","v":35},{"$f":"Sheet2!$G$34","v":36},{"$f":"Sheet2!$G$35","v":37},{"$f":"Sheet2!$G$36","v":38},{"$f":"Sheet2!$G$37","v":40},{"$f":"Sheet2!$G$38","v":40},{"$f":"Sheet2!$G$39","v":41},{"$f":"Sheet2!$G$40","v":42},{"$f":"Sheet2!$G$41","v":44},{"$f":"Sheet2!$G$42","v":44},{"$f":"Sheet2!$G$43","v":44},{"$f":"Sheet2!$G$44","v":46},{"$f":"Sheet2!$G$45","v":46},{"$f":"Sheet2!$G$46","v":46},{"$f":"Sheet2!$G$47","v":46},{"$f":"Sheet2!$G$48","v":48},{"$f":"Sheet2!$G$49","v":48},{"$f":"Sheet2!$G$50","v":50},{"$f":"Sheet2!$G$51","v":51},{"$f":"Sheet2!$G$52","v":51}]
[]
[]
[]
[]
[null,"2nd f",null,{"$f":"(Sheet2!$T$6)","v":2},{"$f":"(Sheet2!$T$7)","v":4},{"$f":"(Sheet2!$T$8)","v":5},{"$f":"(Sheet2!$T$9)","v":5},{"$f":"(Sheet2!$T$10)","v":7},{"$f":"(Sheet2!$T$11)","v":9},{"$f":"(Sheet2!$T$12)","v":11},{"$f":"(Sheet2!$T$13)","v":11},{"$f":"(Sheet2!$T$14)","v":14},{"$f":"(Sheet2!$T$15)","v":14},{"$f":"(Sheet2!$T$16)","v":16},{"$f":"(Sheet2!$T$17)","v":16},{"$f":"(Sheet2!$T$18)","v":18},{"$f":"(Sheet2!$T$19)","v":20},{"$f":"(Sheet2!$T$20)","v":22},{"$f":"(Sheet2!$T$21)","v":23},{"$f":"(Sheet2!$T$22)","v":24},{"$f":"(Sheet2!$T$23)","v":26},{"$f":"(Sheet2!$T$24)","v":28},{"$f":"(Sheet2!$T$25)","v":30},{"$f":"(Sheet2!$T$26)","v":32},{"$f":"(Sheet2!$T$27)","v":34},{"$f":"(Sheet2!$T$28)","v":34},{"$f":"(Sheet2!$T$29)","v":35},{"$f":"(Sheet2!$T$30)","v":37},{"$f":"(Sheet2!$T$31)","v":38},{"$f":"(Sheet2!$T$32)","v":40},{"$f":"(Sheet2!$T$33)","v":42},{"$f":"(Sheet2!$T$34)","v":43},{"$f":"(Sheet2!$T$35)","v":45},{"$f":"(Sheet2!$T$36)","v":46},{"$f":"(Sheet2!$T$37)","v":48},{"$f":"(Sheet2!$T$38)","v":48},{"$f":"(Sheet2!$T$39)","v":50},{"$f":"(Sheet2!$T$40)","v":51},{"$f":"(Sheet2!$T$41)","v":53},{"$f":"(Sheet2!$T$42)","v":53},{"$f":"(Sheet2!$T$43)","v":54},{"$f":"(Sheet2!$T$44)","v":54},{"$f":"(Sheet2!$T$45)","v":54},{"$f":"(Sheet2!$T$46)","v":55},{"$f":"(Sheet2!$T$47)","v":56},{"$f":"(Sheet2!$T$48)","v":57},{"$f":"(Sheet2!$T$49)","v":57},{"$f":"(Sheet2!$T$50)","v":59},{"$f":"(Sheet2!$T$51)","v":59},{"$f":"(Sheet2!$T$52)","v":61}]
[]
[null,"23rd g",null,{"$f":"(Sheet2!$V$6)","v":0},{"$f":"(Sheet2!$V$7)","v":1},{"$f":"(Sheet2!$V$8)","v":1},{"$f":"(Sheet2!$V$9)","v":1},{"$f":"(Sheet2!$V$10)","v":2},{"$f":"(Sheet2!$V$11)","v":3},{"$f":"(Sheet2!$V$12)","v":3},{"$f":"(Sheet2!$V$13)","v":3},{"$f":"(Sheet2!$V$14)","v":5},{"$f":"(Sheet2!$V$15)","v":5},{"$f":"(Sheet2!$V$16)","v":7},{"$f":"(Sheet2!$V$17)","v":8},{"$f":"(Sheet2!$V$18)","v":8},{"$f":"(Sheet2!$V$19)","v":9},{"$f":"(Sheet2!$V$20)","v":9},{"$f":"(Sheet2!$V$21)","v":11},{"$f":"(Sheet2!$V$22)","v":12},{"$f":"(Sheet2!$V$23)","v":12},{"$f":"(Sheet2!$V$24)","v":12},{"$f":"(Sheet2!$V$25)","v":12},{"$f":"(Sheet2!$V$26)","v":12},{"$f":"(Sheet2!$V$27)","v":13},{"$f":"(Sheet2!$V$28)","v":15},{"$f":"(Sheet2!$V$29)","v":16},{"$f":"(Sheet2!$V$30)","v":17},{"$f":"(Sheet2!$V$31)","v":19},{"$f":"(Sheet2!$V$32)","v":19},{"$f":"(Sheet2!$V$33)","v":19},{"$f":"(Sheet2!$V$34)","v":21},{"$f":"(Sheet2!$V$35)","v":22},{"$f":"(Sheet2!$V$36)","v":23},{"$f":"(Sheet2!$V$37)","v":23},{"$f":"(Sheet2!$V$38)","v":23},{"$f":"(Sheet2!$V$39)","v":24},{"$f":"(Sheet2!$V$40)","v":27},{"$f":"(Sheet2!$V$41)","v":27},{"$f":"(Sheet2!$V$42)","v":27},{"$f":"(Sheet2!$V$43)","v":28},{"$f":"(Sheet2!$V$44)","v":30},{"$f":"(Sheet2!$V$45)","v":30},{"$f":"(Sheet2!$V$46)","v":30},{"$f":"(Sheet2!$V$47)","v":30},{"$f":"(Sheet2!$V$48)","v":30},{"$f":"(Sheet2!$V$49)","v":31},{"$f":"(Sheet2!$V$50)","v":32},{"$f":"(Sheet2!$V$51)","v":34},{"$f":"(Sheet2!$V$52)","v":34}]
[]
[]
[]
[]
[null,null,null,5,6,7,8,9,10,11,12,13,14,15,16,17,18,19,20,21,22,23,24,25,26,27,28,29,30,31,32,33,34,35,36,37,38,39,40,41,42,43,44,45,46,47,48,45,46,46]
[null,null,null,{"$f":"D176-D189","v":0},{"$f":"E176-E189","v":0},0,1,1,1,1,2,1,1,1,0,1,1,2,0,0,1,2,2,2,2,2,2,1,0,0,2,1,1,0,1,1,2,0,0,0,0,0,0,0,2,2,1,3,1,3]

{"sheet":"Sheet2","index":3,"n_rows":52,"n_cols":26,"rows_kept":52,"cut":false,"hidden":false,"merged":[]}
[null,null,"Millwall 1954/55 results and fixtures ",null,null,null,{"$f":"[5]Summary!$AP$66","v":51},{"$f":"[5]Summary!$Q$22","v":5},{"$f":"[5]Summary!$AP$10","v":70},1,{"$f":"[5]Summary!$AP$11","v":61},2,{"$f":"[5]Summary!$AP$31","v":37},22,{"$f":"[5]Summary!$AP$33","v":31},24,null,null,{"$f":"[5]Summary!$T$5","v":84},{"$f":"[5]Summary!$AP$11","v":61},2,{"$f":"[5]Summary!$AP$32","v":34},23,null,null,{"$f":"[5]Summary!$U$7","v":"Exeter (H) D 2-2"}]
[]
[]
[null,null,null,null,null,null,"x"]
[null,"Game","Competition",null,"Pts","Pos","Millwall","Pos","top","Pos","2nd","Pos","22nd","Pos","Bottom","Pos","Bottom","Pos","Day","2nd","Pos","23rd","Pos",null,null,"Vesus"]
[null,1,"Division 3S","Brighton (H) W 2-0",null,null,2,2,2,1,2,2,0,22,0,24,null,null,1,2,2,0,23,null,null,"Brighton (H) W 2-0"]
[null,2,"Division 3S","Leyton Orient (A) L 0-1",null,null,2,10,4,1,4,2,1,22,0,24,null,null,5,4,2,1,23,null,null,"Leyton Orient (A) L 0-1"]
[null,3,"Division 3S","Torquay (A) L 2-4",null,null,2,18,6,1,5,2,1,22,1,24,null,null,6,5,2,1,23,null,null,"Torquay (A) L 2-4"]
[null,4,"Division 3S","Leyton Orient (H) W 1-0",null,null,4,8,6,1,5,2,2,22,1,24,null,null,7,5,2,1,23,null,null,"Leyton Orient (H) W 1-0"]
[null,5,"Division 3S","Bristol C (H) L 1-3",null,null,4,19,9,1,7,2,3,22,1,24,null,null,11,7,2,2,23,null,null,"Bristol C (H) L 1-3"]
[null,6,"Division 3S","Northampton (A) W 1-0",null,null,6,13,11,1,9,2,4,22,1,24,null,null,15,9,2,3,23,null,null,"Northampton (A) W 1-0"]
[null,7,"Division 3S","Walsall (A) D 1-1",null,null,7,12,13,1,11,2,4,22,2,24,null,null,16,11,2,3,23,null,null,"Walsall (A) D 1-1"]
[null,8,"Division 3S","Northampton (H) W 1-0",null,null,9,6,13,1,11,2,5,22,2,24,null,null,17,11,2,3,23,null,null,"Northampton (H) W 1-0"]
[null,9,"Division 3S","Shrewsbury (H) W 2-0",null,null,11,6,15,1,14,2,6,22,2,24,null,null,21,14,2,5,23,null,null,"Shrewsbury (H) W 2-0"]
[null,10,"Division 3S","Southampton (H) W 2-0",null,null,13,4,15,1,14,2,6,22,2,24,null,null,22,14,2,5,23,null,null,"Southampton (H) W 2-0"]
[null,11,"Division 3S","Reading (A) D 0-0",null,null,14,4,19,1,16,2,8,22,3,24,null,null,26,16,2,7,23,null,null,"Reading (A) D 0-0"]
[null,12,"Division 3S","Southampton (A) L 0-3",null,null,14,6,19,1,16,2,8,22,3,24,null,null,28,16,2,8,23,null,null,"Southampton (A) L 0-3"]
[null,13,"Division 3S","Gillingham (H) W 3-2",null,null,16,5,23,1,18,2,9,22,5,24,null,null,30,18,2,8,23,null,null,"Gillingham (H) W 3-2"]
[null,14,"Division 3S","Bournemouth (A) W 1-0",null,null,18,5,23,1,20,2,10,22,5,24,null,null,31,20,2,9,23,null,null,"Bournemouth (A) W 1-0"]
[null,15,"Division 3S","QPR (H) L 0-1",null,null,18,7,25,1,22,2,11,22,5,24,null,null,32,22,2,9,23,null,null,"QPR (H) L 0-1"]
[null,16,"Division 3S","Newport County (A) L 1-2",null,null,18,7,26,1,23,2,11,22,5,24,null,null,33,23,2,11,23,null,null,"Newport County (A) L 1-2"]
[null,17,"Division 3S","C Palace (H) W 5-2",null,null,20,7,28,1,24,2,12,22,7,24,null,null,34,24,2,12,23,null,null,"C Palace (H) W 5-2"]
[null,18,"Division 3S","Colchester (A) W 2-0",null,null,22,5,28,1,26,2,13,22,7,24,null,null,35,26,2,12,23,null,null,"Colchester (A) W 2-0"]
[null,19,"Division 3S","Norwich (H) D 0-0",null,null,23,6,30,1,28,2,14,22,9,24,null,null,36,28,2,12,23,null,null,"Norwich (H) D 0-0"]
[null,20,"Division 3S","Aldershot (H) W 3-1",null,null,25,6,31,1,30,2,14,22,10,24,null,null,37,30,2,12,23,null,null,"Aldershot (H) W 3-1"]
[null,21,"Division 3S","Swindon (A) D 1-1",null,null,26,6,32,1,32,2,14,22,11,24,null,null,38,32,2,12,23,null,null,"Swindon (A) D 1-1"]
[null,22,"Division 3S","Brighton (A) W 2-1",null,null,28,4,34,1,34,2,15,22,13,24,null,null,40,34,2,13,23,null,null,"Brighton (A) W 2-1"]
[null,23,"Division 3S","Brentford (A) L 1-3",null,null,28,5,36,1,34,2,17,22,14,24,null,null,41,34,2,15,23,null,null,"Brentford (A) L 1-3"]
[null,24,"Division 3S","Brentford (H) D 2-2",null,null,29,4,38,1,35,2,18,22,15,24,null,null,42,35,2,16,23,null,null,"Brentford (H) D 2-2"]
[null,25,"Division 3S","Torquay (H) W 4-1",null,null,31,4,38,1,37,2,18,22,16,24,null,null,43,37,2,17,23,null,null,"Torquay (H) W 4-1"]
[null,26,"Division 3S","Walsall (H) W 1-0",null,null,33,4,40,1,38,2,19,22,16,24,null,null,46,38,2,19,23,null,null,"Walsall (H) W 1-0"]
[null,27,"Division 3S","Watford (H) W 1-0",null,null,35,4,42,1,40,2,19,22,16,24,null,null,47,40,2,19,23,null,null,"Watford (H) W 1-0"]
[null,28,"Division 3S","Shrewsbury (A) L 2-3",null,null,35,4,44,1,42,2,21,22,17,24,null,null,48,42,2,19,23,null,null,"Shrewsbury (A) L 2-3"]
[null,29,"Division 3S","Reading (H) D 2-2",null,null,36,4,45,1,43,2,22,22,17,24,null,null,49,43,2,21,23,null,null,"Reading (H) D 2-2"]
[null,30,"Division 3S","Gillingham (A) D 1-1",null,null,37,4,46,1,45,2,23,22,18,24,null,null,50,45,2,22,23,null,null,"Gillingham (A) D 1-1"]
[null,31,"Division 3S","Bournemouth (H) D 1-1",null,null,38,4,47,1,46,2,23,22,18,24,null,null,51,46,2,23,23,null,null,"Bournemouth (H) D 1-1"]
[null,32,"Division 3S","QPR (A) W 2-1",null,null,40,4,49,1,48,2,24,22,19,24,null,null,52,48,2,23,23,null,null,"QPR (A) W 2-1"]
[null,33,"Division 3S","Bristol C (A) L 1-5",null,null,40,4,51,1,48,2,24,22,19,24,null,null,53,48,2,23,23,null,null,"Bristol C (A) L 1-5"]
[null,34,"Division 3S","Newport County (H) D 1-1",null,null,41,4,53,1,50,2,26,22,19,24,null,null,54,50,2,24,23,null,null,"Newport County (H) D 1-1"]
[null,35,"Division 3S","C Palace (A) D 1-1",null,null,42,4,55,1,51,2,27,22,20,24,null,null,56,51,2,27,23,null,null,"C Palace (A) D 1-1"]
[null,36,"Division 3S","Colchester (H) W 5-2",null,null,44,4,57,1,53,2,27,22,20,24,null,null,58,53,2,27,23,null,null,"Colchester (H) W 5-2"]
[null,37,"Division 3S","Watford (A) L 3-5",null,null,44,4,57,1,53,2,27,22,20,24,null,null,59,53,2,27,23,null,null,"Watford (A) L 3-5"]
[null,38,"Division 3S","Norwich (A) L 1-2",null,null,44,4,59,1,54,2,28,22,22,24,null,null,61,54,2,28,23,null,null,"Norwich (A) L 1-2"]
[null,39,"Division 3S","Coventry (H) W 3-1",null,null,46,4,59,1,54,2,30,22,24,24,null,null,64,54,2,30,23,null,null,"Coventry (H) W 3-1"]
[null,40,"Division 3S","Southend (H) L 1-4",null,null,46,5,60,1,54,2,30,22,26,24,null,null,65,54,2,30,23,null,null,"Southend (H) L 1-4"]
[null,41,"Division 3S","Coventry (A) L 1-4",null,null,46,5,62,1,55,2,30,22,28,24,null,null,67,55,2,30,23,null,null,"Coventry (A) L 1-4"]
[null,42,"Division 3S","Aldershot (A) L 0-3",null,null,46,5,63,1,56,2,32,22,28,24,null,null,68,56,2,30,23,null,null,"Aldershot (A) L 0-3"]
[null,43,"Division 3S","Swindon (H) W 1-0",null,null,48,5,66,1,57,2,32,22,30,24,null,null,73,57,2,30,23,null,null,"Swindon (H) W 1-0"]
[null,44,"Division 3S","Southend (A) L 0-1",null,null,48,5,66,1,57,2,32,22,30,24,null,null,75,57,2,31,23,null,null,"Southend (A) L 0-1"]
[null,45,"Division 3S","Exeter (A) W 4-1",null,null,50,5,70,1,59,2,35,22,31,24,null,null,78,59,2,32,23,null,null,"Exeter (A) W 4-1"]
[null,46,"Division 3S","Exeter (H) D 2-2",null,null,51,5,70,1,59,2,35,22,31,24,null,null,79,59,2,34,23,null,null,"Exeter (H) D 2-2"]
[null,null,null,null,null,null,51,5,70,1,61,2,37,22,31,24,null,null,84,61,2,34,23,null,null,"Exeter (H) D 2-2"]

{"sheet":"Sheet3","index":4,"n_rows":144,"n_cols":57,"rows_kept":144,"cut":false,"hidden":false,"merged":[[127,1,129,1],[107,1,109,1],[108,52,110,52],[113,52,115,52],[117,1,119,1],[118,52,120,52],[123,52,125,52],[87,1,89,1],[88,52,90,52],[93,52,95,52],[97,1,99,1],[98,52,100,52],[103,52,105,52],[67,1,69,1],[68,52,70,52],[73,52,75,52],[77,1,79,1],[78,52,80,52],[83,52,85,52],[47,1,49,1],[48,52,50,52],[53,52,55,52],[57,1,59,1],[58,52,60,52],[63,52,65,52],[27,1,29,1],[28,52,30,52],[33,52,35,52],[37,1,39,1],[38,52,40,52],[43,52,45,52],[7,1,9,1],[8,52,10,52],[13,52,15,52],[17,1,19,1],[18,52,20,52],[23,52,25,52]]}
[]
[null,null,null,null,null,null,null,null,null,null,null,null,null,null,null,null,null,null,null,null,null,null,null,null,null,null,null,null,null,null,null,null,null,null,null,null,null,null,null,null,null,null,null,null,null,null,null,null,null,null,null,null,null,null,null,4,50]
[]
[]
[]
[null,null,"Points",null,null,null,null,null,null,null,null,null,null,null,null,null,null,null,null,null,null,null,null,null,null,null,null,null,null,null,null,null,null,null,null,null,null,null,null,null,null,null,null,null,null,null,null,null,null,null,null,"Position"]
[]
[null,60]
[null,null,null,null,null,null,null,null,null,null,null,null,null,null,null,null,null,null,null,null,null,null,null,null,null,null,null,null,null,null,null,null,null,null,null,null,null,null,null,null,null,null,null,null,null,null,null,null,null,null,null,null,1]
[]
[]
[]
[]
[null,null,null,null,null,null,null,null,null,null,null,null,null,null,null,null,null,null,null,null,null,null,null,null,null,null,null,null,null,null,null,null,null,null,null,null,null,null,null,null,null,null,null,null,null,null,null,null,null,null,null,null,2]
[]
[]
[]
[null,55]
[null,null,null,null,null,null,null,null,null,null,null,null,null,null,null,null,null,null,null,null,null,null,null,null,null,null,null,null,null,null,null,null,null,null,null,null,null,null,null,null,null,null,null,null,null,null,null,null,null,null,null,null,3]
[]
[]
[]
[]
[null,null,null,null,null,null,null,null,null,null,null,null,null,null,null,null,null,null,null,null,null,null,null,null,null,null,null,null,null,null,null,null,null,null,null,null,null,null,null,null,null,null,null,null,null,null,null,null,null,null,null,null,4]
[]
[]
[]
[null,50]
[null,null,null,null,null,null,null,null,null,null,null,null,null,null,null,null,null,null,null,null,null,null,null,null,null,null,null,null,null,null,null,null,null,null,null,null,null,null,null,null,null,null,null,null,null,null,null,null,null,null,null,null,5]
[]
[]
[]
[]
[null,null,null,null,null,null,null,null,null,null,null,null,null,null,null,null,null,null,null,null,null,null,null,null,null,null,null,null,null,null,null,null,null,null,null,null,null,null,null,null,null,null,null,null,null,null,null,null,null,null,null,null,6]
[]
[]
[]
[null,45]
[null,null,null,null,null,null,null,null,null,null,null,null,null,null,null,null,null,null,null,null,null,null,null,null,null,null,null,null,null,null,null,null,null,null,null,null,null,null,null,null,null,null,null,null,null,null,null,null,null,null,null,null,7]
[]
[]
[]
[]
[null,null,null,null,null,null,null,null,null,null,null,null,null,null,null,null,null,null,null,null,null,null,null,null,null,null,null,null,null,null,null,null,null,null,null,null,null,null,null,null,null,null,null,null,null,null,null,null,null,null,null,null,8]
[]
[]
[]
[null,40]
[null,null,null,null,null,null,null,null,null,null,null,null,null,null,null,null,null,null,null,null,null,null,null,null,null,null,null,null,null,null,null,null,null,null,null,null,null,null,null,null,null,null,null,null,null,null,null,null,null,null,null,null,9]
[]
[]
[]
[]
[null,null,null,null,null,null,null,null,null,null,null,null,null,null,null,null,null,null,null,null,null,null,null,null,null,null,null,null,null,null,null,null,null,null,null,null,null,null,null,null,null,null,null,null,null,null,null,null,null,null,null,null,10]
[]
[]
[]
[null,35]
[null,null,null,null,null,null,null,null,null,null,null,null,null,null,null,null,null,null,null,null,null,null,null,null,null,null,null,null,null,null,null,null,null,null,null,null,null,null,null,null,null,null,null,null,null,null,null,null,null,null,null,null,11]
[]
[]
[]
[]
[null,null,null,null,null,null,null,null,null,null,null,null,null,null,null,null,null,null,null,null,null,null,null,null,null,null,null,null,null,null,null,null,null,null,null,null,null,null,null,null,null,null,null,null,null,null,null,null,null,null,null,null,12]
[]
[]
[]
[null,30]
[null,null,null,null,null,null,null,null,null,null,null,null,null,null,null,null,null,null,null,null,null,null,null,null,null,null,null,null,null,null,null,null,null,null,null,null,null,null,null,null,null,null,null,null,null,null,null,null,null,null,null,null,13]
[]
[]
[]
[]
[null,null,null,null,null,null,null,null,null,null,null,null,null,null,null,null,null,null,null,null,null,null,null,null,null,null,null,null,null,null,null,null,null,null,null,null,null,null,null,null,null,null,null,null,null,null,null,null,null,null,null,null,14]
[]
[]
[]
[null,25]
[null,null,null,null,null,null,null,null,null,null,null,null,null,null,null,null,null,null,null,null,null,null,null,null,null,null,null,null,null,null,null,null,null,null,null,null,null,null,null,null,null,null,null,null,null,null,null,null,null,null,null,null,15]
[]
[]
[]
[]
[null,null,null,null,null,null,null,null,null,null,null,null,null,null,null,null,null,null,null,null,null,null,null,null,null,null,null,null,null,null,null,null,null,null,null,null,null,null,null,null,null,null,null,null,null,null,null,null,null,null,null,null,16]
[]
[]
[]
[null,20]
[null,null,null,null,null,null,null,null,null,null,null,null,null,null,null,null,null,null,null,null,null,null,null,null,null,null,null,null,null,null,null,null,null,null,null,null,null,null,null,null,null,null,null,null,null,null,null,null,null,null,null,null,17]
[]
[]
[]
[]
[null,null,null,null,null,null,null,null,null,null,null,null,null,null,null,null,null,null,null,null,null,null,null,null,null,null,null,null,null,null,null,null,null,null,null,null,null,null,null,null,null,null,null,null,null,null,null,null,null,null,null,null,18]
[]
[]
[]
[null,15]
[null,null,null,null,null,null,null,null,null,null,null,null,null,null,null,null,null,null,null,null,null,null,null,null,null,null,null,null,null,null,null,null,null,null,null,null,null,null,null,null,null,null,null,null,null,null,null,null,null,null,null,null,19]
[]
[]
[]
[]
[null,null,null,null,null,null,null,null,null,null,null,null,null,null,null,null,null,null,null,null,null,null,null,null,null,null,null,null,null,null,null,null,null,null,null,null,null,null,null,null,null,null,null,null,null,null,null,null,null,null,null,null,20]
[]
[]
[]
[null,10]
[null,null,null,null,null,null,null,null,null,null,null,null,null,null,null,null,null,null,null,null,null,null,null,null,null,null,null,null,null,null,null,null,null,null,null,null,null,null,null,null,null,null,null,null,null,null,null,null,null,null,null,null,21]
[]
[]
[]
[]
[null,null,null,null,null,null,null,null,null,null,null,null,null,null,null,null,null,null,null,null,null,null,null,null,null,null,null,null,null,null,null,null,null,null,null,null,null,null,null,null,null,null,null,null,null,null,null,null,null,null,null,null,22]
[]
[]
[]
[null,5]
[null,null,null,null,null,null,null,null,null,null,null,null,null,null,null,null,null,null,null,null,null,null,null,null,null,null,null,null,null,null,null,null,null,null,null,null,null,null,null,null,null,null,null,null,null,null,null,null,null,null,null,null,23]
[]
[]
[]
[]
[null,null,null,null,null,null,null,null,null,null,null,null,null,null,null,null,null,null,null,null,null,null,null,null,null,null,null,null,null,null,null,null,null,null,null,null,null,null,null,null,null,null,null,null,null,null,null,null,null,null,null,null,24]
[]
[]
[]
[null,0]
[]
[]
[]
[null,null,null,"Brighton (H) W 2-0","Leyton Orient (A) L 0-1","Torquay (A) L 2-4","Leyton Orient (H) W 1-0","Bristol C (H) L 1-3","Northampton (A) W 1-0","Walsall (A) D 1-1","Northampton (H) W 1-0","Shrewsbury (H) W 2-0","Southampton (H) W 2-0","Reading (A) D 0-0","Southampton (A) L 0-3","Gillingham (H) W 3-2","Bournemouth (A) W 1-0","QPR (H) L 0-1","Newport County (A) L 1-2","C Palace (H) W 5-2","Colchester (A) W 2-0","Norwich (H) D 0-0","Aldershot (H) W 3-1","Swindon (A) D 1-1","Brighton (A) W 2-1","Brentford (A) L 1-3","Brentford (H) D 2-2","Torquay (H) W 4-1","Walsall (H) W 1-0","Watford (H) W 1-0","Shrewsbury (A) L 2-3","Reading (H) D 2-2","Gillingham (A) D 1-1","Bournemouth (H) D 1-1","QPR (A) W 2-1","Bristol C (A) L 1-5","Newport County (H) D 1-1","C Palace (A) D 1-1","Colchester (H) W 5-2","Watford (A) L 3-5","Norwich (A) L 1-2","Coventry (H) W 3-1","Southend (H) L 1-4","Coventry (A) L 1-4","Aldershot (A) L 0-3","Swindon (H) W 1-0","Southend (A) L 0-1","Exeter (A) W 4-1","Exeter (H) D 2-2","Final Table"]
[]
[]
[]
[]
[]
[null,"Millwall",null,{"$f":"Sheet2!$G$6","v":2},{"$f":"Sheet2!$G$7","v":2},{"$f":"Sheet2!$G$8","v":2},{"$f":"Sheet2!$G$9","v":4},{"$f":"Sheet2!$G$10","v":4},{"$f":"Sheet2!$G$11","v":6},{"$f":"Sheet2!$G$12","v":7},{"$f":"Sheet2!$G$13","v":9},{"$f":"Sheet2!$G$14","v":11},{"$f":"Sheet2!$G$15","v":13},{"$f":"Sheet2!$G$16","v":14},{"$f":"Sheet2!$G$17","v":14},{"$f":"Sheet2!$G$18","v":16},{"$f":"Sheet2!$G$19","v":18},{"$f":"Sheet2!$G$20","v":18},{"$f":"Sheet2!$G$21","v":18},{"$f":"Sheet2!$G$22","v":20},{"$f":"Sheet2!$G$23","v":22},{"$f":"Sheet2!$G$24","v":23},{"$f":"Sheet2!$G$25","v":25},{"$f":"Sheet2!$G$26","v":26},{"$f":"Sheet2!$G$27","v":28},{"$f":"Sheet2!$G$28","v":28},{"$f":"Sheet2!$G$29","v":29},{"$f":"Sheet2!$G$30","v":31},{"$f":"Sheet2!$G$31","v":33},{"$f":"Sheet2!$G$32","v":35},{"$f":"Sheet2!$G$33","v":35},{"$f":"Sheet2!$G$34","v":36},{"$f":"Sheet2!$G$35","v":37},{"$f":"Sheet2!$G$36","v":38},{"$f":"Sheet2!$G$37","v":40},{"$f":"Sheet2!$G$38","v":40},{"$f":"Sheet2!$G$39","v":41},{"$f":"Sheet2!$G$40","v":42},{"$f":"Sheet2!$G$41","v":44},{"$f":"Sheet2!$G$42","v":44},{"$f":"Sheet2!$G$43","v":44},{"$f":"Sheet2!$G$44","v":46},{"$f":"Sheet2!$G$45","v":46},{"$f":"Sheet2!$G$46","v":46},{"$f":"Sheet2!$G$47","v":46},{"$f":"Sheet2!$G$48","v":48},{"$f":"Sheet2!$G$49","v":48},{"$f":"Sheet2!$G$50","v":50},{"$f":"Sheet2!$G$51","v":51},{"$f":"Sheet2!$G$52","v":51}]
[]
[null,"Position",null,{"$f":"125-(D144*5)","v":115},{"$f":"125-(E144*5)","v":75},35,85,30,60,65,95,95,105,105,95,100,100,90,90,90,100,95,95,95,105,100,105,105,105,105,105,105,105,105,105,105,105,105,105,105,105,105,100,100,100,100,100,100,100,100]
[]
[]
[]
[null,null,null,{"$f":"Sheet2!$H$6","v":2},{"$f":"Sheet2!$H$7","v":10},{"$f":"Sheet2!$H$8","v":18},{"$f":"Sheet2!$H$9","v":8},{"$f":"Sheet2!$H$10","v":19},{"$f":"Sheet2!$H$11","v":13},{"$f":"Sheet2!$H$12","v":12},{"$f":"Sheet2!$H$13","v":6},{"$f":"Sheet2!$H$14","v":6},{"$f":"Sheet2!$H$15","v":4},{"$f":"Sheet2!$H$16","v":4},{"$f":"Sheet2!$H$17","v":6},{"$f":"Sheet2!$H$18","v":5},{"$f":"Sheet2!$H$19","v":5},{"$f":"Sheet2!$H$20","v":7},{"$f":"Sheet2!$H$21","v":7},{"$f":"Sheet2!$H$22","v":7},{"$f":"Sheet2!$H$23","v":5},{"$f":"Sheet2!$H$24","v":6},{"$f":"Sheet2!$H$25","v":6},{"$f":"Sheet2!$H$26","v":6},{"$f":"Sheet2!$H$27","v":4},{"$f":"Sheet2!$H$28","v":5},{"$f":"Sheet2!$H$29","v":4},{"$f":"Sheet2!$H$30","v":4},{"$f":"Sheet2!$H$31","v":4},{"$f":"Sheet2!$H$32","v":4},{"$f":"Sheet2!$H$33","v":4},{"$f":"Sheet2!$H$34","v":4},{"$f":"Sheet2!$H$35","v":4},{"$f":"Sheet2!$H$36","v":4},{"$f":"Sheet2!$H$37","v":4},{"$f":"Sheet2!$H$38","v":4},{"$f":"Sheet2!$H$39","v":4},{"$f":"Sheet2!$H$40","v":4},{"$f":"Sheet2!$H$41","v":4},{"$f":"Sheet2!$H$42","v":4},{"$f":"Sheet2!$H$43","v":4},{"$f":"Sheet2!$H$44","v":4},{"$f":"Sheet2!$H$45","v":5},{"$f":"Sheet2!$H$46","v":5},{"$f":"Sheet2!$H$47","v":5},{"$f":"Sheet2!$H$48","v":5},{"$f":"Sheet2!$H$49","v":5},{"$f":"Sheet2!$H$50","v":5},{"$f":"Sheet2!$H$51","v":5},{"$f":"Sheet2!$H$52","v":5}]